Workbook

Sheet 11.2-11.4
A1: Nights spent at tourist accommodation establishments [tour_occ_ninat]
A3: Last update | B3: 2016-03-22T12:10:27
A4: Extracted on | B4: 2016-04-14T12:46:59.385
A5: Source of data | B5: Eurostat
A7: UNIT | B7: Number
A8: NACE_R2 | B8: Hotels; holiday and other short-stay accommodation; camping grounds, recreational vehicle parks and trailer parks
A10: Get the data: | B10: http://goo.gl/E4LxQe
C12: =RIGHT(C13,2) -> 90 | D12: =RIGHT(D13,2) -> 91 | E12: 92 | F12: 93 | G12: 94 | H12: 95 | I12: 96 | J12: 97 | K12: 98 | L12: 99 | M12: 00 | N12: 01 | O12: 02 | P12: 03 | Q12: 04 | R12: 05 | S12: 06 | T12: 07 | U12: 08 | V12: 09 | W12: 10 | X12: 11 | Y12: 12 | Z12: 13 | AA12: 14
A13: GEO | B13: INDIC_TO/TIME | C13: 1990 | D13: 1991 | E13: 1992 | F13: 1993 | G13: 1994 | H13: 1995 | I13: 1996 | J13: 1997 | K13: 1998 | L13: 1999 | M13: 2000 | N13: 2001 | O13: 2002 | P13: 2003 | Q13: 2004 | R13: 2005 | S13: 2006 | T13: 2007 | U13: 2008 | V13: 2009 | W13: 2010 | X13: 2011 | Y13: 2012 | Z13: 2013 | AA13: 2014
A14: European Union (28 countries) | B14: Total nights spent by residents | C14: : | D14: : | E14: : | F14: : | G14: : | H14: : | I14: : | J14: : | K14: : | L14: : | M14: : | N14: : | O14: : | P14: : | Q14: 1274065017 | R14: 1342254427 | S14: 1353679890 | T14: 1344223242 | U14: 1339650072 | V14: 1342535645 | W14: 1389114366 | X14: 1398681230 | Y14: 1452249891 | Z14: 1450002157 | AA14: 1471328524
A15: European Union (28 countries) | B15: Total nights spent by non-residents | C15: : | D15: : | E15: : | F15: : | G15: : | H15: : | I15: : | J15: : | K15: : | L15: : | M15: : | N15: : | O15: : | P15: 902783023 | Q15: 911897797 | R15: 943757677 | S15: 988162447 | T15: 1007819840 | U15: 997684248 | V15: 946803175 | W15: 1006834200 | X15: 1077378862 | Y15: 1133558823 | Z15: 1191592955 | AA15: 1211064155
A16: European Union (28 countries) | B16: Nights spent, total | C16: : | D16: : | E16: : | F16: : | G16: : | H16: : | I16: : | J16: : | K16: : | L16: : | M16: : | N16: : | O16: : | P16: : | Q16: 2185962814 | R16: 2286012104 | S16: 2341842337 | T16: 2352043082 | U16: 2337334320 | V16: 2289338820 | W16: 2395948566 | X16: 2476060092 | Y16: 2585808714 | Z16: 2641595112 | AA16: 2682392679
A17: European Union (27 countries) | B17: Total nights spent by residents | C17: : | D17: : | E17: : | F17: : | G17: : | H17: : | I17: : | J17: : | K17: : | L17: : | M17: : | N17: : | O17: : | P17: : | Q17: 1269824573 | R17: 1338082415 | S17: 1349193282 | T17: 1339606329 | U17: 1335020735 | V17: 1338408868 | W17: 1385340066 | X17: 1394819442 | Y17: 1447145933 | Z17: 1444962761 | AA17: 1466276194
A18: European Union (27 countries) | B18: Total nights spent by non-residents | C18: : | D18: : | E18: : | F18: : | G18: : | H18: : | I18: : | J18: : | K18: : | L18: : | M18: : | N18: : | O18: : | P18: 871800482 | Q18: 880146770 | R18: 910637241 | S18: 955304433 | T18: 974117915 | U18: 963781513 | V18: 913445331 | W18: 973599318 | X18: 1041989860 | Y18: 1076478856 | Z18: 1132214059 | AA18: 1146438009
A19: European Union (27 countries) | B19: Nights spent, total | C19: : | D19: : | E19: : | F19: : | G19: : | H19: : | I19: : | J19: : | K19: : | L19: : | M19: : | N19: : | O19: : | P19: : | Q19: 2149971343 | R19: 2248719656 | S19: 2304497715 | T19: 2313724244 | U19: 2298802248 | V19: 2251854199 | W19: 2358939384 | X19: 2436809302 | Y19: 2523624789 | Z19: 2577176820 | AA19: 2612714203
A20: Belgium | B20: Total nights spent by residents | C20: 18719301 | D20: 17311589 | E20: 14588237 | F20: 14321077 | G20: 14169735 | H20: 14132641 | I20: 14288477 | J20: 13732162 | K20: 13184880 | L20: 13111465 | M20: 13689157 | N20: 13320625 | O20: 13189212 | P20: 13089092 | Q20: 12949882 | R20: 12827414 | S20: 13331835 | T20: 13578045 | U20: 13611137 | V20: 13799364 | W20: 14128350 | X20: 14655977 | Y20: 14834795 | Z20: 14936459 | AA20: 15536809
A21: Belgium | B21: Total nights spent by non-residents | C21: 12886249 | D21: 12170124 | E21: 12747942 | F21: 13073880 | G21: 13193787 | H21: 13882027 | I21: 14440943 | J21: 14762402 | K21: 14838367 | L21: 15365791 | M21: 15526188 | N21: 15373338 | O21: 15903329 | P21: 15929415 | Q21: 15544514 | R21: 15553279 | S21: 16039090 | T21: 16271311 | U21: 16360702 | V21: 15451017 | W21: 16169676 | X21: 16723867 | Y21: 16432646 | Z21: 16511721 | AA21: 17068872
A22: Belgium | B22: Nights spent, total | C22: 31605550 | D22: 29481713 | E22: 27336179 | F22: 27394957 | G22: 27363522 | H22: 28014668 | I22: 28729420 | J22: 28494564 | K22: 28023247 | L22: 28477256 | M22: 29215345 | N22: 28693963 | O22: 29092541 | P22: 29018507 | Q22: 28494396 | R22: 28380693 | S22: 29370925 | T22: 29849356 | U22: 29971839 | V22: 29250381 | W22: 30298026 | X22: 31379844 | Y22: 31267441 | Z22: 31448180 | AA22: 32605681
A23: Bulgaria | B23: Total nights spent by residents | C23: 17797878 | D23: 6340417 | E23: 6569571 | F23: 5234097 | G23: 4695580 | H23: 4549385 | I23: 3884329 | J23: 3024710 | K23: 3437742 | L23: 3117393 | M23: 3384048 | N23: 3194613 | O23: 3230528 | P23: 3379309 | Q23: 3856507 | R23: 4447262 | S23: 5410669 | T23: 5969872 | U23: 6391469 | V23: 5816078 | W23: 5592004 | X23: 6229338 | Y23: 6800598 | Z23: 7247048 | AA23: 7620593
A24: Bulgaria | B24: Total nights spent by non-residents | C24: 12759237 | D24: 4663756 | E24: 5587597 | F24: 7477345 | G24: 6436790 | H24: 5437963 | I24: 5921961 | J24: 5476931 | K24: 5197050 | L24: 4382405 | M24: 5170091 | N24: 6189893 | O24: 7055140 | P24: 9142170 | Q24: 10303560 | R24: 11624051 | S24: 11944694 | T24: 12006786 | U24: 11791454 | V24: 9460922 | W24: 10547112 | X24: 12426723 | Y24: 13451440 | Z24: 14370426 | AA24: 14077798
A25: Bulgaria | B25: Nights spent, total | C25: 30557115 | D25: 11004173 | E25: 12157168 | F25: 12711442 | G25: 11132370 | H25: 9987348 | I25: 9806290 | J25: 8501641 | K25: 8634792 | L25: 7499798 | M25: 8554139 | N25: 9384506 | O25: 10285668 | P25: 12521479 | Q25: 14160067 | R25: 16071313 | S25: 17355363 | T25: 17976658 | U25: 18182923 | V25: 15277000 | W25: 16139116 | X25: 18656061 | Y25: 20252038 | Z25: 21617474 | AA25: 21698391
A26: Czech Republic | B26: Total nights spent by residents | C26: 15841000 | D26: 8543000 | E26: 7393000 | F26: 7625000 | G26: 9520295 | H26: 13833493 | I26: 22637249 | J26: 26416540 | K26: 27836000 | L26: 26224000 | M26: 28602529 | N26: 21867306 | O26: 21540679 | P26: 22832632 | Q26: 21800246 | R26: 20725442 | S26: 21357449 | T26: 20220886 | U26: 19296452 | V26: 18915299 | W26: 18542864 | X26: 18810249 | Y26: 21484472 | Z26: 21163383 | AA26: 20836817
A27: Czech Republic | B27: Total nights spent by non-residents | C27: 6963000 | D27: 5651000 | E27: 6088000 | F27: 6991000 | G27: 8280598 | H27: 10274976 | I27: 13640529 | J27: 14932493 | K27: 16218000 | L27: 16125000 | M27: 15597087 | N27: 17254881 | O27: 15569156 | P27: 16510618 | Q27: 18980462 | R27: 19595035 | S27: 20090348 | T27: 20610186 | U27: 19987022 | V27: 17746893 | W27: 18365947 | X27: 19424839 | Y27: 21793985 | Z27: 22144896 | AA27: 22110112
A28: Czech Republic | B28: Nights spent, total | C28: 22804000 | D28: 14194000 | E28: 13481000 | F28: 14616000 | G28: 17800893 | H28: 24108469 | I28: 36277778 | J28: 41349033 | K28: 44054000 | L28: 42349000 | M28: 44199616 | N28: 39122187 | O28: 37109835 | P28: 39343250 | Q28: 40780708 | R28: 40320477 | S28: 41447797 | T28: 40831072 | U28: 39283474 | V28: 36662192 | W28: 36908811 | X28: 38235088 | Y28: 43278457 | Z28: 43308279 | AA28: 42946929
A29: Denmark | B29: Total nights spent by residents | C29: 13333745 | D29: 13440100 | E29: 14055500 | F29: 13880900 | G29: 14335300 | H29: 12451400 | I29: 14878006 | J29: 15107996 | K29: 14882635 | L29: 15245663 | M29: 15159058 | N29: 15440854 | O29: 16094974 | P29: 16445657 | Q29: 16553198 | R29: 16871605 | S29: 17814024 | T29: 18740015 | U29: 19108832 | V29: 18192060 | W29: 18164955 | X29: 18719949 | Y29: 18432111 | Z29: 18586564 | AA29: 19038780
A30: Denmark | B30: Total nights spent by non-residents | C30: 9337935 | D30: 10431300 | E30: 11633400 | F30: 10503500 | G30: 10634800 | H30: 9651070 | I30: 10810187 | J30: 10918596 | K30: 10287564 | L30: 9965684 | M30: 10005887 | N30: 9745743 | O30: 9578670 | P30: 9843468 | Q30: 9565867 | R30: 9355831 | S30: 9453026 | T30: 9327579 | U30: 8918197 | V30: 8299403 | W30: 8981992 | X30: 9491137 | Y30: 9608124 | Z30: 9914273 | AA30: 10608119
A31: Denmark | B31: Nights spent, total | C31: 22671680 | D31: 23871400 | E31: 25688900 | F31: 24384400 | G31: 24970100 | H31: 22102470 | I31: 25688193 | J31: 26026592 | K31: 25170199 | L31: 25211347 | M31: 25164945 | N31: 25186597 | O31: 25673644 | P31: 26289125 | Q31: 26119065 | R31: 26227436 | S31: 27267050 | T31: 28067594 | U31: 28027029 | V31: 26491463 | W31: 27146947 | X31: 28211086 | Y31: 28040235 | Z31: 28500837 | AA31: 29646899
A32: Germany (until 1990 former territory of the FRG) | B32: Total nights spent by residents | C32: 196183306 | D32: 247688851 | E32: 280117669 | F32: 276490986 | G32: 237473733 | H32: 240457534 | I32: 238563516 | J32: 233740087 | K32: 236367945 | L32: 245841565 | M32: 256068097 | N32: 258315368 | O32: 251096920 | P32: 251387676 | Q32: 293394988 | R32: 295734579 | S32: 298276597 | T32: 262820456 | U32: 267636330 | V32: 260021970 | W32: 265780765 | X32: 275939999 | Y32: 282187922 | Z32: 283679063 | AA32: 291722145
A33: Germany (until 1990 former territory of the FRG) | B33: Total nights spent by non-residents | C33: 38953142 | D33: 37426401 | E33: 38200430 | F33: 34709627 | G33: 34776993 | H33: 35285376 | I33: 35323514 | J33: 36206807 | K33: 37091209 | L33: 38514653 | M33: 42420126 | N33: 40628905 | O33: 40388599 | P33: 41577515 | Q33: 45373852 | R33: 48246436 | S33: 52947373 | T33: 54485379 | U33: 56239679 | V33: 54096574 | W33: 59658760 | X33: 63081467 | Y33: 68161503 | Z33: 71191942 | AA33: 74805253
A34: Germany (until 1990 former territory of the FRG) | B34: Nights spent, total | C34: 235136448 | D34: 285115252 | E34: 318318099 | F34: 311200613 | G34: 272250726 | H34: 275742910 | I34: 273887030 | J34: 269946894 | K34: 273459154 | L34: 284356218 | M34: 298488223 | N34: 298944273 | O34: 291485519 | P34: 292965191 | Q34: 338768840 | R34: 343981015 | S34: 351223970 | T34: 317305835 | U34: 323876009 | V34: 314118544 | W34: 325439525 | X34: 339021466 | Y34: 350349425 | Z34: 354871005 | AA34: 366527398
A35: Estonia | B35: Total nights spent by residents | C35: : | D35: : | E35: : | F35: : | G35: : | H35: : | I35: : | J35: : | K35: : | L35: : | M35: : | N35: : | O35: 698081 | P35: 816560 | Q35: 1010909 | R35: 1129118 | S35: 1522963 | T35: 1759045 | U35: 1669550 | V35: 1381830 | W35: 1496959 | X35: 1650527 | Y35: 1721498 | Z35: 1824707 | AA35: 1890165
A36: Estonia | B36: Total nights spent by non-residents | C36: : | D36: : | E36: : | F36: : | G36: : | H36: : | I36: : | J36: : | K36: : | L36: : | M36: : | N36: : | O36: 1997588 | P36: 2267873 | Q36: 2746806 | R36: 2982459 | S36: 3020367 | T36: 2915456 | U36: 2932662 | V36: 2740696 | W36: 3203721 | X36: 3748865 | Y36: 3823039 | Z36: 3909326 | AA36: 3919299
A37: Estonia | B37: Nights spent, total | C37: : | D37: : | E37: : | F37: : | G37: : | H37: : | I37: : | J37: : | K37: : | L37: : | M37: : | N37: : | O37: 2695669 | P37: 3084433 | Q37: 3757715 | R37: 4111577 | S37: 4543330 | T37: 4674501 | U37: 4602212 | V37: 4122526 | W37: 4700680 | X37: 5399392 | Y37: 5544537 | Z37: 5734033 | AA37: 5809464
A38: Ireland | B38: Total nights spent by residents | C38: : | D38: : | E38: : | F38: : | G38: : | H38: 10215000 | I38: 7979000 | J38: 8659000 | K38: 8972000 | L38: 9036000 | M38: 9148000 | N38: 10292000 | O38: 11653000 | P38: 12502000 | Q38: 12200000 | R38: 12670000 | S38: 12003000 | T38: 13735000 | U38: 13338000 | V38: 12723000 | W38: 11786000 | X38: 10385000 | Y38: 17045662 | Z38: 17414628 | AA38: 17889958
A39: Ireland | B39: Total nights spent by non-residents | C39: : | D39: : | E39: : | F39: : | G39: 13149000 | H39: 14368000 | I39: 17065000 | J39: 17420000 | K39: 17051000 | L39: 18041000 | M39: 20776000 | N39: 21255000 | O39: 19956900 | P39: 20534000 | Q39: 20236000 | R39: 19427000 | S39: 21652000 | T39: : | U39: : | V39: : | W39: : | X39: : | Y39: 11839245 | Z39: 10871806 | AA39: 11276424
A40: Ireland | B40: Nights spent, total | C40: : | D40: : | E40: : | F40: : | G40: : | H40: 24583000 | I40: 25044000 | J40: 26079000 | K40: 26023000 | L40: 27077000 | M40: 29924000 | N40: 31547000 | O40: 31609900 | P40: 33036000 | Q40: 32436000 | R40: 32097000 | S40: 33655000 | T40: : | U40: : | V40: : | W40: : | X40: : | Y40: 28884907 | Z40: 28286434 | AA40: 29166382
A41: Greece | B41: Total nights spent by residents | C41: : | D41: : | E41: : | F41: : | G41: 12235417 | H41: 12404420 | I41: 12669026 | J41: 14085036 | K41: 13531025 | L41: 13881942 | M41: 15162275 | N41: 13774076 | O41: 13513540 | P41: 14094641 | Q41: 13757825 | R41: 14529739 | S41: 14741170 | T41: 17338763 | U41: 17650614 | V41: 26949442 | W41: 24559423 | X41: 22036946 | Y41: 19512289 | Z41: 20112805 | AA41: 20441240
A42: Greece | B42: Total nights spent by non-residents | C42: : | D42: : | E42: : | F42: : | G42: 41199694 | H42: 38226678 | I42: 35993353 | J42: 40990773 | K42: 39178796 | L42: 41999546 | M42: 47023618 | N42: 42494140 | O42: 40952769 | P42: 40407463 | Q42: 38796196 | R42: 40734354 | S42: 43055381 | T42: 48081473 | U42: 47973949 | V42: 57413304 | W42: 59184397 | X42: 65514230 | Y42: 61054383 | Z42: 68992640 | AA42: 74675156
A43: Greece | B43: Nights spent, total | C43: : | D43: : | E43: : | F43: : | G43: 53435111 | H43: 50631098 | I43: 48662379 | J43: 55075809 | K43: 52709821 | L43: 55881488 | M43: 62185893 | N43: 56268216 | O43: 54466309 | P43: 54502104 | Q43: 52554021 | R43: 55264093 | S43: 57796551 | T43: 65420236 | U43: 65624563 | V43: 84362746 | W43: 83743820 | X43: 87551176 | Y43: 80566672 | Z43: 89105445 | AA43: 95116396
A44: Spain | B44: Total nights spent by residents | C44: 66647704 | D44: 71514000 | E44: 66062846 | F44: 68596441 | G44: 70676910 | H44: 72536239 | I44: 71761799 | J44: 73881183 | K44: 79994078 | L44: 95877784 | M44: 110762971 | N44: 113486388 | O44: 118169863 | P44: 124689085 | Q44: 135188012 | R44: 143874021 | S44: 154757459 | T44: 156462217 | U44: 151937093 | V44: 148002725 | W44: 151514295 | X44: 150489310 | Y44: 139281970 | Z44: 136764221 | AA44: 144327228
A45: Spain | B45: Total nights spent by non-residents | C45: 75745030 | D45: 78801693 | E45: 81183389 | F45: 88394664 | G45: 104156408 | H45: 107604922 | I45: 106442110 | J45: 113202480 | K45: 120996632 | L45: 160424403 | M45: 233900964 | N45: 231442166 | O45: 220699515 | P45: 217851459 | Q45: 209081382 | R45: 209518387 | S45: 224518083 | T45: 225450241 | U45: 223756216 | V45: 200551728 | W45: 213349649 | X45: 239369167 | Y45: 243389006 | Z45: 252447766 | AA45: 259635794
A46: Spain | B46: Nights spent, total | C46: 142392734 | D46: 150315693 | E46: 147246235 | F46: 156991105 | G46: 174833318 | H46: 180141161 | I46: 178203909 | J46: 187083663 | K46: 200990710 | L46: 256302187 | M46: 344663935 | N46: 344928554 | O46: 338869378 | P46: 342540544 | Q46: 344269394 | R46: 353392408 | S46: 379275542 | T46: 381912458 | U46: 375693309 | V46: 348554453 | W46: 364863944 | X46: 389858477 | Y46: 382670976 | Z46: 389211987 | AA46: 403963022
A47: France | B47: Total nights spent by residents | C47: 153761345 | D47: 151779992 | E47: 155774160 | F47: 155816018 | G47: 156444761 | H47: 155126088 | I47: : | J47: : | K47: 154408078 | L47: 158849410 | M47: 171286092 | N47: 179038904 | O47: 176298708 | P47: 179352428 | Q47: 178839518 | R47: 187641777 | S47: 191616135 | T47: 193395605 | U47: 194048978 | V47: 195984460 | W47: 270832690 | X47: 277779224 | Y47: 275487105 | Z47: 275874900 | AA47: 271406467
A48: France | B48: Total nights spent by non-residents | C48: 84925306 | D48: 84121033 | E48: 91862672 | F48: 90665883 | G48: 94873889 | H48: 87548126 | I48: : | J48: : | K48: 92595973 | L48: 99343032 | M48: 108838468 | N48: 110261514 | O48: 113241419 | P48: 103744880 | Q48: 104177904 | R48: 107951866 | S48: 105865432 | T48: 108567043 | U48: 106993811 | V48: 98705212 | W48: 120390105 | X48: 123227704 | Y48: 125038453 | Z48: 132251136 | AA48: 130908700
A49: France | B49: Nights spent, total | C49: 238686651 | D49: 235901025 | E49: 247636832 | F49: 246481901 | G49: 251318650 | H49: 242674214 | I49: : | J49: : | K49: 247004051 | L49: 258192442 | M49: 280124560 | N49: 289300418 | O49: 289540127 | P49: 283097308 | Q49: 283017422 | R49: 295593643 | S49: 297481567 | T49: 301962648 | U49: 301042789 | V49: 294689672 | W49: 391222795 | X49: 401006928 | Y49: 400525558 | Z49: 408126035 | AA49: 402315167
A50: Croatia | B50: Total nights spent by residents | C50: : | D50: : | E50: : | F50: 3070829 | G50: 4000616 | H50: 4107952 | I50: 4413666 | J50: 4821721 | K50: 4494904 | L50: 4568018 | M50: 4224063 | N50: 4156363 | O50: 4061030 | P50: 4263357 | Q50: 4240444 | R50: 4172012 | S50: 4486608 | T50: 4616913 | U50: 4629337 | V50: 4126777 | W50: 3774300 | X50: 3861788 | Y50: 5103958 | Z50: 5039396 | AA50: 5052330
A51: Croatia | B51: Total nights spent by non-residents | C51: : | D51: : | E51: : | F51: 9388907 | G51: 14321670 | H51: 8202576 | I51: 14640480 | J51: 20293549 | K51: 21337500 | L51: 17901802 | M51: 26633622 | N51: 29757532 | O51: 30285645 | P51: 30982541 | Q51: 31751027 | R51: 33120436 | S51: 32858014 | T51: 33701925 | U51: 33902735 | V51: 33357844 | W51: 33234882 | X51: 35389002 | Y51: 57079967 | Z51: 59378896 | AA51: 61072661
A52: Croatia | B52: Nights spent, total | C52: : | D52: : | E52: : | F52: 12459736 | G52: 18322286 | H52: 12310528 | I52: 19054146 | J52: 25115270 | K52: 25832404 | L52: 22469820 | M52: 30857685 | N52: 33913895 | O52: 34346675 | P52: 35245898 | Q52: 35991471 | R52: 37292448 | S52: 37344622 | T52: 38318838 | U52: 38532072 | V52: 37484621 | W52: 37009182 | X52: 39250790 | Y52: 62183925 | Z52: 64418292 | AA52: 66124991
A53: Italy | B53: Total nights spent by residents | C53: 167496129 | D53: 172324802 | E53: 173569101 | F53: 167912287 | G53: 173748270 | H53: 173494221 | I53: 173346659 | J53: 173916564 | K53: 178266093 | L53: 181646770 | M53: 198528158 | N53: 203650860 | O53: 199687120 | P53: 204759892 | Q53: 204446991 | R53: 206726524 | S53: 209903437 | T53: 213176071 | U53: 211869278 | V53: 211268511 | W53: 210340052 | X53: 210420670 | Y53: 200116495 | Z53: 191992233 | AA53: 190978299
A54: Italy | B54: Total nights spent by non-residents | C54: 84719910 | D54: 86734917 | E54: 83642567 | F54: 85430773 | G54: 101004689 | H54: 113000571 | I54: 118023647 | J54: 118359759 | K54: 121242294 | L54: 126668423 | M54: 140356985 | N54: 146672273 | O54: 145559930 | P54: 139653425 | Q54: 141169236 | R54: 148290126 | S54: 156861341 | T54: 163465680 | U54: 161797434 | V54: 159493866 | W54: 165202498 | X54: 176474062 | Y54: 180594988 | Z54: 184793382 | AA54: 186792507
A55: Italy | B55: Nights spent, total | C55: 252216039 | D55: 259059719 | E55: 257211668 | F55: 253343060 | G55: 274752959 | H55: 286494792 | I55: 291370306 | J55: 292276323 | K55: 299508387 | L55: 308315193 | M55: 338885143 | N55: 350323133 | O55: 345247050 | P55: 344413317 | Q55: 345616227 | R55: 355016650 | S55: 366764778 | T55: 376641751 | U55: 373666712 | V55: 370762377 | W55: 375542550 | X55: 386894732 | Y55: 380711483 | Z55: 376785615 | AA55: 377770806
A56: Cyprus | B56: Total nights spent by residents | C56: 171928 | D56: 466183 | E56: 300563 | F56: 401611 | G56: 365673 | H56: 365061 | I56: 504867 | J56: 548804 | K56: 588637 | L56: 604756 | M56: 603359 | N56: 736702 | O56: 870303 | P56: 967805 | Q56: 1080752 | R56: 1052037 | S56: 1128335 | T56: 1180663 | U56: 1171421 | V56: 1337006 | W56: 1352630 | X56: 1172135 | Y56: 1088446 | Z56: 895939 | AA56: 830943
A57: Cyprus | B57: Total nights spent by non-residents | C57: 10187926 | D57: 8901196 | E57: 14152829 | F57: 12231213 | G57: 14299191 | H57: 14201434 | I57: 12704684 | J57: 13161573 | K57: 14444330 | L57: 16126134 | M57: 16815696 | N57: 18089506 | O57: 15289044 | P57: 13490132 | Q57: 13636517 | R57: 14006282 | S57: 13310257 | T57: 13197004 | U57: 13208954 | V57: 11666663 | W57: 12448158 | X57: 13112596 | Y57: 13488127 | Z57: 13152589 | AA57: 12884399
A58: Cyprus | B58: Nights spent, total | C58: 10359854 | D58: 9367379 | E58: 14453392 | F58: 12632824 | G58: 14664864 | H58: 14566495 | I58: 13209551 | J58: 13710377 | K58: 15032967 | L58: 16730890 | M58: 17419055 | N58: 18826208 | O58: 16159347 | P58: 14457937 | Q58: 14717269 | R58: 15058319 | S58: 14438592 | T58: 14377667 | U58: 14380375 | V58: 13003669 | W58: 13800788 | X58: 14284731 | Y58: 14576573 | Z58: 14048529 | AA58: 13715342
A59: Latvia | B59: Total nights spent by residents | C59: : | D59: : | E59: : | F59: : | G59: : | H59: 735252 | I59: 647266 | J59: 743527 | K59: 707759 | L59: 709691 | M59: 786844 | N59: 769090 | O59: 821499 | P59: 824795 | Q59: 865335 | R59: 1021536 | S59: 1241453 | T59: 1388706 | U59: 1385445 | V59: 843549 | W59: 921768 | X59: 1037211 | Y59: 1117643 | Z59: 1135758 | AA59: 1282484
A60: Latvia | B60: Total nights spent by non-residents | C60: : | D60: : | E60: : | F60: : | G60: : | H60: 667787 | I60: 697163 | J60: 762962 | K60: 732879 | L60: 723967 | M60: 697010 | N60: 846555 | O60: 871430 | P60: 982542 | Q60: 1200569 | R60: 1612671 | S60: 1872393 | T60: 1935984 | U60: 2115618 | V60: 1699562 | W60: 1912336 | X60: 2257021 | Y60: 2429093 | Z60: 2639434 | AA60: 2875934
A61: Latvia | B61: Nights spent, total | C61: : | D61: : | E61: : | F61: : | G61: : | H61: 1403039 | I61: 1344429 | J61: 1506489 | K61: 1440638 | L61: 1433658 | M61: 1483854 | N61: 1615645 | O61: 1692929 | P61: 1807337 | Q61: 2065904 | R61: 2634207 | S61: 3113846 | T61: 3324690 | U61: 3501063 | V61: 2543111 | W61: 2834104 | X61: 3294232 | Y61: 3546736 | Z61: 3775192 | AA61: 4158418
A62: Lithuania | B62: Total nights spent by residents | C62: : | D62: : | E62: : | F62: : | G62: 1835152 | H62: 1581833 | I62: 1202142 | J62: 1167608 | K62: 1348228 | L62: 1232633 | M62: 770384 | N62: 768871 | O62: 856994 | P62: 824470 | Q62: 970548 | R62: 1221924 | S62: 1421532 | T62: 1653663 | U62: 1622510 | V62: 1152215 | W62: 1220810 | X62: 1383855 | Y62: 3061204 | Z62: 3182855 | AA62: 3431178
A63: Lithuania | B63: Total nights spent by non-residents | C63: : | D63: : | E63: : | F63: : | G63: 556155 | H63: 503519 | I63: 576027 | J63: 616375 | K63: 712641 | L63: 667940 | M63: 635634 | N63: 734592 | O63: 799069 | P63: 835562 | Q63: 1197331 | R63: 1401033 | S63: 1514197 | T63: 1609998 | U63: 1626829 | V63: 1395899 | W63: 1571325 | X63: 1883003 | Y63: 2680048 | Z63: 2906201 | AA63: 3033826
A64: Lithuania | B64: Nights spent, total | C64: : | D64: : | E64: : | F64: : | G64: 2391307 | H64: 2085352 | I64: 1778169 | J64: 1783983 | K64: 2060869 | L64: 1900573 | M64: 1406018 | N64: 1503463 | O64: 1656063 | P64: 1660032 | Q64: 2167879 | R64: 2622957 | S64: 2935729 | T64: 3263661 | U64: 3249339 | V64: 2548114 | W64: 2792135 | X64: 3266858 | Y64: 5741252 | Z64: 6089056 | AA64: 6465004
A65: Luxembourg | B65: Total nights spent by residents | C65: 301278 | D65: 361211 | E65: 338147 | F65: 382853 | G65: 332924 | H65: 227580 | I65: 215031 | J65: 240870 | K65: 264531 | L65: 253944 | M65: 216928 | N65: 213856 | O65: 224076 | P65: 219331 | Q65: 228381 | R65: 230276 | S65: 211229 | T65: 199132 | U65: 182459 | V65: 180335 | W65: 142434 | X65: 179841 | Y65: 245762 | Z65: 324357 | AA65: 354226
A66: Luxembourg | B66: Total nights spent by non-residents | C66: 2430334 | D66: 2552713 | E66: 2335043 | F66: 2537199 | G66: 2342312 | H66: 2326939 | I66: 2148071 | J66: 2296827 | K66: 2295856 | L66: 2471853 | M66: 2379021 | N66: 2396522 | O66: 2445897 | P66: 2516803 | Q66: 2493349 | R66: 2451764 | S66: 2399913 | T66: 2328688 | U66: 2249545 | V66: 2075831 | W66: 1717130 | X66: 2057883 | Y66: 2298068 | Z66: 2313124 | AA66: 2513585
A67: Luxembourg | B67: Nights spent, total | C67: 2731612 | D67: 2913924 | E67: 2673190 | F67: 2920052 | G67: 2675236 | H67: 2554519 | I67: 2363102 | J67: 2537697 | K67: 2560387 | L67: 2725797 | M67: 2595949 | N67: 2610378 | O67: 2669973 | P67: 2736134 | Q67: 2721730 | R67: 2682040 | S67: 2611142 | T67: 2527820 | U67: 2432004 | V67: 2256166 | W67: 1859564 | X67: 2237724 | Y67: 2543830 | Z67: 2637481 | AA67: 2867811
A68: Hungary | B68: Total nights spent by residents | C68: : | D68: : | E68: : | F68: 4650000 | G68: 5386000 | H68: 5524000 | I68: 5739000 | J68: 6173000 | K68: 6778000 | L68: 7384000 | M68: 9219522 | N68: 7753878 | O68: 8088966 | P68: 8570776 | Q68: 8391374 | R68: 8958459 | S68: 9606135 | T68: 9957726 | U68: 9964883 | V68: 9489598 | W68: 9672361 | X68: 9514575 | Y68: 11777350 | Z68: 12443265 | AA68: 13702543
A69: Hungary | B69: Total nights spent by non-residents | C69: : | D69: : | E69: : | F69: 11011417 | G69: 11082234 | H69: 10568798 | I69: 11354970 | J69: 10941388 | K69: 10871690 | L69: 10608761 | M69: 11210445 | N69: 10894493 | O69: 10360969 | P69: 10040338 | Q69: 10508109 | R69: 10778899 | S69: 10045891 | T69: 10170808 | U69: 10009531 | V69: 9220148 | W69: 9358373 | X69: 9920339 | Y69: 11392183 | Z69: 11982883 | AA69: 12351330
A70: Hungary | B70: Nights spent, total | C70: : | D70: : | E70: : | F70: 15661417 | G70: 16468234 | H70: 16092798 | I70: 17093970 | J70: 17114388 | K70: 17649690 | L70: 17992761 | M70: 20429967 | N70: 18648371 | O70: 18449935 | P70: 18611114 | Q70: 18899483 | R70: 19737358 | S70: 19652026 | T70: 20128534 | U70: 19974414 | V70: 18709746 | W70: 19030734 | X70: 19434914 | Y70: 23169533 | Z70: 24426148 | AA70: 26053873
A71: Malta | B71: Total nights spent by residents | C71: : | D71: : | E71: : | F71: : | G71: : | H71: : | I71: : | J71: : | K71: : | L71: : | M71: : | N71: : | O71: : | P71: : | Q71: 278655 | R71: 247399 | S71: 311187 | T71: 332398 | U71: 336426 | V71: 352312 | W71: 352539 | X71: 320108 | Y71: 333808 | Z71: 328740 | AA71: 352733
A72: Malta | B72: Total nights spent by non-residents | C72: : | D72: : | E72: : | F72: : | G72: : | H72: : | I72: : | J72: : | K72: : | L72: : | M72: : | N72: : | O72: : | P72: 7391578 | Q72: 7458466 | R72: 7320428 | S72: 7094031 | T72: 7749831 | U72: 7581137 | V72: 6550794 | W72: 7208295 | X72: 7361449 | Y72: 7498421 | Z72: 8172407 | AA72: 8428215
A73: Malta | B73: Nights spent, total | C73: : | D73: : | E73: : | F73: : | G73: : | H73: : | I73: : | J73: : | K73: : | L73: : | M73: : | N73: : | O73: : | P73: : | Q73: 7737121 | R73: 7567827 | S73: 7405218 | T73: 8082229 | U73: 7917563 | V73: 6903106 | W73: 7560834 | X73: 7681557 | Y73: 7832229 | Z73: 8501147 | AA73: 8780948
A74: Netherlands | B74: Total nights spent by residents | C74: 39368200 | D74: 39140400 | E74: 40554500 | F74: 38990600 | G74: 38180300 | H74: 42179500 | I74: 42334100 | J74: 43239000 | K74: 51749000 | L74: 55823000 | M74: 55308000 | N74: 54973000 | O74: 56003700 | P74: 55864300 | Q74: 55526300 | R74: 54950700 | S74: 57056800 | T74: 60314800 | U74: 59184600 | V74: 59502400 | W74: 58073400 | X74: 57629400 | Y74: 56204466 | Z74: 64303624 | AA74: 65328010
A75: Netherlands | B75: Total nights spent by non-residents | C75: 16458900 | D75: 17206000 | E75: 18023200 | F75: 17177800 | G75: 17991800 | H75: 19736400 | I75: 19043000 | J75: 21423000 | K75: 24573000 | L75: 27475000 | M75: 25955000 | N75: 25502000 | O75: 26367800 | P75: 25341600 | Q75: 25386300 | R75: 25210000 | S75: 26886500 | T75: 27952200 | U75: 25267600 | V75: 25013700 | W75: 26799800 | X75: 27739000 | Y75: 27845942 | Z75: 31770508 | AA75: 34423552
A76: Netherlands | B76: Nights spent, total | C76: 55827100 | D76: 56346400 | E76: 58577700 | F76: 56168400 | G76: 56172100 | H76: 61915900 | I76: 61377100 | J76: 64662000 | K76: 76322000 | L76: 83298000 | M76: 81263000 | N76: 80475000 | O76: 82371500 | P76: 81205900 | Q76: 80912600 | R76: 80160700 | S76: 83943300 | T76: 88267000 | U76: 84452200 | V76: 84516100 | W76: 84873200 | X76: 85368400 | Y76: 84050408 | Z76: 96074132 | AA76: 99751562
A77: Austria | B77: Total nights spent by residents | C77: 23184965 | D77: 24385321 | E77: 24519108 | F77: 24305611 | G77: 24289496 | H77: 24452217 | I77: 23417254 | J77: 23477953 | K77: 24430799 | L77: 25466217 | M77: 26242091 | N77: 26614566 | O77: 26424466 | P77: 27022560 | Q77: 26983701 | R77: 27298068 | S77: 28112457 | T77: 29145715 | U77: 29978727 | V77: 30608853 | W77: 31356359 | X77: 31692337 | Y77: 32382289 | Z77: 32253827 | AA77: 32341680
A78: Austria | B78: Total nights spent by non-residents | C78: 70640107 | D78: 73027382 | E78: 73229257 | F78: 70534159 | G78: 67279995 | H78: 63839819 | I78: 62410809 | J78: 60316637 | K78: 63199495 | L78: 63831171 | M78: 64468535 | N78: 65522992 | O78: 67346223 | P78: 68217090 | Q78: 68274375 | R78: 69732521 | S78: 70017089 | T78: 71518637 | U78: 74730956 | V78: 72224605 | W78: 72585976 | X78: 73647325 | Y78: 77158431 | Z78: 78433546 | AA78: 78099096
A79: Austria | B79: Nights spent, total | C79: 93825072 | D79: 97412703 | E79: 97748365 | F79: 94839770 | G79: 91569491 | H79: 88292036 | I79: 85828063 | J79: 83794590 | K79: 87630294 | L79: 89297388 | M79: 90710626 | N79: 92137558 | O79: 93770689 | P79: 95239650 | Q79: 95258076 | R79: 97030589 | S79: 98129546 | T79: 100664352 | U79: 104709683 | V79: 102833458 | W79: 103942335 | X79: 105339662 | Y79: 109540720 | Z79: 110687373 | AA79: 110440776
A80: Poland | B80: Total nights spent by residents | C80: : | D80: 40370381 | E80: 37249676 | F80: : | G80: : | H80: 37206307 | I80: 37572108 | J80: 43880098 | K80: 48430445 | L80: 40451134 | M80: 41902540 | N80: 38955574 | O80: 37126565 | P80: 37519615 | Q80: 37344188 | R80: 38076046 | S80: 40679846 | T80: 44035622 | U80: 46472281 | V80: 45410620 | W80: 45729839 | X80: 46527989 | Y80: 50138291 | Z80: 50488184 | AA80: 53587348
A81: Poland | B81: Total nights spent by non-residents | C81: : | D81: 6315401 | E81: 7102829 | F81: : | G81: : | H81: 5523500 | I81: 5594191 | J81: 7579637 | K81: 7229771 | L81: 5644924 | M81: 6891283 | N81: 6990543 | O81: 7085019 | P81: 7828230 | Q81: 9312939 | R81: 10542368 | S81: 10555119 | T81: 10918100 | U81: 10173237 | V81: 9609447 | W81: 10064628 | X81: 10620264 | Y81: 11876599 | Z81: 12471268 | AA81: 12992241
A82: Poland | B82: Nights spent, total | C82: : | D82: 46685782 | E82: 44352505 | F82: : | G82: : | H82: 42729807 | I82: 43166299 | J82: 51459735 | K82: 55660216 | L82: 46096058 | M82: 48793823 | N82: 45946117 | O82: 44211584 | P82: 45347845 | Q82: 46657127 | R82: 48618414 | S82: 51234965 | T82: 54953722 | U82: 56645518 | V82: 55020067 | W82: 55794467 | X82: 57148253 | Y82: 62014890 | Z82: 62959452 | AA82: 66579589
A83: Portugal | B83: Total nights spent by residents | C83: 13206472 | D83: 13404086 | E83: 13659589 | F83: 13998771 | G83: 13795606 | H83: 13965382 | I83: 14528391 | J83: 14707095 | K83: 15326060 | L83: 16242897 | M83: 16170623 | N83: 16111325 | O83: 16692458 | P83: 16713286 | Q83: 17105496 | R83: 17877265 | S83: 18679627 | T83: 19294810 | U83: 19202121 | V83: 19340064 | W83: 19648921 | X83: 18997755 | Y83: 17747121 | Z83: 17809486 | AA83: 19349092
A84: Portugal | B84: Total nights spent by non-residents | C84: 19349386 | D84: 21957339 | E84: 20064465 | F84: 18124107 | G84: 20660087 | H84: 22240692 | I84: 21707877 | J84: 22601002 | K84: 25272513 | L84: 25080002 | M84: 25785146 | N84: 25228612 | O84: 25118740 | P84: 24869946 | Q84: 24617451 | R84: 25387817 | S84: 26842277 | T84: 28669799 | U84: 28126716 | V84: 25024678 | W84: 25386084 | X84: 27860103 | Y84: 29033970 | Z84: 32078773 | AA84: 35630345
A85: Portugal | B85: Nights spent, total | C85: 32555858 | D85: 35361425 | E85: 33724054 | F85: 32122878 | G85: 34455693 | H85: 36206074 | I85: 36236268 | J85: 37308097 | K85: 40598573 | L85: 41322899 | M85: 41955769 | N85: 41339937 | O85: 41811198 | P85: 41583232 | Q85: 41722947 | R85: 43265082 | S85: 45521904 | T85: 47964609 | U85: 47328837 | V85: 44364742 | W85: 45035005 | X85: 46857858 | Y85: 46781091 | Z85: 49888259 | AA85: 54979437
A86: Romania | B86: Total nights spent by residents | C86: 40314000 | D86: 28658000 | E86: 22935000 | F86: 22024000 | G86: 20536000 | H86: 21730000 | I86: 19548000 | J86: 17106000 | K86: 16977000 | L86: 15690000 | M86: 15497317 | N86: 15731157 | O86: 14742579 | P86: 15079083 | Q86: 15167545 | R86: 14908854 | S86: 15749590 | T86: 17006910 | U86: 17366737 | V86: 14657744 | W86: 13284554 | X86: 14912557 | Y86: 15799875 | Z86: 15830616 | AA86: 16467780
A87: Romania | B87: Total nights spent by non-residents | C87: 4238000 | D87: 3269000 | E87: 3141000 | F87: 2744000 | G87: 2759000 | H87: 2381000 | I87: 2289000 | J87: 2506000 | K87: 2206000 | L87: 1980000 | M87: 2149358 | N87: 2390531 | O87: 2534225 | P87: 2765500 | Q87: 3333005 | R87: 3464134 | S87: 3242105 | T87: 3586439 | U87: 3359244 | V87: 2667666 | W87: 2766581 | X87: 3066882 | Y87: 3291504 | Z87: 3471152 | AA87: 3762465
A88: Romania | B88: Nights spent, total | C88: 44552000 | D88: 31927000 | E88: 26076000 | F88: 24768000 | G88: 23295000 | H88: 24111000 | I88: 21837000 | J88: 19612000 | K88: 19183000 | L88: 17670000 | M88: 17646675 | N88: 18121688 | O88: 17276804 | P88: 17844583 | Q88: 18500550 | R88: 18372988 | S88: 18991695 | T88: 20593349 | U88: 20725981 | V88: 17325410 | W88: 16051135 | X88: 17979439 | Y88: 19091379 | Z88: 19301768 | AA88: 20230245
A89: Slovenia | B89: Total nights spent by residents | C89: 2518000 | D89: 2624000 | E89: 3001854 | F89: 3267329 | G89: 3318974 | H89: 3359750 | I89: 3214341 | J89: 3236205 | K89: 3161150 | L89: 3242986 | M89: 3232121 | N89: 3218552 | O89: 3195286 | P89: 3203063 | Q89: 3113306 | R89: 3057850 | S89: 3116027 | T89: 3285490 | U89: 3784840 | V89: 3899297 | W89: 3744285 | X89: 3753876 | Y89: 3703703 | Z89: 3583709 | AA89: 3465829
A90: Slovenia | B90: Total nights spent by non-residents | C90: 4892000 | D90: 2034000 | E90: 1909320 | F90: 1898266 | G90: 2372847 | H90: 2321541 | I90: 2436595 | J90: 2945115 | K90: 2933811 | L90: 2626796 | M90: 3276819 | N90: 3639540 | O90: 3832704 | P90: 3995310 | Q90: 4188385 | R90: 4249817 | S90: 4332049 | T90: 4707220 | U90: 5085308 | V90: 4656825 | W90: 4680456 | X90: 5106452 | Y90: 5702306 | Z90: 5887862 | AA90: 6004623
A91: Slovenia | B91: Nights spent, total | C91: 7410000 | D91: 4658000 | E91: 4911174 | F91: 5165595 | G91: 5691821 | H91: 5681291 | I91: 5650936 | J91: 6181320 | K91: 6094961 | L91: 5869782 | M91: 6508940 | N91: 6858092 | O91: 7027990 | P91: 7198373 | Q91: 7301691 | R91: 7307667 | S91: 7448076 | T91: 7992710 | U91: 8870148 | V91: 8556122 | W91: 8424741 | X91: 8860328 | Y91: 9406009 | Z91: 9471571 | AA91: 9470452
A92: Slovakia | B92: Total nights spent by residents | C92: 8320411 | D92: 4788439 | E92: 2983592 | F92: 2924901 | G92: 3579945 | H92: 3378346 | I92: 5339238 | J92: 5430058 | K92: 7072975 | L92: 7378872 | M92: 6760209 | N92: 6920607 | O92: 7229590 | P92: 7054666 | Q92: 6035209 | R92: 5820203 | S92: 5953293 | T92: 6307475 | U92: 7114284 | V92: 6545330 | W92: 6490913 | X92: 6425337 | Y92: 6730918 | Z92: 7068043 | AA92: 6928868
A93: Slovakia | B93: Total nights spent by non-residents | C93: 1935583 | D93: 1616832 | E93: 1302164 | F93: 1791648 | G93: 2768590 | H93: 3024067 | I93: 3253116 | J93: 2791126 | K93: 3256463 | L93: 3483603 | M93: 3703866 | N93: 4347122 | O93: 4985634 | P93: 4883992 | Q93: 4596750 | R93: 4801093 | S93: 5058147 | T93: 5115168 | U93: 5144831 | V93: 3707327 | W93: 3749566 | X93: 3990300 | Y93: 4039410 | Z93: 4277598 | AA93: 3852147
A94: Slovakia | B94: Nights spent, total | C94: 10255994 | D94: 6405271 | E94: 4285756 | F94: 4716549 | G94: 6348535 | H94: 6402413 | I94: 8592354 | J94: 8221184 | K94: 10329438 | L94: 10862475 | M94: 10464075 | N94: 11267729 | O94: 12215224 | P94: 11938658 | Q94: 10631959 | R94: 10621296 | S94: 11011440 | T94: 11422643 | U94: 12259115 | V94: 10252657 | W94: 10240479 | X94: 10415637 | Y94: 10770328 | Z94: 11345641 | AA94: 10781015
A95: Finland | B95: Total nights spent by residents | C95: 10260974 | D95: 9729257 | E95: 9286048 | F95: 9737232 | G95: 10090202 | H95: 10631306 | I95: 10728869 | J95: 11279706 | K95: 11626781 | L95: 11803701 | M95: 11976131 | N95: 12028700 | O95: 11702584 | P95: 11751122 | Q95: 12243392 | R95: 12760402 | S95: 13165119 | T95: 13708450 | U95: 13963066 | V95: 13677332 | W95: 14242989 | X95: 14480403 | Y95: 14514623 | Z95: 14380610 | AA95: 14075320
A96: Finland | B96: Total nights spent by non-residents | C96: 2829757 | D96: 2586258 | E96: 2586997 | F96: 2928949 | G96: 3376988 | H96: 3292484 | I96: 3284644 | J96: 3645854 | K96: 3700396 | L96: 3773959 | M96: 4065971 | N96: 4183206 | O96: 4290288 | P96: 4330690 | Q96: 4383198 | R96: 4498635 | S96: 5003750 | T96: 5328215 | U96: 5502554 | V96: 4890006 | W96: 5005068 | X96: 5507468 | Y96: 5802959 | Z96: 5860447 | AA96: 5710702
A97: Finland | B97: Nights spent, total | C97: 13090731 | D97: 12315515 | E97: 11873045 | F97: 12666181 | G97: 13467190 | H97: 13923790 | I97: 14013513 | J97: 14925560 | K97: 15327177 | L97: 15577660 | M97: 16042102 | N97: 16211906 | O97: 15992872 | P97: 16081812 | Q97: 16626590 | R97: 17259037 | S97: 18168869 | T97: 19036665 | U97: 19465620 | V97: 18567338 | W97: 19248057 | X97: 19987871 | Y97: 20317582 | Z97: 20241057 | AA97: 19786022
A98: Sweden | B98: Total nights spent by residents | C98: 27111914 | D98: 23237343 | E98: 23742058 | F98: 24447336 | G98: 28118472 | H98: 29427966 | I98: 28847927 | J98: 29269499 | K98: 29468503 | L98: 31253930 | M98: 31155105 | N98: 32060760 | O98: 33127616 | P98: 34338676 | Q98: 32942315 | R98: 34862398 | S98: 36753578 | T98: 37404874 | U98: 35620762 | V98: 36073474 | W98: 36715303 | X98: 37078238 | Y98: 37286517 | Z98: 38267737 | AA98: 40019659
A99: Sweden | B99: Total nights spent by non-residents | C99: 6574667 | D99: 5600373 | E99: 5814522 | F99: 6074572 | G99: 6780428 | H99: 7860659 | I99: 7716620 | J99: 7658900 | K99: 8029087 | L99: 8600785 | M99: 8654086 | N99: 9133450 | O99: 9767708 | P99: 9714883 | Q99: 9723676 | R99: 10077858 | S99: 10942968 | T99: 11200359 | U99: 10920106 | V99: 11317502 | W99: 11184995 | X99: 11344435 | Y99: 11299455 | Z99: 11442690 | AA99: 12260712
A100: Sweden | B100: Nights spent, total | C100: 33686581 | D100: 28837716 | E100: 29556580 | F100: 30521908 | G100: 34898900 | H100: 37288625 | I100: 36564547 | J100: 36928399 | K100: 37497590 | L100: 39854715 | M100: 39809191 | N100: 41194210 | O100: 42895324 | P100: 44053559 | Q100: 42665991 | R100: 44940256 | S100: 47696546 | T100: 48605233 | U100: 46540868 | V100: 47390976 | W100: 47900298 | X100: 48422673 | Y100: 48585972 | Z100: 49710427 | AA100: 52280371
A101: United Kingdom | B101: Total nights spent by residents | C101: 159487004 | D101: 155726301 | E101: 158536262 | F101: 149180498 | G101: 166177193 | H101: 179946427 | I101: 181500000 | J101: 185600000 | K101: 164982600 | L101: 187830000 | M101: 207940000 | N101: 196060000 | O101: 197810000 | P101: 180770000 | Q101: 157550000 | R101: 198561517 | S101: 175272336 | T101: 177193920 | U101: 171112440 | V101: 182284000 | W101: 149652604 | X101: 142596636 | Y101: 198109000 | Z101: 192985000 | AA101: :
A102: United Kingdom | B102: Total nights spent by non-residents | C102: 97679560 | D102: 92866885 | E102: 100513151 | F102: 107714740 | G102: 119071162 | H102: 76523027 | I102: 78382261 | J102: 79382160 | K102: 78192000 | L102: 77301175 | M102: 73816468 | N102: 69780996 | O102: 65959000 | P102: 67134000 | Q102: 73860571 | R102: 81823097 | S102: 90740612 | T102: 84690331 | U102: 80393221 | V102: 79920519 | W102: 84610527 | X102: 87993917 | Y102: 105455528 | Z102: : | AA102: :
A103: United Kingdom | B103: Nights spent, total | C103: 257166564 | D103: 248593186 | E103: 259049413 | F103: 256895238 | G103: 285248355 | H103: 256469454 | I103: 259882261 | J103: 264982160 | K103: 243174600 | L103: 265131175 | M103: 281756468 | N103: 265840996 | O103: 263769000 | P103: 247904000 | Q103: 231410571 | R103: 280384614 | S103: 266012948 | T103: 261884251 | U103: 251505661 | V103: 262204519 | W103: 234263131 | X103: 230590553 | Y103: 303564528 | Z103: : | AA103: :
A104: Iceland | B104: Total nights spent by residents | C104: 367498 | D104: 386636 | E104: 357532 | F104: 343517 | G104: 404000 | H104: 453000 | I104: 459346 | J104: 499635 | K104: 523995 | L104: 582444 | M104: 589955 | N104: 558698 | O104: 604167 | P104: 607660 | Q104: 654782 | R104: 667787 | S104: 723502 | T104: 763724 | U104: 778603 | V104: 835853 | W104: 847747 | X104: 787964 | Y104: 845336 | Z104: 914433 | AA104: 1085049
A105: Iceland | B105: Total nights spent by non-residents | C105: 660980 | D105: 673648 | E105: 668161 | F105: 678772 | G105: 714000 | H105: 811000 | I105: 832291 | J105: 886859 | K105: 1016897 | L105: 1102108 | M105: 1146964 | N105: 1183682 | O105: 1256518 | P105: 1376788 | Q105: 1478848 | R105: 1521421 | S105: 1687744 | T105: 1838330 | U105: 1894457 | V105: 2028069 | W105: 2089527 | X105: 2384477 | Y105: 2873790 | Z105: 3366252 | AA105: 4404834
A106: Iceland | B106: Nights spent, total | C106: 1028478 | D106: 1060284 | E106: 1025693 | F106: 1022289 | G106: 1118000 | H106: 1264000 | I106: 1291637 | J106: 1386494 | K106: 1540892 | L106: 1684552 | M106: 1736919 | N106: 1742380 | O106: 1860685 | P106: 1984448 | Q106: 2133630 | R106: 2189208 | S106: 2411246 | T106: 2602054 | U106: 2673060 | V106: 2863922 | W106: 2937274 | X106: 3172441 | Y106: 3719126 | Z106: 4280685 | AA106: 5489883
A107: Liechtenstein | B107: Total nights spent by residents | C107: 12304 | D107: : | E107: : | F107: : | G107: 15970 | H107: 9299 | I107: 10191 | J107: 11952 | K107: 13493 | L107: 17576 | M107: 18615 | N107: 19373 | O107: 14083 | P107: 16061 | Q107: 16551 | R107: 16313 | S107: 15137 | T107: 15612 | U107: 15881 | V107: 17926 | W107: 16499 | X107: 18165 | Y107: 4766 | Z107: 2812 | AA107: 2070
A108: Liechtenstein | B108: Total nights spent by non-residents | C108: 201812 | D108: : | E108: : | F108: : | G108: 168078 | H108: 166639 | I108: 155116 | J108: 154892 | K108: 160748 | L108: 159992 | M108: 168205 | N108: 164077 | O108: 151739 | P108: 149880 | Q108: 144577 | R108: 148992 | S108: 155171 | T108: 167748 | U108: 171425 | V108: 158414 | W108: 150336 | X108: 148955 | Y108: 136276 | Z108: 132491 | AA108: 130202
A109: Liechtenstein | B109: Nights spent, total | C109: 214116 | D109: : | E109: : | F109: : | G109: 184048 | H109: 175938 | I109: 165307 | J109: 166844 | K109: 174241 | L109: 177568 | M109: 186820 | N109: 183450 | O109: 165822 | P109: 165941 | Q109: 161128 | R109: 165305 | S109: 170308 | T109: 183360 | U109: 187306 | V109: 176340 | W109: 166835 | X109: 167120 | Y109: 141042 | Z109: 135303 | AA109: 132272
A110: Norway | B110: Total nights spent by residents | C110: 11578660 | D110: 20696000 | E110: 20657000 | F110: 21388000 | G110: 12155456 | H110: 12305218 | I110: 12503299 | J110: 12955845 | K110: 16513700 | L110: 16628304 | M110: 16801404 | N110: 17010478 | O110: 17108546 | P110: 16853051 | Q110: 17831926 | R110: 18628180 | S110: 19567412 | T110: 20338157 | U110: 20448582 | V110: 20501657 | W110: 20637311 | X110: 21230072 | Y110: 21974364 | Z110: 21617188 | AA110: 22162724
A111: Norway | B111: Total nights spent by non-residents | C111: 5840418 | D111: : | E111: : | F111: : | G111: : | H111: 7294971 | I111: 7236490 | J111: 7243111 | K111: 7868735 | L111: 7814983 | M111: 7468899 | N111: 7322016 | O111: 7275157 | P111: 6955548 | Q111: 7442253 | R111: 7644349 | S111: 7921169 | T111: 8305287 | U111: 8119045 | V111: 7500431 | W111: 7881525 | X111: 7844241 | Y111: 7940468 | Z111: 7693241 | AA111: 8451333
A112: Norway | B112: Nights spent, total | C112: 17419078 | D112: : | E112: : | F112: : | G112: : | H112: 19600189 | I112: 19739789 | J112: 20198956 | K112: 24382435 | L112: 24443287 | M112: 24270303 | N112: 24332494 | O112: 24383703 | P112: 23808599 | Q112: 25274179 | R112: 26272529 | S112: 27488581 | T112: 28643444 | U112: 28567627 | V112: 28002088 | W112: 28518836 | X112: 29074313 | Y112: 29914832 | Z112: 29310429 | AA112: 30614057
A113: Switzerland | B113: Total nights spent by residents | C113: 38986035 | D113: 39862024 | E113: 39217672 | F113: 38142790 | G113: 37908475 | H113: 13333306 | I113: 12888902 | J113: 34841146 | K113: 35557049 | L113: 35476654 | M113: 35932699 | N113: 36205412 | O113: : | P113: : | Q113: : | R113: : | S113: : | T113: : | U113: : | V113: : | W113: : | X113: : | Y113: : | Z113: : | AA113: :
A114: Switzerland | B114: Total nights spent by non-residents | C114: 36888756 | D114: 37038339 | E114: 36999874 | F114: 36728870 | G114: 36233095 | H114: 18744165 | I114: 17615151 | J114: 31323944 | K114: 32237374 | L114: 31863422 | M114: 32844102 | N114: 32110820 | O114: : | P114: : | Q114: : | R114: : | S114: : | T114: : | U114: : | V114: : | W114: : | X114: : | Y114: : | Z114: : | AA114: :
A115: Switzerland | B115: Nights spent, total | C115: 75874791 | D115: 76900363 | E115: 76217546 | F115: 74871660 | G115: 74141570 | H115: 32077471 | I115: 30504053 | J115: 66165090 | K115: 67794423 | L115: 67340076 | M115: 68776801 | N115: 68316232 | O115: : | P115: : | Q115: : | R115: : | S115: : | T115: : | U115: : | V115: : | W115: : | X115: : | Y115: : | Z115: : | AA115: :
A116: Montenegro | B116: Total nights spent by residents | C116: : | D116: : | E116: : | F116: : | G116: : | H116: : | I116: : | J116: : | K116: : | L116: : | M116: : | N116: : | O116: : | P116: : | Q116: : | R116: : | S116: : | T116: : | U116: : | V116: : | W116: : | X116: 427105 | Y116: 1008229 | Z116: : | AA116: :
A117: Montenegro | B117: Total nights spent by non-residents | C117: : | D117: : | E117: : | F117: : | G117: : | H117: : | I117: : | J117: : | K117: : | L117: : | M117: : | N117: : | O117: : | P117: : | Q117: : | R117: : | S117: : | T117: : | U117: : | V117: : | W117: : | X117: 2743414 | Y117: 8143007 | Z117: : | AA117: :
A118: Montenegro | B118: Nights spent, total | C118: : | D118: : | E118: : | F118: : | G118: : | H118: : | I118: : | J118: : | K118: : | L118: : | M118: : | N118: : | O118: : | P118: : | Q118: : | R118: : | S118: : | T118: : | U118: : | V118: : | W118: : | X118: 3170519 | Y118: 9151236 | Z118: : | AA118: :
A119: Former Yugoslav Republic of Macedonia, the | B119: Total nights spent by residents | C119: 1298502 | D119: 1516424 | E119: 1376060 | F119: 1366330 | G119: 1288885 | H119: 1045332 | I119: 910037 | J119: 879502 | K119: 1086234 | L119: 966581 | M119: 951537 | N119: 524831 | O119: 766058 | P119: : | Q119: : | R119: : | S119: : | T119: : | U119: 774717 | V119: 738875 | W119: 717455 | X119: 694483 | Y119: 665207 | Z119: 634951 | AA119: 618865
A120: Former Yugoslav Republic of Macedonia, the | B120: Total nights spent by non-residents | C120: 933727 | D120: 473487 | E120: 325014 | F120: 322948 | G120: : | H120: 255886 | I120: 256053 | J120: 253640 | K120: 334047 | L120: 457340 | M120: 467945 | N120: 204017 | O120: 264789 | P120: : | Q120: : | R120: : | S120: : | T120: : | U120: 579549 | V120: 575117 | W120: 548640 | X120: 740532 | Y120: 794564 | Z120: 864125 | AA120: 900148
A121: Former Yugoslav Republic of Macedonia, the | B121: Nights spent, total | C121: 2232229 | D121: 1989911 | E121: 1701074 | F121: 1689278 | G121: : | H121: 1301218 | I121: 1166090 | J121: 1133142 | K121: 1420281 | L121: 1423921 | M121: 1419482 | N121: 728848 | O121: 1030847 | P121: : | Q121: : | R121: : | S121: : | T121: : | U121: 1354266 | V121: 1313992 | W121: 1266095 | X121: 1435015 | Y121: 1459771 | Z121: 1499076 | AA121: 1519013
A122: Serbia | B122: Total nights spent by residents | C122: : | D122: : | E122: : | F122: : | G122: : | H122: : | I122: : | J122: : | K122: : | L122: : | M122: : | N122: : | O122: : | P122: : | Q122: : | R122: : | S122: : | T122: : | U122: : | V122: : | W122: : | X122: : | Y122: 4593058 | Z122: 4489389 | AA122: 3879642
A123: Serbia | B123: Total nights spent by non-residents | C123: : | D123: : | E123: : | F123: : | G123: : | H123: : | I123: : | J123: : | K123: : | L123: : | M123: : | N123: : | O123: : | P123: : | Q123: : | R123: : | S123: : | T123: : | U123: : | V123: : | W123: : | X123: : | Y123: 1766627 | Z123: 1879208 | AA123: 2074680
A124: Serbia | B124: Nights spent, total | C124: : | D124: : | E124: : | F124: : | G124: : | H124: : | I124: : | J124: : | K124: : | L124: : | M124: : | N124: : | O124: : | P124: : | Q124: : | R124: : | S124: : | T124: : | U124: : | V124: : | W124: : | X124: : | Y124: 6359685 | Z124: 6368597 | AA124: 5954322
D131: AFTER PLATEAUING, TOURISM IN SPAIN IS ON THE RISE AGAIN | N131: THE GAP BETWEEN RESIDENTS AND NON-RESIDENTS IS RISING AGAIN
D132: Nights spent at tourist accommodation establishments | N132: Nights spent at tourist accommodation establishments
N153: Source: Eurostat
N154: Note: Nights spent in hotels; holiday and other short-stay accommodation; campgrounds, recreational vehicle parks, and trailer parks
C162: =+C12 -> 90 | D162: =+D12 -> 91 | E162: 92 | F162: 93 | G162: 94 | H162: 95 | I162: 96 | J162: 97 | K162: 98 | L162: 99 | M162: 00 | N162: 01 | O162: 02 | P162: 03 | Q162: 04 | R162: 05 | S162: 06 | T162: 07 | U162: 08 | V162: 09 | W162: 10 | X162: 11 | Y162: 12 | Z162: 13 | AA162: 14
C163: =(+C45/C44)*100 -> 113.6498716 | D163: 110.1905823 | E163: 122.8881193 | F163: 128.8618807 | G163: 147.3697817 | H163: 148.3464314 | I163: 148.326981 | J163: 153.2223435 | K163: 151.2569868 | L163: 167.3217677 | M163: 211.1725262 | N163: 203.9382609 | O163: 186.7646364 | P163: 174.7157412 | Q163: 154.6597061 | R163: 145.6262816 | S163: 145.0773904 | T163: 144.0924495 | U163: 147.2689859 | V163: 135.5054294 | W163: 140.8115643 | X163: 159.0605785 | Y163: 174.7455223 | Z163: 184.5861177 | AA163: 179.893841
C164: =(+C84/C83-1)*100 -> 46.51442111 | D164: 63.81078874 | E164: 46.88922924 | F164: 29.4692727 | G164: 49.75845932 | H164: 59.25588 | I164: 49.41693819 | J164: 53.67414163 | K164: 64.89895642 | L164: 54.40596588 | M164: 59.45672594 | N164: 56.58930597 | O164: 50.47957587 | P164: 48.80344894 | Q164: 43.91544682 | R164: 42.01175068 | S164: 43.69814237 | T164: 48.58813847 | U164: 46.47713135 | V164: 29.39294306 | W164: 29.19836158 | X164: 46.64944884 | Y164: 63.59819714 | Z164: 80.12183507 | AA164: 84.14479088
C165: 100 | D165: 100 | E165: 100 | F165: 100 | G165: 100 | H165: 100 | I165: 100 | J165: 100 | K165: 100 | L165: 100 | M165: 100 | N165: 100 | O165: 100 | P165: 100 | Q165: 100 | R165: 100 | S165: 100 | T165: 100 | U165: 100 | V165: 100 | W165: 100 | X165: 100 | Y165: 100 | Z165: 100 | AA165: 100
C166: 250 | D166: 250 | E166: 250 | F166: 250 | G166: 250 | H166: 250 | I166: 250 | J166: 250 | K166: 250 | L166: 250 | M166: 250 | N166: 250 | O166: 250 | P166: 250 | Q166: 250 | R166: 250 | S166: 250 | T166: 250 | U166: 250 | V166: 250 | W166: 250 | X166: 250 | Y166: 250 | Z166: 250 | AA166: 250
C167: 200 | D167: 200 | E167: 200 | F167: 200 | G167: 200 | H167: 200 | I167: 200 | J167: 200 | K167: 200 | L167: 200 | M167: 200 | N167: 200 | O167: 200 | P167: 200 | Q167: 200 | R167: 200 | S167: 200 | T167: 200 | U167: 200 | V167: 200 | W167: 200 | X167: 200 | Y167: 200 | Z167: 200 | AA167: 200
D170: RATIO BETWEEN NIGHTS SPENT BY NON-RESIDENTS AND RESIDENTS
B232: Nights spent at tourist accommodation establishments

Sheet 11.3
A1: William Playfair data | D1: https://goo.gl/EK5snD
A4: plate | B4: country | C4: page | D4: year | E4: exports | F4: imports | G4: balance | H4: Ratio
A5: Plate VII | B5: East Indies | C5: 59 | D5: 1700 | E5: 440 | F5: 140 | G5: 300 | H5: =(F5/E5-1)*100 -> -68.18181818 | L5: ABSOLUTE VALUES | Q5: EXPORTS / IMPORTS
A6: Plate VII | B6: East Indies | C6: 59 | D6: 1710 | E6: 595 | F6: 95 | G6: 500 | H6: -84.03361345
A7: Plate VII | B7: East Indies | C7: 59 | D7: 1720 | E7: 880 | F7: 120 | G7: 760 | H7: -86.36363636
A8: Plate VII | B8: East Indies | C8: 59 | D8: 1730 | E8: 965 | F8: 145 | G8: 820 | H8: -84.97409326
A9: Plate VII | B9: East Indies | C9: 59 | D9: 1740 | E9: 970 | F9: 360 | G9: 610 | H9: -62.88659794
A10: Plate VII | B10: East Indies | C10: 59 | D10: 1750 | E10: 930 | F10: 700 | G10: 230 | H10: -24.7311828
A11: Plate VII | B11: East Indies | C11: 59 | D11: 1760 | E11: 1005 | F11: 880 | G11: 125 | H11: -12.43781095
A12: Plate VII | B12: East Indies | C12: 59 | D12: 1770 | E12: 1515 | F12: 1330 | G12: 185 | H12: -12.21122112
A13: Plate VII | B13: East Indies | C13: 59 | D13: 1780 | E13: 1550 | F13: 840 | G13: 710 | H13: -45.80645161
A14: Plate I | B14: England | C14: 23 | D14: 1700 | E14: 4550 | F14: 6300 | G14: 1950
A15: Plate I | B15: England | C15: 23 | D15: 1710 | E15: 4900 | F15: 7000 | G15: 2100
A16: Plate I | B16: England | C16: 23 | D16: 1720 | E16: 5350 | F16: 8600 | G16: 3350
A17: Plate I | B17: England | C17: 23 | D17: 1730 | E17: 7500 | F17: 10900 | G17: 3400
A18: Plate I | B18: England | C18: 23 | D18: 1740 | E18: 7550 | F18: 12000 | G18: 4450
A19: Plate I | B19: England | C19: 23 | D19: 1750 | E19: 7250 | F19: 12650 | G19: 5400
A20: Plate I | B20: England | C20: 23 | D20: 1760 | E20: 10300 | F20: 14250 | G20: 3950
A21: Plate I | B21: England | C21: 23 | D21: 1770 | E21: 11650 | F21: 16300 | G21: 4650
A22: Plate I | B22: England | C22: 23 | D22: 1780 | E22: 10750 | F22: 12400 | G22: 1650
A23: Plate II | B23: Ireland | C23: 23 | D23: 1700 | E23: 270 | F23: 240 | G23: 30
A24: Plate II | B24: Ireland | C24: 23 | D24: 1710 | E24: 300 | F24: 270 | G24: 30
A25: Plate II | B25: Ireland | C25: 23 | D25: 1720 | E25: 335 | F25: 370 | G25: 35
A26: Plate II | B26: Ireland | C26: 23 | D26: 1730 | E26: 340 | F26: 600 | G26: 260
A27: Plate II | B27: Ireland | C27: 23 | D27: 1740 | E27: 475 | F27: 760 | G27: 285
A28: Plate II | B28: Ireland | C28: 23 | D28: 1750 | E28: 660 | F28: 950 | G28: 290
A29: Plate II | B29: Ireland | C29: 23 | D29: 1760 | E29: 870 | F29: 1450 | G29: 580
A30: Plate II | B30: Ireland | C30: 23 | D30: 1770 | E30: 1230 | F30: 1870 | G30: 640
A31: Plate II | B31: Ireland | C31: 23 | D31: 1780 | E31: 1470 | F31: 1890 | G31: 420
A32: Plate III | B32: Germany | C32: 23 | D32: 1700 | E32: 575 | F32: 995 | G32: 420
A33: Plate III | B33: Germany | C33: 23 | D33: 1710 | E33: 610 | F33: 895 | G33: 285
A34: Plate III | B34: Germany | C34: 23 | D34: 1720 | E34: 620 | F34: 1000 | G34: 380
A35: Plate III | B35: Germany | C35: 23 | D35: 1730 | E35: 680 | F35: 1105 | G35: 425
A36: Plate III | B36: Germany | C36: 23 | D36: 1740 | E36: 700 | F36: 1155 | G36: 455
A37: Plate III | B37: Germany | C37: 23 | D37: 1750 | E37: 715 | F37: 1405 | G37: 690
A38: Plate III | B38: Germany | C38: 23 | D38: 1760 | E38: 705 | F38: 1615 | G38: 910
A39: Plate III | B39: Germany | C39: 23 | D39: 1770 | E39: 680 | F39: 1820 | G39: 1140
A40: Plate III | B40: Germany | C40: 23 | D40: 1780 | E40: 670 | F40: 1240 | G40: 570
A41: Plate IV | B41: West Indies | C41: 23 | D41: 1700 | E41: 580 | F41: 305 | G41: 285
A42: Plate IV | B42: West Indies | C42: 23 | D42: 1710 | E42: 750 | F42: 335 | G42: 425
A43: Plate IV | B43: West Indies | C43: 23 | D43: 1720 | E43: 1060 | F43: 435 | G43: 625
A44: Plate IV | B44: West Indies | C44: 23 | D44: 1730 | E44: 1260 | F44: 450 | G44: 810
A45: Plate IV | B45: West Indies | C45: 23 | D45: 1740 | E45: 1290 | F45: 515 | G45: 775
A46: Plate IV | B46: West Indies | C46: 23 | D46: 1750 | E46: 1460 | F46: 770 | G46: 690
A47: Plate IV | B47: West Indies | C47: 23 | D47: 1760 | E47: 2105 | F47: 865 | G47: 1240
A48: Plate IV | B48: West Indies | C48: 23 | D48: 1770 | E48: 2995 | F48: 1190 | G48: 1805
A49: Plate IV | B49: West Indies | C49: 23 | D49: 1780 | E49: 2210 | F49: 1220 | G49: 990
A50: Plate V | B50: North America | C50: 24 | D50: 1770 | E50: 1480 | F50: 4550 | G50: 3070
A51: Plate V | B51: North America | C51: 24 | D51: 1771 | E51: 1430 | F51: 4630 | G51: 3200
A52: Plate V | B52: North America | C52: 24 | D52: 1772 | E52: 1445 | F52: 3600 | G52: 2155
A53: Plate V | B53: North America | C53: 24 | D53: 1773 | E53: 1465 | F53: 2465 | G53: 1000
A54: Plate V | B54: North America | C54: 24 | D54: 1774 | E54: 1435 | F54: 3840 | G54: 2300
A55: Plate V | B55: North America | C55: 24 | D55: 1775 | E55: 2065 | F55: 985 | G55: 1080
A56: Plate V | B56: North America | C56: 24 | D56: 1776 | E56: 245 | F56: 1190 | G56: 945
A57: Plate V | B57: North America | C57: 24 | D57: 1777 | E57: 230 | F57: 1880 | G57: 1650
A58: Plate V | B58: North America | C58: 24 | D58: 1778 | E58: 265 | F58: 1150 | G58: 885
A59: Plate V | B59: North America | C59: 24 | D59: 1779 | E59: 295 | F59: 1370 | G59: 1075
A60: Plate V | B60: North America | C60: 24 | D60: 1780 | E60: 300 | F60: 1805 | G60: 1505
A61: Plate V | B61: North America | C61: 24 | D61: 1781 | E61: 385 | F61: 1545 | G61: 1160
A62: Plate V | B62: North America | C62: 24 | D62: 1782 | E62: 295 | F62: 905 | G62: 610
A63: Plate VI | B63: England for 12 Years: 1771 to 1782 | C63: 59 | D63: 1771 | E63: 12800 | F63: 17150 | G63: 4350
A64: Plate VI | B64: England for 12 Years: 1771 to 1782 | C64: 59 | D64: 1772 | E64: 13300 | F64: 16150 | G64: 2850
A65: Plate VI | B65: England for 12 Years: 1771 to 1782 | C65: 59 | D65: 1773 | E65: 11400 | F65: 14750 | G65: 3350
A66: Plate VI | B66: England for 12 Years: 1771 to 1782 | C66: 59 | D66: 1774 | E66: 13250 | F66: 15900 | G66: 2650
A67: Plate VI | B67: England for 12 Years: 1771 to 1782 | C67: 59 | D67: 1775 | E67: 13550 | F67: 15200 | G67: 1650
A68: Plate VI | B68: England for 12 Years: 1771 to 1782 | C68: 59 | D68: 1776 | E68: 11700 | F68: 13700 | G68: 2000
A69: Plate VI | B69: England for 12 Years: 1771 to 1782 | C69: 59 | D69: 1777 | E69: 11850 | F69: 12650 | G69: 800
A70: Plate VI | B70: England for 12 Years: 1771 to 1782 | C70: 59 | D70: 1778 | E70: 10250 | F70: 11550 | G70: 1300
A71: Plate VI | B71: England for 12 Years: 1771 to 1782 | C71: 59 | D71: 1779 | E71: 10650 | F71: 12650 | G71: 2000
A72: Plate VI | B72: England for 12 Years: 1771 to 1782 | C72: 59 | D72: 1780 | E72: 10750 | F72: 12550 | G72: 1800
A73: Plate VI | B73: England for 12 Years: 1771 to 1782 | C73: 59 | D73: 1781 | E73: 11900 | F73: 10550 | G73: 1350
A74: Plate VI | B74: England for 12 Years: 1771 to 1782 | C74: 59 | D74: 1782 | E74: 9500 | F74: 12350 | G74: 2805
A75: Plate VIII | B75: France | C75: 59 | D75: 1700 | E75: 20 | F75: 30 | G75: 10
A76: Plate VIII | B76: France | C76: 59 | D76: 1710 | E76: 50 | F76: 75 | G76: 25
A77: Plate VIII | B77: France | C77: 59 | D77: 1720 | E77: 48 | F77: 175 | G77: 127
A78: Plate VIII | B78: France | C78: 59 | D78: 1730 | E78: 51 | F78: 255 | G78: 204
A79: Plate VIII | B79: France | C79: 59 | D79: 1740 | E79: 57 | F79: 305 | G79: 252
A80: Plate VIII | B80: France | C80: 59 | D80: 1750 | E80: 31 | F80: 285 | G80: 254
A81: Plate VIII | B81: France | C81: 59 | D81: 1760 | E81: 55 | F81: 275 | G81: 220
A82: Plate VIII | B82: France | C82: 59 | D82: 1770 | E82: 80 | F82: 165 | G82: 85
A83: Plate VIII | B83: France | C83: 59 | D83: 1780 | E83: 45 | F83: 155 | G83: 110
A84: Plate IX | B84: Venice and Italy | C84: 59 | D84: 1700 | E84: 22 | F84: 15.5 | G84: 6.5
A85: Plate IX | B85: Venice and Italy | C85: 59 | D85: 1710 | E85: 32.2 | F85: 17.5 | G85: 14.7
A86: Plate IX | B86: Venice and Italy | C86: 59 | D86: 1720 | E86: 46.5 | F86: 18 | G86: 28.5
A87: Plate IX | B87: Venice and Italy | C87: 59 | D87: 1730 | E87: 52.5 | F87: 14.5 | G87: 38
A88: Plate IX | B88: Venice and Italy | C88: 59 | D88: 1740 | E88: 50 | F88: 14.3 | G88: 35.7
A89: Plate IX | B89: Venice and Italy | C89: 59 | D89: 1750 | E89: 56 | F89: 18.5 | G89: 37.5
A90: Plate IX | B90: Venice and Italy | C90: 59 | D90: 1760 | E90: 64 | F90: 50 | G90: 14
A91: Plate IX | B91: Venice and Italy | C91: 59 | D91: 1770 | E91: 71 | F91: 72.5 | G91: 1.5
A92: Plate IX | B92: Venice and Italy | C92: 59 | D92: 1780 | E92: 65.5 | F92: 81 | G92: 15.5
A93: Plate X | B93: Russia | C93: 60 | D93: 1700 | E93: 109 | F93: 135 | G93: 26
A94: Plate X | B94: Russia | C94: 60 | D94: 1710 | E94: 140 | F94: 100 | G94: 40
A95: Plate X | B95: Russia | C95: 60 | D95: 1720 | E95: 195 | F95: 50 | G95: 145
A96: Plate X | B96: Russia | C96: 60 | D96: 1730 | E96: 235 | F96: 45 | G96: 190
A97: Plate X | B97: Russia | C97: 60 | D97: 1740 | E97: 335 | F97: 75 | G97: 260
A98: Plate X | B98: Russia | C98: 60 | D98: 1750 | E98: 440 | F98: 85 | G98: 355
A99: Plate X | B99: Russia | C99: 60 | D99: 1760 | E99: 570 | F99: 98 | G99: 472
A100: Plate X | B100: Russia | C100: 60 | D100: 1770 | E100: 890 | F100: 133 | G100: 757
A101: Plate X | B101: Russia | C101: 60 | D101: 1780 | E101: 1185 | F101: 290 | G101: 895
A102: Plate XVI | B102: Holland | C102: 83 | D102: 1700 | E102: 2150 | F102: 570
A103: Plate XVI | B103: Holland | C103: 83 | D103: 1710 | E103: 2100 | F103: 510
A104: Plate XVI | B104: Holland | C104: 83 | D104: 1720 | E104: 1920 | F104: 590
A105: Plate XVI | B105: Holland | C105: 83 | D105: 1730 | E105: 1840 | F105: 510
A106: Plate XVI | B106: Holland | C106: 83 | D106: 1740 | E106: 2200 | F106: 420
A107: Plate XVI | B107: Holland | C107: 83 | D107: 1750 | E107: 1930 | F107: 370
A108: Plate XVI | B108: Holland | C108: 83 | D108: 1760 | E108: 1810 | F108: 400
A109: Plate XVI | B109: Holland | C109: 83 | D109: 1770 | E109: 1780 | F109: 480
A110: Plate XVI | B110: Holland | C110: 83 | D110: 1780 | E110: 1570 | F110: 490
A111: Plate XVII | B111: The United States | C111: 83 | D111: 1700 | E111: 240 | F111: 238
A112: Plate XVII | B112: The United States | C112: 83 | D112: 1710 | E112: 280 | F112: 310
A113: Plate XVII | B113: The United States | C113: 83 | D113: 1720 | E113: 410 | F113: 450
A114: Plate XVII | B114: The United States | C114: 83 | D114: 1730 | E114: 540 | F114: 590
A115: Plate XVII | B115: The United States | C115: 83 | D115: 1740 | E115: 760 | F115: 700
A116: Plate XVII | B116: The United States | C116: 83 | D116: 1750 | E116: 1110 | F116: 760
A117: Plate XVII | B117: The United States | C117: 83 | D117: 1760 | E117: 1610 | F117: 940
A118: Plate XVII | B118: The United States | C118: 83 | D118: 1770 | E118: 1660 | F118: 900
A119: Plate XVII | B119: The United States | C119: 83 | D119: 1780 | E119: 1050 | F119: 540
A120: Plate XVIII | B120: Denmark & Norway | C120: 83 | D120: 1700 | E120: 35 | F120: 70
A121: Plate XVIII | B121: Denmark & Norway | C121: 83 | D121: 1710 | E121: 59 | F121: 81
A122: Plate XVIII | B122: Denmark & Norway | C122: 83 | D122: 1720 | E122: 76 | F122: 96
A123: Plate XVIII | B123: Denmark & Norway | C123: 83 | D123: 1730 | E123: 65 | F123: 97
A124: Plate XVIII | B124: Denmark & Norway | C124: 83 | D124: 1740 | E124: 67 | F124: 93
A125: Plate XVIII | B125: Denmark & Norway | C125: 83 | D125: 1750 | E125: 79 | F125: 90
A126: Plate XVIII | B126: Denmark & Norway | C126: 83 | D126: 1760 | E126: 115 | F126: 79
A127: Plate XVIII | B127: Denmark & Norway | C127: 83 | D127: 1770 | E127: 163 | F127: 85
A128: Plate XVIII | B128: Denmark & Norway | C128: 83 | D128: 1780 | E128: 185 | F128: 93
A129: Plate XIX | B129: Spanish West Indies | C129: 83 | D129: 1700
A130: Plate XIX | B130: Spanish West Indies | C130: 83 | D130: 1710
A131: Plate XIX | B131: Spanish West Indies | C131: 83 | D131: 1720 | E131: 84 | F131: 34
A132: Plate XIX | B132: Spanish West Indies | C132: 83 | D132: 1730 | E132: 83 | F132: 37
A133: Plate XIX | B133: Spanish West Indies | C133: 83 | D133: 1740 | E133: 11 | F133: 12
A134: Plate XIX | B134: Spanish West Indies | C134: 83 | D134: 1750
A135: Plate XIX | B135: Spanish West Indies | C135: 83 | D135: 1760 | E135: 1 | F135: 13
A136: Plate XIX | B136: Spanish West Indies | C136: 83 | D136: 1770 | E136: 3 | F136: 26
A137: Plate XIX | B137: Spanish West Indies | C137: 83 | D137: 1780 | E137: 7 | F137: 28
A138: Plate XX | B138: Greenland | C138: 84 | D138: 1700
A139: Plate XX | B139: Greenland | C139: 84 | D139: 1710
A140: Plate XX | B140: Greenland | C140: 84 | D140: 1720 | E140: 0.1 | F140: 0.2
A141: Plate XX | B141: Greenland | C141: 84 | D141: 1730 | E141: 0.05 | F141: 2
A142: Plate XX | B142: Greenland | C142: 84 | D142: 1740 | F142: 2.8
A143: Plate XX | B143: Greenland | C143: 84 | D143: 1750 | E143: 0.2 | F143: 10
A144: Plate XX | B144: Greenland | C144: 84 | D144: 1760 | E144: 0.33 | F144: 16
A145: Plate XX | B145: Greenland | C145: 84 | D145: 1770 | E145: 0.06 | F145: 22
A146: Plate XX | B146: Greenland | C146: 84 | D146: 1780 | E146: 0.07 | F146: 38
A147: Plate XX | B147: Bermuda | C147: 84 | D147: 1700 | E147: 0.6 | F147: 0.5
A148: Plate XX | B148: Bermuda | C148: 84 | D148: 1710 | E148: 1 | F148: 0.6
A149: Plate XX | B149: Bermuda | C149: 84 | D149: 1720 | E149: 3 | F149: 1.9
A150: Plate XX | B150: Bermuda | C150: 84 | D150: 1730 | E150: 2.2 | F150: 1.5
A151: Plate XX | B151: Bermuda | C151: 84 | D151: 1740 | E151: 1.5 | F151: 0.8
A152: Plate XX | B152: Bermuda | C152: 84 | D152: 1750 | E152: 7.2 | F152: 1.6
A153: Plate XX | B153: Bermuda | C153: 84 | D153: 1760 | E153: 10 | F153: 1.8
A154: Plate XX | B154: Bermuda | C154: 84 | D154: 1770 | E154: 13 | F154: 1.7
A155: Plate XX | B155: Bermuda | C155: 84 | D155: 1780 | E155: 15 | F155: 1.7
A156: Plate XXI | B156: Sweden | C156: 111 | D156: 1700 | E156: 57 | F156: 197
A157: Plate XXI | B157: Sweden | C157: 111 | D157: 1710 | E157: 46 | F157: 160
A158: Plate XXI | B158: Sweden | C158: 111 | D158: 1720 | E158: 35 | F158: 154
A159: Plate XXI | B159: Sweden | C159: 111 | D159: 1730 | E159: 29 | F159: 183
A160: Plate XXI | B160: Sweden | C160: 111 | D160: 1740 | E160: 33 | F160: 186
A161: Plate XXI | B161: Sweden | C161: 111 | D161: 1750 | E161: 30 | F161: 196
A162: Plate XXI | B162: Sweden | C162: 111 | D162: 1760 | E162: 25 | F162: 212
A163: Plate XXI | B163: Sweden | C163: 111 | D163: 1770 | E163: 57 | F163: 209
A164: Plate XXI | B164: Sweden | C164: 111 | D164: 1780 | E164: 95 | F164: 198
A165: Plate XXII | B165: Guernsey; Jersey; and Alderney | C165: 111 | D165: 1700 | E165: 9 | F165: 30
A166: Plate XXII | B166: Guernsey; Jersey; and Alderney | C166: 111 | D166: 1710 | E166: 25 | F166: 25
A167: Plate XXII | B167: Guernsey; Jersey; and Alderney | C167: 111 | D167: 1720 | E167: 27 | F167: 20
A168: Plate XXII | B168: Guernsey; Jersey; and Alderney | C168: 111 | D168: 1730 | E168: 45 | F168: 18
A169: Plate XXII | B169: Guernsey; Jersey; and Alderney | C169: 111 | D169: 1740 | E169: 50 | F169: 39
A170: Plate XXII | B170: Guernsey; Jersey; and Alderney | C170: 111 | D170: 1750 | E170: 40 | F170: 55
A171: Plate XXII | B171: Guernsey; Jersey; and Alderney | C171: 111 | D171: 1760 | E171: 50 | F171: 57
A172: Plate XXII | B172: Guernsey; Jersey; and Alderney | C172: 111 | D172: 1770 | E172: 46 | F172: 51
A173: Plate XXII | B173: Guernsey; Jersey; and Alderney | C173: 111 | D173: 1780 | E173: 64 | F173: 61
A174: Plate XXIII | B174: Africa | C174: 111 | D174: 1700 | E174: 11 | F174: 14
A175: Plate XXIII | B175: Africa | C175: 111 | D175: 1710 | E175: 7 | F175: 18
A176: Plate XXIII | B176: Africa | C176: 111 | D176: 1720 | E176: 12 | F176: 30
A177: Plate XXIII | B177: Africa | C177: 111 | D177: 1730 | E177: 18 | F177: 50
A178: Plate XXIII | B178: Africa | C178: 111 | D178: 1740 | E178: 15 | F178: 32
A179: Plate XXIII | B179: Africa | C179: 111 | D179: 1750 | E179: 16 | F179: 27
A180: Plate XXIII | B180: Africa | C180: 111 | D180: 1760 | E180: 30 | F180: 43
A181: Plate XXIII | B181: Africa | C181: 111 | D181: 1770 | E181: 48 | F181: 53
A182: Plate XXIII | B182: Africa | C182: 111 | D182: 1780 | E182: 53 | F182: 73
A183: Plate XXIV | B183: Portugal & Madeira | C183: 111 | D183: 1700 | E183: 630 | F183: 250
A184: Plate XXIV | B184: Portugal & Madeira | C184: 111 | D184: 1710 | E184: 700 | F184: 275
A185: Plate XXIV | B185: Portugal & Madeira | C185: 111 | D185: 1720 | E185: 800 | F185: 350
A186: Plate XXIV | B186: Portugal & Madeira | C186: 111 | D186: 1730 | E186: 1070 | F186: 365
A187: Plate XXIV | B187: Portugal & Madeira | C187: 111 | D187: 1740 | E187: 1140 | F187: 340
A188: Plate XXIV | B188: Portugal & Madeira | C188: 111 | D188: 1750 | E188: 1200 | F188: 350
A189: Plate XXIV | B189: Portugal & Madeira | C189: 111 | D189: 1760 | E189: 1110 | F189: 300
A190: Plate XXIV | B190: Portugal & Madeira | C190: 111 | D190: 1770 | E190: 680 | F190: 360
A191: Plate XXIV | B191: Portugal & Madeira | C191: 111 | D191: 1780 | E191: 590 | F191: 370
A192: Plate XXV | B192: Flanders | C192: 112 | D192: 1700 | E192: 80 | F192: 7
A193: Plate XXV | B193: Flanders | C193: 112 | D193: 1710 | E193: 150 | F193: 20
A194: Plate XXV | B194: Flanders | C194: 112 | D194: 1720 | E194: 245 | F194: 51
A195: Plate XXV | B195: Flanders | C195: 112 | D195: 1730 | E195: 270 | F195: 125
A196: Plate XXV | B196: Flanders | C196: 112 | D196: 1740 | E196: 390 | F196: 150
A197: Plate XXV | B197: Flanders | C197: 112 | D197: 1750 | E197: 345 | F197: 70
A198: Plate XXV | B198: Flanders | C198: 112 | D198: 1760 | E198: 420 | F198: 70
A199: Plate XXV | B199: Flanders | C199: 112 | D199: 1770 | E199: 840 | F199: 175
A200: Plate XXV | B200: Flanders | C200: 112 | D200: 1780 | E200: 1050 | F200: 225

Sheet 11.5
A1: 2014-04-21 | D1: http://www.taxpolicycenter.org/taxfacts/displayafact.cfm?Docid=456 | O1: Get the data: | Q1: https://www.cbo.gov/publication/44604
A2: Average Federal Tax Rates for All Households, by Comprehensive Household Income Quintile, 1979-2010
A4: Year | B4: Lowest Quintile | C4: Second Quintile | D4: Middle Quintile | E4: Fourth Quintile | F4: Highest Quintile | H4: All Quintiles | J4: 81st - 90th Percentiles | K4: 91st - 95th Percentiles | L4: 96th - 99th Percentiles | M4: Top 1 %
A6: Total Average Federal Tax Rate
A8: 1979 | B8: 7.5 | C8: 14.5 | D8: 18.9 | E8: 21.5 | F8: 27.1 | H8: 22 | J8: 23.5 | K8: 25.1 | L8: 27.1 | M8: 35.1 | N8: =RIGHT(A8,2) -> 79
A9: 1980 | B9: 7.4 | C9: 14.1 | D9: 18.9 | E9: 21.8 | F9: 26.9 | H9: 22 | J9: 23.9 | K9: 25.5 | L9: 27.4 | M9: 33.1 | N9: =RIGHT(A9,2) -> 80 | V9: THE TOP 1% IS PAYING LESS AND LESS TAX | Z9: TAXES PAID BY THE TOP 1% REMAIN UNCHANGED
A10: 1981 | B10: 7.9 | C10: 14.7 | D10: 19.2 | E10: 22.3 | F10: 26.6 | H10: 22.2 | J10: 24.5 | K10: 25.8 | L10: 27.3 | M10: 30.4 | N10: 81 | V10: Average federal tax rate for top 1% households | Z10: Average federal tax rate for top 1% households
A11: 1982 | B11: 7.7 | C11: 13.5 | D11: 17.9 | E11: 20.6 | F11: 24.2 | H11: 20.5 | J11: 22.6 | K11: 23.7 | L11: 24.6 | M11: 26.7 | N11: 82
A12: 1983 | B12: 8.4 | C12: 13.4 | D12: 17.4 | E12: 20.2 | F12: 23.6 | H12: 20.2 | J12: 22 | K12: 22.9 | L12: 23.6 | M12: 26.7 | N12: 83
A13: 1984 | B13: 9.4 | C13: 14.3 | D13: 17.8 | E13: 20.3 | F13: 23.8 | H13: 20.6 | J13: 22.4 | K13: 23 | L13: 23.6 | M13: 27 | N13: 84
A14: 1985 | B14: 9.2 | C14: 14.5 | D14: 18 | E14: 20.4 | F14: 23.8 | H14: 20.7 | J14: 22.5 | K14: 23.4 | L14: 23.7 | M14: 26.1 | N14: 85
A15: 1986 | B15: 9.1 | C15: 14.3 | D15: 17.9 | E15: 20.5 | F15: 23.6 | H15: 20.6 | J15: 22.7 | K15: 23.4 | L15: 23.6 | M15: 24.6 | N15: 86
A16: 1987 | B16: 8.2 | C16: 13.5 | D16: 17.4 | E16: 20.2 | F16: 25.6 | H16: 21.3 | J16: 22.8 | K16: 24.3 | L16: 25.9 | M16: 30.3 | N16: 87
A17: 1988 | B17: 7.9 | C17: 13.8 | D17: 17.8 | E17: 20.6 | F17: 25.4 | H17: 21.5 | J17: 23.1 | K17: 24.2 | L17: 25.5 | M17: 29 | N17: 88
A18: 1989 | B18: 7.6 | C18: 13.5 | D18: 17.7 | E18: 20.6 | F18: 25.1 | H18: 21.2 | J18: 22.9 | K18: 24.1 | L18: 25.3 | M18: 28.3 | N18: 89
A19: 1990 | B19: 8.4 | C19: 14.1 | D19: 17.7 | E19: 20.6 | F19: 24.9 | H19: 21.2 | J19: 22.9 | K19: 24 | L19: 25.2 | M19: 28.1 | N19: 90
A20: 1991 | B20: 8.1 | C20: 13.5 | D20: 17.3 | E20: 20.5 | F20: 25.1 | H20: 21.1 | J20: 22.8 | K20: 24.2 | L20: 25.3 | M20: 29.1 | N20: 91
A21: 1992 | B21: 8 | C21: 12.9 | D21: 17.1 | E21: 20.2 | F21: 25.4 | H21: 21.1 | J21: 22.6 | K21: 23.9 | L21: 25.6 | M21: 30 | N21: 92 | O21: P81-P90 | P21: P91-P95 | Q21: P96-P99 | R21: Top 1% | S21: Year
A22: 1993 | B22: 8 | C22: 12.7 | D22: 17.1 | E22: 20.3 | F22: 26.5 | H22: 21.6 | J22: 22.6 | K22: 24.3 | L22: 26.3 | M22: 33.5 | N22: 93 | O22: =J22/J$22*100 -> 100 | P22: =K22/K$22*100 -> 100 | Q22: =L22/L$22*100 -> 100 | R22: =M22/M$22*100 -> 100 | S22: =RIGHT(A22,2) -> 93
A23: 1994 | B23: 6.8 | C23: 12.5 | D23: 17.1 | E23: 20.5 | F23: 27.1 | H23: 21.9 | J23: 23.1 | K23: 24.7 | L23: 26.7 | M23: 34.8 | N23: 94 | O23: =J23/J$22*100 -> 102.2123894 | P23: 101.6460905 | Q23: 101.5209125 | R23: 103.880597 | S23: =RIGHT(A23,2) -> 94 | V23: THE TOP 20% IS PAYING LESS AND LESS TAX, BUT THE TOP 1% BENEFITS THE MOST
A24: 1995 | B24: 6.7 | C24: 12.7 | D24: 17.1 | E24: 20.6 | F24: 27.5 | H24: 22.1 | J24: 23.1 | K24: 25 | L24: 27.2 | M24: 35.3 | N24: 95 | O24: 102.2123894 | P24: 102.8806584 | Q24: 103.4220532 | R24: 105.3731343 | S24: 95 | V24: Average federal tax rate for top 20% households
A25: 1996 | B25: 6.4 | C25: 12.6 | D25: 17 | E25: 20.5 | F25: 27.8 | H25: 22.3 | J25: 23.1 | K25: 25 | L25: 27.4 | M25: 35.2 | N25: 96 | O25: 102.2123894 | P25: 102.8806584 | Q25: 104.1825095 | R25: 105.0746269 | S25: 96
A26: 1997 | B26: 6.8 | C26: 12.8 | D26: 17.3 | E26: 20.7 | F26: 27.8 | H26: 22.6 | J26: 23.4 | K26: 25.2 | L26: 27.6 | M26: 34.1 | N26: 97 | O26: 103.539823 | P26: 103.7037037 | Q26: 104.9429658 | R26: 101.7910448 | S26: 97
A27: 1998 | B27: 6.6 | C27: 12.3 | D27: 16.6 | E27: 20.6 | F27: 27.4 | H27: 22.3 | J27: 23.3 | K27: 25.1 | L27: 27.4 | M27: 32.6 | N27: 98 | O27: 103.0973451 | P27: 103.2921811 | Q27: 104.1825095 | R27: 97.31343284 | S27: 98
A28: 1999 | B28: 6.5 | C28: 12.6 | D28: 16.6 | E28: 20.6 | F28: 27.7 | H28: 22.6 | J28: 23.4 | K28: 25.3 | L28: 27.9 | M28: 32.8 | N28: 99 | O28: 103.539823 | P28: 104.1152263 | Q28: 106.0836502 | R28: 97.91044776 | S28: 99
A29: 2000 | B29: 6.8 | C29: 12.4 | D29: 16.5 | E29: 20.6 | F29: 27.7 | H29: 22.7 | J29: 23.5 | K29: 25.3 | L29: 27.9 | M29: 32.4 | N29: 00 | O29: 103.9823009 | P29: 104.1152263 | Q29: 106.0836502 | R29: 96.71641791 | S29: 00
A30: 2001 | B30: 5.7 | C30: 10.9 | D30: 15 | E30: 18.9 | F30: 26.5 | H30: 21 | J30: 22.3 | K30: 24.4 | L30: 26.7 | M30: 32.1 | N30: 01 | O30: 98.67256637 | P30: 100.4115226 | Q30: 101.5209125 | R30: 95.82089552 | S30: 01
A31: 2002 | B31: 5.5 | C31: 10.3 | D31: 14.4 | E31: 18.3 | F31: 25.8 | H31: 20.3 | J31: 21.6 | K31: 23.8 | L31: 26.1 | M31: 32 | N31: 02 | O31: 95.57522124 | P31: 97.94238683 | Q31: 99.23954373 | R31: 95.52238806 | S31: 02
A32: 2003 | B32: 5.3 | C32: 9.4 | D32: 13.6 | E32: 17.4 | F32: 24.7 | H32: 19.4 | J32: 20.5 | K32: 22.7 | L32: 25 | M32: 30.4 | N32: 03 | O32: 90.7079646 | P32: 93.41563786 | Q32: 95.05703422 | R32: 90.74626866 | S32: 03
A33: 2004 | B33: 5.1 | C33: 9.6 | D33: 13.7 | E33: 17.4 | F33: 24.9 | H33: 19.6 | J33: 20.5 | K33: 22.7 | L33: 25.3 | M33: 30.1 | N33: 04 | O33: 90.7079646 | P33: 93.41563786 | Q33: 96.19771863 | R33: 89.85074627 | S33: 04
A34: 2005 | B34: 5.4 | C34: 9.9 | D34: 13.8 | E34: 17.6 | F34: 25.4 | H34: 20.1 | J34: 20.6 | K34: 22.7 | L34: 25.8 | M34: 30.4 | N34: 05 | O34: 91.15044248 | P34: 93.41563786 | Q34: 98.09885932 | R34: 90.74626866 | S34: 05
A35: 2006 | B35: 5.7 | C35: 9.9 | D35: 13.9 | E35: 17.7 | F35: 25.4 | H35: 20.3 | J35: 20.7 | K35: 22.8 | L35: 25.9 | M35: 30 | N35: 06 | O35: 91.59292035 | P35: 93.82716049 | Q35: 98.47908745 | R35: 89.55223881 | S35: 06
A36: 2007 | B36: 5.1 | C36: 10.3 | D36: 14 | E36: 17.5 | F36: 24.7 | H36: 19.9 | J36: 20.6 | K36: 22.5 | L36: 25.4 | M36: 28.3 | N36: 07 | O36: 91.15044248 | P36: 92.59259259 | Q36: 96.57794677 | R36: 84.47761194 | S36: 07
A37: 2008 | B37: 1.5 | C37: 7.3 | D37: 11.6 | E37: 15.6 | F37: 23.6 | H37: 18 | J37: 19.1 | K37: 21.7 | L37: 24.7 | M37: 28.1 | N37: 08 | O37: 84.51327434 | P37: 89.30041152 | Q37: 93.91634981 | R37: 83.88059701 | S37: 08
A38: 2009 | B38: 1 | C38: 6.7 | D38: 11.1 | E38: 15 | F38: 23.2 | H38: 17.3 | J38: 18.7 | K38: 21.1 | L38: 24.2 | M38: 28.9 | N38: 09
A39: 2010 | B39: 1.5 | C39: 7.2 | D39: 11.5 | E39: 15.6 | F39: 24 | H39: 18.1 | J39: 19.3 | K39: 21.6 | L39: 24.9 | M39: 29.4 | N39: 10
A41: Average Individual Income Tax Rate
A43: 1979 | B43: 0 | C43: 4 | D43: 7.4 | E43: 10.1 | F43: 15.9 | H43: 11 | J43: 12.3 | K43: 14.1 | L43: 16.8 | M43: 22.7
A44: 1980 | B44: 0.2 | C44: 4.4 | D44: 7.9 | E44: 10.7 | F44: 16.7 | H44: 11.6 | J44: 13.1 | K44: 15.1 | L44: 17.9 | M44: 23 | V44: Source: Tax Policy Center
A45: 1981 | B45: 0.5 | C45: 4.7 | D45: 8.2 | E45: 11.1 | F45: 16.8 | H45: 11.9 | J45: 13.5 | K45: 15.4 | L45: 18.2 | M45: 22
A46: 1982 | B46: 0.5 | C46: 4.1 | D46: 7.4 | E46: 10 | F46: 15.4 | H46: 11 | J46: 12.3 | K46: 13.9 | L46: 16.6 | M46: 20.7
A47: 1983 | B47: 0.4 | C47: 3.7 | D47: 6.6 | E47: 9.1 | F47: 14.2 | H47: 10.2 | J47: 11.2 | K47: 12.7 | L47: 14.9 | M47: 19.7
A48: 1984 | B48: 0.7 | C48: 3.9 | D48: 6.5 | E48: 8.9 | F48: 14 | H48: 10 | J48: 10.9 | K48: 12.3 | L48: 14.6 | M48: 19.6
A49: 1985 | B49: 0.6 | C49: 3.9 | D49: 6.6 | E49: 8.8 | F49: 14.1 | H49: 10.1 | J49: 10.9 | K49: 12.5 | L49: 14.6 | M49: 19.1
A50: 1986 | B50: 0.5 | C50: 3.9 | D50: 6.5 | E50: 8.8 | F50: 14.2 | H50: 10.3 | J50: 10.9 | K50: 12.5 | L50: 14.8 | M50: 18.6
A51: 1987 | B51: -0.4 | C51: 3.1 | D51: 5.8 | E51: 8.1 | F51: 14.9 | H51: 10.2 | J51: 10.7 | K51: 12.9 | L51: 15.9 | M51: 21.7
A52: 1988 | B52: -0.9 | C52: 3 | D52: 5.9 | E52: 8.3 | F52: 14.9 | H52: 10.3 | J52: 10.7 | K52: 12.6 | L52: 15.5 | M52: 21
A53: 1989 | B53: -1.3 | C53: 2.9 | D53: 5.9 | E53: 8.3 | F53: 14.7 | H53: 10.1 | J53: 10.8 | K53: 12.6 | L53: 15.6 | M53: 20.2
A54: 1990 | B54: -0.7 | C54: 3.3 | D54: 5.9 | E54: 8.3 | F54: 14.5 | H54: 10 | J54: 10.7 | K54: 12.4 | L54: 15.3 | M54: 20.1
A55: 1991 | B55: -1.2 | C55: 2.8 | D55: 5.7 | E55: 8.1 | F55: 14.4 | H55: 9.8 | J55: 10.5 | K55: 12.3 | L55: 15 | M55: 20.9
A56: 1992 | B56: -1.6 | C56: 2.4 | D56: 5.4 | E56: 7.9 | F56: 14.5 | H56: 9.8 | J56: 10.3 | K56: 12 | L56: 15 | M56: 21.5
A57: 1993 | B57: -1.7 | C57: 2.2 | D57: 5.3 | E57: 7.8 | F57: 15 | H57: 9.9 | J57: 10.1 | K57: 12 | L57: 15.2 | M57: 23.6
A58: 1994 | B58: -3.2 | C58: 1.9 | D58: 5.2 | E58: 7.7 | F58: 15.1 | H58: 9.9 | J58: 10.3 | K58: 12.2 | L58: 15.5 | M58: 23.6
A59: 1995 | B59: -3.6 | C59: 2 | D59: 5.2 | E59: 7.8 | F59: 15.6 | H59: 10.1 | J59: 10.4 | K59: 12.4 | L59: 15.9 | M59: 24.2
A60: 1996 | B60: -4.2 | C60: 1.9 | D60: 5.2 | E60: 7.8 | F60: 16.2 | H60: 10.5 | J60: 10.5 | K60: 12.7 | L60: 16.5 | M60: 24.7
A61: 1997 | B61: -4.2 | C61: 2 | D61: 5.4 | E61: 8 | F61: 16.5 | H61: 10.9 | J61: 10.8 | K61: 13 | L61: 16.9 | M61: 24.2
A62: 1998 | B62: -4.6 | C62: 1.6 | D62: 4.9 | E62: 7.9 | F62: 16.6 | H62: 10.9 | J62: 10.8 | K62: 13.2 | L62: 17.2 | M62: 23.7
A63: 1999 | B63: -4.5 | C63: 1.7 | D63: 4.9 | E63: 8 | F63: 17.2 | H63: 11.3 | J63: 11 | K63: 13.6 | L63: 17.7 | M63: 24.3
A64: 2000 | B64: -4 | C64: 1.5 | D64: 4.9 | E64: 8.1 | F64: 17.6 | H64: 11.7 | J64: 11.2 | K64: 13.7 | L64: 18 | M64: 24.5
A65: 2001 | B65: -4.9 | C65: 0.5 | D65: 3.8 | E65: 7 | F65: 16.4 | H65: 10.2 | J65: 10.3 | K65: 12.9 | L65: 17 | M65: 24.5
A66: 2002 | B66: -5.2 | C66: 0.1 | D66: 3.5 | E66: 6.6 | F66: 15.6 | H66: 9.5 | J66: 9.8 | K66: 12.3 | L66: 16.3 | M66: 24.1
A67: 2003 | B67: -5.4 | C67: -0.7 | D67: 2.7 | E67: 5.8 | F67: 13.8 | H67: 8.3 | J67: 8.5 | K67: 10.9 | L67: 14.6 | M67: 20.9
A68: 2004 | B68: -5.4 | C68: -0.5 | D68: 2.8 | E68: 5.8 | F68: 14 | H68: 8.5 | J68: 8.6 | K68: 10.9 | L68: 14.9 | M68: 20.1
A69: 2005 | B69: -5.7 | C69: -0.5 | D69: 2.8 | E69: 5.8 | F69: 14.2 | H69: 8.8 | J69: 8.5 | K69: 10.9 | L69: 15.2 | M69: 19.7
A70: 2006 | B70: -5.7 | C70: -0.4 | D70: 2.9 | E70: 5.9 | F70: 14.2 | H70: 8.9 | J70: 8.7 | K70: 11 | L70: 15.3 | M70: 19.4
A71: 2007 | B71: -5.8 | C71: -0.1 | D71: 3.1 | E71: 6.1 | F71: 14.4 | H71: 9.2 | J71: 8.9 | K71: 11.2 | L71: 15.5 | M71: 19.4
A72: 2008 | B72: -9.1 | C72: -2.5 | D72: 1.2 | E72: 4.7 | F72: 14 | H72: 7.8 | J72: 7.9 | K72: 10.8 | L72: 15.4 | M72: 20.4
A73: 2009 | B73: -9.3 | C73: -2.6 | D73: 1.3 | E73: 4.6 | F73: 13.4 | H73: 7.2 | J73: 7.7 | K73: 10.3 | L73: 14.6 | M73: 21
A74: 2010 | B74: -9.2 | C74: -2.3 | D74: 1.6 | E74: 5 | F74: 13.8 | H74: 7.7 | J74: 8.1 | K74: 10.7 | L74: 15.1 | M74: 20.1
A76: Average Social Insurance Tax Rate
A78: 1979 | B78: 4.9 | C78: 7.6 | D78: 8.5 | E78: 8.5 | F78: 5.5 | H78: 6.8 | J78: 7.9 | K78: 7.1 | L78: 4.4 | M78: 1
A79: 1980 | B79: 4.9 | C79: 7.4 | D79: 8.4 | E79: 8.5 | F79: 5.6 | H79: 6.9 | J79: 8 | K79: 7.1 | L79: 4.7 | M79: 1.1
A80: 1981 | B80: 5.4 | C80: 8 | D80: 9 | E80: 9.1 | F80: 6.1 | H80: 7.4 | J80: 8.6 | K80: 7.8 | L80: 5.2 | M80: 1.3
A81: 1982 | B81: 5.6 | C81: 7.8 | D81: 8.9 | E81: 9 | F81: 6.4 | H81: 7.5 | J81: 8.7 | K81: 8.1 | L81: 5.6 | M81: 1.6
A82: 1983 | B82: 5.7 | C82: 7.7 | D82: 8.7 | E82: 9.1 | F82: 6.4 | H82: 7.5 | J82: 8.9 | K82: 8.1 | L82: 5.8 | M82: 1.5
A83: 1984 | B83: 6 | C83: 8.2 | D83: 9 | E83: 9.2 | F83: 6.4 | H83: 7.7 | J83: 9.2 | K83: 8.2 | L83: 5.8 | M83: 1.4
A84: 1985 | B84: 6.2 | C84: 8.4 | D84: 9.4 | E84: 9.5 | F84: 6.6 | H84: 7.9 | J84: 9.5 | K84: 8.6 | L84: 6 | M84: 1.4
A85: 1986 | B85: 6.3 | C85: 8.4 | D85: 9.4 | E85: 9.7 | F85: 6.2 | H85: 7.7 | J85: 9.7 | K85: 8.6 | L85: 5.7 | M85: 1.1
A86: 1987 | B86: 6.2 | C86: 8.2 | D86: 9.3 | E86: 9.7 | F86: 6.8 | H86: 8 | J86: 9.8 | K86: 8.7 | L86: 6 | M86: 1.6
A87: 1988 | B87: 6.5 | C87: 8.5 | D87: 9.6 | E87: 10.1 | F87: 6.6 | H87: 8.1 | J87: 10 | K87: 9 | L87: 6.2 | M87: 1.3
A88: 1989 | B88: 6.7 | C88: 8.5 | D88: 9.6 | E88: 10.1 | F88: 6.6 | H88: 8.1 | J88: 9.8 | K88: 8.8 | L88: 6.1 | M88: 1.5
A89: 1990 | B89: 6.9 | C89: 8.8 | D89: 9.7 | E89: 10.3 | F89: 6.9 | H89: 8.3 | J89: 10.1 | K89: 9.1 | L89: 6.4 | M89: 1.6
A90: 1991 | B90: 6.9 | C90: 8.6 | D90: 9.4 | E90: 10.3 | F90: 7.4 | H90: 8.5 | J90: 10.1 | K90: 9.5 | L90: 7.2 | M90: 2.2
A91: 1992 | B91: 7.1 | C91: 8.2 | D91: 9.5 | E91: 10.2 | F91: 7.2 | H91: 8.3 | J91: 10.1 | K91: 9.3 | L91: 7 | M91: 1.9
A92: 1993 | B92: 7 | C92: 8 | D92: 9.4 | E92: 10.2 | F92: 7.3 | H92: 8.4 | J92: 10 | K92: 9.4 | L92: 7.3 | M92: 2.1
A93: 1994 | B93: 7 | C93: 8 | D93: 9.3 | E93: 10.2 | F93: 7.5 | H93: 8.5 | J93: 10.2 | K93: 9.5 | L93: 7.3 | M93: 2.7
A94: 1995 | B94: 7.5 | C94: 8.3 | D94: 9.3 | E94: 10.2 | F94: 7.2 | H94: 8.3 | J94: 10 | K94: 9.4 | L94: 7 | M94: 2.4
A95: 1996 | B95: 7.8 | C95: 8.3 | D95: 9.3 | E95: 10.2 | F95: 6.9 | H95: 8.2 | J95: 9.9 | K95: 9.1 | L95: 6.8 | M95: 2.2
A96: 1997 | B96: 8.1 | C96: 8.4 | D96: 9.3 | E96: 10.2 | F96: 6.7 | H96: 8.1 | J96: 9.9 | K96: 9 | L96: 6.5 | M96: 2.1
A97: 1998 | B97: 8.4 | C97: 8.5 | D97: 9.3 | E97: 10.4 | F97: 6.6 | H97: 8 | J97: 10 | K97: 9 | L97: 6.4 | M97: 2
A98: 1999 | B98: 8.3 | C98: 8.7 | D98: 9.3 | E98: 10.4 | F98: 6.4 | H98: 8 | J98: 9.9 | K98: 8.9 | L98: 6.4 | M98: 2
A99: 2000 | B99: 8.1 | C99: 8.7 | D99: 9.3 | E99: 10.3 | F99: 6.3 | H99: 7.8 | J99: 9.8 | K99: 8.9 | L99: 6.4 | M99: 1.9
A100: 2001 | B100: 8.3 | C100: 8.5 | D100: 9.4 | E100: 10 | F100: 7.1 | H100: 8.3 | J100: 10.2 | K100: 9.5 | L100: 7 | M100: 2.4
A101: 2002 | B101: 8.3 | C101: 8.3 | D101: 9.2 | E101: 9.9 | F101: 7.4 | H101: 8.4 | J101: 10.1 | K101: 9.6 | L101: 7.4 | M101: 2.5
A102: 2003 | B102: 8.2 | C102: 8.2 | D102: 8.9 | E102: 9.7 | F102: 7.2 | H102: 8.2 | J102: 10 | K102: 9.6 | L102: 7.3 | M102: 2.4
A103: 2004 | B103: 8.2 | C103: 8.1 | D103: 8.9 | E103: 9.5 | F103: 6.6 | H103: 7.8 | J103: 9.8 | K103: 9.2 | L103: 6.8 | M103: 2
A104: 2005 | B104: 8.4 | C104: 8.2 | D104: 8.8 | E104: 9.4 | F104: 6.1 | H104: 7.5 | J104: 9.5 | K104: 8.8 | L104: 6.2 | M104: 1.7
A105: 2006 | B105: 8.6 | C105: 8.2 | D105: 8.8 | E105: 9.4 | F105: 5.9 | H105: 7.3 | J105: 9.4 | K105: 8.6 | L105: 6.1 | M105: 1.6
A106: 2007 | B106: 8.7 | C106: 8.6 | D106: 8.9 | E106: 9.3 | F106: 5.8 | H106: 7.3 | J106: 9.4 | K106: 8.5 | L106: 6 | M106: 1.6
A107: 2008 | B107: 8.6 | C107: 8.3 | D107: 8.9 | E107: 9.4 | F107: 6.5 | H107: 7.8 | J107: 9.6 | K107: 9.1 | L107: 6.8 | M107: 2
A108: 2009 | B108: 8.3 | C108: 7.9 | D108: 8.4 | E108: 9.1 | F108: 7.1 | H108: 8 | J108: 9.6 | K108: 9.3 | L108: 7.5 | M108: 2.5
A109: 2010 | B109: 8.4 | C109: 7.8 | D109: 8.3 | E109: 9 | F109: 6.7 | H109: 7.7 | J109: 9.4 | K109: 8.9 | L109: 7.1 | M109: 2.2
A111: Average Corporate Income Tax Rate
A113: 1979 | B113: 1.3 | C113: 1.7 | D113: 2 | E113: 2.2 | F113: 5.1 | H113: 3.4 | J113: 2.6 | K113: 3.1 | L113: 5.3 | M113: 11
A114: 1980 | B114: 1.1 | C114: 1.4 | D114: 1.7 | E114: 1.8 | F114: 4.1 | H114: 2.8 | J114: 2.2 | K114: 2.7 | L114: 4.2 | M114: 8.6
A115: 1981 | B115: 0.8 | C115: 1.1 | D115: 1.4 | E115: 1.5 | F115: 3.2 | H115: 2.2 | J115: 1.7 | K115: 2.1 | L115: 3.4 | M115: 6.8
A116: 1982 | B116: 0.5 | C116: 0.7 | D116: 0.9 | E116: 0.9 | F116: 1.9 | H116: 1.4 | J116: 1.1 | K116: 1.2 | L116: 1.9 | M116: 4.2
A117: 1983 | B117: 0.7 | C117: 0.9 | D117: 1.1 | E117: 1.2 | F117: 2.5 | H117: 1.8 | J117: 1.4 | K117: 1.6 | L117: 2.5 | M117: 5.1
A118: 1984 | B118: 0.9 | C118: 1 | D118: 1.3 | E118: 1.4 | F118: 2.8 | H118: 2 | J118: 1.5 | K118: 1.8 | L118: 2.7 | M118: 5.7
A119: 1985 | B119: 0.7 | C119: 0.9 | D119: 1.1 | E119: 1.2 | F119: 2.6 | H119: 1.8 | J119: 1.3 | K119: 1.6 | L119: 2.6 | M119: 5.2
A120: 1986 | B120: 0.7 | C120: 0.9 | D120: 1.2 | E120: 1.3 | F120: 2.6 | H120: 1.9 | J120: 1.3 | K120: 1.7 | L120: 2.6 | M120: 4.6
A121: 1987 | B121: 0.9 | C121: 1.1 | D121: 1.4 | E121: 1.6 | F121: 3.4 | H121: 2.4 | J121: 1.7 | K121: 2.1 | L121: 3.5 | M121: 6.7
A122: 1988 | B122: 0.8 | C122: 1.1 | D122: 1.4 | E122: 1.5 | F122: 3.4 | H122: 2.4 | J122: 1.6 | K122: 2 | L122: 3.3 | M122: 6.4
A123: 1989 | B123: 0.8 | C123: 1 | D123: 1.3 | E123: 1.4 | F123: 3.3 | H123: 2.3 | J123: 1.6 | K123: 2 | L123: 3.2 | M123: 6.3
A124: 1990 | B124: 0.8 | C124: 1 | D124: 1.2 | E124: 1.4 | F124: 3.1 | H124: 2.1 | J124: 1.5 | K124: 1.9 | L124: 3 | M124: 6.1
A125: 1991 | B125: 0.8 | C125: 0.9 | D125: 1.2 | E125: 1.3 | F125: 2.8 | H125: 2 | J125: 1.5 | K125: 1.8 | L125: 2.6 | M125: 5.7
A126: 1992 | B126: 0.8 | C126: 0.9 | D126: 1.2 | E126: 1.3 | F126: 3.1 | H126: 2.1 | J126: 1.5 | K126: 1.9 | L126: 3 | M126: 6.3
A127: 1993 | B127: 0.9 | C127: 1.1 | D127: 1.4 | E127: 1.5 | F127: 3.6 | H127: 2.5 | J127: 1.8 | K127: 2.2 | L127: 3.3 | M127: 7.4
A128: 1994 | B128: 1 | C128: 1.1 | D128: 1.5 | E128: 1.6 | F128: 3.8 | H128: 2.6 | J128: 1.8 | K128: 2.2 | L128: 3.3 | M128: 8.2
A129: 1995 | B129: 1 | C129: 1.1 | D129: 1.5 | E129: 1.7 | F129: 4.1 | H129: 2.8 | J129: 2 | K129: 2.5 | L129: 3.7 | M129: 8.4
A130: 1996 | B130: 1 | C130: 1.2 | D130: 1.5 | E130: 1.7 | F130: 4.1 | H130: 2.8 | J130: 2 | K130: 2.5 | L130: 3.7 | M130: 8.1
A131: 1997 | B131: 1 | C131: 1.1 | D131: 1.5 | E131: 1.7 | F131: 4.1 | H131: 2.8 | J131: 2 | K131: 2.5 | L131: 3.7 | M131: 7.6
A132: 1998 | B132: 0.9 | C132: 1 | D132: 1.4 | E132: 1.5 | F132: 3.7 | H132: 2.6 | J132: 1.7 | K132: 2.2 | L132: 3.3 | M132: 6.7
A133: 1999 | B133: 0.9 | C133: 1 | D133: 1.3 | E133: 1.4 | F133: 3.6 | H133: 2.5 | J133: 1.7 | K133: 2.2 | L133: 3.2 | M133: 6.3
A134: 2000 | B134: 0.8 | C134: 1 | D134: 1.3 | E134: 1.4 | F134: 3.4 | H134: 2.4 | J134: 1.7 | K134: 2.1 | L134: 3 | M134: 5.7
A135: 2001 | B135: 0.6 | C135: 0.7 | D135: 0.8 | E135: 1 | F135: 2.5 | H135: 1.7 | J135: 1.1 | K135: 1.4 | L135: 2.1 | M135: 5.1
A136: 2002 | B136: 0.6 | C136: 0.6 | D136: 0.7 | E136: 0.9 | F136: 2.4 | H136: 1.6 | J136: 1 | K136: 1.3 | L136: 1.9 | M136: 5.2
A137: 2003 | B137: 0.7 | C137: 0.8 | D137: 0.9 | E137: 1.1 | F137: 3.2 | H137: 2.1 | J137: 1.3 | K137: 1.6 | L137: 2.6 | M137: 6.9
A138: 2004 | B138: 0.9 | C138: 0.9 | D138: 1.1 | E138: 1.3 | F138: 3.8 | H138: 2.6 | J138: 1.5 | K138: 2 | L138: 3.1 | M138: 7.7
A139: 2005 | B139: 1.1 | C139: 1.1 | D139: 1.3 | E139: 1.6 | F139: 4.7 | H139: 3.2 | J139: 2 | K139: 2.5 | L139: 4 | M139: 8.7
A140: 2006 | B140: 1.2 | C140: 1.2 | D140: 1.5 | E140: 1.7 | F140: 5 | H140: 3.4 | J140: 2.1 | K140: 2.7 | L140: 4.2 | M140: 8.8
A141: 2007 | B141: 1 | C141: 1 | D141: 1.3 | E141: 1.5 | F141: 4.1 | H141: 2.9 | J141: 1.8 | K141: 2.3 | L141: 3.5 | M141: 7.2
A142: 2008 | B142: 0.6 | C142: 0.6 | D142: 0.8 | E142: 0.9 | F142: 2.7 | H142: 1.8 | J142: 1.1 | K142: 1.4 | L142: 2.1 | M142: 5.5
A143: 2009 | B143: 0.5 | C143: 0.5 | D143: 0.6 | E143: 0.7 | F143: 2.2 | H143: 1.5 | J143: 0.9 | K143: 1.1 | L143: 1.7 | M143: 5.2
A144: 2010 | B144: 0.7 | C144: 0.7 | D144: 0.8 | E144: 1 | F144: 3.1 | H144: 2.1 | J144: 1.2 | K144: 1.5 | L144: 2.3 | M144: 6.9
A146: Average Excise Tax Rate
A148: 1979 | B148: 1.3 | C148: 1.1 | D148: 1 | E148: 0.8 | F148: 0.6 | H148: 0.8 | J148: 0.7 | K148: 0.7 | L148: 0.6 | M148: 0.4
A149: 1980 | B149: 1.2 | C149: 1 | D149: 0.8 | E149: 0.7 | F149: 0.6 | H149: 0.7 | J149: 0.7 | K149: 0.6 | L149: 0.6 | M149: 0.4
A150: 1981 | B150: 1.1 | C150: 0.9 | D150: 0.8 | E150: 0.6 | F150: 0.5 | H150: 0.6 | J150: 0.6 | K150: 0.5 | L150: 0.5 | M150: 0.3
A151: 1982 | B151: 1.1 | C151: 0.9 | D151: 0.7 | E151: 0.6 | F151: 0.5 | H151: 0.6 | J151: 0.6 | K151: 0.5 | L151: 0.5 | M151: 0.3
A152: 1983 | B152: 1.5 | C152: 1.1 | D152: 0.9 | E152: 0.8 | F152: 0.5 | H152: 0.8 | J152: 0.7 | K152: 0.6 | L152: 0.5 | M152: 0.3
A153: 1984 | B153: 1.8 | C153: 1.2 | D153: 1 | E153: 0.8 | F153: 0.6 | H153: 0.9 | J153: 0.7 | K153: 0.7 | L153: 0.6 | M153: 0.4
A154: 1985 | B154: 1.8 | C154: 1.2 | D154: 1 | E154: 0.8 | F154: 0.6 | H154: 0.8 | J154: 0.7 | K154: 0.6 | L154: 0.6 | M154: 0.4
A155: 1986 | B155: 1.6 | C155: 1.1 | D155: 0.9 | E155: 0.8 | F155: 0.5 | H155: 0.8 | J155: 0.7 | K155: 0.6 | L155: 0.5 | M155: 0.3
A156: 1987 | B156: 1.6 | C156: 1.1 | D156: 0.9 | E156: 0.8 | F156: 0.6 | H156: 0.8 | J156: 0.7 | K156: 0.6 | L156: 0.5 | M156: 0.3
A157: 1988 | B157: 1.5 | C157: 1.1 | D157: 0.9 | E157: 0.8 | F157: 0.5 | H157: 0.7 | J157: 0.7 | K157: 0.6 | L157: 0.5 | M157: 0.3
A158: 1989 | B158: 1.4 | C158: 1.1 | D158: 0.9 | E158: 0.8 | F158: 0.5 | H158: 0.7 | J158: 0.7 | K158: 0.6 | L158: 0.5 | M158: 0.3
A159: 1990 | B159: 1.4 | C159: 1 | D159: 0.8 | E159: 0.7 | F159: 0.5 | H159: 0.7 | J159: 0.6 | K159: 0.6 | L159: 0.5 | M159: 0.3
A160: 1991 | B160: 1.6 | C160: 1.2 | D160: 1 | E160: 0.8 | F160: 0.6 | H160: 0.8 | J160: 0.7 | K160: 0.6 | L160: 0.5 | M160: 0.3
A161: 1992 | B161: 1.7 | C161: 1.3 | D161: 1 | E161: 0.9 | F161: 0.6 | H161: 0.9 | J161: 0.8 | K161: 0.7 | L161: 0.6 | M161: 0.3
A162: 1993 | B162: 1.8 | C162: 1.3 | D162: 1.1 | E162: 0.9 | F162: 0.6 | H162: 0.9 | J162: 0.8 | K162: 0.7 | L162: 0.6 | M162: 0.3
A163: 1994 | B163: 2 | C163: 1.5 | D163: 1.2 | E163: 1 | F163: 0.6 | H163: 1 | J163: 0.8 | K163: 0.8 | L163: 0.6 | M163: 0.3
A164: 1995 | B164: 1.9 | C164: 1.4 | D164: 1.1 | E164: 0.9 | F164: 0.6 | H164: 0.9 | J164: 0.8 | K164: 0.7 | L164: 0.6 | M164: 0.3
A165: 1996 | B165: 1.8 | C165: 1.3 | D165: 1 | E165: 0.8 | F165: 0.5 | H165: 0.8 | J165: 0.7 | K165: 0.6 | L165: 0.5 | M165: 0.3
A166: 1997 | B166: 1.9 | C166: 1.3 | D166: 1 | E166: 0.9 | F166: 0.5 | H166: 0.8 | J166: 0.8 | K166: 0.7 | L166: 0.5 | M166: 0.3
A167: 1998 | B167: 1.8 | C167: 1.3 | D167: 1.1 | E167: 0.9 | F167: 0.5 | H167: 0.8 | J167: 0.8 | K167: 0.7 | L167: 0.5 | M167: 0.2
A168: 1999 | B168: 1.8 | C168: 1.3 | D168: 1 | E168: 0.8 | F168: 0.5 | H168: 0.8 | J168: 0.7 | K168: 0.6 | L168: 0.5 | M168: 0.2
A169: 2000 | B169: 1.8 | C169: 1.2 | D169: 1 | E169: 0.8 | F169: 0.5 | H169: 0.8 | J169: 0.7 | K169: 0.6 | L169: 0.5 | M169: 0.2
A170: 2001 | B170: 1.7 | C170: 1.2 | D170: 1 | E170: 0.8 | F170: 0.5 | H170: 0.8 | J170: 0.7 | K170: 0.6 | L170: 0.5 | M170: 0.2
A171: 2002 | B171: 1.8 | C171: 1.2 | D171: 1 | E171: 0.8 | F171: 0.5 | H171: 0.8 | J171: 0.7 | K171: 0.6 | L171: 0.5 | M171: 0.2
A172: 2003 | B172: 1.8 | C172: 1.2 | D172: 1 | E172: 0.8 | F172: 0.5 | H172: 0.8 | J172: 0.7 | K172: 0.6 | L172: 0.5 | M172: 0.2
A173: 2004 | B173: 1.5 | C173: 1.1 | D173: 0.9 | E173: 0.8 | F173: 0.5 | H173: 0.7 | J173: 0.7 | K173: 0.6 | L173: 0.5 | M173: 0.2
A174: 2005 | B174: 1.6 | C174: 1.1 | D174: 0.9 | E174: 0.7 | F174: 0.4 | H174: 0.7 | J174: 0.6 | K174: 0.5 | L174: 0.4 | M174: 0.2
A175: 2006 | B175: 1.6 | C175: 1 | D175: 0.8 | E175: 0.7 | F175: 0.4 | H175: 0.6 | J175: 0.6 | K175: 0.5 | L175: 0.4 | M175: 0.2
A176: 2007 | B176: 1.2 | C176: 0.8 | D176: 0.7 | E176: 0.6 | F176: 0.3 | H176: 0.5 | J176: 0.5 | K176: 0.4 | L176: 0.3 | M176: 0.1
A177: 2008 | B177: 1.3 | C177: 0.9 | D177: 0.7 | E177: 0.6 | F177: 0.4 | H177: 0.6 | J177: 0.5 | K177: 0.4 | L177: 0.4 | M177: 0.2
A178: 2009 | B178: 1.5 | C178: 0.9 | D178: 0.8 | E178: 0.6 | F178: 0.4 | H178: 0.6 | J178: 0.5 | K178: 0.5 | L178: 0.4 | M178: 0.2
A179: 2010 | B179: 1.6 | C179: 1 | D179: 0.8 | E179: 0.6 | F179: 0.4 | H179: 0.6 | J179: 0.5 | K179: 0.4 | L179: 0.4 | M179: 0.2
A181: Source: Congressional Budget Office, http://www.cbo.gov/publication/44604
A182: Notes: Effective tax rates are calculated by dividing taxes by comprehensive household income.
A183: Comprehensive household income equals pretax cash income plus income from other sources. Pretax cash income is the sum of wages, salaries, self-employment income, rents, taxable and nontaxable interest, dividends, realized capital gains, cash transfer payments, and retirement benefits plus taxes paid by businesses (corporate income taxes and the employer's share of Social Security, Medicare, and federal unemployment insurance payroll taxes) and employees' contributions to 401(k) retirement plans. Other sources of income include all in-kind benefits (Medicare, Medicaid, employer-paid health insurance premiums, food stamps, school lunches and breakfasts, housing assistance, and energy assistance).
A184: Income categories are defined by ranking all people by their comprehensive household income adjusted for household size—that is, divided by the square root of the household’s size. (A household consists of the people who share a housing unit, regardless of their relationships.) Quintiles, or fifths, contain equal numbers of people. Households with negative income (business or investment losses larger than other income) are excluded from the lowest income category but are included in totals.
A185: Individual income taxes are attributed directly to households paying those taxes. Social insurance, or payroll, taxes are attributed to households paying those taxes directly or paying them indirectly through their employers. Corporate income taxes are attributed to households according to their share of capital income. Federal excise taxes are attributed to them according to their consumption of the taxed good or service.

Sheet 11.7
E7: Republican Presidents
E8: Democratic Presidents
E11: Presidentes Republicanos
E12: Presidentes Democratas
E13: Carter | G13: Regan | I13: Bush1 | K13: Cllinton | M13: Bush2 | O13: Obama
B14: Number of Troops | C14: Budget | E14: Number | F14: Budget | G14: Number | H14: Budget | I14: Number | J14: Budget | K14: Number | L14: Budget | M14: Number | N14: Budget | O14: Number | P14: Budget
A15: 1980 | B15: 783700 | C15: 36 | D15: =+C15*1000000/B15 -> 45.93594488 | E15: =+B15 -> 783700 | F15: =+C15 -> 36 | G15: =+B15 -> 783700 | H15: =+C15 -> 36 | Q15: =+A15 -> 1980
A16: 1981 | B16: 785000 | C16: 44.4 | D16: 56.56050955 | G16: 785000 | H16: 44.4
A17: 1982 | B17: 783700 | C17: 52 | D17: 66.35192038 | G17: 783700 | H17: 52
A18: 1983 | B18: 783000 | C18: 58.4 | D18: 74.58492976 | G18: 783000 | H18: 58.4
A19: 1984 | B19: 784000 | C19: 62 | D19: 79.08163265 | G19: 784000 | H19: 62
A20: 1985 | B20: 783000 | C20: 74 | D20: 94.5083014 | G20: 783000 | H20: 74 | Q20: =+A20 -> 1985
A21: 1986 | B21: 783000 | C21: 72.8 | D21: 92.97573436 | G21: 783000 | H21: 72.8
A22: 1987 | B22: 781000 | C22: 73.9 | D22: 94.62227913 | G22: 781000 | H22: 73.9
A23: 1988 | B23: 773400 | C23: 75.5 | D23: 97.62089475 | G23: 773400 | H23: 75.5 | I23: =+B23 -> 773400 | J23: 75.5
A24: 1989 | B24: 770000 | C24: 76 | D24: 98.7012987 | I24: 770000 | J24: 76
A25: 1990 | B25: 733200 | C25: 77.6 | D25: 105.837425 | I25: 733200 | J25: 77.6 | Q25: =+A25 -> 1990
A26: 1991 | B26: 710900 | C26: 90.5 | D26: 127.3034182 | I26: 710900 | J26: 90.5
A27: 1992 | B27: 607300 | C27: 73.9 | D27: 121.6861518 | I27: 607300 | J27: 73.9 | K27: =+B27 -> 607300 | L27: =+C27 -> 73.9
A28: 1993 | B28: 575600 | C28: 64.8 | D28: 112.5781793 | K28: 575600 | L28: 64.8
A29: 1994 | B29: 540500 | C29: 62.6 | D29: 115.8186864 | K29: 540500 | L29: 62.6
A30: 1995 | B30: 505000 | C30: 64.2 | D30: 127.1287129 | K30: 505000 | L30: 64.2 | Q30: =+A30 -> 1995
A31: 1996 | B31: 489500 | C31: 64.8 | D31: 132.3799796 | K31: 489500 | L31: 64.8
A32: 1997 | B32: 489700 | C32: 64.8 | D32: 132.3259138 | K32: 489700 | L32: 64.8
A33: 1998 | B33: 483100 | C33: 63 | D33: 130.4077831 | K33: 483100 | L33: 63
A34: 1999 | B34: 477000 | C34: 66 | D34: 138.3647799 | K34: 477000 | L34: 66
A35: 2000 | B35: 479000 | C35: 71.7 | D35: 149.6868476 | K35: 479000 | L35: 71.7 | M35: =+B35 -> 479000 | N35: =+C35 -> 71.7 | Q35: =+A35 -> 2000
A36: 2001 | B36: 477000 | C36: 75.5 | D36: 158.2809224 | M36: 477000 | N36: 75.5
A37: 2002 | B37: 483000 | C37: 84 | D37: 173.9130435 | M37: 483000 | N37: 84
A38: 2003 | B38: 494000 | C38: 116.7 | D38: 236.2348178 | M38: 494000 | N38: 116.7
A39: 2004 | B39: 495000 | C39: 147.5 | D39: 297.979798 | M39: 495000 | N39: 147.5
A40: 2005 | B40: 488000 | C40: 148 | D40: 303.2786885 | M40: 488000 | N40: 148 | Q40: =+A40 -> 2005
A41: 2006 | B41: 499800 | C41: 167.6 | D41: 335.3341337 | M41: 499800 | N41: 167.6
A42: 2007 | B42: 515000 | C42: 210 | D42: 407.7669903 | M42: 515000 | N42: 210
A43: 2008 | B43: 536000 | C43: 242 | D43: 451.4925373 | M43: 536000 | N43: 242 | O43: =+B43 -> 536000 | P43: 242
A44: 2009 | B44: 547000 | C44: 225 | D44: 411.3345521 | O44: 547000 | P44: 225
A45: 2010 | B45: 559300 | C45: 233 | D45: 416.5921688 | O45: 559300 | P45: 233
A46: 2011 | B46: 561000 | C46: 225.9 | D46: 402.6737968 | O46: 561000 | P46: 225.9
A47: 2012 | B47: 546500 | C47: 196 | D47: 358.6459286 | O47: 546500 | P47: 196 | Q47: =+A47 -> 2012

Sheet 11.8
A1: Check source in Chapter 5 | H1: POSTAL SERVICES: PRICE HIKES AFTER PRIVATIZATION IN PORTUGAL
H2: Harmonized Indices of Consumer Prices: Postal Services vs. All-Items
B3: Postal | C3: Error Bars | F3: Error Bars
A4: Date | B4: Services | C4: x | D4: y | E4: All-items | F4: y
A5: 1996-01-15 | B5: 77.93 | C5: =+A6-A5 -> 31 | D5: 0 | E5: 76.79 | F5: 0
A6: 1996-02-15 | B6: 77.93 | C6: 29 | D6: =+B6-B5 -> 0 | E6: 77.18 | F6: =+E6-E5 -> 0.39
A7: 1996-03-15 | B7: 81.41 | C7: 31 | D7: 3.48 | E7: 77.34 | F7: =+E7-E6 -> 0.16
A8: 1996-04-15 | B8: 81.41 | C8: 30 | D8: 0 | E8: 77.96 | F8: 0.62
A9: 1996-05-15 | B9: 81.41 | C9: 31 | D9: 0 | E9: 78.28 | F9: 0.32
A10: 1996-06-15 | B10: 81.41 | C10: 30 | D10: 0 | E10: 78.28 | F10: 0
A11: 1996-07-15 | B11: 81.41 | C11: 31 | D11: 0 | E11: 78.43 | F11: 0.15
A12: 1996-08-15 | B12: 81.41 | C12: 31 | D12: 0 | E12: 78.67 | F12: 0.24
A13: 1996-09-15 | B13: 81.41 | C13: 30 | D13: 0 | E13: 78.67 | F13: 0
A14: 1996-10-15 | B14: 81.41 | C14: 31 | D14: 0 | E14: 78.51 | F14: -0.16
A15: 1996-11-15 | B15: 81.41 | C15: 30 | D15: 0 | E15: 78.67 | F15: 0.16
A16: 1996-12-15 | B16: 81.41 | C16: 31 | D16: 0 | E16: 78.67 | F16: 0
A17: 1997-01-15 | B17: 81.41 | C17: 31 | D17: 0 | E17: 78.98 | F17: 0.31
A18: 1997-02-15 | B18: 84.88 | C18: 28 | D18: 3.47 | E18: 79.06 | F18: 0.08
A19: 1997-03-15 | B19: 84.88 | C19: 31 | D19: 0 | E19: 79.14 | F19: 0.08
A20: 1997-04-15 | B20: 84.88 | C20: 30 | D20: 0 | E20: 79.21 | F20: 0.07
A21: 1997-05-15 | B21: 84.88 | C21: 31 | D21: 0 | E21: 79.76 | F21: 0.55
A22: 1997-06-15 | B22: 84.88 | C22: 30 | D22: 0 | E22: 79.53 | F22: -0.23
A23: 1997-07-15 | B23: 84.88 | C23: 31 | D23: 0 | E23: 79.53 | F23: 0
A24: 1997-08-15 | B24: 84.88 | C24: 31 | D24: 0 | E24: 79.92 | F24: 0.39 | H24: Source: Eurostat
A25: 1997-09-15 | B25: 84.88 | C25: 30 | D25: 0 | E25: 79.84 | F25: -0.08
A26: 1997-10-15 | B26: 84.88 | C26: 31 | D26: 0 | E26: 79.76 | F26: -0.08
A27: 1997-11-15 | B27: 84.88 | C27: 30 | D27: 0 | E27: 80.15 | F27: 0.39
A28: 1997-12-15 | B28: 84.88 | C28: 31 | D28: 0 | E28: 80.31 | F28: 0.16
A29: 1998-01-15 | B29: 85.77 | C29: 31 | D29: 0.89 | E29: 80.23 | F29: -0.08
A30: 1998-02-15 | B30: 85.85 | C30: 28 | D30: 0.08 | E30: 80.07 | F30: -0.16
A31: 1998-03-15 | B31: 85.85 | C31: 31 | D31: 0 | E31: 80.31 | F31: 0.24
A32: 1998-04-15 | B32: 85.85 | C32: 30 | D32: 0 | E32: 80.93 | F32: 0.62
A33: 1998-05-15 | B33: 85.85 | C33: 31 | D33: 0 | E33: 81.48 | F33: =+E33-E32 -> 0.55
A34: 1998-06-15 | B34: 85.85 | C34: 30 | D34: 0 | E34: 81.64 | F34: 0.16
A35: 1998-07-15 | B35: 85.85 | C35: 31 | D35: 0 | E35: 81.79 | F35: 0.15
A36: 1998-08-15 | B36: 85.85 | C36: 31 | D36: 0 | E36: 81.71 | F36: -0.08
A37: 1998-09-15 | B37: 85.85 | C37: 30 | D37: 0 | E37: 81.56 | F37: -0.15
A38: 1998-10-15 | B38: 85.85 | C38: 31 | D38: 0 | E38: 81.79 | F38: 0.23
A39: 1998-11-15 | B39: 85.85 | C39: 30 | D39: 0 | E39: 82.26 | F39: 0.47
A40: 1998-12-15 | B40: 85.85 | C40: 31 | D40: 0 | E40: 82.57 | F40: 0.31
A41: 1999-01-15 | B41: 86.66 | C41: 31 | D41: 0.81 | E41: 82.26 | F41: -0.31
A42: 1999-02-15 | B42: 86.66 | C42: 28 | D42: 0 | E42: 82.26 | F42: 0
A43: 1999-03-15 | B43: 86.66 | C43: 31 | D43: 0 | E43: 82.57 | F43: 0.31
A44: 1999-04-15 | B44: 86.66 | C44: 30 | D44: 0 | E44: 83.12 | F44: 0.55
A45: 1999-05-15 | B45: 86.66 | C45: 31 | D45: 0 | E45: 83.2 | F45: 0.08
A46: 1999-06-15 | B46: 86.66 | C46: 30 | D46: 0 | E46: 83.35 | F46: 0.15
A47: 1999-07-15 | B47: 86.66 | C47: 31 | D47: 0 | E47: 83.35 | F47: 0
A48: 1999-08-15 | B48: 86.66 | C48: 31 | D48: 0 | E48: 83.2 | F48: -0.15
A49: 1999-09-15 | B49: 86.66 | C49: 30 | D49: 0 | E49: 83.12 | F49: -0.08
A50: 1999-10-15 | B50: 86.66 | C50: 31 | D50: 0 | E50: 83.28 | F50: 0.16
A51: 1999-11-15 | B51: 86.66 | C51: 30 | D51: 0 | E51: 83.82 | F51: 0.54
A52: 1999-12-15 | B52: 86.66 | C52: 31 | D52: 0 | E52: 83.98 | F52: 0.16
A53: 2000-01-15 | B53: 90.22 | C53: 31 | D53: 3.56 | E53: 83.82 | F53: -0.16
A54: 2000-02-15 | B54: 90.22 | C54: 29 | D54: 0 | E54: 83.59 | F54: -0.23
A55: 2000-03-15 | B55: 90.22 | C55: 31 | D55: 0 | E55: 83.74 | F55: 0.15
A56: 2000-04-15 | B56: 90.22 | C56: 30 | D56: 0 | E56: 84.68 | F56: 0.94
A57: 2000-05-15 | B57: 90.22 | C57: 31 | D57: 0 | E57: 85.23 | F57: 0.55
A58: 2000-06-15 | B58: 90.22 | C58: 30 | D58: 0 | E58: 85.7 | F58: 0.47
A59: 2000-07-15 | B59: 90.22 | C59: 31 | D59: 0 | E59: 86.09 | F59: 0.39
A60: 2000-08-15 | B60: 90.22 | C60: 31 | D60: 0 | E60: 86.17 | F60: 0.08
A61: 2000-09-15 | B61: 90.22 | C61: 30 | D61: 0 | E61: 86.09 | F61: -0.08
A62: 2000-10-15 | B62: 90.22 | C62: 31 | D62: 0 | E62: 86.32 | F62: 0.23
A63: 2000-11-15 | B63: 90.22 | C63: 30 | D63: 0 | E63: 86.87 | F63: 0.55
A64: 2000-12-15 | B64: 90.22 | C64: 31 | D64: 0 | E64: 87.18 | F64: 0.31
A65: 2001-01-15 | B65: 91.03 | C65: 31 | D65: 0.81 | E65: 87.49 | F65: 0.31
A66: 2001-02-15 | B66: 91.03 | C66: 28 | D66: 0 | E66: 87.65 | F66: 0.16
A67: 2001-03-15 | B67: 91.03 | C67: 31 | D67: 0 | E67: 88.04 | F67: 0.39
A68: 2001-04-15 | B68: 91.03 | C68: 30 | D68: 0 | E68: 88.59 | F68: 0.55
A69: 2001-05-15 | B69: 91.03 | C69: =+A70-A69 -> 31 | D69: 0 | E69: 89.37 | F69: 0.78
A70: 2001-06-15 | B70: 91.03 | C70: 30 | D70: =+B70-B69 -> 0 | E70: 89.6 | F70: 0.23
A71: 2001-07-15 | B71: 91.03 | C71: 31 | D71: 0 | E71: 89.76 | F71: =+E71-E70 -> 0.16
A72: 2001-08-15 | B72: 91.03 | C72: 31 | D72: 0 | E72: 89.6 | F72: -0.16
A73: 2001-09-15 | B73: 91.03 | C73: 30 | D73: 0 | E73: 89.6 | F73: 0
A74: 2001-10-15 | B74: 91.03 | C74: 31 | D74: 0 | E74: 89.92 | F74: 0.32
A75: 2001-11-15 | B75: 91.03 | C75: 30 | D75: 0 | E75: 90.46 | F75: 0.54
A76: 2001-12-15 | B76: 91.03 | C76: 31 | D76: 0 | E76: 90.62 | F76: 0.16
A77: 2002-01-15 | B77: 94.42 | C77: 31 | D77: 3.39 | E77: 90.7 | F77: 0.08
A78: 2002-02-15 | B78: 94.42 | C78: 28 | D78: 0 | E78: 90.54 | F78: -0.16
A79: 2002-03-15 | B79: 94.42 | C79: 31 | D79: 0 | E79: 90.93 | F79: 0.39
A80: 2002-04-15 | B80: 94.42 | C80: 30 | D80: 0 | E80: 91.71 | F80: 0.78
A81: 2002-05-15 | B81: 94.42 | C81: 31 | D81: 0 | E81: 92.42 | F81: 0.71
A82: 2002-06-15 | B82: 94.42 | C82: 30 | D82: 0 | E82: 92.73 | F82: 0.31
A83: 2002-07-15 | B83: 94.42 | C83: 31 | D83: 0 | E83: 92.96 | F83: 0.23
A84: 2002-08-15 | B84: 94.42 | C84: 31 | D84: 0 | E84: 93.12 | F84: 0.16
A85: 2002-09-15 | B85: 94.42 | C85: 30 | D85: 0 | E85: 93.04 | F85: -0.08
A86: 2002-10-15 | B86: 94.42 | C86: 31 | D86: 0 | E86: 93.59 | F86: 0.55
A87: 2002-11-15 | B87: 94.42 | C87: 30 | D87: 0 | E87: 94.13 | F87: 0.54
A88: 2002-12-15 | B88: 94.42 | C88: 31 | D88: 0 | E88: 94.21 | F88: 0.08
A89: 2003-01-15 | B89: 97.9 | C89: 31 | D89: 3.48 | E89: 94.29 | F89: 0.08
A90: 2003-02-15 | B90: 97.9 | C90: 28 | D90: 0 | E90: 94.29 | F90: 0
A91: 2003-03-15 | B91: 97.9 | C91: 31 | D91: 0 | E91: 94.37 | F91: 0.08
A92: 2003-04-15 | B92: 97.9 | C92: 30 | D92: 0 | E92: 95.15 | F92: 0.78
A93: 2003-05-15 | B93: 97.9 | C93: 31 | D93: 0 | E93: 95.85 | F93: 0.7
A94: 2003-06-15 | B94: 97.9 | C94: 30 | D94: 0 | E94: 95.85 | F94: 0
A95: 2003-07-15 | B95: 97.9 | C95: 31 | D95: 0 | E95: 95.7 | F95: -0.15
A96: 2003-08-15 | B96: 97.9 | C96: 31 | D96: 0 | E96: 95.78 | F96: 0.08
A97: 2003-09-15 | B97: 97.9 | C97: 30 | D97: 0 | E97: 96.01 | F97: 0.23
A98: 2003-10-15 | B98: 97.9 | C98: 31 | D98: 0 | E98: 96.24 | F98: 0.23
A99: 2003-11-15 | B99: 97.9 | C99: 30 | D99: 0 | E99: 96.32 | F99: 0.08
A100: 2003-12-15 | B100: 97.9 | C100: 31 | D100: 0 | E100: 96.4 | F100: 0.08
A101: 2004-01-15 | B101: 97.9 | C101: 31 | D101: 0 | E101: 96.4 | F101: 0
A102: 2004-02-15 | B102: 100 | C102: 29 | D102: 2.1 | E102: 96.24 | F102: -0.16
A103: 2004-03-15 | B103: 100 | C103: 31 | D103: 0 | E103: 96.48 | F103: 0.24
A104: 2004-04-15 | B104: 100 | C104: 30 | D104: 0 | E104: 97.42 | F104: 0.94
A105: 2004-05-15 | B105: 100 | C105: 31 | D105: 0 | E105: 98.2 | F105: 0.78
A106: 2004-06-15 | B106: 100 | C106: 30 | D106: 0 | E106: 99.37 | F106: 1.17
A107: 2004-07-15 | B107: 100 | C107: 31 | D107: 0 | E107: 98.51 | F107: -0.86
A108: 2004-08-15 | B108: 100 | C108: 31 | D108: 0 | E108: 98.12 | F108: -0.39
A109: 2004-09-15 | B109: 100 | C109: 30 | D109: 0 | E109: 98.04 | F109: -0.08
A110: 2004-10-15 | B110: 100 | C110: 31 | D110: 0 | E110: 98.51 | F110: 0.47
A111: 2004-11-15 | B111: 100 | C111: 30 | D111: 0 | E111: 98.82 | F111: 0.31
A112: 2004-12-15 | B112: 100 | C112: 31 | D112: 0 | E112: 98.9 | F112: 0.08
A113: 2005-01-15 | B113: 100 | C113: 31 | D113: 0 | E113: 98.35 | F113: -0.55
A114: 2005-02-15 | B114: 100 | C114: 28 | D114: 0 | E114: 98.27 | F114: -0.08
A115: 2005-03-15 | B115: 100 | C115: 31 | D115: 0 | E115: 98.67 | F115: 0.4
A116: 2005-04-15 | B116: 100 | C116: 30 | D116: 0 | E116: 99.37 | F116: 0.7
A117: 2005-05-15 | B117: 100 | C117: 31 | D117: 0 | E117: 99.92 | F117: 0.55
A118: 2005-06-15 | B118: 100 | C118: 30 | D118: 0 | E118: 99.99 | F118: 0.07
A119: 2005-07-15 | B119: 100 | C119: 31 | D119: 0 | E119: 100.38 | F119: 0.39
A120: 2005-08-15 | B120: 100 | C120: 31 | D120: 0 | E120: 100.54 | F120: 0.16
A121: 2005-09-15 | B121: 100 | C121: 30 | D121: 0 | E121: 100.7 | F121: 0.16
A122: 2005-10-15 | B122: 100 | C122: 31 | D122: 0 | E122: 101.09 | F122: 0.39
A123: 2005-11-15 | B123: 100 | C123: 30 | D123: 0 | E123: 101.32 | F123: 0.23
A124: 2005-12-15 | B124: 100 | C124: 31 | D124: 0 | E124: 101.4 | F124: 0.08
A125: 2006-01-15 | B125: 100 | C125: 31 | D125: 0 | E125: 101.01 | F125: -0.39
A126: 2006-02-15 | B126: 100 | C126: 28 | D126: 0 | E126: 101.21 | F126: 0.2
A127: 2006-03-15 | B127: 100 | C127: 31 | D127: 0 | E127: 102.42 | F127: 1.21
A128: 2006-04-15 | B128: 100 | C128: 30 | D128: 0 | E128: 103.01 | F128: 0.59
A129: 2006-05-15 | B129: 100 | C129: 31 | D129: 0 | E129: 103.57 | F129: 0.56
A130: 2006-06-15 | B130: 100 | C130: 30 | D130: 0 | E130: 103.52 | F130: -0.05
A131: 2006-07-15 | B131: 100 | C131: 31 | D131: 0 | E131: 103.38 | F131: -0.14
A132: 2006-08-15 | B132: 100 | C132: 31 | D132: 0 | E132: 103.29 | F132: -0.09
A133: 2006-09-15 | B133: 100 | C133: =+A134-A133 -> 30 | D133: 0 | E133: 103.71 | F133: 0.42
A134: 2006-10-15 | B134: 100 | C134: 31 | D134: =+B134-B133 -> 0 | E134: 103.73 | F134: 0.02
A135: 2006-11-15 | B135: 100 | C135: 30 | D135: 0 | E135: 103.74 | F135: =+E135-E134 -> 0.01
A136: 2006-12-15 | B136: 100 | C136: 31 | D136: 0 | E136: 103.93 | F136: 0.19
A137: 2007-01-15 | B137: 100 | C137: 31 | D137: 0 | E137: 103.62 | F137: -0.31
A138: 2007-02-15 | B138: 100 | C138: 28 | D138: 0 | E138: 103.58 | F138: -0.04
A139: 2007-03-15 | B139: 100 | C139: 31 | D139: 0 | E139: 104.88 | F139: 1.3
A140: 2007-04-15 | B140: 100 | C140: 30 | D140: 0 | E140: 105.85 | F140: 0.97
A141: 2007-05-15 | B141: 100 | C141: 31 | D141: 0 | E141: 106.04 | F141: 0.19
A142: 2007-06-15 | B142: 100 | C142: 30 | D142: 0 | E142: 106 | F142: -0.04
A143: 2007-07-15 | B143: 100 | C143: 31 | D143: 0 | E143: 105.74 | F143: -0.26
A144: 2007-08-15 | B144: 100 | C144: 31 | D144: 0 | E144: 105.3 | F144: -0.44
A145: 2007-09-15 | B145: 100 | C145: 30 | D145: 0 | E145: 105.75 | F145: 0.45
A146: 2007-10-15 | B146: 100 | C146: 31 | D146: 0 | E146: 106.3 | F146: 0.55
A147: 2007-11-15 | B147: 100 | C147: 30 | D147: 0 | E147: 106.65 | F147: 0.35
A148: 2007-12-15 | B148: 100 | C148: 31 | D148: 0 | E148: 106.77 | F148: 0.12
A149: 2008-01-15 | B149: 100 | C149: 31 | D149: 0 | E149: 106.62 | F149: -0.15
A150: 2008-02-15 | B150: 100 | C150: 29 | D150: 0 | E150: 106.63 | F150: 0.01
A151: 2008-03-15 | B151: 100 | C151: 31 | D151: 0 | E151: 108.18 | F151: 1.55
A152: 2008-04-15 | B152: 100 | C152: 30 | D152: 0 | E152: 108.53 | F152: 0.35
A153: 2008-05-15 | B153: 100 | C153: 31 | D153: 0 | E153: 109.04 | F153: 0.51
A154: 2008-06-15 | B154: 100 | C154: 30 | D154: 0 | E154: 109.6 | F154: 0.56
A155: 2008-07-15 | B155: 100 | C155: 31 | D155: 0 | E155: 109.04 | F155: -0.56
A156: 2008-08-15 | B156: 103.86 | C156: 31 | D156: 3.86 | E156: 108.56 | F156: -0.48
A157: 2008-09-15 | B157: 103.86 | C157: 30 | D157: 0 | E157: 109.11 | F157: 0.55
A158: 2008-10-15 | B158: 103.86 | C158: 31 | D158: 0 | E158: 108.91 | F158: -0.2
A159: 2008-11-15 | B159: 103.86 | C159: 30 | D159: 0 | E159: 108.17 | F159: -0.74
A160: 2008-12-15 | B160: 103.86 | C160: 31 | D160: 0 | E160: 107.67 | F160: -0.5
A161: 2009-01-15 | B161: 103.88 | C161: 31 | D161: 0.02 | E161: 106.74 | F161: -0.93
A162: 2009-02-15 | B162: 105.6 | C162: 28 | D162: 1.72 | E162: 106.7 | F162: -0.04
A163: 2009-03-15 | B163: 105.6 | C163: 31 | D163: 0 | E163: 107.54 | F163: 0.84
A164: 2009-04-15 | B164: 105.6 | C164: 30 | D164: 0 | E164: 107.92 | F164: 0.38
A165: 2009-05-15 | B165: 105.6 | C165: 31 | D165: 0 | E165: 107.68 | F165: -0.24
A166: 2009-06-15 | B166: 105.6 | C166: 30 | D166: 0 | E166: 107.87 | F166: 0.19
A167: 2009-07-15 | B167: 105.6 | C167: 31 | D167: 0 | E167: 107.46 | F167: -0.41
A168: 2009-08-15 | B168: 105.6 | C168: 31 | D168: 0 | E168: 107.24 | F168: -0.22
A169: 2009-09-15 | B169: 105.6 | C169: 30 | D169: 0 | E169: 107.15 | F169: -0.09
A170: 2009-10-15 | B170: 105.6 | C170: 31 | D170: 0 | E170: 107.17 | F170: 0.02
A171: 2009-11-15 | B171: 105.6 | C171: 30 | D171: 0 | E171: 107.33 | F171: 0.16
A172: 2009-12-15 | B172: 105.6 | C172: 31 | D172: 0 | E172: 107.52 | F172: 0.19
A173: 2010-01-15 | B173: 105.6 | C173: 31 | D173: 0 | E173: 106.84 | F173: -0.68
A174: 2010-02-15 | B174: 105.6 | C174: 28 | D174: 0 | E174: 106.89 | F174: 0.05
A175: 2010-03-15 | B175: 105.6 | C175: 31 | D175: 0 | E175: 108.2 | F175: 1.31
A176: 2010-04-15 | B176: 105.6 | C176: 30 | D176: 0 | E176: 108.66 | F176: 0.46
A177: 2010-05-15 | B177: 105.6 | C177: 31 | D177: 0 | E177: 108.86 | F177: 0.2
A178: 2010-06-15 | B178: 105.6 | C178: 30 | D178: 0 | E178: 109.09 | F178: 0.23
A179: 2010-07-15 | B179: 105.6 | C179: 31 | D179: 0 | E179: 109.51 | F179: 0.42
A180: 2010-08-15 | B180: 105.6 | C180: 31 | D180: 0 | E180: 109.37 | F180: -0.14
A181: 2010-09-15 | B181: 105.6 | C181: 30 | D181: 0 | E181: 109.27 | F181: -0.1
A182: 2010-10-15 | B182: 105.6 | C182: 31 | D182: 0 | E182: 109.65 | F182: 0.38
A183: 2010-11-15 | B183: 105.6 | C183: 30 | D183: 0 | E183: 109.73 | F183: 0.08
A184: 2010-12-15 | B184: 105.6 | C184: 31 | D184: 0 | E184: 110.15 | F184: 0.42
A185: 2011-01-15 | B185: 105.6 | C185: 31 | D185: 0 | E185: 110.68 | F185: 0.53
A186: 2011-02-15 | B186: 105.6 | C186: 28 | D186: 0 | E186: 110.62 | F186: -0.06
A187: 2011-03-15 | B187: 105.6 | C187: 31 | D187: 0 | E187: 112.41 | F187: 1.79
A188: 2011-04-15 | B188: 105.6 | C188: 30 | D188: 0 | E188: 113.03 | F188: 0.62
A189: 2011-05-15 | B189: 105.6 | C189: 31 | D189: 0 | E189: 112.92 | F189: -0.11
A190: 2011-06-15 | B190: 105.6 | C190: 30 | D190: 0 | E190: 112.71 | F190: -0.21
A191: 2011-07-15 | B191: 105.6 | C191: 31 | D191: 0 | E191: 112.85 | F191: 0.14
A192: 2011-08-15 | B192: 105.6 | C192: 31 | D192: 0 | E192: 112.38 | F192: -0.47
A193: 2011-09-15 | B193: 105.6 | C193: 30 | D193: 0 | E193: 113.06 | F193: 0.68
A194: 2011-10-15 | B194: 105.6 | C194: 31 | D194: 0 | E194: 114.09 | F194: 1.03
A195: 2011-11-15 | B195: 105.6 | C195: 30 | D195: 0 | E195: 113.93 | F195: -0.16
A196: 2011-12-15 | B196: 105.6 | C196: 31 | D196: 0 | E196: 114 | F196: 0.07
A197: 2012-01-15 | B197: 105.6 | C197: =+A198-A197 -> 31 | D197: 0 | E197: 114.39 | F197: 0.39
A198: 2012-02-15 | B198: 105.6 | C198: 29 | D198: =+B198-B197 -> 0 | E198: 114.55 | F198: 0.16
A199: 2012-03-15 | B199: 105.6 | C199: 31 | D199: 0 | E199: 115.94 | F199: =+E199-E198 -> 1.39
A200: 2012-04-15 | B200: 105.6 | C200: 30 | D200: 0 | E200: 116.33 | F200: 0.39
... 41 more rows

Sheet 11.9
H5: NIGHTS SPENT AT TOURIST ACCOMMODATION ESTABLISHMENTS IN ITALY
H18: Source: Eurostat
H19: Note: Nights spent in hotels; holiday and other short-stay accommodation; campgrounds, recreational vehicle parks, and trailer parks.
D25: Nights spent at tourist accommodation establishments - monthly data [tour_occ_nim] | M25: Get the data: | O25: http://goo.gl/AfsjU7
D27: Last update | E27: 2016-04-12T14:20:40
D28: Extracted on | E28: 2016-04-14T14:11:04.443
D29: Source of data | E29: Eurostat
D31: UNIT | E31: Number
D32: NACE_R2 | E32: Hotels; holiday and other short-stay accommodation; camping grounds, recreational vehicle parks and trailer parks
D34: INDIC_TO | E34: Total nights spent by residents | F34: Total nights spent by residents | G34: Total nights spent by residents | H34: Total nights spent by residents | I34: Total nights spent by residents | J34: Total nights spent by residents | K34: Total nights spent by residents | L34: Total nights spent by residents | M34: Total nights spent by residents | N34: Total nights spent by residents | O34: Total nights spent by residents | P34: Total nights spent by residents | Q34: Total nights spent by residents | R34: Total nights spent by residents | S34: Total nights spent by residents | T34: Total nights spent by residents | U34: Total nights spent by residents | V34: Total nights spent by residents | W34: Total nights spent by residents | X34: Total nights spent by residents | Y34: Total nights spent by residents | Z34: Total nights spent by residents | AA34: Total nights spent by residents | AB34: Total nights spent by residents | AC34: Total nights spent by residents | AD34: Total nights spent by residents | AE34: Total nights spent by residents | AF34: Total nights spent by residents | AG34: Total nights spent by residents | AH34: Total nights spent by residents | AI34: Total nights spent by residents | AJ34: Total nights spent by residents | AK34: Total nights spent by residents | AL34: Total nights spent by residents | AM34: Total nights spent by residents | AN34: Total nights spent by residents | AO34: Total nights spent by residents | AP34: Total nights spent by residents | AQ34: Total nights spent by non-residents | AR34: Total nights spent by non-residents | AS34: Total nights spent by non-residents | AT34: Total nights spent by non-residents | AU34: Total nights spent by non-residents | AV34: Total nights spent by non-residents | AW34: Total nights spent by non-residents | AX34: Total nights spent by non-residents | AY34: Total nights spent by non-residents | AZ34: Total nights spent by non-residents | BA34: Total nights spent by non-residents | BB34: Total nights spent by non-residents | BC34: Total nights spent by non-residents | BD34: Total nights spent by non-residents | BE34: Total nights spent by non-residents | BF34: Total nights spent by non-residents | BG34: Total nights spent by non-residents | BH34: Total nights spent by non-residents | BI34: Total nights spent by non-residents | BJ34: Total nights spent by non-residents | BK34: Total nights spent by non-residents | BL34: Total nights spent by non-residents | BM34: Total nights spent by non-residents | BN34: Total nights spent by non-residents | BO34: Total nights spent by non-residents | BP34: Total nights spent by non-residents | BQ34: Total nights spent by non-residents | BR34: Total nights spent by non-residents | BS34: Total nights spent by non-residents | BT34: Total nights spent by non-residents | BU34: Total nights spent by non-residents | BV34: Total nights spent by non-residents | BW34: Total nights spent by non-residents | BX34: Total nights spent by non-residents | BY34: Total nights spent by non-residents | BZ34: Total nights spent by non-residents | CA34: Total nights spent by non-residents | CB34: Total nights spent by non-residents | CC34: Nights spent, total | CD34: Nights spent, total | CE34: Nights spent, total | CF34: Nights spent, total | CG34: Nights spent, total | CH34: Nights spent, total | CI34: Nights spent, total | CJ34: Nights spent, total | CK34: Nights spent, total | CL34: Nights spent, total | CM34: Nights spent, total | CN34: Nights spent, total | CO34: Nights spent, total | CP34: Nights spent, total | CQ34: Nights spent, total | CR34: Nights spent, total | CS34: Nights spent, total | CT34: Nights spent, total | CU34: Nights spent, total | CV34: Nights spent, total | CW34: Nights spent, total | CX34: Nights spent, total | CY34: Nights spent, total | CZ34: Nights spent, total | DA34: Nights spent, total | DB34: Nights spent, total | DC34: Nights spent, total | DD34: Nights spent, total | DE34: Nights spent, total | DF34: Nights spent, total | DG34: Nights spent, total | DH34: Nights spent, total | DI34: Nights spent, total | DJ34: Nights spent, total | DK34: Nights spent, total | DL34: Nights spent, total | DM34: Nights spent, total | DN34: Nights spent, total
D35: TIME/GEO | E35: European Union (28 countries) | F35: European Union (27 countries) | G35: Belgium | H35: Bulgaria | I35: Czech Republic | J35: Denmark | K35: Germany (until 1990 former territory of the FRG) | L35: Estonia | M35: Ireland | N35: Greece | O35: Spain | P35: France | Q35: Croatia | R35: Italy | S35: Cyprus | T35: Latvia | U35: Lithuania | V35: Luxembourg | W35: Hungary | X35: Malta | Y35: Netherlands | Z35: Austria | AA35: Poland | AB35: Portugal | AC35: Romania | AD35: Slovenia | AE35: Slovakia | AF35: Finland | AG35: Sweden | AH35: United Kingdom | AI35: Iceland | AJ35: Liechtenstein | AK35: Norway | AL35: Switzerland | AM35: Montenegro | AN35: Former Yugoslav Republic of Macedonia, the | AO35: Serbia | AP35: Turkey | AQ35: European Union (28 countries) | AR35: European Union (27 countries) | AS35: Belgium | AT35: Bulgaria | AU35: Czech Republic | AV35: Denmark | AW35: Germany (until 1990 former territory of the FRG) | AX35: Estonia | AY35: Ireland | AZ35: Greece | BA35: Spain | BB35: France | BC35: Croatia | BD35: Italy | BE35: Cyprus | BF35: Latvia | BG35: Lithuania | BH35: Luxembourg | BI35: Hungary | BJ35: Malta | BK35: Netherlands | BL35: Austria | BM35: Poland | BN35: Portugal | BO35: Romania | BP35: Slovenia | BQ35: Slovakia | BR35: Finland | BS35: Sweden | BT35: United Kingdom | BU35: Iceland | BV35: Liechtenstein | BW35: Norway | BX35: Switzerland | BY35: Montenegro | BZ35: Former Yugoslav Republic of Macedonia, the | CA35: Serbia | CB35: Turkey | CC35: European Union (28 countries) | CD35: European Union (27 countries) | CE35: Belgium | CF35: Bulgaria | CG35: Czech Republic | CH35: Denmark | CI35: Germany (until 1990 former territory of the FRG) | CJ35: Estonia | CK35: Ireland | CL35: Greece | CM35: Spain | CN35: France | CO35: Croatia | CP35: Italy | CQ35: Cyprus | CR35: Latvia | CS35: Lithuania | CT35: Luxembourg | CU35: Hungary | CV35: Malta | CW35: Netherlands | CX35: Austria | CY35: Poland | CZ35: Portugal | DA35: Romania | DB35: Slovenia | DC35: Slovakia | DD35: Finland | DE35: Sweden | DF35: United Kingdom | DG35: Iceland | DH35: Liechtenstein | DI35: Norway | DJ35: Switzerland | DK35: Montenegro | DL35: Former Yugoslav Republic of Macedonia, the | DM35: Serbia | DN35: Turkey
A36: =IF(B36="01",LEFT(D36,4),"") -> 1990 | B36: =IF(OR(RIGHT(D36,2)="01",RIGHT(D36,2)="07"),RIGHT(D36,2),"") -> 01 | C36: 1 | D36: 1990M01 | E36: =NA() ->  | F36: =NA() ->  | G36: 326667 | H36: =NA() ->  | I36: =NA() ->  | J36: =NA() ->  | K36: 8702421 | L36: =NA() ->  | M36: =NA() ->  | N36: =NA() ->  | O36: 3203703 | P36: =NA() ->  | Q36: =NA() ->  | R36: 6818355 | S36: =NA() ->  | T36: =NA() ->  | U36: =NA() ->  | V36: 10232 | W36: =NA() ->  | X36: =NA() ->  | Y36: 1108300 | Z36: 1511812 | AA36: =NA() ->  | AB36: 450679 | AC36: =NA() ->  | AD36: =NA() ->  | AE36: =NA() ->  | AF36: 526849 | AG36: 1091641 | AH36: 12542000 | AI36: =NA() ->  | AJ36: 675 | AK36: =NA() ->  | AL36: 2942800 | AM36: =NA() ->  | AN36: =NA() ->  | AO36: =NA() ->  | AP36: =NA() ->  | AQ36: =NA() ->  | AR36: =NA() ->  | AS36: 519465 | AT36: =NA() ->  | AU36: =NA() ->  | AV36: =NA() ->  | AW36: 1688489 | AX36: =NA() ->  | AY36: =NA() ->  | AZ36: =NA() ->  | BA36: 3476938 | BB36: =NA() ->  | BC36: =NA() ->  | BD36: 2280828 | BE36: 331595 | BF36: =NA() ->  | BG36: =NA() ->  | BH36: 42909 | BI36: =NA() ->  | BJ36: =NA() ->  | BK36: 480500 | BL36: 6005367 | BM36: =NA() ->  | BN36: 723083 | BO36: =NA() ->  | BP36: =NA() ->  | BQ36: =NA() ->  | BR36: 130517 | BS36: 182963 | BT36: =NA() ->  | BU36: =NA() ->  | BV36: 12762 | BW36: =NA() ->  | BX36: 3035657 | BY36: =NA() ->  | BZ36: =NA() ->  | CA36: =NA() ->  | CB36: =NA() ->  | CC36: =NA() ->  | CD36: =NA() ->  | CE36: 846132 | CF36: =NA() ->  | CG36: =NA() ->  | CH36: =NA() ->  | CI36: 10390910 | CJ36: =NA() ->  | CK36: =NA() ->  | CL36: =NA() ->  | CM36: 6680641 | CN36: =NA() ->  | CO36: =NA() ->  | CP36: 9099183 | CQ36: =NA() ->  | CR36: =NA() ->  | CS36: =NA() ->  | CT36: 53141 | CU36: =NA() ->  | CV36: =NA() ->  | CW36: 1588800 | CX36: 7517179 | CY36: =NA() ->  | CZ36: 1173762 | DA36: =NA() ->  | DB36: =NA() ->  | DC36: =NA() ->  | DD36: 657366 | DE36: 1274604 | DF36: =NA() ->  | DG36: =NA() ->  | DH36: 13437 | DI36: =NA() ->  | DJ36: 5978457 | DK36: =NA() ->  | DL36: =NA() ->  | DM36: =NA() ->  | DN36: =NA() -> 
A37: =IF(B37="01",LEFT(D37,4),"") ->  | B37: =IF(OR(RIGHT(D37,2)="01",RIGHT(D37,2)="07"),RIGHT(D37,2),"") ->  | C37: 2 | D37: 1990M02 | E37: =NA() ->  | F37: =NA() ->  | G37: 426391 | H37: =NA() ->  | I37: =NA() ->  | J37: =NA() ->  | K37: 9339742 | L37: =NA() ->  | M37: =NA() ->  | N37: =NA() ->  | O37: 3468860 | P37: =NA() ->  | Q37: =NA() ->  | R37: 7096629 | S37: =NA() ->  | T37: =NA() ->  | U37: =NA() ->  | V37: 11945 | W37: =NA() ->  | X37: =NA() ->  | Y37: 1249900 | Z37: 2034830 | AA37: =NA() ->  | AB37: 538348 | AC37: =NA() ->  | AD37: =NA() ->  | AE37: =NA() ->  | AF37: 665500 | AG37: 1364810 | AH37: 11980000 | AI37: =NA() ->  | AJ37: 1446 | AK37: =NA() ->  | AL37: 4979495 | AM37: =NA() ->  | AN37: =NA() ->  | AO37: =NA() ->  | AP37: =NA() ->  | AQ37: =NA() ->  | AR37: =NA() ->  | AS37: 556941 | AT37: =NA() ->  | AU37: =NA() ->  | AV37: =NA() ->  | AW37: 2220433 | AX37: =NA() ->  | AY37: =NA() ->  | AZ37: =NA() ->  | BA37: 3532837 | BB37: =NA() ->  | BC37: =NA() ->  | BD37: 3051474 | BE37: 395289 | BF37: =NA() ->  | BG37: =NA() ->  | BH37: 57279 | BI37: =NA() ->  | BJ37: =NA() ->  | BK37: 497400 | BL37: 6972301 | BM37: =NA() ->  | BN37: 828888 | BO37: =NA() ->  | BP37: =NA() ->  | BQ37: =NA() ->  | BR37: 126127 | BS37: 231459 | BT37: =NA() ->  | BU37: =NA() ->  | BV37: 16391 | BW37: =NA() ->  | BX37: 2728017 | BY37: =NA() ->  | BZ37: =NA() ->  | CA37: =NA() ->  | CB37: =NA() ->  | CC37: =NA() ->  | CD37: =NA() ->  | CE37: 983332 | CF37: =NA() ->  | CG37: =NA() ->  | CH37: =NA() ->  | CI37: 11560175 | CJ37: =NA() ->  | CK37: =NA() ->  | CL37: =NA() ->  | CM37: 7001697 | CN37: =NA() ->  | CO37: =NA() ->  | CP37: 10148103 | CQ37: =NA() ->  | CR37: =NA() ->  | CS37: =NA() ->  | CT37: 69224 | CU37: =NA() ->  | CV37: =NA() ->  | CW37: 1747300 | CX37: 9007131 | CY37: =NA() ->  | CZ37: 1367236 | DA37: =NA() ->  | DB37: =NA() ->  | DC37: =NA() ->  | DD37: 791627 | DE37: 1596269 | DF37: =NA() ->  | DG37: =NA() ->  | DH37: 17837 | DI37: =NA() ->  | DJ37: 7707512 | DK37: =NA() ->  | DL37: =NA() ->  | DM37: =NA() ->  | DN37: =NA() -> 
C38: 3 | D38: 1990M03 | E38: =NA() ->  | F38: =NA() ->  | G38: 682037 | H38: =NA() ->  | I38: =NA() ->  | J38: 525600 | K38: 11215661 | L38: =NA() ->  | M38: =NA() ->  | N38: =NA() ->  | O38: 4376809 | P38: =NA() ->  | Q38: =NA() ->  | R38: 8356309 | S38: =NA() ->  | T38: =NA() ->  | U38: =NA() ->  | V38: 15692 | W38: =NA() ->  | X38: =NA() ->  | Y38: 1403400 | Z38: 2074127 | AA38: =NA() ->  | AB38: 637925 | AC38: =NA() ->  | AD38: =NA() ->  | AE38: =NA() ->  | AF38: 804650 | AG38: 1643850 | AH38: 19561000 | AI38: =NA() ->  | AJ38: 880 | AK38: =NA() ->  | AL38: 4203363 | AM38: =NA() ->  | AN38: =NA() ->  | AO38: =NA() ->  | AP38: =NA() ->  | AQ38: =NA() ->  | AR38: =NA() ->  | AS38: 680031 | AT38: =NA() ->  | AU38: =NA() ->  | AV38: 234500 | AW38: 2319263 | AX38: =NA() ->  | AY38: =NA() ->  | AZ38: =NA() ->  | BA38: 4150458 | BB38: =NA() ->  | BC38: =NA() ->  | BD38: 3972538 | BE38: 663155 | BF38: =NA() ->  | BG38: =NA() ->  | BH38: 72352 | BI38: =NA() ->  | BJ38: =NA() ->  | BK38: 683900 | BL38: 6324098 | BM38: =NA() ->  | BN38: 1205992 | BO38: =NA() ->  | BP38: =NA() ->  | BQ38: =NA() ->  | BR38: 156865 | BS38: 244479 | BT38: =NA() ->  | BU38: =NA() ->  | BV38: 17532 | BW38: =NA() ->  | BX38: 4011165 | BY38: =NA() ->  | BZ38: =NA() ->  | CA38: =NA() ->  | CB38: =NA() ->  | CC38: =NA() ->  | CD38: =NA() ->  | CE38: 1362068 | CF38: =NA() ->  | CG38: =NA() ->  | CH38: 760100 | CI38: 13534924 | CJ38: =NA() ->  | CK38: =NA() ->  | CL38: =NA() ->  | CM38: 8527267 | CN38: =NA() ->  | CO38: =NA() ->  | CP38: 12328847 | CQ38: =NA() ->  | CR38: =NA() ->  | CS38: =NA() ->  | CT38: 88044 | CU38: =NA() ->  | CV38: =NA() ->  | CW38: 2087300 | CX38: 8398225 | CY38: =NA() ->  | CZ38: 1843917 | DA38: =NA() ->  | DB38: =NA() ->  | DC38: =NA() ->  | DD38: 961515 | DE38: 1888329 | DF38: =NA() ->  | DG38: =NA() ->  | DH38: 18412 | DI38: =NA() ->  | DJ38: 8214528 | DK38: =NA() ->  | DL38: =NA() ->  | DM38: =NA() ->  | DN38: =NA() -> 
C39: 4 | D39: 1990M04 | E39: =NA() ->  | F39: =NA() ->  | G39: 2166721 | H39: =NA() ->  | I39: =NA() ->  | J39: 830100 | K39: 14310764 | L39: =NA() ->  | M39: =NA() ->  | N39: =NA() ->  | O39: 5911525 | P39: =NA() ->  | Q39: =NA() ->  | R39: 9240383 | S39: =NA() ->  | T39: =NA() ->  | U39: =NA() ->  | V39: 22940 | W39: =NA() ->  | X39: =NA() ->  | Y39: 2321000 | Z39: 1466807 | AA39: =NA() ->  | AB39: 824990 | AC39: =NA() ->  | AD39: =NA() ->  | AE39: =NA() ->  | AF39: 729449 | AG39: 1398331 | AH39: 10982000 | AI39: =NA() ->  | AJ39: 589 | AK39: =NA() ->  | AL39: 2263207 | AM39: =NA() ->  | AN39: =NA() ->  | AO39: =NA() ->  | AP39: =NA() ->  | AQ39: =NA() ->  | AR39: =NA() ->  | AS39: 984274 | AT39: =NA() ->  | AU39: =NA() ->  | AV39: 454900 | AW39: 2781341 | AX39: =NA() ->  | AY39: 630000 | AZ39: =NA() ->  | BA39: 5261825 | BB39: =NA() ->  | BC39: =NA() ->  | BD39: 6321476 | BE39: 985133 | BF39: =NA() ->  | BG39: =NA() ->  | BH39: 150360 | BI39: =NA() ->  | BJ39: =NA() ->  | BK39: 1700100 | BL39: 3906249 | BM39: =NA() ->  | BN39: 1495049 | BO39: =NA() ->  | BP39: =NA() ->  | BQ39: =NA() ->  | BR39: 151776 | BS39: 227761 | BT39: =NA() ->  | BU39: =NA() ->  | BV39: 13775 | BW39: =NA() ->  | BX39: 3298946 | BY39: =NA() ->  | BZ39: =NA() ->  | CA39: =NA() ->  | CB39: =NA() ->  | CC39: =NA() ->  | CD39: =NA() ->  | CE39: 3150995 | CF39: =NA() ->  | CG39: =NA() ->  | CH39: 1285000 | CI39: 17092105 | CJ39: =NA() ->  | CK39: =NA() ->  | CL39: =NA() ->  | CM39: 11173350 | CN39: =NA() ->  | CO39: =NA() ->  | CP39: 15561859 | CQ39: =NA() ->  | CR39: =NA() ->  | CS39: =NA() ->  | CT39: 173300 | CU39: =NA() ->  | CV39: =NA() ->  | CW39: 4021100 | CX39: 5373056 | CY39: =NA() ->  | CZ39: 2320039 | DA39: =NA() ->  | DB39: =NA() ->  | DC39: =NA() ->  | DD39: 881225 | DE39: 1626092 | DF39: =NA() ->  | DG39: =NA() ->  | DH39: 14364 | DI39: =NA() ->  | DJ39: 5562153 | DK39: =NA() ->  | DL39: =NA() ->  | DM39: =NA() ->  | DN39: =NA() -> 
C40: 5 | D40: 1990M05 | E40: =NA() ->  | F40: =NA() ->  | G40: 1962595 | H40: =NA() ->  | I40: =NA() ->  | J40: 1291400 | K40: 18593030 | L40: =NA() ->  | M40: =NA() ->  | N40: =NA() ->  | O40: 4782915 | P40: =NA() ->  | Q40: =NA() ->  | R40: 8561183 | S40: =NA() ->  | T40: =NA() ->  | U40: =NA() ->  | V40: 34600 | W40: =NA() ->  | X40: =NA() ->  | Y40: 3796100 | Z40: 1694836 | AA40: =NA() ->  | AB40: 782161 | AC40: =NA() ->  | AD40: =NA() ->  | AE40: =NA() ->  | AF40: 652203 | AG40: 1432547 | AH40: 38219000 | AI40: =NA() ->  | AJ40: 487 | AK40: =NA() ->  | AL40: 2081768 | AM40: =NA() ->  | AN40: =NA() ->  | AO40: =NA() ->  | AP40: =NA() ->  | AQ40: =NA() ->  | AR40: =NA() ->  | AS40: 1185420 | AT40: =NA() ->  | AU40: =NA() ->  | AV40: 656000 | AW40: 3572456 | AX40: =NA() ->  | AY40: 810000 | AZ40: =NA() ->  | BA40: 6954375 | BB40: =NA() ->  | BC40: =NA() ->  | BD40: 7504848 | BE40: 1105313 | BF40: =NA() ->  | BG40: =NA() ->  | BH40: 198612 | BI40: =NA() ->  | BJ40: =NA() ->  | BK40: 1617100 | BL40: 3321295 | BM40: =NA() ->  | BN40: 1612329 | BO40: =NA() ->  | BP40: =NA() ->  | BQ40: =NA() ->  | BR40: 201625 | BS40: 309177 | BT40: =NA() ->  | BU40: =NA() ->  | BV40: 12839 | BW40: =NA() ->  | BX40: 1919644 | BY40: =NA() ->  | BZ40: =NA() ->  | CA40: =NA() ->  | CB40: =NA() ->  | CC40: =NA() ->  | CD40: =NA() ->  | CE40: 3148015 | CF40: =NA() ->  | CG40: =NA() ->  | CH40: 1947400 | CI40: 22165486 | CJ40: =NA() ->  | CK40: =NA() ->  | CL40: =NA() ->  | CM40: 11737290 | CN40: =NA() ->  | CO40: =NA() ->  | CP40: 16066031 | CQ40: =NA() ->  | CR40: =NA() ->  | CS40: =NA() ->  | CT40: 233212 | CU40: =NA() ->  | CV40: =NA() ->  | CW40: 5413200 | CX40: 5016131 | CY40: =NA() ->  | CZ40: 2394490 | DA40: =NA() ->  | DB40: =NA() ->  | DC40: =NA() ->  | DD40: 853828 | DE40: 1741724 | DF40: =NA() ->  | DG40: =NA() ->  | DH40: 13326 | DI40: =NA() ->  | DJ40: 4001412 | DK40: =NA() ->  | DL40: =NA() ->  | DM40: =NA() ->  | DN40: =NA() -> 
C41: 6 | D41: 1990M06 | E41: =NA() ->  | F41: =NA() ->  | G41: 2299484 | H41: =NA() ->  | I41: =NA() ->  | J41: 1733500 | K41: 21097006 | L41: =NA() ->  | M41: =NA() ->  | N41: =NA() ->  | O41: 5528358 | P41: =NA() ->  | Q41: =NA() ->  | R41: 14945766 | S41: =NA() ->  | T41: =NA() ->  | U41: =NA() ->  | V41: 39635 | W41: =NA() ->  | X41: =NA() ->  | Y41: 4380200 | Z41: 2107858 | AA41: =NA() ->  | AB41: 1193102 | AC41: =NA() ->  | AD41: =NA() ->  | AE41: =NA() ->  | AF41: 1357013 | AG41: 1487822 | AH41: 40289000 | AI41: =NA() ->  | AJ41: 613 | AK41: =NA() ->  | AL41: 2807799 | AM41: =NA() ->  | AN41: =NA() ->  | AO41: =NA() ->  | AP41: =NA() ->  | AQ41: =NA() ->  | AR41: =NA() ->  | AS41: 1291388 | AT41: =NA() ->  | AU41: =NA() ->  | AV41: 1161900 | AW41: 4146322 | AX41: =NA() ->  | AY41: 1080000 | AZ41: =NA() ->  | BA41: 7812400 | BB41: =NA() ->  | BC41: =NA() ->  | BD41: 10901305 | BE41: 1196844 | BF41: =NA() ->  | BG41: =NA() ->  | BH41: 231914 | BI41: =NA() ->  | BJ41: =NA() ->  | BK41: 2064200 | BL41: 6035626 | BM41: =NA() ->  | BN41: 1813041 | BO41: =NA() ->  | BP41: =NA() ->  | BQ41: =NA() ->  | BR41: 389150 | BS41: 531690 | BT41: =NA() ->  | BU41: =NA() ->  | BV41: 15279 | BW41: =NA() ->  | BX41: 2897831 | BY41: =NA() ->  | BZ41: =NA() ->  | CA41: =NA() ->  | CB41: =NA() ->  | CC41: =NA() ->  | CD41: =NA() ->  | CE41: 3590872 | CF41: =NA() ->  | CG41: =NA() ->  | CH41: 2895400 | CI41: 25243328 | CJ41: =NA() ->  | CK41: =NA() ->  | CL41: =NA() ->  | CM41: 13340758 | CN41: =NA() ->  | CO41: =NA() ->  | CP41: 25847071 | CQ41: =NA() ->  | CR41: =NA() ->  | CS41: =NA() ->  | CT41: 271549 | CU41: =NA() ->  | CV41: =NA() ->  | CW41: 6444400 | CX41: 8143484 | CY41: =NA() ->  | CZ41: 3006143 | DA41: =NA() ->  | DB41: =NA() ->  | DC41: =NA() ->  | DD41: 1746163 | DE41: 2019512 | DF41: =NA() ->  | DG41: =NA() ->  | DH41: 15892 | DI41: =NA() ->  | DJ41: 5705630 | DK41: =NA() ->  | DL41: =NA() ->  | DM41: =NA() ->  | DN41: =NA() -> 
B42: 07 | C42: 7 | D42: 1990M07 | E42: =NA() ->  | F42: =NA() ->  | G42: 6422896 | H42: =NA() ->  | I42: =NA() ->  | J42: 3809900 | K42: 24663539 | L42: =NA() ->  | M42: =NA() ->  | N42: =NA() ->  | O42: 8495846 | P42: =NA() ->  | Q42: =NA() ->  | R42: 29875749 | S42: =NA() ->  | T42: =NA() ->  | U42: =NA() ->  | V42: 42725 | W42: =NA() ->  | X42: =NA() ->  | Y42: 7753100 | Z42: 3190277 | AA42: =NA() ->  | AB42: 2228598 | AC42: =NA() ->  | AD42: =NA() ->  | AE42: =NA() ->  | AF42: 1952667 | AG42: 2008377 | AH42: 66671000 | AI42: =NA() ->  | AJ42: 1864 | AK42: =NA() ->  | AL42: 4770210 | AM42: =NA() ->  | AN42: =NA() ->  | AO42: =NA() ->  | AP42: =NA() ->  | AQ42: =NA() ->  | AR42: =NA() ->  | AS42: 2227092 | AT42: =NA() ->  | AU42: =NA() ->  | AV42: 2643400 | AW42: 6652571 | AX42: =NA() ->  | AY42: 1440000 | AZ42: =NA() ->  | BA42: 10365805 | BB42: =NA() ->  | BC42: =NA() ->  | BD42: 14290338 | BE42: 1301447 | BF42: =NA() ->  | BG42: =NA() ->  | BH42: 695117 | BI42: =NA() ->  | BJ42: =NA() ->  | BK42: 2906100 | BL42: 10741628 | BM42: =NA() ->  | BN42: 2718944 | BO42: =NA() ->  | BP42: =NA() ->  | BQ42: =NA() ->  | BR42: 583049 | BS42: 788051 | BT42: =NA() ->  | BU42: =NA() ->  | BV42: 19229 | BW42: =NA() ->  | BX42: 4712689 | BY42: =NA() ->  | BZ42: =NA() ->  | CA42: =NA() ->  | CB42: =NA() ->  | CC42: =NA() ->  | CD42: =NA() ->  | CE42: 8649988 | CF42: =NA() ->  | CG42: =NA() ->  | CH42: 6453300 | CI42: 31316110 | CJ42: =NA() ->  | CK42: =NA() ->  | CL42: =NA() ->  | CM42: 18861651 | CN42: =NA() ->  | CO42: =NA() ->  | CP42: 44166087 | CQ42: =NA() ->  | CR42: =NA() ->  | CS42: =NA() ->  | CT42: 737842 | CU42: =NA() ->  | CV42: =NA() ->  | CW42: 10659200 | CX42: 13931905 | CY42: =NA() ->  | CZ42: 4947542 | DA42: =NA() ->  | DB42: =NA() ->  | DC42: =NA() ->  | DD42: 2535716 | DE42: 2796428 | DF42: =NA() ->  | DG42: =NA() ->  | DH42: 21093 | DI42: =NA() ->  | DJ42: 9482899 | DK42: =NA() ->  | DL42: =NA() ->  | DM42: =NA() ->  | DN42: =NA() -> 
C43: 8 | D43: 1990M08 | E43: =NA() ->  | F43: =NA() ->  | G43: 5699576 | H43: =NA() ->  | I43: =NA() ->  | J43: 1809100 | K43: 24903774 | L43: =NA() ->  | M43: =NA() ->  | N43: =NA() ->  | O43: 12494785 | P43: =NA() ->  | Q43: =NA() ->  | R43: 45675458 | S43: =NA() ->  | T43: =NA() ->  | U43: =NA() ->  | V43: 36162 | W43: =NA() ->  | X43: =NA() ->  | Y43: 8669600 | Z43: 3484895 | AA43: =NA() ->  | AB43: 3159614 | AC43: =NA() ->  | AD43: =NA() ->  | AE43: =NA() ->  | AF43: 1029493 | AG43: 1637449 | AH43: 91230000 | AI43: =NA() ->  | AJ43: 2203 | AK43: =NA() ->  | AL43: 5132327 | AM43: =NA() ->  | AN43: =NA() ->  | AO43: =NA() ->  | AP43: =NA() ->  | AQ43: =NA() ->  | AR43: =NA() ->  | AS43: 1930955 | AT43: =NA() ->  | AU43: =NA() ->  | AV43: 1916100 | AW43: 6596378 | AX43: =NA() ->  | AY43: 1259000 | AZ43: =NA() ->  | BA43: 11335025 | BB43: =NA() ->  | BC43: =NA() ->  | BD43: 13660297 | BE43: 1335338 | BF43: =NA() ->  | BG43: =NA() ->  | BH43: 531449 | BI43: =NA() ->  | BJ43: =NA() ->  | BK43: 2683100 | BL43: 11776405 | BM43: =NA() ->  | BN43: 3325639 | BO43: =NA() ->  | BP43: =NA() ->  | BQ43: =NA() ->  | BR43: 450594 | BS43: 623303 | BT43: =NA() ->  | BU43: =NA() ->  | BV43: 21836 | BW43: =NA() ->  | BX43: 6127711 | BY43: =NA() ->  | BZ43: =NA() ->  | CA43: =NA() ->  | CB43: =NA() ->  | CC43: =NA() ->  | CD43: =NA() ->  | CE43: 7630531 | CF43: =NA() ->  | CG43: =NA() ->  | CH43: 3725200 | CI43: 31500152 | CJ43: =NA() ->  | CK43: =NA() ->  | CL43: =NA() ->  | CM43: 23829810 | CN43: =NA() ->  | CO43: =NA() ->  | CP43: 59335755 | CQ43: =NA() ->  | CR43: =NA() ->  | CS43: =NA() ->  | CT43: 567611 | CU43: =NA() ->  | CV43: =NA() ->  | CW43: 11352700 | CX43: 15261300 | CY43: =NA() ->  | CZ43: 6485253 | DA43: =NA() ->  | DB43: =NA() ->  | DC43: =NA() ->  | DD43: 1480087 | DE43: 2260752 | DF43: =NA() ->  | DG43: =NA() ->  | DH43: 24039 | DI43: =NA() ->  | DJ43: 11260038 | DK43: =NA() ->  | DL43: =NA() ->  | DM43: =NA() ->  | DN43: =NA() -> 
C44: 9 | D44: 1990M09 | E44: =NA() ->  | F44: =NA() ->  | G44: 1686865 | H44: =NA() ->  | I44: =NA() ->  | J44: 898700 | K44: 21521961 | L44: =NA() ->  | M44: =NA() ->  | N44: =NA() ->  | O44: 6964664 | P44: =NA() ->  | Q44: =NA() ->  | R44: 16290927 | S44: =NA() ->  | T44: =NA() ->  | U44: =NA() ->  | V44: 24762 | W44: =NA() ->  | X44: =NA() ->  | Y44: 3219600 | Z44: 2163059 | AA44: =NA() ->  | AB44: 1583421 | AC44: =NA() ->  | AD44: =NA() ->  | AE44: =NA() ->  | AF44: 740532 | AG44: 1351743 | AH44: 39718000 | AI44: =NA() ->  | AJ44: 704 | AK44: =NA() ->  | AL44: 3783494 | AM44: =NA() ->  | AN44: =NA() ->  | AO44: =NA() ->  | AP44: =NA() ->  | AQ44: =NA() ->  | AR44: =NA() ->  | AS44: 1142074 | AT44: =NA() ->  | AU44: =NA() ->  | AV44: 609700 | AW44: 4555794 | AX44: =NA() ->  | AY44: 630000 | AZ44: =NA() ->  | BA44: 9186707 | BB44: =NA() ->  | BC44: =NA() ->  | BD44: 11435871 | BE44: 1182281 | BF44: =NA() ->  | BG44: =NA() ->  | BH44: 170161 | BI44: =NA() ->  | BJ44: =NA() ->  | BK44: 1404900 | BL44: 6940741 | BM44: =NA() ->  | BN44: 2252501 | BO44: =NA() ->  | BP44: =NA() ->  | BQ44: =NA() ->  | BR44: 207931 | BS44: 345615 | BT44: =NA() ->  | BU44: =NA() ->  | BV44: 16305 | BW44: =NA() ->  | BX44: 3615904 | BY44: =NA() ->  | BZ44: =NA() ->  | CA44: =NA() ->  | CB44: =NA() ->  | CC44: =NA() ->  | CD44: =NA() ->  | CE44: 2828939 | CF44: =NA() ->  | CG44: =NA() ->  | CH44: 1508400 | CI44: 26077755 | CJ44: =NA() ->  | CK44: =NA() ->  | CL44: =NA() ->  | CM44: 16151371 | CN44: =NA() ->  | CO44: =NA() ->  | CP44: 27726798 | CQ44: =NA() ->  | CR44: =NA() ->  | CS44: =NA() ->  | CT44: 194923 | CU44: =NA() ->  | CV44: =NA() ->  | CW44: 4624500 | CX44: 9103800 | CY44: =NA() ->  | CZ44: 3835922 | DA44: =NA() ->  | DB44: =NA() ->  | DC44: =NA() ->  | DD44: 948463 | DE44: 1697358 | DF44: =NA() ->  | DG44: =NA() ->  | DH44: 17009 | DI44: =NA() ->  | DJ44: 7399398 | DK44: =NA() ->  | DL44: =NA() ->  | DM44: =NA() ->  | DN44: =NA() -> 
C45: 10 | D45: 1990M10 | E45: =NA() ->  | F45: =NA() ->  | G45: 871637 | H45: =NA() ->  | I45: =NA() ->  | J45: 663000 | K45: 18593279 | L45: =NA() ->  | M45: =NA() ->  | N45: =NA() ->  | O45: 4830464 | P45: =NA() ->  | Q45: =NA() ->  | R45: 7886607 | S45: =NA() ->  | T45: =NA() ->  | U45: =NA() ->  | V45: 25675 | W45: =NA() ->  | X45: =NA() ->  | Y45: 2469400 | Z45: 1443308 | AA45: =NA() ->  | AB45: 753330 | AC45: =NA() ->  | AD45: =NA() ->  | AE45: =NA() ->  | AF45: 663719 | AG45: 1236462 | AH45: 22792000 | AI45: =NA() ->  | AJ45: 663 | AK45: =NA() ->  | AL45: 3447543 | AM45: =NA() ->  | AN45: =NA() ->  | AO45: =NA() ->  | AP45: =NA() ->  | AQ45: =NA() ->  | AR45: =NA() ->  | AS45: 1043538 | AT45: =NA() ->  | AU45: =NA() ->  | AV45: 399900 | AW45: 3244883 | AX45: =NA() ->  | AY45: =NA() ->  | AZ45: =NA() ->  | BA45: 7220735 | BB45: =NA() ->  | BC45: =NA() ->  | BD45: 6829600 | BE45: 939244 | BF45: =NA() ->  | BG45: =NA() ->  | BH45: 131321 | BI45: =NA() ->  | BJ45: =NA() ->  | BK45: 1171300 | BL45: 3202324 | BM45: =NA() ->  | BN45: 1653163 | BO45: =NA() ->  | BP45: =NA() ->  | BQ45: =NA() ->  | BR45: 167453 | BS45: 232808 | BT45: =NA() ->  | BU45: =NA() ->  | BV45: 13117 | BW45: =NA() ->  | BX45: 1934642 | BY45: =NA() ->  | BZ45: =NA() ->  | CA45: =NA() ->  | CB45: =NA() ->  | CC45: =NA() ->  | CD45: =NA() ->  | CE45: 1915175 | CF45: =NA() ->  | CG45: =NA() ->  | CH45: 1062900 | CI45: 21838162 | CJ45: =NA() ->  | CK45: =NA() ->  | CL45: =NA() ->  | CM45: 12051199 | CN45: =NA() ->  | CO45: =NA() ->  | CP45: 14716207 | CQ45: =NA() ->  | CR45: =NA() ->  | CS45: =NA() ->  | CT45: 156996 | CU45: =NA() ->  | CV45: =NA() ->  | CW45: 3640700 | CX45: 4645632 | CY45: =NA() ->  | CZ45: 2406493 | DA45: =NA() ->  | DB45: =NA() ->  | DC45: =NA() ->  | DD45: 831172 | DE45: 1469270 | DF45: =NA() ->  | DG45: =NA() ->  | DH45: 13780 | DI45: =NA() ->  | DJ45: 5382185 | DK45: =NA() ->  | DL45: =NA() ->  | DM45: =NA() ->  | DN45: =NA() -> 
C46: 11 | D46: 1990M11 | E46: =NA() ->  | F46: =NA() ->  | G46: 701162 | H46: =NA() ->  | I46: =NA() ->  | J46: =NA() ->  | K46: 10125688 | L46: =NA() ->  | M46: =NA() ->  | N46: =NA() ->  | O46: 3469306 | P46: =NA() ->  | Q46: =NA() ->  | R46: 5786795 | S46: =NA() ->  | T46: =NA() ->  | U46: =NA() ->  | V46: 21252 | W46: =NA() ->  | X46: =NA() ->  | Y46: 1479300 | Z46: 991946 | AA46: =NA() ->  | AB46: 538596 | AC46: =NA() ->  | AD46: =NA() ->  | AE46: =NA() ->  | AF46: 653715 | AG46: 1157657 | AH46: 14606000 | AI46: =NA() ->  | AJ46: 299 | AK46: =NA() ->  | AL46: 1183785 | AM46: =NA() ->  | AN46: =NA() ->  | AO46: =NA() ->  | AP46: =NA() ->  | AQ46: =NA() ->  | AR46: =NA() ->  | AS46: 724555 | AT46: =NA() ->  | AU46: =NA() ->  | AV46: =NA() ->  | AW46: 1946270 | AX46: =NA() ->  | AY46: =NA() ->  | AZ46: =NA() ->  | BA46: 3400026 | BB46: =NA() ->  | BC46: =NA() ->  | BD46: 2448196 | BE46: 462548 | BF46: =NA() ->  | BG46: =NA() ->  | BH46: 83539 | BI46: =NA() ->  | BJ46: =NA() ->  | BK46: 644800 | BL46: 1258847 | BM46: =NA() ->  | BN46: 962530 | BO46: =NA() ->  | BP46: =NA() ->  | BQ46: =NA() ->  | BR46: 149564 | BS46: 179862 | BT46: =NA() ->  | BU46: =NA() ->  | BV46: 6437 | BW46: =NA() ->  | BX46: 1027861 | BY46: =NA() ->  | BZ46: =NA() ->  | CA46: =NA() ->  | CB46: =NA() ->  | CC46: =NA() ->  | CD46: =NA() ->  | CE46: 1425717 | CF46: =NA() ->  | CG46: =NA() ->  | CH46: =NA() ->  | CI46: 12071958 | CJ46: =NA() ->  | CK46: =NA() ->  | CL46: =NA() ->  | CM46: 6869332 | CN46: =NA() ->  | CO46: =NA() ->  | CP46: 8234991 | CQ46: =NA() ->  | CR46: =NA() ->  | CS46: =NA() ->  | CT46: 104791 | CU46: =NA() ->  | CV46: =NA() ->  | CW46: 2124100 | CX46: 2250793 | CY46: =NA() ->  | CZ46: 1501126 | DA46: =NA() ->  | DB46: =NA() ->  | DC46: =NA() ->  | DD46: 803279 | DE46: 1337519 | DF46: =NA() ->  | DG46: =NA() ->  | DH46: 6736 | DI46: =NA() ->  | DJ46: 2211646 | DK46: =NA() ->  | DL46: =NA() ->  | DM46: =NA() ->  | DN46: =NA() -> 
C47: 12 | D47: 1990M12 | E47: =NA() ->  | F47: =NA() ->  | G47: 707146 | H47: =NA() ->  | I47: =NA() ->  | J47: =NA() ->  | K47: 9691479 | L47: =NA() ->  | M47: =NA() ->  | N47: =NA() ->  | O47: 3140469 | P47: =NA() ->  | Q47: =NA() ->  | R47: 6961968 | S47: =NA() ->  | T47: =NA() ->  | U47: =NA() ->  | V47: 15658 | W47: =NA() ->  | X47: =NA() ->  | Y47: 1518400 | Z47: 1038391 | AA47: =NA() ->  | AB47: 515708 | AC47: =NA() ->  | AD47: =NA() ->  | AE47: =NA() ->  | AF47: 485184 | AG47: 852198 | AH47: 23412000 | AI47: =NA() ->  | AJ47: 693 | AK47: =NA() ->  | AL47: 1390244 | AM47: =NA() ->  | AN47: =NA() ->  | AO47: =NA() ->  | AP47: =NA() ->  | AQ47: =NA() ->  | AR47: =NA() ->  | AS47: 600516 | AT47: =NA() ->  | AU47: =NA() ->  | AV47: =NA() ->  | AW47: 1782246 | AX47: =NA() ->  | AY47: =NA() ->  | AZ47: =NA() ->  | BA47: 3007901 | BB47: =NA() ->  | BC47: =NA() ->  | BD47: 2023139 | BE47: 289739 | BF47: =NA() ->  | BG47: =NA() ->  | BH47: 65321 | BI47: =NA() ->  | BJ47: =NA() ->  | BK47: 605900 | BL47: 4155226 | BM47: =NA() ->  | BN47: 758227 | BO47: =NA() ->  | BP47: =NA() ->  | BQ47: =NA() ->  | BR47: 115106 | BS47: 141579 | BT47: =NA() ->  | BU47: =NA() ->  | BV47: 10130 | BW47: =NA() ->  | BX47: 1578689 | BY47: =NA() ->  | BZ47: =NA() ->  | CA47: =NA() ->  | CB47: =NA() ->  | CC47: =NA() ->  | CD47: =NA() ->  | CE47: 1307662 | CF47: =NA() ->  | CG47: =NA() ->  | CH47: =NA() ->  | CI47: 11473725 | CJ47: =NA() ->  | CK47: =NA() ->  | CL47: =NA() ->  | CM47: 6148370 | CN47: =NA() ->  | CO47: =NA() ->  | CP47: 8985107 | CQ47: =NA() ->  | CR47: =NA() ->  | CS47: =NA() ->  | CT47: 80979 | CU47: =NA() ->  | CV47: =NA() ->  | CW47: 2124300 | CX47: 5193617 | CY47: =NA() ->  | CZ47: 1273935 | DA47: =NA() ->  | DB47: =NA() ->  | DC47: =NA() ->  | DD47: 600290 | DE47: 993777 | DF47: =NA() ->  | DG47: =NA() ->  | DH47: 10823 | DI47: =NA() ->  | DJ47: 2968933 | DK47: =NA() ->  | DL47: =NA() ->  | DM47: =NA() ->  | DN47: =NA() -> 
A48: 1991 | B48: 01 | C48: 13 | D48: 1991M01 | E48: =NA() ->  | F48: =NA() ->  | G48: 339785 | H48: =NA() ->  | I48: =NA() ->  | J48: 273056 | K48: 12072174 | L48: =NA() ->  | M48: =NA() ->  | N48: =NA() ->  | O48: 3270927 | P48: =NA() ->  | Q48: =NA() ->  | R48: 7182787 | S48: =NA() ->  | T48: =NA() ->  | U48: =NA() ->  | V48: 10206 | W48: =NA() ->  | X48: =NA() ->  | Y48: 1179000 | Z48: 1566378 | AA48: =NA() ->  | AB48: 456977 | AC48: =NA() ->  | AD48: =NA() ->  | AE48: =NA() ->  | AF48: 503792 | AG48: 943896 | AH48: 13000000 | AI48: =NA() ->  | AJ48: =NA() ->  | AK48: =NA() ->  | AL48: 2974921 | AM48: =NA() ->  | AN48: =NA() ->  | AO48: =NA() ->  | AP48: =NA() ->  | AQ48: =NA() ->  | AR48: =NA() ->  | AS48: 466669 | AT48: =NA() ->  | AU48: =NA() ->  | AV48: 167676 | AW48: 1607412 | AX48: =NA() ->  | AY48: =NA() ->  | AZ48: =NA() ->  | BA48: 3286316 | BB48: =NA() ->  | BC48: =NA() ->  | BD48: 2206962 | BE48: 233469 | BF48: =NA() ->  | BG48: =NA() ->  | BH48: 35752 | BI48: =NA() ->  | BJ48: =NA() ->  | BK48: 511600 | BL48: 6005743 | BM48: =NA() ->  | BN48: 786013 | BO48: =NA() ->  | BP48: =NA() ->  | BQ48: =NA() ->  | BR48: 112703 | BS48: 157868 | BT48: =NA() ->  | BU48: =NA() ->  | BV48: =NA() ->  | BW48: =NA() ->  | BX48: 2869702 | BY48: =NA() ->  | BZ48: =NA() ->  | CA48: =NA() ->  | CB48: =NA() ->  | CC48: =NA() ->  | CD48: =NA() ->  | CE48: 806454 | CF48: =NA() ->  | CG48: =NA() ->  | CH48: 440732 | CI48: 13679586 | CJ48: =NA() ->  | CK48: =NA() ->  | CL48: =NA() ->  | CM48: 6557243 | CN48: =NA() ->  | CO48: =NA() ->  | CP48: 9389749 | CQ48: =NA() ->  | CR48: =NA() ->  | CS48: =NA() ->  | CT48: 45958 | CU48: =NA() ->  | CV48: =NA() ->  | CW48: 1690600 | CX48: 7572121 | CY48: =NA() ->  | CZ48: 1242990 | DA48: =NA() ->  | DB48: =NA() ->  | DC48: =NA() ->  | DD48: 616495 | DE48: 1101764 | DF48: =NA() ->  | DG48: =NA() ->  | DH48: =NA() ->  | DI48: =NA() ->  | DJ48: 5844623 | DK48: =NA() ->  | DL48: =NA() ->  | DM48: =NA() ->  | DN48: =NA() -> 
C49: 14 | D49: 1991M02 | E49: =NA() ->  | F49: =NA() ->  | G49: 463565 | H49: =NA() ->  | I49: =NA() ->  | J49: 364590 | K49: 12986875 | L49: =NA() ->  | M49: =NA() ->  | N49: =NA() ->  | O49: 3413522 | P49: =NA() ->  | Q49: =NA() ->  | R49: 7270395 | S49: =NA() ->  | T49: =NA() ->  | U49: =NA() ->  | V49: 16375 | W49: =NA() ->  | X49: =NA() ->  | Y49: 1304400 | Z49: 2068050 | AA49: =NA() ->  | AB49: 548448 | AC49: =NA() ->  | AD49: =NA() ->  | AE49: =NA() ->  | AF49: 694846 | AG49: 1232017 | AH49: 14000000 | AI49: =NA() ->  | AJ49: =NA() ->  | AK49: =NA() ->  | AL49: 5000267 | AM49: =NA() ->  | AN49: =NA() ->  | AO49: =NA() ->  | AP49: =NA() ->  | AQ49: =NA() ->  | AR49: =NA() ->  | AS49: 478651 | AT49: =NA() ->  | AU49: =NA() ->  | AV49: 177970 | AW49: 1995390 | AX49: =NA() ->  | AY49: =NA() ->  | AZ49: =NA() ->  | BA49: 3176428 | BB49: =NA() ->  | BC49: =NA() ->  | BD49: 2695869 | BE49: 119135 | BF49: =NA() ->  | BG49: =NA() ->  | BH49: 67278 | BI49: =NA() ->  | BJ49: =NA() ->  | BK49: 512700 | BL49: 7506810 | BM49: =NA() ->  | BN49: 918751 | BO49: =NA() ->  | BP49: =NA() ->  | BQ49: =NA() ->  | BR49: 105584 | BS49: 186344 | BT49: =NA() ->  | BU49: =NA() ->  | BV49: =NA() ->  | BW49: =NA() ->  | BX49: 2898927 | BY49: =NA() ->  | BZ49: =NA() ->  | CA49: =NA() ->  | CB49: =NA() ->  | CC49: =NA() ->  | CD49: =NA() ->  | CE49: 942216 | CF49: =NA() ->  | CG49: =NA() ->  | CH49: 542560 | CI49: 14982265 | CJ49: =NA() ->  | CK49: =NA() ->  | CL49: =NA() ->  | CM49: 6589950 | CN49: =NA() ->  | CO49: =NA() ->  | CP49: 9966264 | CQ49: =NA() ->  | CR49: =NA() ->  | CS49: =NA() ->  | CT49: 83653 | CU49: =NA() ->  | CV49: =NA() ->  | CW49: 1817100 | CX49: 9574860 | CY49: =NA() ->  | CZ49: 1467199 | DA49: =NA() ->  | DB49: =NA() ->  | DC49: =NA() ->  | DD49: 800430 | DE49: 1418361 | DF49: =NA() ->  | DG49: =NA() ->  | DH49: =NA() ->  | DI49: =NA() ->  | DJ49: 7899194 | DK49: =NA() ->  | DL49: =NA() ->  | DM49: =NA() ->  | DN49: =NA() -> 
C50: 15 | D50: 1991M03 | E50: =NA() ->  | F50: =NA() ->  | G50: 840981 | H50: =NA() ->  | I50: =NA() ->  | J50: 614204 | K50: 16526394 | L50: =NA() ->  | M50: =NA() ->  | N50: =NA() ->  | O50: 4954657 | P50: =NA() ->  | Q50: =NA() ->  | R50: 8993189 | S50: =NA() ->  | T50: =NA() ->  | U50: =NA() ->  | V50: 18914 | W50: =NA() ->  | X50: =NA() ->  | Y50: 1514500 | Z50: 2013298 | AA50: =NA() ->  | AB50: 747259 | AC50: =NA() ->  | AD50: =NA() ->  | AE50: =NA() ->  | AF50: 801197 | AG50: 1438491 | AH50: 25000000 | AI50: =NA() ->  | AJ50: =NA() ->  | AK50: =NA() ->  | AL50: 3802234 | AM50: =NA() ->  | AN50: =NA() ->  | AO50: =NA() ->  | AP50: =NA() ->  | AQ50: =NA() ->  | AR50: =NA() ->  | AS50: 777062 | AT50: =NA() ->  | AU50: =NA() ->  | AV50: 343406 | AW50: 2173813 | AX50: =NA() ->  | AY50: =NA() ->  | AZ50: =NA() ->  | BA50: 3551174 | BB50: =NA() ->  | BC50: =NA() ->  | BD50: 4652584 | BE50: 236008 | BF50: =NA() ->  | BG50: =NA() ->  | BH50: 102480 | BI50: =NA() ->  | BJ50: =NA() ->  | BK50: 963900 | BL50: 7249049 | BM50: =NA() ->  | BN50: 1461952 | BO50: =NA() ->  | BP50: =NA() ->  | BQ50: =NA() ->  | BR50: 127830 | BS50: 215013 | BT50: =NA() ->  | BU50: =NA() ->  | BV50: =NA() ->  | BW50: =NA() ->  | BX50: 4447611 | BY50: =NA() ->  | BZ50: =NA() ->  | CA50: =NA() ->  | CB50: =NA() ->  | CC50: =NA() ->  | CD50: =NA() ->  | CE50: 1618043 | CF50: =NA() ->  | CG50: =NA() ->  | CH50: 957610 | CI50: 18700207 | CJ50: =NA() ->  | CK50: =NA() ->  | CL50: =NA() ->  | CM50: 8505831 | CN50: =NA() ->  | CO50: =NA() ->  | CP50: 13645773 | CQ50: =NA() ->  | CR50: =NA() ->  | CS50: =NA() ->  | CT50: 121394 | CU50: =NA() ->  | CV50: =NA() ->  | CW50: 2478400 | CX50: 9262347 | CY50: =NA() ->  | CZ50: 2209211 | DA50: =NA() ->  | DB50: =NA() ->  | DC50: =NA() ->  | DD50: 929027 | DE50: 1653504 | DF50: =NA() ->  | DG50: =NA() ->  | DH50: =NA() ->  | DI50: =NA() ->  | DJ50: 8249845 | DK50: =NA() ->  | DL50: =NA() ->  | DM50: =NA() ->  | DN50: =NA() -> 
C51: 16 | D51: 1991M04 | E51: =NA() ->  | F51: =NA() ->  | G51: 1788646 | H51: =NA() ->  | I51: =NA() ->  | J51: 870306 | K51: 17308244 | L51: =NA() ->  | M51: =NA() ->  | N51: =NA() ->  | O51: 5151473 | P51: =NA() ->  | Q51: =NA() ->  | R51: 8605991 | S51: =NA() ->  | T51: =NA() ->  | U51: =NA() ->  | V51: 32745 | W51: =NA() ->  | X51: =NA() ->  | Y51: 2179200 | Z51: 1419272 | AA51: =NA() ->  | AB51: 804181 | AC51: =NA() ->  | AD51: =NA() ->  | AE51: =NA() ->  | AF51: 674292 | AG51: 1356431 | AH51: 23000000 | AI51: =NA() ->  | AJ51: =NA() ->  | AK51: =NA() ->  | AL51: 2307751 | AM51: =NA() ->  | AN51: =NA() ->  | AO51: =NA() ->  | AP51: =NA() ->  | AQ51: =NA() ->  | AR51: =NA() ->  | AS51: 827152 | AT51: =NA() ->  | AU51: =NA() ->  | AV51: 452526 | AW51: 2319608 | AX51: =NA() ->  | AY51: =NA() ->  | AZ51: =NA() ->  | BA51: 4294293 | BB51: =NA() ->  | BC51: =NA() ->  | BD51: 5264294 | BE51: 443758 | BF51: =NA() ->  | BG51: =NA() ->  | BH51: 140143 | BI51: =NA() ->  | BJ51: =NA() ->  | BK51: 1605500 | BL51: 2828132 | BM51: =NA() ->  | BN51: 1516407 | BO51: =NA() ->  | BP51: =NA() ->  | BQ51: =NA() ->  | BR51: 144537 | BS51: 197231 | BT51: =NA() ->  | BU51: =NA() ->  | BV51: =NA() ->  | BW51: =NA() ->  | BX51: 2889891 | BY51: =NA() ->  | BZ51: =NA() ->  | CA51: =NA() ->  | CB51: =NA() ->  | CC51: =NA() ->  | CD51: =NA() ->  | CE51: 2615798 | CF51: =NA() ->  | CG51: =NA() ->  | CH51: 1322832 | CI51: 19627852 | CJ51: =NA() ->  | CK51: =NA() ->  | CL51: =NA() ->  | CM51: 9445766 | CN51: =NA() ->  | CO51: =NA() ->  | CP51: 13870285 | CQ51: =NA() ->  | CR51: =NA() ->  | CS51: =NA() ->  | CT51: 172888 | CU51: =NA() ->  | CV51: =NA() ->  | CW51: 3784700 | CX51: 4247404 | CY51: =NA() ->  | CZ51: 2320588 | DA51: =NA() ->  | DB51: =NA() ->  | DC51: =NA() ->  | DD51: 818829 | DE51: 1553662 | DF51: =NA() ->  | DG51: =NA() ->  | DH51: =NA() ->  | DI51: =NA() ->  | DJ51: 5197642 | DK51: =NA() ->  | DL51: =NA() ->  | DM51: =NA() ->  | DN51: =NA() -> 
C52: 17 | D52: 1991M05 | E52: =NA() ->  | F52: =NA() ->  | G52: 1875628 | H52: =NA() ->  | I52: =NA() ->  | J52: 1353095 | K52: 22405874 | L52: =NA() ->  | M52: =NA() ->  | N52: =NA() ->  | O52: 5355920 | P52: =NA() ->  | Q52: =NA() ->  | R52: 8160307 | S52: =NA() ->  | T52: =NA() ->  | U52: =NA() ->  | V52: 44153 | W52: =NA() ->  | X52: =NA() ->  | Y52: 4251400 | Z52: 1683011 | AA52: =NA() ->  | AB52: 858333 | AC52: =NA() ->  | AD52: =NA() ->  | AE52: =NA() ->  | AF52: 636561 | AG52: 1218012 | AH52: 37000000 | AI52: =NA() ->  | AJ52: =NA() ->  | AK52: =NA() ->  | AL52: 2306150 | AM52: =NA() ->  | AN52: =NA() ->  | AO52: =NA() ->  | AP52: =NA() ->  | AQ52: =NA() ->  | AR52: =NA() ->  | AS52: 1185306 | AT52: =NA() ->  | AU52: =NA() ->  | AV52: 855744 | AW52: 2840555 | AX52: =NA() ->  | AY52: =NA() ->  | AZ52: =NA() ->  | BA52: 7579159 | BB52: =NA() ->  | BC52: =NA() ->  | BD52: 8824897 | BE52: 754617 | BF52: =NA() ->  | BG52: =NA() ->  | BH52: 205692 | BI52: =NA() ->  | BJ52: =NA() ->  | BK52: 1841700 | BL52: 3988670 | BM52: =NA() ->  | BN52: 2067613 | BO52: =NA() ->  | BP52: =NA() ->  | BQ52: =NA() ->  | BR52: 181738 | BS52: 269307 | BT52: =NA() ->  | BU52: =NA() ->  | BV52: =NA() ->  | BW52: =NA() ->  | BX52: 2006483 | BY52: =NA() ->  | BZ52: =NA() ->  | CA52: =NA() ->  | CB52: =NA() ->  | CC52: =NA() ->  | CD52: =NA() ->  | CE52: 3060934 | CF52: =NA() ->  | CG52: =NA() ->  | CH52: 2208839 | CI52: 25246429 | CJ52: =NA() ->  | CK52: =NA() ->  | CL52: =NA() ->  | CM52: 12935079 | CN52: =NA() ->  | CO52: =NA() ->  | CP52: 16985204 | CQ52: =NA() ->  | CR52: =NA() ->  | CS52: =NA() ->  | CT52: 249845 | CU52: =NA() ->  | CV52: =NA() ->  | CW52: 6093100 | CX52: 5671681 | CY52: =NA() ->  | CZ52: 2925946 | DA52: =NA() ->  | DB52: =NA() ->  | DC52: =NA() ->  | DD52: 818299 | DE52: 1487319 | DF52: =NA() ->  | DG52: =NA() ->  | DH52: =NA() ->  | DI52: =NA() ->  | DJ52: 4312633 | DK52: =NA() ->  | DL52: =NA() ->  | DM52: =NA() ->  | DN52: =NA() -> 
C53: 18 | D53: 1991M06 | E53: =NA() ->  | F53: =NA() ->  | G53: 2003047 | H53: =NA() ->  | I53: =NA() ->  | J53: 1656816 | K53: 23107859 | L53: =NA() ->  | M53: =NA() ->  | N53: =NA() ->  | O53: 6053028 | P53: =NA() ->  | Q53: =NA() ->  | R53: 16118149 | S53: =NA() ->  | T53: =NA() ->  | U53: =NA() ->  | V53: 43843 | W53: =NA() ->  | X53: =NA() ->  | Y53: 3710400 | Z53: 2130681 | AA53: =NA() ->  | AB53: 1273719 | AC53: =NA() ->  | AD53: =NA() ->  | AE53: =NA() ->  | AF53: 1296228 | AG53: 1366598 | AH53: 38000000 | AI53: =NA() ->  | AJ53: =NA() ->  | AK53: =NA() ->  | AL53: 2949650 | AM53: =NA() ->  | AN53: =NA() ->  | AO53: =NA() ->  | AP53: =NA() ->  | AQ53: =NA() ->  | AR53: =NA() ->  | AS53: 1096376 | AT53: =NA() ->  | AU53: =NA() ->  | AV53: 1247933 | AW53: 3225642 | AX53: =NA() ->  | AY53: =NA() ->  | AZ53: =NA() ->  | BA53: 8626778 | BB53: =NA() ->  | BC53: =NA() ->  | BD53: 10095257 | BE53: 926701 | BF53: =NA() ->  | BG53: =NA() ->  | BH53: 209694 | BI53: =NA() ->  | BJ53: =NA() ->  | BK53: 1619500 | BL53: 5387322 | BM53: =NA() ->  | BN53: 2214686 | BO53: =NA() ->  | BP53: =NA() ->  | BQ53: =NA() ->  | BR53: 369368 | BS53: 472088 | BT53: =NA() ->  | BU53: =NA() ->  | BV53: =NA() ->  | BW53: =NA() ->  | BX53: 2646460 | BY53: =NA() ->  | BZ53: =NA() ->  | CA53: =NA() ->  | CB53: =NA() ->  | CC53: =NA() ->  | CD53: =NA() ->  | CE53: 3099423 | CF53: =NA() ->  | CG53: =NA() ->  | CH53: 2904749 | CI53: 26333501 | CJ53: =NA() ->  | CK53: =NA() ->  | CL53: =NA() ->  | CM53: 14679806 | CN53: =NA() ->  | CO53: =NA() ->  | CP53: 26213406 | CQ53: =NA() ->  | CR53: =NA() ->  | CS53: =NA() ->  | CT53: 253537 | CU53: =NA() ->  | CV53: =NA() ->  | CW53: 5329900 | CX53: 7518003 | CY53: =NA() ->  | CZ53: 3488405 | DA53: =NA() ->  | DB53: =NA() ->  | DC53: =NA() ->  | DD53: 1665596 | DE53: 1838686 | DF53: =NA() ->  | DG53: =NA() ->  | DH53: =NA() ->  | DI53: =NA() ->  | DJ53: 5596110 | DK53: =NA() ->  | DL53: =NA() ->  | DM53: =NA() ->  | DN53: =NA() -> 
B54: 07 | C54: 19 | D54: 1991M07 | E54: =NA() ->  | F54: =NA() ->  | G54: 5898386 | H54: =NA() ->  | I54: =NA() ->  | J54: 3950566 | K54: 26228770 | L54: =NA() ->  | M54: =NA() ->  | N54: =NA() ->  | O54: 9110878 | P54: =NA() ->  | Q54: =NA() ->  | R54: 31460499 | S54: =NA() ->  | T54: =NA() ->  | U54: =NA() ->  | V54: 49314 | W54: =NA() ->  | X54: =NA() ->  | Y54: 8057600 | Z54: 3297797 | AA54: =NA() ->  | AB54: 2205111 | AC54: =NA() ->  | AD54: =NA() ->  | AE54: =NA() ->  | AF54: 1942329 | AG54: 1814291 | AH54: 62000000 | AI54: =NA() ->  | AJ54: =NA() ->  | AK54: =NA() ->  | AL54: 5138058 | AM54: =NA() ->  | AN54: =NA() ->  | AO54: =NA() ->  | AP54: =NA() ->  | AQ54: =NA() ->  | AR54: =NA() ->  | AS54: 1864918 | AT54: =NA() ->  | AU54: =NA() ->  | AV54: 3184433 | AW54: 4309696 | AX54: =NA() ->  | AY54: =NA() ->  | AZ54: =NA() ->  | BA54: 11581734 | BB54: =NA() ->  | BC54: =NA() ->  | BD54: 15732768 | BE54: 1137066 | BF54: =NA() ->  | BG54: =NA() ->  | BH54: 685275 | BI54: =NA() ->  | BJ54: =NA() ->  | BK54: 2583600 | BL54: 11103388 | BM54: =NA() ->  | BN54: 3097754 | BO54: =NA() ->  | BP54: =NA() ->  | BQ54: =NA() ->  | BR54: 544716 | BS54: 673395 | BT54: =NA() ->  | BU54: =NA() ->  | BV54: =NA() ->  | BW54: =NA() ->  | BX54: 4533696 | BY54: =NA() ->  | BZ54: =NA() ->  | CA54: =NA() ->  | CB54: =NA() ->  | CC54: =NA() ->  | CD54: =NA() ->  | CE54: 7763304 | CF54: =NA() ->  | CG54: =NA() ->  | CH54: 7134999 | CI54: 30538466 | CJ54: =NA() ->  | CK54: =NA() ->  | CL54: =NA() ->  | CM54: 20692612 | CN54: =NA() ->  | CO54: =NA() ->  | CP54: 47193267 | CQ54: =NA() ->  | CR54: =NA() ->  | CS54: =NA() ->  | CT54: 734589 | CU54: =NA() ->  | CV54: =NA() ->  | CW54: 10641200 | CX54: 14401185 | CY54: =NA() ->  | CZ54: 5302865 | DA54: =NA() ->  | DB54: =NA() ->  | DC54: =NA() ->  | DD54: 2487045 | DE54: 2487686 | DF54: =NA() ->  | DG54: =NA() ->  | DH54: =NA() ->  | DI54: =NA() ->  | DJ54: 9671754 | DK54: =NA() ->  | DL54: =NA() ->  | DM54: =NA() ->  | DN54: =NA() -> 
C55: 20 | D55: 1991M08 | E55: =NA() ->  | F55: =NA() ->  | G55: 5622435 | H55: =NA() ->  | I55: =NA() ->  | J55: 1975445 | K55: 27535452 | L55: =NA() ->  | M55: =NA() ->  | N55: =NA() ->  | O55: 12340610 | P55: =NA() ->  | Q55: =NA() ->  | R55: 47498071 | S55: =NA() ->  | T55: =NA() ->  | U55: =NA() ->  | V55: 42513 | W55: =NA() ->  | X55: =NA() ->  | Y55: 8403100 | Z55: 3564716 | AA55: =NA() ->  | AB55: 3179157 | AC55: =NA() ->  | AD55: =NA() ->  | AE55: =NA() ->  | AF55: 1001905 | AG55: 1498064 | AH55: 78000000 | AI55: =NA() ->  | AJ55: =NA() ->  | AK55: =NA() ->  | AL55: 5511977 | AM55: =NA() ->  | AN55: =NA() ->  | AO55: =NA() ->  | AP55: =NA() ->  | AQ55: =NA() ->  | AR55: =NA() ->  | AS55: 2080186 | AT55: =NA() ->  | AU55: =NA() ->  | AV55: 2416931 | AW55: 4323789 | AX55: =NA() ->  | AY55: =NA() ->  | AZ55: =NA() ->  | BA55: 12087611 | BB55: =NA() ->  | BC55: =NA() ->  | BD55: 14420236 | BE55: 1283291 | BF55: =NA() ->  | BG55: =NA() ->  | BH55: 581575 | BI55: =NA() ->  | BJ55: =NA() ->  | BK55: 3329800 | BL55: 12655353 | BM55: =NA() ->  | BN55: 3680728 | BO55: =NA() ->  | BP55: =NA() ->  | BQ55: =NA() ->  | BR55: 410078 | BS55: 564277 | BT55: =NA() ->  | BU55: =NA() ->  | BV55: =NA() ->  | BW55: =NA() ->  | BX55: 6431813 | BY55: =NA() ->  | BZ55: =NA() ->  | CA55: =NA() ->  | CB55: =NA() ->  | CC55: =NA() ->  | CD55: =NA() ->  | CE55: 7702621 | CF55: =NA() ->  | CG55: =NA() ->  | CH55: 4392376 | CI55: 31859241 | CJ55: =NA() ->  | CK55: =NA() ->  | CL55: =NA() ->  | CM55: 24428221 | CN55: =NA() ->  | CO55: =NA() ->  | CP55: 61918307 | CQ55: =NA() ->  | CR55: =NA() ->  | CS55: =NA() ->  | CT55: 624088 | CU55: =NA() ->  | CV55: =NA() ->  | CW55: 11732900 | CX55: 16220069 | CY55: =NA() ->  | CZ55: 6859885 | DA55: =NA() ->  | DB55: =NA() ->  | DC55: =NA() ->  | DD55: 1411983 | DE55: 2062341 | DF55: =NA() ->  | DG55: =NA() ->  | DH55: =NA() ->  | DI55: =NA() ->  | DJ55: 11943790 | DK55: =NA() ->  | DL55: =NA() ->  | DM55: =NA() ->  | DN55: =NA() -> 
C56: 21 | D56: 1991M09 | E56: =NA() ->  | F56: =NA() ->  | G56: 1766046 | H56: =NA() ->  | I56: =NA() ->  | J56: 1005403 | K56: 25420878 | L56: =NA() ->  | M56: =NA() ->  | N56: =NA() ->  | O56: 7259507 | P56: =NA() ->  | Q56: =NA() ->  | R56: 17087865 | S56: =NA() ->  | T56: =NA() ->  | U56: =NA() ->  | V56: 31630 | W56: =NA() ->  | X56: =NA() ->  | Y56: 3143300 | Z56: 2153907 | AA56: =NA() ->  | AB56: 1530512 | AC56: =NA() ->  | AD56: =NA() ->  | AE56: =NA() ->  | AF56: 678602 | AG56: 1165883 | AH56: 37000000 | AI56: =NA() ->  | AJ56: =NA() ->  | AK56: =NA() ->  | AL56: 3811436 | AM56: =NA() ->  | AN56: =NA() ->  | AO56: =NA() ->  | AP56: =NA() ->  | AQ56: =NA() ->  | AR56: =NA() ->  | AS56: 1142883 | AT56: =NA() ->  | AU56: =NA() ->  | AV56: 675178 | AW56: 3637020 | AX56: =NA() ->  | AY56: =NA() ->  | AZ56: =NA() ->  | BA56: 10211564 | BB56: =NA() ->  | BC56: =NA() ->  | BD56: 11495538 | BE56: 1291947 | BF56: =NA() ->  | BG56: =NA() ->  | BH56: 195655 | BI56: =NA() ->  | BJ56: =NA() ->  | BK56: 1593400 | BL56: 7089636 | BM56: =NA() ->  | BN56: 2538133 | BO56: =NA() ->  | BP56: =NA() ->  | BQ56: =NA() ->  | BR56: 172230 | BS56: 282539 | BT56: =NA() ->  | BU56: =NA() ->  | BV56: =NA() ->  | BW56: =NA() ->  | BX56: 3480791 | BY56: =NA() ->  | BZ56: =NA() ->  | CA56: =NA() ->  | CB56: =NA() ->  | CC56: =NA() ->  | CD56: =NA() ->  | CE56: 2908929 | CF56: =NA() ->  | CG56: =NA() ->  | CH56: 1680581 | CI56: 29057898 | CJ56: =NA() ->  | CK56: =NA() ->  | CL56: =NA() ->  | CM56: 17471071 | CN56: =NA() ->  | CO56: =NA() ->  | CP56: 28583403 | CQ56: =NA() ->  | CR56: =NA() ->  | CS56: =NA() ->  | CT56: 227285 | CU56: =NA() ->  | CV56: =NA() ->  | CW56: 4736700 | CX56: 9243543 | CY56: =NA() ->  | CZ56: 4068645 | DA56: =NA() ->  | DB56: =NA() ->  | DC56: =NA() ->  | DD56: 850832 | DE56: 1448422 | DF56: =NA() ->  | DG56: =NA() ->  | DH56: =NA() ->  | DI56: =NA() ->  | DJ56: 7292227 | DK56: =NA() ->  | DL56: =NA() ->  | DM56: =NA() ->  | DN56: =NA() -> 
C57: 22 | D57: 1991M10 | E57: =NA() ->  | F57: =NA() ->  | G57: 533246 | H57: =NA() ->  | I57: =NA() ->  | J57: 700354 | K57: 22720930 | L57: =NA() ->  | M57: =NA() ->  | N57: =NA() ->  | O57: 4709162 | P57: =NA() ->  | Q57: =NA() ->  | R57: 7825192 | S57: =NA() ->  | T57: =NA() ->  | U57: =NA() ->  | V57: 26254 | W57: =NA() ->  | X57: =NA() ->  | Y57: 2537900 | Z57: 1430132 | AA57: =NA() ->  | AB57: 712170 | AC57: =NA() ->  | AD57: =NA() ->  | AE57: =NA() ->  | AF57: 602468 | AG57: 1091180 | AH57: 25000000 | AI57: =NA() ->  | AJ57: =NA() ->  | AK57: =NA() ->  | AL57: 3458805 | AM57: =NA() ->  | AN57: =NA() ->  | AO57: =NA() ->  | AP57: =NA() ->  | AQ57: =NA() ->  | AR57: =NA() ->  | AS57: 871253 | AT57: =NA() ->  | AU57: =NA() ->  | AV57: 428718 | AW57: 3092126 | AX57: =NA() ->  | AY57: =NA() ->  | AZ57: =NA() ->  | BA57: 7490669 | BB57: =NA() ->  | BC57: =NA() ->  | BD57: 6793912 | BE57: 1205794 | BF57: =NA() ->  | BG57: =NA() ->  | BH57: 156500 | BI57: =NA() ->  | BJ57: =NA() ->  | BK57: 1355500 | BL57: 3461441 | BM57: =NA() ->  | BN57: 1843758 | BO57: =NA() ->  | BP57: =NA() ->  | BQ57: =NA() ->  | BR57: 136559 | BS57: 215537 | BT57: =NA() ->  | BU57: =NA() ->  | BV57: =NA() ->  | BW57: =NA() ->  | BX57: 2085973 | BY57: =NA() ->  | BZ57: =NA() ->  | CA57: =NA() ->  | CB57: =NA() ->  | CC57: =NA() ->  | CD57: =NA() ->  | CE57: 1404499 | CF57: =NA() ->  | CG57: =NA() ->  | CH57: 1129072 | CI57: 25813056 | CJ57: =NA() ->  | CK57: =NA() ->  | CL57: =NA() ->  | CM57: 12199831 | CN57: =NA() ->  | CO57: =NA() ->  | CP57: 14619104 | CQ57: =NA() ->  | CR57: =NA() ->  | CS57: =NA() ->  | CT57: 182754 | CU57: =NA() ->  | CV57: =NA() ->  | CW57: 3893400 | CX57: 4891573 | CY57: =NA() ->  | CZ57: 2555928 | DA57: =NA() ->  | DB57: =NA() ->  | DC57: =NA() ->  | DD57: 739027 | DE57: 1306717 | DF57: =NA() ->  | DG57: =NA() ->  | DH57: =NA() ->  | DI57: =NA() ->  | DJ57: 5544778 | DK57: =NA() ->  | DL57: =NA() ->  | DM57: =NA() ->  | DN57: =NA() -> 
C58: 23 | D58: 1991M11 | E58: =NA() ->  | F58: =NA() ->  | G58: 458839 | H58: =NA() ->  | I58: =NA() ->  | J58: 431573 | K58: 13661819 | L58: =NA() ->  | M58: =NA() ->  | N58: =NA() ->  | O58: 3855187 | P58: =NA() ->  | Q58: =NA() ->  | R58: 5924352 | S58: =NA() ->  | T58: =NA() ->  | U58: =NA() ->  | V58: 23386 | W58: =NA() ->  | X58: =NA() ->  | Y58: 1424800 | Z58: 997455 | AA58: =NA() ->  | AB58: 586848 | AC58: =NA() ->  | AD58: =NA() ->  | AE58: =NA() ->  | AF58: 576986 | AG58: 1050343 | AH58: 14000000 | AI58: =NA() ->  | AJ58: =NA() ->  | AK58: =NA() ->  | AL58: 1223041 | AM58: =NA() ->  | AN58: =NA() ->  | AO58: =NA() ->  | AP58: =NA() ->  | AQ58: =NA() ->  | AR58: =NA() ->  | AS58: 690533 | AT58: =NA() ->  | AU58: =NA() ->  | AV58: 266831 | AW58: 1965823 | AX58: =NA() ->  | AY58: =NA() ->  | AZ58: =NA() ->  | BA58: 3206786 | BB58: =NA() ->  | BC58: =NA() ->  | BD58: 2488255 | BE58: 713979 | BF58: =NA() ->  | BG58: =NA() ->  | BH58: 95694 | BI58: =NA() ->  | BJ58: =NA() ->  | BK58: 692200 | BL58: 1254992 | BM58: =NA() ->  | BN58: 1032283 | BO58: =NA() ->  | BP58: =NA() ->  | BQ58: =NA() ->  | BR58: 142468 | BS58: 173101 | BT58: =NA() ->  | BU58: =NA() ->  | BV58: =NA() ->  | BW58: =NA() ->  | BX58: 1037875 | BY58: =NA() ->  | BZ58: =NA() ->  | CA58: =NA() ->  | CB58: =NA() ->  | CC58: =NA() ->  | CD58: =NA() ->  | CE58: 1149372 | CF58: =NA() ->  | CG58: =NA() ->  | CH58: 698404 | CI58: 15627642 | CJ58: =NA() ->  | CK58: =NA() ->  | CL58: =NA() ->  | CM58: 7061973 | CN58: =NA() ->  | CO58: =NA() ->  | CP58: 8412607 | CQ58: =NA() ->  | CR58: =NA() ->  | CS58: =NA() ->  | CT58: 119080 | CU58: =NA() ->  | CV58: =NA() ->  | CW58: 2117000 | CX58: 2252447 | CY58: =NA() ->  | CZ58: 1619131 | DA58: =NA() ->  | DB58: =NA() ->  | DC58: =NA() ->  | DD58: 719454 | DE58: 1223444 | DF58: =NA() ->  | DG58: =NA() ->  | DH58: =NA() ->  | DI58: =NA() ->  | DJ58: 2260916 | DK58: =NA() ->  | DL58: =NA() ->  | DM58: =NA() ->  | DN58: =NA() -> 
C59: 24 | D59: 1991M12 | E59: =NA() ->  | F59: =NA() ->  | G59: 494654 | H59: =NA() ->  | I59: =NA() ->  | J59: 241066 | K59: 12663126 | L59: =NA() ->  | M59: =NA() ->  | N59: =NA() ->  | O59: 3505888 | P59: =NA() ->  | Q59: =NA() ->  | R59: 7062144 | S59: =NA() ->  | T59: =NA() ->  | U59: =NA() ->  | V59: 21878 | W59: =NA() ->  | X59: =NA() ->  | Y59: 1434800 | Z59: 1035339 | AA59: =NA() ->  | AB59: 501371 | AC59: =NA() ->  | AD59: =NA() ->  | AE59: =NA() ->  | AF59: 417896 | AG59: 739789 | AH59: 32000000 | AI59: =NA() ->  | AJ59: =NA() ->  | AK59: =NA() ->  | AL59: 1392084 | AM59: =NA() ->  | AN59: =NA() ->  | AO59: =NA() ->  | AP59: =NA() ->  | AQ59: =NA() ->  | AR59: =NA() ->  | AS59: 689135 | AT59: =NA() ->  | AU59: =NA() ->  | AV59: 212962 | AW59: 1735548 | AX59: =NA() ->  | AY59: =NA() ->  | AZ59: =NA() ->  | BA59: 2762820 | BB59: =NA() ->  | BC59: =NA() ->  | BD59: 2064345 | BE59: 555431 | BF59: =NA() ->  | BG59: =NA() ->  | BH59: 76975 | BI59: =NA() ->  | BJ59: =NA() ->  | BK59: 596400 | BL59: 4496846 | BM59: =NA() ->  | BN59: 799261 | BO59: =NA() ->  | BP59: =NA() ->  | BQ59: =NA() ->  | BR59: 101480 | BS59: 127452 | BT59: =NA() ->  | BU59: =NA() ->  | BV59: =NA() ->  | BW59: =NA() ->  | BX59: 1709117 | BY59: =NA() ->  | BZ59: =NA() ->  | CA59: =NA() ->  | CB59: =NA() ->  | CC59: =NA() ->  | CD59: =NA() ->  | CE59: 1183789 | CF59: =NA() ->  | CG59: =NA() ->  | CH59: 454028 | CI59: 14398674 | CJ59: =NA() ->  | CK59: =NA() ->  | CL59: =NA() ->  | CM59: 6268708 | CN59: =NA() ->  | CO59: =NA() ->  | CP59: 9126489 | CQ59: =NA() ->  | CR59: =NA() ->  | CS59: =NA() ->  | CT59: 98853 | CU59: =NA() ->  | CV59: =NA() ->  | CW59: 2031200 | CX59: 5532185 | CY59: =NA() ->  | CZ59: 1300632 | DA59: =NA() ->  | DB59: =NA() ->  | DC59: =NA() ->  | DD59: 519376 | DE59: 867241 | DF59: =NA() ->  | DG59: =NA() ->  | DH59: =NA() ->  | DI59: =NA() ->  | DJ59: 3101201 | DK59: =NA() ->  | DL59: =NA() ->  | DM59: =NA() ->  | DN59: =NA() -> 
A60: 1992 | B60: 01 | C60: 25 | D60: 1992M01 | E60: =NA() ->  | F60: =NA() ->  | G60: 313900 | H60: =NA() ->  | I60: =NA() ->  | J60: 280753 | K60: 13538000 | L60: =NA() ->  | M60: =NA() ->  | N60: =NA() ->  | O60: 2977352 | P60: =NA() ->  | Q60: =NA() ->  | R60: 7633573 | S60: =NA() ->  | T60: =NA() ->  | U60: =NA() ->  | V60: 21544 | W60: =NA() ->  | X60: =NA() ->  | Y60: 1048200 | Z60: 1779380 | AA60: =NA() ->  | AB60: 491137 | AC60: =NA() ->  | AD60: =NA() ->  | AE60: =NA() ->  | AF60: 472512 | AG60: 911051 | AH60: 11000000 | AI60: =NA() ->  | AJ60: =NA() ->  | AK60: =NA() ->  | AL60: 3107665 | AM60: =NA() ->  | AN60: =NA() ->  | AO60: =NA() ->  | AP60: =NA() ->  | AQ60: =NA() ->  | AR60: =NA() ->  | AS60: 503861 | AT60: =NA() ->  | AU60: =NA() ->  | AV60: 176949 | AW60: 1648000 | AX60: =NA() ->  | AY60: =NA() ->  | AZ60: =NA() ->  | BA60: 3420855 | BB60: =NA() ->  | BC60: =NA() ->  | BD60: 2460280 | BE60: 526044 | BF60: =NA() ->  | BG60: =NA() ->  | BH60: 62589 | BI60: =NA() ->  | BJ60: =NA() ->  | BK60: 541600 | BL60: 6662236 | BM60: =NA() ->  | BN60: 830538 | BO60: =NA() ->  | BP60: =NA() ->  | BQ60: =NA() ->  | BR60: 104549 | BS60: 163049 | BT60: =NA() ->  | BU60: =NA() ->  | BV60: =NA() ->  | BW60: =NA() ->  | BX60: 3111569 | BY60: =NA() ->  | BZ60: =NA() ->  | CA60: =NA() ->  | CB60: =NA() ->  | CC60: =NA() ->  | CD60: =NA() ->  | CE60: 817761 | CF60: =NA() ->  | CG60: =NA() ->  | CH60: 457702 | CI60: 15186000 | CJ60: =NA() ->  | CK60: =NA() ->  | CL60: =NA() ->  | CM60: 6398207 | CN60: =NA() ->  | CO60: =NA() ->  | CP60: 10093853 | CQ60: =NA() ->  | CR60: =NA() ->  | CS60: =NA() ->  | CT60: 84133 | CU60: =NA() ->  | CV60: =NA() ->  | CW60: 1589800 | CX60: 8441616 | CY60: =NA() ->  | CZ60: 1321675 | DA60: =NA() ->  | DB60: =NA() ->  | DC60: =NA() ->  | DD60: 577061 | DE60: 1074100 | DF60: =NA() ->  | DG60: =NA() ->  | DH60: =NA() ->  | DI60: =NA() ->  | DJ60: 6219234 | DK60: =NA() ->  | DL60: =NA() ->  | DM60: =NA() ->  | DN60: =NA() -> 
C61: 26 | D61: 1992M02 | E61: =NA() ->  | F61: =NA() ->  | G61: 448105 | H61: =NA() ->  | I61: =NA() ->  | J61: 373282 | K61: 15352000 | L61: =NA() ->  | M61: =NA() ->  | N61: =NA() ->  | O61: 3224002 | P61: =NA() ->  | Q61: =NA() ->  | R61: 8089508 | S61: =NA() ->  | T61: =NA() ->  | U61: =NA() ->  | V61: 21711 | W61: =NA() ->  | X61: =NA() ->  | Y61: 1120600 | Z61: 2424366 | AA61: =NA() ->  | AB61: 555061 | AC61: =NA() ->  | AD61: =NA() ->  | AE61: =NA() ->  | AF61: 667564 | AG61: 1233430 | AH61: 14000000 | AI61: =NA() ->  | AJ61: =NA() ->  | AK61: =NA() ->  | AL61: 5455921 | AM61: =NA() ->  | AN61: =NA() ->  | AO61: =NA() ->  | AP61: =NA() ->  | AQ61: =NA() ->  | AR61: =NA() ->  | AS61: 622561 | AT61: =NA() ->  | AU61: =NA() ->  | AV61: 181578 | AW61: 2199000 | AX61: =NA() ->  | AY61: =NA() ->  | AZ61: =NA() ->  | BA61: 3576688 | BB61: =NA() ->  | BC61: =NA() ->  | BD61: 2999327 | BE61: 560674 | BF61: =NA() ->  | BG61: =NA() ->  | BH61: 70659 | BI61: =NA() ->  | BJ61: =NA() ->  | BK61: 553400 | BL61: 7469889 | BM61: =NA() ->  | BN61: 1019570 | BO61: =NA() ->  | BP61: =NA() ->  | BQ61: =NA() ->  | BR61: 115158 | BS61: 197391 | BT61: =NA() ->  | BU61: =NA() ->  | BV61: =NA() ->  | BW61: =NA() ->  | BX61: 3061990 | BY61: =NA() ->  | BZ61: =NA() ->  | CA61: =NA() ->  | CB61: =NA() ->  | CC61: =NA() ->  | CD61: =NA() ->  | CE61: 1070666 | CF61: =NA() ->  | CG61: =NA() ->  | CH61: 554860 | CI61: 17551000 | CJ61: =NA() ->  | CK61: =NA() ->  | CL61: =NA() ->  | CM61: 6800690 | CN61: =NA() ->  | CO61: =NA() ->  | CP61: 11088835 | CQ61: =NA() ->  | CR61: =NA() ->  | CS61: =NA() ->  | CT61: 92370 | CU61: =NA() ->  | CV61: =NA() ->  | CW61: 1674000 | CX61: 9894255 | CY61: =NA() ->  | CZ61: 1574631 | DA61: =NA() ->  | DB61: =NA() ->  | DC61: =NA() ->  | DD61: 782722 | DE61: 1430821 | DF61: =NA() ->  | DG61: =NA() ->  | DH61: =NA() ->  | DI61: =NA() ->  | DJ61: 8517911 | DK61: =NA() ->  | DL61: =NA() ->  | DM61: =NA() ->  | DN61: =NA() -> 
C62: 27 | D62: 1992M03 | E62: =NA() ->  | F62: =NA() ->  | G62: 635262 | H62: =NA() ->  | I62: =NA() ->  | J62: 552332 | K62: 17209000 | L62: =NA() ->  | M62: =NA() ->  | N62: =NA() ->  | O62: 4219873 | P62: =NA() ->  | Q62: =NA() ->  | R62: 8432607 | S62: =NA() ->  | T62: =NA() ->  | U62: =NA() ->  | V62: 24049 | W62: =NA() ->  | X62: =NA() ->  | Y62: 1531100 | Z62: 1968375 | AA62: =NA() ->  | AB62: 694233 | AC62: =NA() ->  | AD62: =NA() ->  | AE62: =NA() ->  | AF62: 744532 | AG62: 1374743 | AH62: 15000000 | AI62: =NA() ->  | AJ62: =NA() ->  | AK62: =NA() ->  | AL62: 3534941 | AM62: =NA() ->  | AN62: =NA() ->  | AO62: =NA() ->  | AP62: =NA() ->  | AQ62: =NA() ->  | AR62: =NA() ->  | AS62: 786569 | AT62: =NA() ->  | AU62: =NA() ->  | AV62: 255651 | AW62: 2451000 | AX62: =NA() ->  | AY62: =NA() ->  | AZ62: =NA() ->  | BA62: 4311419 | BB62: =NA() ->  | BC62: =NA() ->  | BD62: 4040939 | BE62: 762232 | BF62: =NA() ->  | BG62: =NA() ->  | BH62: 92297 | BI62: =NA() ->  | BJ62: =NA() ->  | BK62: 784600 | BL62: 6477675 | BM62: =NA() ->  | BN62: 1333100 | BO62: =NA() ->  | BP62: =NA() ->  | BQ62: =NA() ->  | BR62: 139541 | BS62: 197285 | BT62: =NA() ->  | BU62: =NA() ->  | BV62: =NA() ->  | BW62: =NA() ->  | BX62: 4115912 | BY62: =NA() ->  | BZ62: =NA() ->  | CA62: =NA() ->  | CB62: =NA() ->  | CC62: =NA() ->  | CD62: =NA() ->  | CE62: 1421831 | CF62: =NA() ->  | CG62: =NA() ->  | CH62: 807983 | CI62: 19660000 | CJ62: =NA() ->  | CK62: =NA() ->  | CL62: =NA() ->  | CM62: 8531292 | CN62: =NA() ->  | CO62: =NA() ->  | CP62: 12473546 | CQ62: =NA() ->  | CR62: =NA() ->  | CS62: =NA() ->  | CT62: 116346 | CU62: =NA() ->  | CV62: =NA() ->  | CW62: 2315700 | CX62: 8446050 | CY62: =NA() ->  | CZ62: 2027333 | DA62: =NA() ->  | DB62: =NA() ->  | DC62: =NA() ->  | DD62: 884073 | DE62: 1572028 | DF62: =NA() ->  | DG62: =NA() ->  | DH62: =NA() ->  | DI62: =NA() ->  | DJ62: 7650853 | DK62: =NA() ->  | DL62: =NA() ->  | DM62: =NA() ->  | DN62: =NA() -> 
C63: 28 | D63: 1992M04 | E63: =NA() ->  | F63: =NA() ->  | G63: 1231250 | H63: =NA() ->  | I63: =NA() ->  | J63: 849942 | K63: 21207000 | L63: =NA() ->  | M63: =NA() ->  | N63: =NA() ->  | O63: 5179062 | P63: =NA() ->  | Q63: =NA() ->  | R63: 8559023 | S63: =NA() ->  | T63: =NA() ->  | U63: =NA() ->  | V63: 29797 | W63: =NA() ->  | X63: =NA() ->  | Y63: 2392100 | Z63: 1476313 | AA63: =NA() ->  | AB63: 915055 | AC63: =NA() ->  | AD63: =NA() ->  | AE63: =NA() ->  | AF63: 686134 | AG63: 1165748 | AH63: 26000000 | AI63: =NA() ->  | AJ63: =NA() ->  | AK63: =NA() ->  | AL63: 2269703 | AM63: =NA() ->  | AN63: =NA() ->  | AO63: =NA() ->  | AP63: =NA() ->  | AQ63: =NA() ->  | AR63: =NA() ->  | AS63: 1006488 | AT63: =NA() ->  | AU63: =NA() ->  | AV63: 554514 | AW63: 2600000 | AX63: =NA() ->  | AY63: =NA() ->  | AZ63: =NA() ->  | BA63: 4861857 | BB63: =NA() ->  | BC63: =NA() ->  | BD63: 6427521 | BE63: 1187542 | BF63: =NA() ->  | BG63: =NA() ->  | BH63: 157825 | BI63: =NA() ->  | BJ63: =NA() ->  | BK63: 1889200 | BL63: 3795079 | BM63: =NA() ->  | BN63: 1729316 | BO63: =NA() ->  | BP63: =NA() ->  | BQ63: =NA() ->  | BR63: 128041 | BS63: 185736 | BT63: =NA() ->  | BU63: =NA() ->  | BV63: =NA() ->  | BW63: =NA() ->  | BX63: 3137657 | BY63: =NA() ->  | BZ63: =NA() ->  | CA63: =NA() ->  | CB63: =NA() ->  | CC63: =NA() ->  | CD63: =NA() ->  | CE63: 2237738 | CF63: =NA() ->  | CG63: =NA() ->  | CH63: 1404456 | CI63: 23807000 | CJ63: =NA() ->  | CK63: =NA() ->  | CL63: =NA() ->  | CM63: 10040919 | CN63: =NA() ->  | CO63: =NA() ->  | CP63: 14986544 | CQ63: =NA() ->  | CR63: =NA() ->  | CS63: =NA() ->  | CT63: 187622 | CU63: =NA() ->  | CV63: =NA() ->  | CW63: 4281300 | CX63: 5271392 | CY63: =NA() ->  | CZ63: 2644371 | DA63: =NA() ->  | DB63: =NA() ->  | DC63: =NA() ->  | DD63: 814175 | DE63: 1351484 | DF63: =NA() ->  | DG63: =NA() ->  | DH63: =NA() ->  | DI63: =NA() ->  | DJ63: 5407360 | DK63: =NA() ->  | DL63: =NA() ->  | DM63: =NA() ->  | DN63: =NA() -> 
C64: 29 | D64: 1992M05 | E64: =NA() ->  | F64: =NA() ->  | G64: 1203663 | H64: =NA() ->  | I64: =NA() ->  | J64: 1444790 | K64: 26539000 | L64: =NA() ->  | M64: =NA() ->  | N64: =NA() ->  | O64: 5068637 | P64: =NA() ->  | Q64: =NA() ->  | R64: 9556729 | S64: =NA() ->  | T64: =NA() ->  | U64: =NA() ->  | V64: 40481 | W64: =NA() ->  | X64: =NA() ->  | Y64: 3868300 | Z64: 1780931 | AA64: =NA() ->  | AB64: 969949 | AC64: =NA() ->  | AD64: =NA() ->  | AE64: =NA() ->  | AF64: 602323 | AG64: 1256933 | AH64: 32000000 | AI64: =NA() ->  | AJ64: =NA() ->  | AK64: =NA() ->  | AL64: 2259326 | AM64: =NA() ->  | AN64: =NA() ->  | AO64: =NA() ->  | AP64: =NA() ->  | AQ64: =NA() ->  | AR64: =NA() ->  | AS64: 1243041 | AT64: =NA() ->  | AU64: =NA() ->  | AV64: 849957 | AW64: 3168000 | AX64: =NA() ->  | AY64: =NA() ->  | AZ64: =NA() ->  | BA64: 8001748 | BB64: =NA() ->  | BC64: =NA() ->  | BD64: 7980872 | BE64: 1578708 | BF64: =NA() ->  | BG64: =NA() ->  | BH64: 223062 | BI64: =NA() ->  | BJ64: =NA() ->  | BK64: 1899900 | BL64: 3515358 | BM64: =NA() ->  | BN64: 1998206 | BO64: =NA() ->  | BP64: =NA() ->  | BQ64: =NA() ->  | BR64: 181749 | BS64: 262066 | BT64: =NA() ->  | BU64: =NA() ->  | BV64: =NA() ->  | BW64: =NA() ->  | BX64: 1909007 | BY64: =NA() ->  | BZ64: =NA() ->  | CA64: =NA() ->  | CB64: =NA() ->  | CC64: =NA() ->  | CD64: =NA() ->  | CE64: 2446704 | CF64: =NA() ->  | CG64: =NA() ->  | CH64: 2294747 | CI64: 29707000 | CJ64: =NA() ->  | CK64: =NA() ->  | CL64: =NA() ->  | CM64: 13070385 | CN64: =NA() ->  | CO64: =NA() ->  | CP64: 17537601 | CQ64: =NA() ->  | CR64: =NA() ->  | CS64: =NA() ->  | CT64: 263543 | CU64: =NA() ->  | CV64: =NA() ->  | CW64: 5768200 | CX64: 5296289 | CY64: =NA() ->  | CZ64: 2968155 | DA64: =NA() ->  | DB64: =NA() ->  | DC64: =NA() ->  | DD64: 784072 | DE64: 1518999 | DF64: =NA() ->  | DG64: =NA() ->  | DH64: =NA() ->  | DI64: =NA() ->  | DJ64: 4168333 | DK64: =NA() ->  | DL64: =NA() ->  | DM64: =NA() ->  | DN64: =NA() -> 
C65: 30 | D65: 1992M06 | E65: =NA() ->  | F65: =NA() ->  | G65: 1157206 | H65: =NA() ->  | I65: =NA() ->  | J65: 1950930 | K65: 29471000 | L65: =NA() ->  | M65: =NA() ->  | N65: =NA() ->  | O65: 5594874 | P65: =NA() ->  | Q65: =NA() ->  | R65: 16439738 | S65: =NA() ->  | T65: =NA() ->  | U65: =NA() ->  | V65: 42168 | W65: =NA() ->  | X65: =NA() ->  | Y65: 4413300 | Z65: 2248682 | AA65: =NA() ->  | AB65: 1191822 | AC65: =NA() ->  | AD65: =NA() ->  | AE65: =NA() ->  | AF65: 1222441 | AG65: 1317123 | AH65: 35000000 | AI65: =NA() ->  | AJ65: =NA() ->  | AK65: =NA() ->  | AL65: 2786337 | AM65: =NA() ->  | AN65: =NA() ->  | AO65: =NA() ->  | AP65: =NA() ->  | AQ65: =NA() ->  | AR65: =NA() ->  | AS65: 1256293 | AT65: =NA() ->  | AU65: =NA() ->  | AV65: 1417018 | AW65: 3586000 | AX65: =NA() ->  | AY65: =NA() ->  | AZ65: =NA() ->  | BA65: 9104435 | BB65: =NA() ->  | BC65: =NA() ->  | BD65: 11290691 | BE65: 1632648 | BF65: =NA() ->  | BG65: =NA() ->  | BH65: 233557 | BI65: =NA() ->  | BJ65: =NA() ->  | BK65: 2100300 | BL65: 5942304 | BM65: =NA() ->  | BN65: 2041230 | BO65: =NA() ->  | BP65: =NA() ->  | BQ65: =NA() ->  | BR65: 392032 | BS65: 509479 | BT65: =NA() ->  | BU65: =NA() ->  | BV65: =NA() ->  | BW65: =NA() ->  | BX65: 2740946 | BY65: =NA() ->  | BZ65: =NA() ->  | CA65: =NA() ->  | CB65: =NA() ->  | CC65: =NA() ->  | CD65: =NA() ->  | CE65: 2413499 | CF65: =NA() ->  | CG65: =NA() ->  | CH65: 3367948 | CI65: 33057000 | CJ65: =NA() ->  | CK65: =NA() ->  | CL65: =NA() ->  | CM65: 14699309 | CN65: =NA() ->  | CO65: =NA() ->  | CP65: 27730429 | CQ65: =NA() ->  | CR65: =NA() ->  | CS65: =NA() ->  | CT65: 275725 | CU65: =NA() ->  | CV65: =NA() ->  | CW65: 6513600 | CX65: 8190986 | CY65: =NA() ->  | CZ65: 3233052 | DA65: =NA() ->  | DB65: =NA() ->  | DC65: =NA() ->  | DD65: 1614473 | DE65: 1826602 | DF65: =NA() ->  | DG65: =NA() ->  | DH65: =NA() ->  | DI65: =NA() ->  | DJ65: 5527283 | DK65: =NA() ->  | DL65: =NA() ->  | DM65: =NA() ->  | DN65: =NA() -> 
B66: 07 | C66: 31 | D66: 1992M07 | E66: =NA() ->  | F66: =NA() ->  | G66: 3413314 | H66: =NA() ->  | I66: =NA() ->  | J66: 4249007 | K66: 35843000 | L66: =NA() ->  | M66: =NA() ->  | N66: =NA() ->  | O66: 8459642 | P66: =NA() ->  | Q66: =NA() ->  | R66: 31142217 | S66: =NA() ->  | T66: =NA() ->  | U66: =NA() ->  | V66: 38540 | W66: =NA() ->  | X66: =NA() ->  | Y66: 7905300 | Z66: 3330645 | AA66: =NA() ->  | AB66: 2114412 | AC66: =NA() ->  | AD66: =NA() ->  | AE66: =NA() ->  | AF66: 1743500 | AG66: 1925319 | AH66: 63000000 | AI66: =NA() ->  | AJ66: =NA() ->  | AK66: =NA() ->  | AL66: 5008133 | AM66: =NA() ->  | AN66: =NA() ->  | AO66: =NA() ->  | AP66: =NA() ->  | AQ66: =NA() ->  | AR66: =NA() ->  | AS66: 1791807 | AT66: =NA() ->  | AU66: =NA() ->  | AV66: 3924701 | AW66: 5760000 | AX66: =NA() ->  | AY66: =NA() ->  | AZ66: =NA() ->  | BA66: 10884092 | BB66: =NA() ->  | BC66: =NA() ->  | BD66: 14685346 | BE66: 1724375 | BF66: =NA() ->  | BG66: =NA() ->  | BH66: 555507 | BI66: =NA() ->  | BJ66: =NA() ->  | BK66: 2954700 | BL66: 10948452 | BM66: =NA() ->  | BN66: 2588825 | BO66: =NA() ->  | BP66: =NA() ->  | BQ66: =NA() ->  | BR66: 592986 | BS66: 681452 | BT66: =NA() ->  | BU66: =NA() ->  | BV66: =NA() ->  | BW66: =NA() ->  | BX66: 4598605 | BY66: =NA() ->  | BZ66: =NA() ->  | CA66: =NA() ->  | CB66: =NA() ->  | CC66: =NA() ->  | CD66: =NA() ->  | CE66: 5205121 | CF66: =NA() ->  | CG66: =NA() ->  | CH66: 8173708 | CI66: 41603000 | CJ66: =NA() ->  | CK66: =NA() ->  | CL66: =NA() ->  | CM66: 19343734 | CN66: =NA() ->  | CO66: =NA() ->  | CP66: 45827563 | CQ66: =NA() ->  | CR66: =NA() ->  | CS66: =NA() ->  | CT66: 594047 | CU66: =NA() ->  | CV66: =NA() ->  | CW66: 10860000 | CX66: 14279097 | CY66: =NA() ->  | CZ66: 4703237 | DA66: =NA() ->  | DB66: =NA() ->  | DC66: =NA() ->  | DD66: 2336486 | DE66: 2606771 | DF66: =NA() ->  | DG66: =NA() ->  | DH66: =NA() ->  | DI66: =NA() ->  | DJ66: 9606738 | DK66: =NA() ->  | DL66: =NA() ->  | DM66: =NA() ->  | DN66: =NA() -> 
C67: 32 | D67: 1992M08 | E67: =NA() ->  | F67: =NA() ->  | G67: 3062503 | H67: =NA() ->  | I67: =NA() ->  | J67: 1869005 | K67: 35701000 | L67: =NA() ->  | M67: =NA() ->  | N67: =NA() ->  | O67: 13077672 | P67: =NA() ->  | Q67: =NA() ->  | R67: 47454323 | S67: =NA() ->  | T67: =NA() ->  | U67: =NA() ->  | V67: 36474 | W67: =NA() ->  | X67: =NA() ->  | Y67: 9138000 | Z67: 3728077 | AA67: =NA() ->  | AB67: 3233428 | AC67: =NA() ->  | AD67: =NA() ->  | AE67: =NA() ->  | AF67: 899450 | AG67: 1499853 | AH67: 82000000 | AI67: =NA() ->  | AJ67: =NA() ->  | AK67: =NA() ->  | AL67: 5272977 | AM67: =NA() ->  | AN67: =NA() ->  | AO67: =NA() ->  | AP67: =NA() ->  | AQ67: =NA() ->  | AR67: =NA() ->  | AS67: 1976685 | AT67: =NA() ->  | AU67: =NA() ->  | AV67: 2626655 | AW67: 5952000 | AX67: =NA() ->  | AY67: =NA() ->  | AZ67: =NA() ->  | BA67: 12561178 | BB67: =NA() ->  | BC67: =NA() ->  | BD67: 12589472 | BE67: 1751816 | BF67: =NA() ->  | BG67: =NA() ->  | BH67: 493774 | BI67: =NA() ->  | BJ67: =NA() ->  | BK67: 3257400 | BL67: 12503618 | BM67: =NA() ->  | BN67: 3134971 | BO67: =NA() ->  | BP67: =NA() ->  | BQ67: =NA() ->  | BR67: 400539 | BS67: 533657 | BT67: =NA() ->  | BU67: =NA() ->  | BV67: =NA() ->  | BW67: =NA() ->  | BX67: 6393778 | BY67: =NA() ->  | BZ67: =NA() ->  | CA67: =NA() ->  | CB67: =NA() ->  | CC67: =NA() ->  | CD67: =NA() ->  | CE67: 5039188 | CF67: =NA() ->  | CG67: =NA() ->  | CH67: 4495660 | CI67: 41653000 | CJ67: =NA() ->  | CK67: =NA() ->  | CL67: =NA() ->  | CM67: 25638850 | CN67: =NA() ->  | CO67: =NA() ->  | CP67: 60043795 | CQ67: =NA() ->  | CR67: =NA() ->  | CS67: =NA() ->  | CT67: 530248 | CU67: =NA() ->  | CV67: =NA() ->  | CW67: 12395400 | CX67: 16231695 | CY67: =NA() ->  | CZ67: 6368399 | DA67: =NA() ->  | DB67: =NA() ->  | DC67: =NA() ->  | DD67: 1299989 | DE67: 2033510 | DF67: =NA() ->  | DG67: =NA() ->  | DH67: =NA() ->  | DI67: =NA() ->  | DJ67: 11666755 | DK67: =NA() ->  | DL67: =NA() ->  | DM67: =NA() ->  | DN67: =NA() -> 
C68: 33 | D68: 1992M09 | E68: =NA() ->  | F68: =NA() ->  | G68: 1105437 | H68: =NA() ->  | I68: =NA() ->  | J68: 998772 | K68: 29669000 | L68: =NA() ->  | M68: =NA() ->  | N68: =NA() ->  | O68: 7185974 | P68: =NA() ->  | Q68: =NA() ->  | R68: 16853386 | S68: =NA() ->  | T68: =NA() ->  | U68: =NA() ->  | V68: 23399 | W68: =NA() ->  | X68: =NA() ->  | Y68: 3266800 | Z68: 2263441 | AA68: =NA() ->  | AB68: 1563366 | AC68: =NA() ->  | AD68: =NA() ->  | AE68: =NA() ->  | AF68: 654243 | AG68: 1157783 | AH68: 36000000 | AI68: =NA() ->  | AJ68: =NA() ->  | AK68: =NA() ->  | AL68: 3662533 | AM68: =NA() ->  | AN68: =NA() ->  | AO68: =NA() ->  | AP68: =NA() ->  | AQ68: =NA() ->  | AR68: =NA() ->  | AS68: 1182343 | AT68: =NA() ->  | AU68: =NA() ->  | AV68: 708556 | AW68: 3886000 | AX68: =NA() ->  | AY68: =NA() ->  | AZ68: =NA() ->  | BA68: 10523200 | BB68: =NA() ->  | BC68: =NA() ->  | BD68: 10973792 | BE68: 1677714 | BF68: =NA() ->  | BG68: =NA() ->  | BH68: 158087 | BI68: =NA() ->  | BJ68: =NA() ->  | BK68: 1594400 | BL68: 7049507 | BM68: =NA() ->  | BN68: 2234098 | BO68: =NA() ->  | BP68: =NA() ->  | BQ68: =NA() ->  | BR68: 165454 | BS68: 269963 | BT68: =NA() ->  | BU68: =NA() ->  | BV68: =NA() ->  | BW68: =NA() ->  | BX68: 3414708 | BY68: =NA() ->  | BZ68: =NA() ->  | CA68: =NA() ->  | CB68: =NA() ->  | CC68: =NA() ->  | CD68: =NA() ->  | CE68: 2287780 | CF68: =NA() ->  | CG68: =NA() ->  | CH68: 1707328 | CI68: 33555000 | CJ68: =NA() ->  | CK68: =NA() ->  | CL68: =NA() ->  | CM68: 17709174 | CN68: =NA() ->  | CO68: =NA() ->  | CP68: 27827178 | CQ68: =NA() ->  | CR68: =NA() ->  | CS68: =NA() ->  | CT68: 181486 | CU68: =NA() ->  | CV68: =NA() ->  | CW68: 4861200 | CX68: 9312948 | CY68: =NA() ->  | CZ68: 3797464 | DA68: =NA() ->  | DB68: =NA() ->  | DC68: =NA() ->  | DD68: 819697 | DE68: 1427746 | DF68: =NA() ->  | DG68: =NA() ->  | DH68: =NA() ->  | DI68: =NA() ->  | DJ68: 7077241 | DK68: =NA() ->  | DL68: =NA() ->  | DM68: =NA() ->  | DN68: =NA() -> 
C69: 34 | D69: 1992M10 | E69: =NA() ->  | F69: =NA() ->  | G69: 871052 | H69: =NA() ->  | I69: =NA() ->  | J69: 766696 | K69: 25719000 | L69: =NA() ->  | M69: =NA() ->  | N69: =NA() ->  | O69: 4481502 | P69: =NA() ->  | Q69: =NA() ->  | R69: 7252732 | S69: =NA() ->  | T69: =NA() ->  | U69: =NA() ->  | V69: 19943 | W69: =NA() ->  | X69: =NA() ->  | Y69: 2681000 | Z69: 1450679 | AA69: =NA() ->  | AB69: 822827 | AC69: =NA() ->  | AD69: =NA() ->  | AE69: =NA() ->  | AF69: 591322 | AG69: 995865 | AH69: 27000000 | AI69: =NA() ->  | AJ69: =NA() ->  | AK69: =NA() ->  | AL69: 3296223 | AM69: =NA() ->  | AN69: =NA() ->  | AO69: =NA() ->  | AP69: =NA() ->  | AQ69: =NA() ->  | AR69: =NA() ->  | AS69: 1127656 | AT69: =NA() ->  | AU69: =NA() ->  | AV69: 443977 | AW69: 3095000 | AX69: =NA() ->  | AY69: =NA() ->  | AZ69: =NA() ->  | BA69: 7471848 | BB69: =NA() ->  | BC69: =NA() ->  | BD69: 5979020 | BE69: 1486366 | BF69: =NA() ->  | BG69: =NA() ->  | BH69: 129911 | BI69: =NA() ->  | BJ69: =NA() ->  | BK69: 1268900 | BL69: 3215428 | BM69: =NA() ->  | BN69: 1594088 | BO69: =NA() ->  | BP69: =NA() ->  | BQ69: =NA() ->  | BR69: 131705 | BS69: 206985 | BT69: =NA() ->  | BU69: =NA() ->  | BV69: =NA() ->  | BW69: =NA() ->  | BX69: 1853853 | BY69: =NA() ->  | BZ69: =NA() ->  | CA69: =NA() ->  | CB69: =NA() ->  | CC69: =NA() ->  | CD69: =NA() ->  | CE69: 1998708 | CF69: =NA() ->  | CG69: =NA() ->  | CH69: 1210673 | CI69: 28814000 | CJ69: =NA() ->  | CK69: =NA() ->  | CL69: =NA() ->  | CM69: 11953350 | CN69: =NA() ->  | CO69: =NA() ->  | CP69: 13231752 | CQ69: =NA() ->  | CR69: =NA() ->  | CS69: =NA() ->  | CT69: 149854 | CU69: =NA() ->  | CV69: =NA() ->  | CW69: 3949900 | CX69: 4666107 | CY69: =NA() ->  | CZ69: 2416915 | DA69: =NA() ->  | DB69: =NA() ->  | DC69: =NA() ->  | DD69: 723027 | DE69: 1202850 | DF69: =NA() ->  | DG69: =NA() ->  | DH69: =NA() ->  | DI69: =NA() ->  | DJ69: 5150076 | DK69: =NA() ->  | DL69: =NA() ->  | DM69: =NA() ->  | DN69: =NA() -> 
C70: 35 | D70: 1992M11 | E70: =NA() ->  | F70: =NA() ->  | G70: 746320 | H70: =NA() ->  | I70: =NA() ->  | J70: 453874 | K70: 15026000 | L70: =NA() ->  | M70: =NA() ->  | N70: =NA() ->  | O70: 3364213 | P70: =NA() ->  | Q70: =NA() ->  | R70: 5434348 | S70: =NA() ->  | T70: =NA() ->  | U70: =NA() ->  | V70: 20097 | W70: =NA() ->  | X70: =NA() ->  | Y70: 1586100 | Z70: 960468 | AA70: =NA() ->  | AB70: 585991 | AC70: =NA() ->  | AD70: =NA() ->  | AE70: =NA() ->  | AF70: 571101 | AG70: 968792 | AH70: 11000000 | AI70: =NA() ->  | AJ70: =NA() ->  | AK70: =NA() ->  | AL70: 1186070 | AM70: =NA() ->  | AN70: =NA() ->  | AO70: =NA() ->  | AP70: =NA() ->  | AQ70: =NA() ->  | AR70: =NA() ->  | AS70: 725585 | AT70: =NA() ->  | AU70: =NA() ->  | AV70: 252360 | AW70: 2035000 | AX70: =NA() ->  | AY70: =NA() ->  | AZ70: =NA() ->  | BA70: 3341454 | BB70: =NA() ->  | BC70: =NA() ->  | BD70: 2201585 | BE70: 754240 | BF70: =NA() ->  | BG70: =NA() ->  | BH70: 88353 | BI70: =NA() ->  | BJ70: =NA() ->  | BK70: 652600 | BL70: 1093969 | BM70: =NA() ->  | BN70: 838172 | BO70: =NA() ->  | BP70: =NA() ->  | BQ70: =NA() ->  | BR70: 125899 | BS70: 153058 | BT70: =NA() ->  | BU70: =NA() ->  | BV70: =NA() ->  | BW70: =NA() ->  | BX70: 946970 | BY70: =NA() ->  | BZ70: =NA() ->  | CA70: =NA() ->  | CB70: =NA() ->  | CC70: =NA() ->  | CD70: =NA() ->  | CE70: 1471905 | CF70: =NA() ->  | CG70: =NA() ->  | CH70: 706234 | CI70: 17061000 | CJ70: =NA() ->  | CK70: =NA() ->  | CL70: =NA() ->  | CM70: 6705667 | CN70: =NA() ->  | CO70: =NA() ->  | CP70: 7635933 | CQ70: =NA() ->  | CR70: =NA() ->  | CS70: =NA() ->  | CT70: 108450 | CU70: =NA() ->  | CV70: =NA() ->  | CW70: 2238700 | CX70: 2054437 | CY70: =NA() ->  | CZ70: 1424163 | DA70: =NA() ->  | DB70: =NA() ->  | DC70: =NA() ->  | DD70: 697000 | DE70: 1121850 | DF70: =NA() ->  | DG70: =NA() ->  | DH70: =NA() ->  | DI70: =NA() ->  | DJ70: 2133040 | DK70: =NA() ->  | DL70: =NA() ->  | DM70: =NA() ->  | DN70: =NA() -> 
C71: 36 | D71: 1992M12 | E71: =NA() ->  | F71: =NA() ->  | G71: 557109 | H71: =NA() ->  | I71: =NA() ->  | J71: 265619 | K71: 14274000 | L71: =NA() ->  | M71: =NA() ->  | N71: =NA() ->  | O71: 3230043 | P71: =NA() ->  | Q71: =NA() ->  | R71: 6872717 | S71: =NA() ->  | T71: =NA() ->  | U71: =NA() ->  | V71: 19944 | W71: =NA() ->  | X71: =NA() ->  | Y71: 1605300 | Z71: 1107751 | AA71: =NA() ->  | AB71: 522308 | AC71: =NA() ->  | AD71: =NA() ->  | AE71: =NA() ->  | AF71: 430926 | AG71: 785423 | AH71: 34000000 | AI71: =NA() ->  | AJ71: =NA() ->  | AK71: =NA() ->  | AL71: 1373456 | AM71: =NA() ->  | AN71: =NA() ->  | AO71: =NA() ->  | AP71: =NA() ->  | AQ71: =NA() ->  | AR71: =NA() ->  | AS71: 657093 | AT71: =NA() ->  | AU71: =NA() ->  | AV71: 241327 | AW71: 1741000 | AX71: =NA() ->  | AY71: =NA() ->  | AZ71: =NA() ->  | BA71: 3124615 | BB71: =NA() ->  | BC71: =NA() ->  | BD71: 2013722 | BE71: 510470 | BF71: =NA() ->  | BG71: =NA() ->  | BH71: 69422 | BI71: =NA() ->  | BJ71: =NA() ->  | BK71: 601900 | BL71: 4555742 | BM71: =NA() ->  | BN71: 722351 | BO71: =NA() ->  | BP71: =NA() ->  | BQ71: =NA() ->  | BR71: 109344 | BS71: 130565 | BT71: =NA() ->  | BU71: =NA() ->  | BV71: =NA() ->  | BW71: =NA() ->  | BX71: 1714879 | BY71: =NA() ->  | BZ71: =NA() ->  | CA71: =NA() ->  | CB71: =NA() ->  | CC71: =NA() ->  | CD71: =NA() ->  | CE71: 1214202 | CF71: =NA() ->  | CG71: =NA() ->  | CH71: 506946 | CI71: 16015000 | CJ71: =NA() ->  | CK71: =NA() ->  | CL71: =NA() ->  | CM71: 6354658 | CN71: =NA() ->  | CO71: =NA() ->  | CP71: 8886439 | CQ71: =NA() ->  | CR71: =NA() ->  | CS71: =NA() ->  | CT71: 89366 | CU71: =NA() ->  | CV71: =NA() ->  | CW71: 2207200 | CX71: 5663493 | CY71: =NA() ->  | CZ71: 1244659 | DA71: =NA() ->  | DB71: =NA() ->  | DC71: =NA() ->  | DD71: 540270 | DE71: 915988 | DF71: =NA() ->  | DG71: =NA() ->  | DH71: =NA() ->  | DI71: =NA() ->  | DJ71: 3088335 | DK71: =NA() ->  | DL71: =NA() ->  | DM71: =NA() ->  | DN71: =NA() -> 
A72: 1993 | B72: 01 | C72: 37 | D72: 1993M01 | E72: =NA() ->  | F72: =NA() ->  | G72: 331672 | H72: =NA() ->  | I72: =NA() ->  | J72: 294320 | K72: 14157350 | L72: =NA() ->  | M72: =NA() ->  | N72: =NA() ->  | O72: 3019079 | P72: =NA() ->  | Q72: =NA() ->  | R72: 7800844 | S72: =NA() ->  | T72: =NA() ->  | U72: =NA() ->  | V72: 21060 | W72: =NA() ->  | X72: =NA() ->  | Y72: 1161600 | Z72: 1726666 | AA72: =NA() ->  | AB72: 489793 | AC72: =NA() ->  | AD72: =NA() ->  | AE72: =NA() ->  | AF72: 516980 | AG72: 874327 | AH72: 11000000 | AI72: =NA() ->  | AJ72: =NA() ->  | AK72: =NA() ->  | AL72: 3223008 | AM72: =NA() ->  | AN72: =NA() ->  | AO72: =NA() ->  | AP72: =NA() ->  | AQ72: =NA() ->  | AR72: =NA() ->  | AS72: 578157 | AT72: =NA() ->  | AU72: =NA() ->  | AV72: 185803 | AW72: 1610582 | AX72: =NA() ->  | AY72: =NA() ->  | AZ72: =NA() ->  | BA72: 3632184 | BB72: =NA() ->  | BC72: =NA() ->  | BD72: 2479155 | BE72: 446027 | BF72: =NA() ->  | BG72: =NA() ->  | BH72: 75582 | BI72: =NA() ->  | BJ72: =NA() ->  | BK72: 593100 | BL72: 7374884 | BM72: =NA() ->  | BN72: 753938 | BO72: =NA() ->  | BP72: =NA() ->  | BQ72: =NA() ->  | BR72: 104349 | BS72: 141462 | BT72: =NA() ->  | BU72: =NA() ->  | BV72: =NA() ->  | BW72: =NA() ->  | BX72: 3660686 | BY72: =NA() ->  | BZ72: =NA() ->  | CA72: =NA() ->  | CB72: =NA() ->  | CC72: =NA() ->  | CD72: =NA() ->  | CE72: 909829 | CF72: =NA() ->  | CG72: =NA() ->  | CH72: 480123 | CI72: 15767932 | CJ72: =NA() ->  | CK72: =NA() ->  | CL72: =NA() ->  | CM72: 6651263 | CN72: =NA() ->  | CO72: =NA() ->  | CP72: 10279999 | CQ72: =NA() ->  | CR72: =NA() ->  | CS72: =NA() ->  | CT72: 96642 | CU72: =NA() ->  | CV72: =NA() ->  | CW72: 1754700 | CX72: 9101550 | CY72: =NA() ->  | CZ72: 1243731 | DA72: =NA() ->  | DB72: =NA() ->  | DC72: =NA() ->  | DD72: 621329 | DE72: 1015789 | DF72: =NA() ->  | DG72: =NA() ->  | DH72: =NA() ->  | DI72: =NA() ->  | DJ72: 6883694 | DK72: =NA() ->  | DL72: =NA() ->  | DM72: =NA() ->  | DN72: =NA() -> 
C73: 38 | D73: 1993M02 | E73: =NA() ->  | F73: =NA() ->  | G73: 516429 | H73: =NA() ->  | I73: =NA() ->  | J73: 384600 | K73: 15353689 | L73: =NA() ->  | M73: =NA() ->  | N73: =NA() ->  | O73: 3174832 | P73: =NA() ->  | Q73: =NA() ->  | R73: 7569570 | S73: =NA() ->  | T73: =NA() ->  | U73: =NA() ->  | V73: 21109 | W73: =NA() ->  | X73: =NA() ->  | Y73: 1377200 | Z73: 2304623 | AA73: =NA() ->  | AB73: 563503 | AC73: =NA() ->  | AD73: =NA() ->  | AE73: =NA() ->  | AF73: 702122 | AG73: 1140533 | AH73: 13000000 | AI73: =NA() ->  | AJ73: =NA() ->  | AK73: =NA() ->  | AL73: 4913553 | AM73: =NA() ->  | AN73: =NA() ->  | AO73: =NA() ->  | AP73: =NA() ->  | AQ73: =NA() ->  | AR73: =NA() ->  | AS73: 659882 | AT73: =NA() ->  | AU73: =NA() ->  | AV73: 196900 | AW73: 2117907 | AX73: =NA() ->  | AY73: =NA() ->  | AZ73: =NA() ->  | BA73: 3837190 | BB73: =NA() ->  | BC73: =NA() ->  | BD73: 3057281 | BE73: 463269 | BF73: =NA() ->  | BG73: =NA() ->  | BH73: 80512 | BI73: =NA() ->  | BJ73: =NA() ->  | BK73: 601700 | BL73: 7658950 | BM73: =NA() ->  | BN73: 896089 | BO73: =NA() ->  | BP73: =NA() ->  | BQ73: =NA() ->  | BR73: 113934 | BS73: 197583 | BT73: =NA() ->  | BU73: =NA() ->  | BV73: =NA() ->  | BW73: =NA() ->  | BX73: 3053945 | BY73: =NA() ->  | BZ73: =NA() ->  | CA73: =NA() ->  | CB73: =NA() ->  | CC73: =NA() ->  | CD73: =NA() ->  | CE73: 1176311 | CF73: =NA() ->  | CG73: =NA() ->  | CH73: 581500 | CI73: 17471596 | CJ73: =NA() ->  | CK73: =NA() ->  | CL73: =NA() ->  | CM73: 7012022 | CN73: =NA() ->  | CO73: =NA() ->  | CP73: 10626851 | CQ73: =NA() ->  | CR73: =NA() ->  | CS73: =NA() ->  | CT73: 101621 | CU73: =NA() ->  | CV73: =NA() ->  | CW73: 1978900 | CX73: 9963573 | CY73: =NA() ->  | CZ73: 1459592 | DA73: =NA() ->  | DB73: =NA() ->  | DC73: =NA() ->  | DD73: 816056 | DE73: 1338116 | DF73: =NA() ->  | DG73: =NA() ->  | DH73: =NA() ->  | DI73: =NA() ->  | DJ73: 7967498 | DK73: =NA() ->  | DL73: =NA() ->  | DM73: =NA() ->  | DN73: =NA() -> 
C74: 39 | D74: 1993M03 | E74: =NA() ->  | F74: =NA() ->  | G74: 509731 | H74: =NA() ->  | I74: =NA() ->  | J74: 615700 | K74: 17758213 | L74: =NA() ->  | M74: =NA() ->  | N74: =NA() ->  | O74: 3946015 | P74: =NA() ->  | Q74: =NA() ->  | R74: 7747466 | S74: =NA() ->  | T74: =NA() ->  | U74: =NA() ->  | V74: 24351 | W74: =NA() ->  | X74: =NA() ->  | Y74: 1635400 | Z74: 2055604 | AA74: =NA() ->  | AB74: 614000 | AC74: =NA() ->  | AD74: =NA() ->  | AE74: =NA() ->  | AF74: 832583 | AG74: 1490802 | AH74: 16000000 | AI74: =NA() ->  | AJ74: =NA() ->  | AK74: =NA() ->  | AL74: 3508039 | AM74: =NA() ->  | AN74: =NA() ->  | AO74: =NA() ->  | AP74: =NA() ->  | AQ74: =NA() ->  | AR74: =NA() ->  | AS74: 824278 | AT74: =NA() ->  | AU74: =NA() ->  | AV74: 275000 | AW74: 2316972 | AX74: =NA() ->  | AY74: =NA() ->  | AZ74: =NA() ->  | BA74: 4615898 | BB74: =NA() ->  | BC74: =NA() ->  | BD74: 3817830 | BE74: 703051 | BF74: =NA() ->  | BG74: =NA() ->  | BH74: 95507 | BI74: =NA() ->  | BJ74: =NA() ->  | BK74: 807000 | BL74: 6100246 | BM74: =NA() ->  | BN74: 1199394 | BO74: =NA() ->  | BP74: =NA() ->  | BQ74: =NA() ->  | BR74: 154158 | BS74: 214629 | BT74: =NA() ->  | BU74: =NA() ->  | BV74: =NA() ->  | BW74: =NA() ->  | BX74: 3522926 | BY74: =NA() ->  | BZ74: =NA() ->  | CA74: =NA() ->  | CB74: =NA() ->  | CC74: =NA() ->  | CD74: =NA() ->  | CE74: 1334009 | CF74: =NA() ->  | CG74: =NA() ->  | CH74: 890700 | CI74: 20075185 | CJ74: =NA() ->  | CK74: =NA() ->  | CL74: =NA() ->  | CM74: 8561913 | CN74: =NA() ->  | CO74: =NA() ->  | CP74: 11565296 | CQ74: =NA() ->  | CR74: =NA() ->  | CS74: =NA() ->  | CT74: 119858 | CU74: =NA() ->  | CV74: =NA() ->  | CW74: 2442400 | CX74: 8155850 | CY74: =NA() ->  | CZ74: 1813394 | DA74: =NA() ->  | DB74: =NA() ->  | DC74: =NA() ->  | DD74: 986741 | DE74: 1705431 | DF74: =NA() ->  | DG74: =NA() ->  | DH74: =NA() ->  | DI74: =NA() ->  | DJ74: 7030965 | DK74: =NA() ->  | DL74: =NA() ->  | DM74: =NA() ->  | DN74: =NA() -> 
C75: 40 | D75: 1993M04 | E75: =NA() ->  | F75: =NA() ->  | G75: 1087449 | H75: =NA() ->  | I75: =NA() ->  | J75: 942600 | K75: 21032975 | L75: =NA() ->  | M75: =NA() ->  | N75: =NA() ->  | O75: 5561113 | P75: =NA() ->  | Q75: =NA() ->  | R75: 8256064 | S75: =NA() ->  | T75: =NA() ->  | U75: =NA() ->  | V75: 31572 | W75: =NA() ->  | X75: =NA() ->  | Y75: 2166100 | Z75: 1473225 | AA75: =NA() ->  | AB75: 894331 | AC75: =NA() ->  | AD75: =NA() ->  | AE75: =NA() ->  | AF75: 738388 | AG75: 1227970 | AH75: 29000000 | AI75: =NA() ->  | AJ75: =NA() ->  | AK75: =NA() ->  | AL75: 2403668 | AM75: =NA() ->  | AN75: =NA() ->  | AO75: =NA() ->  | AP75: =NA() ->  | AQ75: =NA() ->  | AR75: =NA() ->  | AS75: 970121 | AT75: =NA() ->  | AU75: =NA() ->  | AV75: 540000 | AW75: 2289288 | AX75: =NA() ->  | AY75: =NA() ->  | AZ75: =NA() ->  | BA75: 5357675 | BB75: =NA() ->  | BC75: =NA() ->  | BD75: 6409994 | BE75: 1041254 | BF75: =NA() ->  | BG75: =NA() ->  | BH75: 160421 | BI75: =NA() ->  | BJ75: =NA() ->  | BK75: 1994000 | BL75: 3680001 | BM75: =NA() ->  | BN75: 1458811 | BO75: =NA() ->  | BP75: =NA() ->  | BQ75: =NA() ->  | BR75: 119865 | BS75: 194170 | BT75: =NA() ->  | BU75: =NA() ->  | BV75: =NA() ->  | BW75: =NA() ->  | BX75: 3351566 | BY75: =NA() ->  | BZ75: =NA() ->  | CA75: =NA() ->  | CB75: =NA() ->  | CC75: =NA() ->  | CD75: =NA() ->  | CE75: 2057570 | CF75: =NA() ->  | CG75: =NA() ->  | CH75: 1482600 | CI75: 23322263 | CJ75: =NA() ->  | CK75: =NA() ->  | CL75: =NA() ->  | CM75: 10918788 | CN75: =NA() ->  | CO75: =NA() ->  | CP75: 14666058 | CQ75: =NA() ->  | CR75: =NA() ->  | CS75: =NA() ->  | CT75: 191993 | CU75: =NA() ->  | CV75: =NA() ->  | CW75: 4160100 | CX75: 5153226 | CY75: =NA() ->  | CZ75: 2353142 | DA75: =NA() ->  | DB75: =NA() ->  | DC75: =NA() ->  | DD75: 858253 | DE75: 1422140 | DF75: =NA() ->  | DG75: =NA() ->  | DH75: =NA() ->  | DI75: =NA() ->  | DJ75: 5755234 | DK75: =NA() ->  | DL75: =NA() ->  | DM75: =NA() ->  | DN75: =NA() -> 
C76: 41 | D76: 1993M05 | E76: =NA() ->  | F76: =NA() ->  | G76: 1010936 | H76: =NA() ->  | I76: =NA() ->  | J76: 1556000 | K76: 27212895 | L76: =NA() ->  | M76: =NA() ->  | N76: =NA() ->  | O76: 4646692 | P76: =NA() ->  | Q76: =NA() ->  | R76: 8718298 | S76: =NA() ->  | T76: =NA() ->  | U76: =NA() ->  | V76: 45147 | W76: =NA() ->  | X76: =NA() ->  | Y76: 4491300 | Z76: 1835160 | AA76: =NA() ->  | AB76: 809461 | AC76: =NA() ->  | AD76: =NA() ->  | AE76: =NA() ->  | AF76: 635547 | AG76: 1191607 | AH76: 35000000 | AI76: =NA() ->  | AJ76: =NA() ->  | AK76: =NA() ->  | AL76: 2383242 | AM76: =NA() ->  | AN76: =NA() ->  | AO76: =NA() ->  | AP76: =NA() ->  | AQ76: =NA() ->  | AR76: =NA() ->  | AS76: 1111199 | AT76: =NA() ->  | AU76: =NA() ->  | AV76: 881900 | AW76: 3106815 | AX76: =NA() ->  | AY76: =NA() ->  | AZ76: =NA() ->  | BA76: 7906461 | BB76: =NA() ->  | BC76: =NA() ->  | BD76: 7787953 | BE76: 1131248 | BF76: =NA() ->  | BG76: =NA() ->  | BH76: 258298 | BI76: =NA() ->  | BJ76: =NA() ->  | BK76: 1761300 | BL76: 3495587 | BM76: =NA() ->  | BN76: 1601052 | BO76: =NA() ->  | BP76: =NA() ->  | BQ76: =NA() ->  | BR76: 193965 | BS76: 279750 | BT76: =NA() ->  | BU76: =NA() ->  | BV76: =NA() ->  | BW76: =NA() ->  | BX76: 1925127 | BY76: =NA() ->  | BZ76: =NA() ->  | CA76: =NA() ->  | CB76: =NA() ->  | CC76: =NA() ->  | CD76: =NA() ->  | CE76: 2122135 | CF76: =NA() ->  | CG76: =NA() ->  | CH76: 2437900 | CI76: 30319710 | CJ76: =NA() ->  | CK76: =NA() ->  | CL76: =NA() ->  | CM76: 12553153 | CN76: =NA() ->  | CO76: =NA() ->  | CP76: 16506251 | CQ76: =NA() ->  | CR76: =NA() ->  | CS76: =NA() ->  | CT76: 303445 | CU76: =NA() ->  | CV76: =NA() ->  | CW76: 6252600 | CX76: 5330747 | CY76: =NA() ->  | CZ76: 2410513 | DA76: =NA() ->  | DB76: =NA() ->  | DC76: =NA() ->  | DD76: 829512 | DE76: 1471357 | DF76: =NA() ->  | DG76: =NA() ->  | DH76: =NA() ->  | DI76: =NA() ->  | DJ76: 4308369 | DK76: =NA() ->  | DL76: =NA() ->  | DM76: =NA() ->  | DN76: =NA() -> 
C77: 42 | D77: 1993M06 | E77: =NA() ->  | F77: =NA() ->  | G77: 803735 | H77: =NA() ->  | I77: =NA() ->  | J77: 1804700 | K77: 28986740 | L77: =NA() ->  | M77: =NA() ->  | N77: =NA() ->  | O77: 5594398 | P77: =NA() ->  | Q77: =NA() ->  | R77: 16123525 | S77: =NA() ->  | T77: =NA() ->  | U77: =NA() ->  | V77: 43947 | W77: =NA() ->  | X77: =NA() ->  | Y77: 3338100 | Z77: 2242291 | AA77: =NA() ->  | AB77: 1093667 | AC77: =NA() ->  | AD77: =NA() ->  | AE77: =NA() ->  | AF77: 1133091 | AG77: 1408136 | AH77: 35000000 | AI77: =NA() ->  | AJ77: =NA() ->  | AK77: =NA() ->  | AL77: 2649616 | AM77: =NA() ->  | AN77: =NA() ->  | AO77: =NA() ->  | AP77: =NA() ->  | AQ77: =NA() ->  | AR77: =NA() ->  | AS77: 1004488 | AT77: =NA() ->  | AU77: =NA() ->  | AV77: 1279700 | AW77: 3333067 | AX77: =NA() ->  | AY77: =NA() ->  | AZ77: =NA() ->  | BA77: 9208252 | BB77: =NA() ->  | BC77: =NA() ->  | BD77: 10229132 | BE77: 1228579 | BF77: =NA() ->  | BG77: =NA() ->  | BH77: 229544 | BI77: =NA() ->  | BJ77: =NA() ->  | BK77: 1652600 | BL77: 5709577 | BM77: =NA() ->  | BN77: 1655045 | BO77: =NA() ->  | BP77: =NA() ->  | BQ77: =NA() ->  | BR77: 431028 | BS77: 507389 | BT77: =NA() ->  | BU77: =NA() ->  | BV77: =NA() ->  | BW77: =NA() ->  | BX77: 2763762 | BY77: =NA() ->  | BZ77: =NA() ->  | CA77: =NA() ->  | CB77: =NA() ->  | CC77: =NA() ->  | CD77: =NA() ->  | CE77: 1808223 | CF77: =NA() ->  | CG77: =NA() ->  | CH77: 3084400 | CI77: 32319807 | CJ77: =NA() ->  | CK77: =NA() ->  | CL77: =NA() ->  | CM77: 14802650 | CN77: =NA() ->  | CO77: =NA() ->  | CP77: 26352657 | CQ77: =NA() ->  | CR77: =NA() ->  | CS77: =NA() ->  | CT77: 273491 | CU77: =NA() ->  | CV77: =NA() ->  | CW77: 4990700 | CX77: 7951868 | CY77: =NA() ->  | CZ77: 2748712 | DA77: =NA() ->  | DB77: =NA() ->  | DC77: =NA() ->  | DD77: 1564119 | DE77: 1915525 | DF77: =NA() ->  | DG77: =NA() ->  | DH77: =NA() ->  | DI77: =NA() ->  | DJ77: 5413378 | DK77: =NA() ->  | DL77: =NA() ->  | DM77: =NA() ->  | DN77: =NA() -> 
B78: 07 | C78: 43 | D78: 1993M07 | E78: =NA() ->  | F78: =NA() ->  | G78: 2902676 | H78: =NA() ->  | I78: =NA() ->  | J78: 4018500 | K78: 34977641 | L78: =NA() ->  | M78: =NA() ->  | N78: =NA() ->  | O78: 9196942 | P78: =NA() ->  | Q78: =NA() ->  | R78: 30871906 | S78: =NA() ->  | T78: =NA() ->  | U78: =NA() ->  | V78: 45213 | W78: =NA() ->  | X78: =NA() ->  | Y78: 7677400 | Z78: 3200868 | AA78: =NA() ->  | AB78: 2253018 | AC78: =NA() ->  | AD78: =NA() ->  | AE78: =NA() ->  | AF78: 1803306 | AG78: 2229052 | AH78: 58000000 | AI78: =NA() ->  | AJ78: =NA() ->  | AK78: =NA() ->  | AL78: 5050648 | AM78: =NA() ->  | AN78: =NA() ->  | AO78: =NA() ->  | AP78: =NA() ->  | AQ78: =NA() ->  | AR78: =NA() ->  | AS78: 1610626 | AT78: =NA() ->  | AU78: =NA() ->  | AV78: 3304600 | AW78: 4897560 | AX78: =NA() ->  | AY78: =NA() ->  | AZ78: =NA() ->  | BA78: 12488316 | BB78: =NA() ->  | BC78: =NA() ->  | BD78: 15049814 | BE78: 1482849 | BF78: =NA() ->  | BG78: =NA() ->  | BH78: 623385 | BI78: =NA() ->  | BJ78: =NA() ->  | BK78: 2927100 | BL78: 10317118 | BM78: =NA() ->  | BN78: 2238960 | BO78: =NA() ->  | BP78: =NA() ->  | BQ78: =NA() ->  | BR78: 685934 | BS78: 761007 | BT78: =NA() ->  | BU78: =NA() ->  | BV78: =NA() ->  | BW78: =NA() ->  | BX78: 4695070 | BY78: =NA() ->  | BZ78: =NA() ->  | CA78: =NA() ->  | CB78: =NA() ->  | CC78: =NA() ->  | CD78: =NA() ->  | CE78: 4513302 | CF78: =NA() ->  | CG78: =NA() ->  | CH78: 7323100 | CI78: 39875201 | CJ78: =NA() ->  | CK78: =NA() ->  | CL78: =NA() ->  | CM78: 21685258 | CN78: =NA() ->  | CO78: =NA() ->  | CP78: 45921720 | CQ78: =NA() ->  | CR78: =NA() ->  | CS78: =NA() ->  | CT78: 668598 | CU78: =NA() ->  | CV78: =NA() ->  | CW78: 10604500 | CX78: 13517986 | CY78: =NA() ->  | CZ78: 4491978 | DA78: =NA() ->  | DB78: =NA() ->  | DC78: =NA() ->  | DD78: 2489240 | DE78: 2990059 | DF78: =NA() ->  | DG78: =NA() ->  | DH78: =NA() ->  | DI78: =NA() ->  | DJ78: 9745718 | DK78: =NA() ->  | DL78: =NA() ->  | DM78: =NA() ->  | DN78: =NA() -> 
C79: 44 | D79: 1993M08 | E79: =NA() ->  | F79: =NA() ->  | G79: 2565886 | H79: =NA() ->  | I79: =NA() ->  | J79: 1721400 | K79: 34872405 | L79: =NA() ->  | M79: =NA() ->  | N79: =NA() ->  | O79: 13934618 | P79: =NA() ->  | Q79: =NA() ->  | R79: 46485148 | S79: =NA() ->  | T79: =NA() ->  | U79: =NA() ->  | V79: 42019 | W79: =NA() ->  | X79: =NA() ->  | Y79: 8417700 | Z79: 3631186 | AA79: =NA() ->  | AB79: 3573849 | AC79: =NA() ->  | AD79: =NA() ->  | AE79: =NA() ->  | AF79: 963340 | AG79: 1600342 | AH79: 71000000 | AI79: =NA() ->  | AJ79: =NA() ->  | AK79: =NA() ->  | AL79: 4964659 | AM79: =NA() ->  | AN79: =NA() ->  | AO79: =NA() ->  | AP79: =NA() ->  | AQ79: =NA() ->  | AR79: =NA() ->  | AS79: 1683275 | AT79: =NA() ->  | AU79: =NA() ->  | AV79: 2196700 | AW79: 5041234 | AX79: =NA() ->  | AY79: =NA() ->  | AZ79: =NA() ->  | BA79: 14014453 | BB79: =NA() ->  | BC79: =NA() ->  | BD79: 13839472 | BE79: 1658459 | BF79: =NA() ->  | BG79: =NA() ->  | BH79: 540281 | BI79: =NA() ->  | BJ79: =NA() ->  | BK79: 2748500 | BL79: 11643574 | BM79: =NA() ->  | BN79: 2810150 | BO79: =NA() ->  | BP79: =NA() ->  | BQ79: =NA() ->  | BR79: 476513 | BS79: 585746 | BT79: =NA() ->  | BU79: =NA() ->  | BV79: =NA() ->  | BW79: =NA() ->  | BX79: 6003380 | BY79: =NA() ->  | BZ79: =NA() ->  | CA79: =NA() ->  | CB79: =NA() ->  | CC79: =NA() ->  | CD79: =NA() ->  | CE79: 4249161 | CF79: =NA() ->  | CG79: =NA() ->  | CH79: 3918100 | CI79: 39913639 | CJ79: =NA() ->  | CK79: =NA() ->  | CL79: =NA() ->  | CM79: 27949071 | CN79: =NA() ->  | CO79: =NA() ->  | CP79: 60324620 | CQ79: =NA() ->  | CR79: =NA() ->  | CS79: =NA() ->  | CT79: 582300 | CU79: =NA() ->  | CV79: =NA() ->  | CW79: 11166200 | CX79: 15274760 | CY79: =NA() ->  | CZ79: 6383999 | DA79: =NA() ->  | DB79: =NA() ->  | DC79: =NA() ->  | DD79: 1439853 | DE79: 2186088 | DF79: =NA() ->  | DG79: =NA() ->  | DH79: =NA() ->  | DI79: =NA() ->  | DJ79: 10968039 | DK79: =NA() ->  | DL79: =NA() ->  | DM79: =NA() ->  | DN79: =NA() -> 
C80: 45 | D80: 1993M09 | E80: =NA() ->  | F80: =NA() ->  | G80: 799290 | H80: =NA() ->  | I80: =NA() ->  | J80: 1011800 | K80: 28955494 | L80: =NA() ->  | M80: =NA() ->  | N80: =NA() ->  | O80: 7466378 | P80: =NA() ->  | Q80: =NA() ->  | R80: 15694947 | S80: =NA() ->  | T80: =NA() ->  | U80: =NA() ->  | V80: 30204 | W80: =NA() ->  | X80: =NA() ->  | Y80: 3147100 | Z80: 2255288 | AA80: =NA() ->  | AB80: 1388056 | AC80: =NA() ->  | AD80: =NA() ->  | AE80: =NA() ->  | AF80: 699667 | AG80: 1227956 | AH80: 34000000 | AI80: =NA() ->  | AJ80: =NA() ->  | AK80: =NA() ->  | AL80: 3352616 | AM80: =NA() ->  | AN80: =NA() ->  | AO80: =NA() ->  | AP80: =NA() ->  | AQ80: =NA() ->  | AR80: =NA() ->  | AS80: 1031558 | AT80: =NA() ->  | AU80: =NA() ->  | AV80: 692000 | AW80: 3541026 | AX80: =NA() ->  | AY80: =NA() ->  | AZ80: =NA() ->  | BA80: 11232901 | BB80: =NA() ->  | BC80: =NA() ->  | BD80: 11624701 | BE80: 1509709 | BF80: =NA() ->  | BG80: =NA() ->  | BH80: 165460 | BI80: =NA() ->  | BJ80: =NA() ->  | BK80: 1443300 | BL80: 6370548 | BM80: =NA() ->  | BN80: 2044963 | BO80: =NA() ->  | BP80: =NA() ->  | BQ80: =NA() ->  | BR80: 195857 | BS80: 293286 | BT80: =NA() ->  | BU80: =NA() ->  | BV80: =NA() ->  | BW80: =NA() ->  | BX80: 3240059 | BY80: =NA() ->  | BZ80: =NA() ->  | CA80: =NA() ->  | CB80: =NA() ->  | CC80: =NA() ->  | CD80: =NA() ->  | CE80: 1830848 | CF80: =NA() ->  | CG80: =NA() ->  | CH80: 1703800 | CI80: 32496520 | CJ80: =NA() ->  | CK80: =NA() ->  | CL80: =NA() ->  | CM80: 18699279 | CN80: =NA() ->  | CO80: =NA() ->  | CP80: 27319648 | CQ80: =NA() ->  | CR80: =NA() ->  | CS80: =NA() ->  | CT80: 195664 | CU80: =NA() ->  | CV80: =NA() ->  | CW80: 4590400 | CX80: 8625836 | CY80: =NA() ->  | CZ80: 3433019 | DA80: =NA() ->  | DB80: =NA() ->  | DC80: =NA() ->  | DD80: 895524 | DE80: 1521242 | DF80: =NA() ->  | DG80: =NA() ->  | DH80: =NA() ->  | DI80: =NA() ->  | DJ80: 6592675 | DK80: =NA() ->  | DL80: =NA() ->  | DM80: =NA() ->  | DN80: =NA() -> 
C81: 46 | D81: 1993M10 | E81: =NA() ->  | F81: =NA() ->  | G81: 674635 | H81: =NA() ->  | I81: =NA() ->  | J81: 587900 | K81: 24441583 | L81: =NA() ->  | M81: =NA() ->  | N81: =NA() ->  | O81: 4648037 | P81: =NA() ->  | Q81: =NA() ->  | R81: 7144591 | S81: =NA() ->  | T81: =NA() ->  | U81: =NA() ->  | V81: 28875 | W81: =NA() ->  | X81: =NA() ->  | Y81: 2510800 | Z81: 1464516 | AA81: =NA() ->  | AB81: 768618 | AC81: =NA() ->  | AD81: =NA() ->  | AE81: =NA() ->  | AF81: 640807 | AG81: 1082580 | AH81: 23000000 | AI81: =NA() ->  | AJ81: =NA() ->  | AK81: =NA() ->  | AL81: 3066114 | AM81: =NA() ->  | AN81: =NA() ->  | AO81: =NA() ->  | AP81: =NA() ->  | AQ81: =NA() ->  | AR81: =NA() ->  | AS81: 1013982 | AT81: =NA() ->  | AU81: =NA() ->  | AV81: 369200 | AW81: 2924329 | AX81: =NA() ->  | AY81: =NA() ->  | AZ81: =NA() ->  | BA81: 8456504 | BB81: =NA() ->  | BC81: =NA() ->  | BD81: 6281450 | BE81: 1469389 | BF81: =NA() ->  | BG81: =NA() ->  | BH81: 137384 | BI81: =NA() ->  | BJ81: =NA() ->  | BK81: 1335900 | BL81: 2948756 | BM81: =NA() ->  | BN81: 1567543 | BO81: =NA() ->  | BP81: =NA() ->  | BQ81: =NA() ->  | BR81: 152386 | BS81: 220482 | BT81: =NA() ->  | BU81: =NA() ->  | BV81: =NA() ->  | BW81: =NA() ->  | BX81: 1727227 | BY81: =NA() ->  | BZ81: =NA() ->  | CA81: =NA() ->  | CB81: =NA() ->  | CC81: =NA() ->  | CD81: =NA() ->  | CE81: 1688617 | CF81: =NA() ->  | CG81: =NA() ->  | CH81: 957100 | CI81: 27365912 | CJ81: =NA() ->  | CK81: =NA() ->  | CL81: =NA() ->  | CM81: 13104541 | CN81: =NA() ->  | CO81: =NA() ->  | CP81: 13426041 | CQ81: =NA() ->  | CR81: =NA() ->  | CS81: =NA() ->  | CT81: 166259 | CU81: =NA() ->  | CV81: =NA() ->  | CW81: 3846700 | CX81: 4413272 | CY81: =NA() ->  | CZ81: 2336161 | DA81: =NA() ->  | DB81: =NA() ->  | DC81: =NA() ->  | DD81: 793193 | DE81: 1303062 | DF81: =NA() ->  | DG81: =NA() ->  | DH81: =NA() ->  | DI81: =NA() ->  | DJ81: 4793341 | DK81: =NA() ->  | DL81: =NA() ->  | DM81: =NA() ->  | DN81: =NA() -> 
C82: 47 | D82: 1993M11 | E82: =NA() ->  | F82: =NA() ->  | G82: 648992 | H82: =NA() ->  | I82: =NA() ->  | J82: 467900 | K82: 14851048 | L82: =NA() ->  | M82: =NA() ->  | N82: =NA() ->  | O82: 3663762 | P82: =NA() ->  | Q82: =NA() ->  | R82: 5238428 | S82: =NA() ->  | T82: =NA() ->  | U82: =NA() ->  | V82: 25903 | W82: =NA() ->  | X82: =NA() ->  | Y82: 1619600 | Z82: 1010279 | AA82: =NA() ->  | AB82: 533716 | AC82: =NA() ->  | AD82: =NA() ->  | AE82: =NA() ->  | AF82: 595293 | AG82: 1084849 | AH82: 11000000 | AI82: =NA() ->  | AJ82: =NA() ->  | AK82: =NA() ->  | AL82: 1249793 | AM82: =NA() ->  | AN82: =NA() ->  | AO82: =NA() ->  | AP82: =NA() ->  | AQ82: =NA() ->  | AR82: =NA() ->  | AS82: 667168 | AT82: =NA() ->  | AU82: =NA() ->  | AV82: 268800 | AW82: 1895542 | AX82: =NA() ->  | AY82: =NA() ->  | AZ82: =NA() ->  | BA82: 4002453 | BB82: =NA() ->  | BC82: =NA() ->  | BD82: 2491471 | BE82: 703935 | BF82: =NA() ->  | BG82: =NA() ->  | BH82: 96926 | BI82: =NA() ->  | BJ82: =NA() ->  | BK82: 702900 | BL82: 1140694 | BM82: =NA() ->  | BN82: 885628 | BO82: =NA() ->  | BP82: =NA() ->  | BQ82: =NA() ->  | BR82: 153429 | BS82: 177447 | BT82: =NA() ->  | BU82: =NA() ->  | BV82: =NA() ->  | BW82: =NA() ->  | BX82: 1098933 | BY82: =NA() ->  | BZ82: =NA() ->  | CA82: =NA() ->  | CB82: =NA() ->  | CC82: =NA() ->  | CD82: =NA() ->  | CE82: 1316160 | CF82: =NA() ->  | CG82: =NA() ->  | CH82: 736700 | CI82: 16746590 | CJ82: =NA() ->  | CK82: =NA() ->  | CL82: =NA() ->  | CM82: 7666215 | CN82: =NA() ->  | CO82: =NA() ->  | CP82: 7729899 | CQ82: =NA() ->  | CR82: =NA() ->  | CS82: =NA() ->  | CT82: 122829 | CU82: =NA() ->  | CV82: =NA() ->  | CW82: 2322500 | CX82: 2150973 | CY82: =NA() ->  | CZ82: 1419344 | DA82: =NA() ->  | DB82: =NA() ->  | DC82: =NA() ->  | DD82: 748722 | DE82: 1262296 | DF82: =NA() ->  | DG82: =NA() ->  | DH82: =NA() ->  | DI82: =NA() ->  | DJ82: 2348726 | DK82: =NA() ->  | DL82: =NA() ->  | DM82: =NA() ->  | DN82: =NA() -> 
C83: 48 | D83: 1993M12 | E83: =NA() ->  | F83: =NA() ->  | G83: 401467 | H83: =NA() ->  | I83: =NA() ->  | J83: 280700 | K83: 13781278 | L83: =NA() ->  | M83: =NA() ->  | N83: =NA() ->  | O83: 3660656 | P83: =NA() ->  | Q83: =NA() ->  | R83: 6532698 | S83: =NA() ->  | T83: =NA() ->  | U83: =NA() ->  | V83: 23453 | W83: =NA() ->  | X83: =NA() ->  | Y83: 1448500 | Z83: 1105905 | AA83: =NA() ->  | AB83: 475270 | AC83: =NA() ->  | AD83: =NA() ->  | AE83: =NA() ->  | AF83: 476108 | AG83: 833468 | AH83: 33000000 | AI83: =NA() ->  | AJ83: =NA() ->  | AK83: =NA() ->  | AL83: 1377834 | AM83: =NA() ->  | AN83: =NA() ->  | AO83: =NA() ->  | AP83: =NA() ->  | AQ83: =NA() ->  | AR83: =NA() ->  | AS83: 526426 | AT83: =NA() ->  | AU83: =NA() ->  | AV83: 216800 | AW83: 1619319 | AX83: =NA() ->  | AY83: =NA() ->  | AZ83: =NA() ->  | BA83: 3379510 | BB83: =NA() ->  | BC83: =NA() ->  | BD83: 2362520 | BE83: 393444 | BF83: =NA() ->  | BG83: =NA() ->  | BH83: 73899 | BI83: =NA() ->  | BJ83: =NA() ->  | BK83: 610400 | BL83: 4094224 | BM83: =NA() ->  | BN83: 719787 | BO83: =NA() ->  | BP83: =NA() ->  | BQ83: =NA() ->  | BR83: 147531 | BS83: 144598 | BT83: =NA() ->  | BU83: =NA() ->  | BV83: =NA() ->  | BW83: =NA() ->  | BX83: 1686189 | BY83: =NA() ->  | BZ83: =NA() ->  | CA83: =NA() ->  | CB83: =NA() ->  | CC83: =NA() ->  | CD83: =NA() ->  | CE83: 927893 | CF83: =NA() ->  | CG83: =NA() ->  | CH83: 497500 | CI83: 15400597 | CJ83: =NA() ->  | CK83: =NA() ->  | CL83: =NA() ->  | CM83: 7040166 | CN83: =NA() ->  | CO83: =NA() ->  | CP83: 8895218 | CQ83: =NA() ->  | CR83: =NA() ->  | CS83: =NA() ->  | CT83: 97352 | CU83: =NA() ->  | CV83: =NA() ->  | CW83: 2058900 | CX83: 5200129 | CY83: =NA() ->  | CZ83: 1195057 | DA83: =NA() ->  | DB83: =NA() ->  | DC83: =NA() ->  | DD83: 623639 | DE83: 978066 | DF83: =NA() ->  | DG83: =NA() ->  | DH83: =NA() ->  | DI83: =NA() ->  | DJ83: 3064023 | DK83: =NA() ->  | DL83: =NA() ->  | DM83: =NA() ->  | DN83: =NA() -> 
A84: 1994 | B84: 01 | C84: 49 | D84: 1994M01 | E84: =NA() ->  | F84: =NA() ->  | G84: 360462 | H84: =NA() ->  | I84: =NA() ->  | J84: 316500 | K84: 14212925 | L84: =NA() ->  | M84: =NA() ->  | N84: 686467 | O84: 2846333 | P84: =NA() ->  | Q84: =NA() ->  | R84: 7910828 | S84: =NA() ->  | T84: =NA() ->  | U84: =NA() ->  | V84: 24508 | W84: =NA() ->  | X84: =NA() ->  | Y84: 1208800 | Z84: 1779723 | AA84: =NA() ->  | AB84: 452877 | AC84: =NA() ->  | AD84: =NA() ->  | AE84: =NA() ->  | AF84: 523467 | AG84: 1065240 | AH84: 6328000 | AI84: =NA() ->  | AJ84: =NA() ->  | AK84: =NA() ->  | AL84: =NA() ->  | AM84: =NA() ->  | AN84: =NA() ->  | AO84: =NA() ->  | AP84: =NA() ->  | AQ84: =NA() ->  | AR84: =NA() ->  | AS84: 626052 | AT84: =NA() ->  | AU84: =NA() ->  | AV84: 186700 | AW84: 1697841 | AX84: =NA() ->  | AY84: =NA() ->  | AZ84: 281035 | BA84: 3806447 | BB84: =NA() ->  | BC84: =NA() ->  | BD84: 2998222 | BE84: 378078 | BF84: =NA() ->  | BG84: =NA() ->  | BH84: 60889 | BI84: =NA() ->  | BJ84: 370703 | BK84: 591100 | BL84: 7270857 | BM84: =NA() ->  | BN84: 760052 | BO84: =NA() ->  | BP84: =NA() ->  | BQ84: =NA() ->  | BR84: 131345 | BS84: 177682 | BT84: 11178000 | BU84: =NA() ->  | BV84: =NA() ->  | BW84: =NA() ->  | BX84: =NA() ->  | BY84: =NA() ->  | BZ84: =NA() ->  | CA84: =NA() ->  | CB84: =NA() ->  | CC84: =NA() ->  | CD84: =NA() ->  | CE84: 986514 | CF84: =NA() ->  | CG84: =NA() ->  | CH84: 503200 | CI84: 15910766 | CJ84: =NA() ->  | CK84: =NA() ->  | CL84: 967502 | CM84: 6652780 | CN84: =NA() ->  | CO84: =NA() ->  | CP84: 10909050 | CQ84: =NA() ->  | CR84: =NA() ->  | CS84: =NA() ->  | CT84: 85397 | CU84: =NA() ->  | CV84: =NA() ->  | CW84: 1799900 | CX84: 9050580 | CY84: =NA() ->  | CZ84: 1212929 | DA84: =NA() ->  | DB84: =NA() ->  | DC84: =NA() ->  | DD84: 654812 | DE84: 1242922 | DF84: 17506000 | DG84: =NA() ->  | DH84: =NA() ->  | DI84: =NA() ->  | DJ84: =NA() ->  | DK84: =NA() ->  | DL84: =NA() ->  | DM84: =NA() ->  | DN84: =NA() -> 
C85: 50 | D85: 1994M02 | E85: =NA() ->  | F85: =NA() ->  | G85: 518405 | H85: =NA() ->  | I85: =NA() ->  | J85: 413900 | K85: 15421701 | L85: =NA() ->  | M85: =NA() ->  | N85: 629783 | O85: 3281659 | P85: =NA() ->  | Q85: =NA() ->  | R85: 7325355 | S85: =NA() ->  | T85: =NA() ->  | U85: =NA() ->  | V85: 23216 | W85: =NA() ->  | X85: =NA() ->  | Y85: 1337900 | Z85: 2362907 | AA85: =NA() ->  | AB85: 510706 | AC85: =NA() ->  | AD85: =NA() ->  | AE85: =NA() ->  | AF85: 691327 | AG85: 1342687 | AH85: 6328000 | AI85: =NA() ->  | AJ85: =NA() ->  | AK85: =NA() ->  | AL85: =NA() ->  | AM85: =NA() ->  | AN85: =NA() ->  | AO85: =NA() ->  | AP85: =NA() ->  | AQ85: =NA() ->  | AR85: =NA() ->  | AS85: 668684 | AT85: =NA() ->  | AU85: =NA() ->  | AV85: 186900 | AW85: 2114127 | AX85: =NA() ->  | AY85: =NA() ->  | AZ85: 298759 | BA85: 4302075 | BB85: =NA() ->  | BC85: =NA() ->  | BD85: 3613196 | BE85: 436986 | BF85: =NA() ->  | BG85: =NA() ->  | BH85: 69940 | BI85: =NA() ->  | BJ85: 500258 | BK85: 633300 | BL85: 7307791 | BM85: =NA() ->  | BN85: 911520 | BO85: =NA() ->  | BP85: =NA() ->  | BQ85: =NA() ->  | BR85: 132641 | BS85: 224208 | BT85: 9728000 | BU85: =NA() ->  | BV85: =NA() ->  | BW85: =NA() ->  | BX85: =NA() ->  | BY85: =NA() ->  | BZ85: =NA() ->  | CA85: =NA() ->  | CB85: =NA() ->  | CC85: =NA() ->  | CD85: =NA() ->  | CE85: 1187089 | CF85: =NA() ->  | CG85: =NA() ->  | CH85: 600800 | CI85: 17535828 | CJ85: =NA() ->  | CK85: =NA() ->  | CL85: 928542 | CM85: 7583734 | CN85: =NA() ->  | CO85: =NA() ->  | CP85: 10938551 | CQ85: =NA() ->  | CR85: =NA() ->  | CS85: =NA() ->  | CT85: 93156 | CU85: =NA() ->  | CV85: =NA() ->  | CW85: 1971200 | CX85: 9670698 | CY85: =NA() ->  | CZ85: 1422226 | DA85: =NA() ->  | DB85: =NA() ->  | DC85: =NA() ->  | DD85: 823968 | DE85: 1566895 | DF85: 16056000 | DG85: =NA() ->  | DH85: =NA() ->  | DI85: =NA() ->  | DJ85: =NA() ->  | DK85: =NA() ->  | DL85: =NA() ->  | DM85: =NA() ->  | DN85: =NA() -> 
C86: 51 | D86: 1994M03 | E86: =NA() ->  | F86: =NA() ->  | G86: 500636 | H86: =NA() ->  | I86: =NA() ->  | J86: 620000 | K86: 18223655 | L86: =NA() ->  | M86: =NA() ->  | N86: 775488 | O86: 4636811 | P86: =NA() ->  | Q86: =NA() ->  | R86: 7838706 | S86: =NA() ->  | T86: =NA() ->  | U86: =NA() ->  | V86: 28061 | W86: =NA() ->  | X86: =NA() ->  | Y86: 1467700 | Z86: 2111558 | AA86: =NA() ->  | AB86: 700156 | AC86: =NA() ->  | AD86: =NA() ->  | AE86: =NA() ->  | AF86: 834677 | AG86: 1661215 | AH86: 9493000 | AI86: =NA() ->  | AJ86: =NA() ->  | AK86: =NA() ->  | AL86: =NA() ->  | AM86: =NA() ->  | AN86: =NA() ->  | AO86: =NA() ->  | AP86: =NA() ->  | AQ86: =NA() ->  | AR86: =NA() ->  | AS86: 916041 | AT86: =NA() ->  | AU86: =NA() ->  | AV86: 304700 | AW86: 2263570 | AX86: =NA() ->  | AY86: =NA() ->  | AZ86: 673917 | BA86: 5241730 | BB86: =NA() ->  | BC86: =NA() ->  | BD86: 5424896 | BE86: 743463 | BF86: =NA() ->  | BG86: =NA() ->  | BH86: 91728 | BI86: =NA() ->  | BJ86: 621080 | BK86: 1085200 | BL86: 6620714 | BM86: =NA() ->  | BN86: 1349029 | BO86: =NA() ->  | BP86: =NA() ->  | BQ86: =NA() ->  | BR86: 175395 | BS86: 239191 | BT86: 14424000 | BU86: =NA() ->  | BV86: =NA() ->  | BW86: =NA() ->  | BX86: =NA() ->  | BY86: =NA() ->  | BZ86: =NA() ->  | CA86: =NA() ->  | CB86: =NA() ->  | CC86: =NA() ->  | CD86: =NA() ->  | CE86: 1416677 | CF86: =NA() ->  | CG86: =NA() ->  | CH86: 924700 | CI86: 20487225 | CJ86: =NA() ->  | CK86: =NA() ->  | CL86: 1449405 | CM86: 9878541 | CN86: =NA() ->  | CO86: =NA() ->  | CP86: 13263602 | CQ86: =NA() ->  | CR86: =NA() ->  | CS86: =NA() ->  | CT86: 119789 | CU86: =NA() ->  | CV86: =NA() ->  | CW86: 2552900 | CX86: 8732272 | CY86: =NA() ->  | CZ86: 2049185 | DA86: =NA() ->  | DB86: =NA() ->  | DC86: =NA() ->  | DD86: 1010072 | DE86: 1900406 | DF86: 23917000 | DG86: =NA() ->  | DH86: =NA() ->  | DI86: =NA() ->  | DJ86: =NA() ->  | DK86: =NA() ->  | DL86: =NA() ->  | DM86: =NA() ->  | DN86: =NA() -> 
C87: 52 | D87: 1994M04 | E87: =NA() ->  | F87: =NA() ->  | G87: 1094724 | H87: =NA() ->  | I87: =NA() ->  | J87: 962300 | K87: 20390621 | L87: =NA() ->  | M87: =NA() ->  | N87: 1066190 | O87: 5577912 | P87: =NA() ->  | Q87: =NA() ->  | R87: 9033550 | S87: =NA() ->  | T87: =NA() ->  | U87: =NA() ->  | V87: 31343 | W87: =NA() ->  | X87: =NA() ->  | Y87: 2104200 | Z87: 1409119 | AA87: =NA() ->  | AB87: 842499 | AC87: =NA() ->  | AD87: =NA() ->  | AE87: =NA() ->  | AF87: 791000 | AG87: 1568790 | AH87: 11075000 | AI87: =NA() ->  | AJ87: =NA() ->  | AK87: =NA() ->  | AL87: =NA() ->  | AM87: =NA() ->  | AN87: =NA() ->  | AO87: =NA() ->  | AP87: =NA() ->  | AQ87: =NA() ->  | AR87: =NA() ->  | AS87: 1015691 | AT87: =NA() ->  | AU87: =NA() ->  | AV87: 509400 | AW87: 2364121 | AX87: =NA() ->  | AY87: =NA() ->  | AZ87: 1967110 | BA87: 6092767 | BB87: =NA() ->  | BC87: =NA() ->  | BD87: 6626067 | BE87: 1063266 | BF87: =NA() ->  | BG87: =NA() ->  | BH87: 135785 | BI87: =NA() ->  | BJ87: 723335 | BK87: 1881000 | BL87: 2839941 | BM87: =NA() ->  | BN87: 1484668 | BO87: =NA() ->  | BP87: =NA() ->  | BQ87: =NA() ->  | BR87: 159000 | BS87: 217392 | BT87: 15283000 | BU87: =NA() ->  | BV87: =NA() ->  | BW87: =NA() ->  | BX87: =NA() ->  | BY87: =NA() ->  | BZ87: =NA() ->  | CA87: =NA() ->  | CB87: =NA() ->  | CC87: =NA() ->  | CD87: =NA() ->  | CE87: 2110415 | CF87: =NA() ->  | CG87: =NA() ->  | CH87: 1471700 | CI87: 22754742 | CJ87: =NA() ->  | CK87: =NA() ->  | CL87: 3033300 | CM87: 11670679 | CN87: =NA() ->  | CO87: =NA() ->  | CP87: 15659617 | CQ87: =NA() ->  | CR87: =NA() ->  | CS87: =NA() ->  | CT87: 167128 | CU87: =NA() ->  | CV87: =NA() ->  | CW87: 3985200 | CX87: 4249060 | CY87: =NA() ->  | CZ87: 2327167 | DA87: =NA() ->  | DB87: =NA() ->  | DC87: =NA() ->  | DD87: 950000 | DE87: 1786182 | DF87: 26358000 | DG87: =NA() ->  | DH87: =NA() ->  | DI87: =NA() ->  | DJ87: =NA() ->  | DK87: =NA() ->  | DL87: =NA() ->  | DM87: =NA() ->  | DN87: =NA() -> 
C88: 53 | D88: 1994M05 | E88: =NA() ->  | F88: =NA() ->  | G88: 1084111 | H88: =NA() ->  | I88: =NA() ->  | J88: 1521700 | K88: 27666069 | L88: =NA() ->  | M88: =NA() ->  | N88: 973498 | O88: 5116611 | P88: 9855547 | Q88: =NA() ->  | R88: 8557475 | S88: =NA() ->  | T88: =NA() ->  | U88: =NA() ->  | V88: 42939 | W88: =NA() ->  | X88: =NA() ->  | Y88: 4849600 | Z88: 1833231 | AA88: =NA() ->  | AB88: 758446 | AC88: =NA() ->  | AD88: =NA() ->  | AE88: =NA() ->  | AF88: 657000 | AG88: 1426285 | AH88: 14239000 | AI88: =NA() ->  | AJ88: =NA() ->  | AK88: =NA() ->  | AL88: =NA() ->  | AM88: =NA() ->  | AN88: =NA() ->  | AO88: =NA() ->  | AP88: =NA() ->  | AQ88: =NA() ->  | AR88: =NA() ->  | AS88: 1345077 | AT88: =NA() ->  | AU88: =NA() ->  | AV88: 959800 | AW88: 2916528 | AX88: =NA() ->  | AY88: =NA() ->  | AZ88: 4962101 | BA88: 10420272 | BB88: 7194589 | BC88: =NA() ->  | BD88: 10401387 | BE88: 1493754 | BF88: =NA() ->  | BG88: =NA() ->  | BH88: 244231 | BI88: =NA() ->  | BJ88: 723756 | BK88: 1848600 | BL88: 3722846 | BM88: =NA() ->  | BN88: 1871920 | BO88: =NA() ->  | BP88: =NA() ->  | BQ88: =NA() ->  | BR88: 223000 | BS88: 307521 | BT88: 15839000 | BU88: =NA() ->  | BV88: =NA() ->  | BW88: =NA() ->  | BX88: =NA() ->  | BY88: =NA() ->  | BZ88: =NA() ->  | CA88: =NA() ->  | CB88: =NA() ->  | CC88: =NA() ->  | CD88: =NA() ->  | CE88: 2429188 | CF88: =NA() ->  | CG88: =NA() ->  | CH88: 2481500 | CI88: 30582597 | CJ88: =NA() ->  | CK88: =NA() ->  | CL88: 5935599 | CM88: 15536883 | CN88: 17050136 | CO88: =NA() ->  | CP88: 18958862 | CQ88: =NA() ->  | CR88: =NA() ->  | CS88: =NA() ->  | CT88: 287170 | CU88: =NA() ->  | CV88: =NA() ->  | CW88: 6698200 | CX88: 5556077 | CY88: =NA() ->  | CZ88: 2630366 | DA88: =NA() ->  | DB88: =NA() ->  | DC88: =NA() ->  | DD88: 880000 | DE88: 1733806 | DF88: 30078000 | DG88: =NA() ->  | DH88: =NA() ->  | DI88: =NA() ->  | DJ88: =NA() ->  | DK88: =NA() ->  | DL88: =NA() ->  | DM88: =NA() ->  | DN88: =NA() -> 
C89: 54 | D89: 1994M06 | E89: =NA() ->  | F89: =NA() ->  | G89: 935411 | H89: =NA() ->  | I89: =NA() ->  | J89: 1767700 | K89: 28130164 | L89: =NA() ->  | M89: =NA() ->  | N89: 1079955 | O89: 6062437 | P89: 11679075 | Q89: =NA() ->  | R89: 16804177 | S89: =NA() ->  | T89: =NA() ->  | U89: =NA() ->  | V89: 39210 | W89: =NA() ->  | X89: =NA() ->  | Y89: 3502800 | Z89: 2256576 | AA89: =NA() ->  | AB89: 1101526 | AC89: =NA() ->  | AD89: =NA() ->  | AE89: =NA() ->  | AF89: 1232000 | AG89: 1607806 | AH89: 14239000 | AI89: =NA() ->  | AJ89: =NA() ->  | AK89: =NA() ->  | AL89: =NA() ->  | AM89: =NA() ->  | AN89: =NA() ->  | AO89: =NA() ->  | AP89: =NA() ->  | AQ89: =NA() ->  | AR89: =NA() ->  | AS89: 1221965 | AT89: =NA() ->  | AU89: =NA() ->  | AV89: 1195000 | AW89: 3313964 | AX89: =NA() ->  | AY89: =NA() ->  | AZ89: 6174686 | BA89: 12229586 | BB89: 9579037 | BC89: =NA() ->  | BD89: 11672141 | BE89: 1612736 | BF89: =NA() ->  | BG89: =NA() ->  | BH89: 203295 | BI89: =NA() ->  | BJ89: 775217 | BK89: 1781800 | BL89: 5168112 | BM89: =NA() ->  | BN89: 2011663 | BO89: =NA() ->  | BP89: =NA() ->  | BQ89: =NA() ->  | BR89: 518000 | BS89: 565137 | BT89: 17220000 | BU89: =NA() ->  | BV89: =NA() ->  | BW89: =NA() ->  | BX89: =NA() ->  | BY89: =NA() ->  | BZ89: =NA() ->  | CA89: =NA() ->  | CB89: =NA() ->  | CC89: =NA() ->  | CD89: =NA() ->  | CE89: 2157376 | CF89: =NA() ->  | CG89: =NA() ->  | CH89: 2962700 | CI89: 31444128 | CJ89: =NA() ->  | CK89: =NA() ->  | CL89: 7254641 | CM89: 18292023 | CN89: 21258112 | CO89: =NA() ->  | CP89: 28476318 | CQ89: =NA() ->  | CR89: =NA() ->  | CS89: =NA() ->  | CT89: 242505 | CU89: =NA() ->  | CV89: =NA() ->  | CW89: 5284600 | CX89: 7424688 | CY89: =NA() ->  | CZ89: 3113189 | DA89: =NA() ->  | DB89: =NA() ->  | DC89: =NA() ->  | DD89: 1750000 | DE89: 2172943 | DF89: 31459000 | DG89: =NA() ->  | DH89: =NA() ->  | DI89: =NA() ->  | DJ89: =NA() ->  | DK89: =NA() ->  | DL89: =NA() ->  | DM89: =NA() ->  | DN89: =NA() -> 
B90: 07 | C90: 55 | D90: 1994M07 | E90: =NA() ->  | F90: =NA() ->  | G90: 3014886 | H90: =NA() ->  | I90: =NA() ->  | J90: 4180300 | K90: 35109284 | L90: =NA() ->  | M90: =NA() ->  | N90: 1779093 | O90: 9627854 | P90: 34768444 | Q90: =NA() ->  | R90: 32237060 | S90: =NA() ->  | T90: =NA() ->  | U90: =NA() ->  | V90: 37452 | W90: =NA() ->  | X90: =NA() ->  | Y90: 7241500 | Z90: 3212288 | AA90: =NA() ->  | AB90: 2090618 | AC90: =NA() ->  | AD90: =NA() ->  | AE90: =NA() ->  | AF90: 1782000 | AG90: 2284025 | AH90: 22150000 | AI90: =NA() ->  | AJ90: =NA() ->  | AK90: =NA() ->  | AL90: =NA() ->  | AM90: =NA() ->  | AN90: =NA() ->  | AO90: =NA() ->  | AP90: =NA() ->  | AQ90: =NA() ->  | AR90: =NA() ->  | AS90: 1863082 | AT90: =NA() ->  | AU90: =NA() ->  | AV90: 3004900 | AW90: 4795104 | AX90: =NA() ->  | AY90: =NA() ->  | AZ90: 7576172 | BA90: 16226399 | BB90: 23925638 | BC90: =NA() ->  | BD90: 18119441 | BE90: 1910652 | BF90: =NA() ->  | BG90: =NA() ->  | BH90: 598539 | BI90: =NA() ->  | BJ90: 980073 | BK90: 3032800 | BL90: 9780808 | BM90: =NA() ->  | BN90: 2677205 | BO90: =NA() ->  | BP90: =NA() ->  | BQ90: =NA() ->  | BR90: 744000 | BS90: 807470 | BT90: 22417000 | BU90: =NA() ->  | BV90: =NA() ->  | BW90: =NA() ->  | BX90: =NA() ->  | BY90: =NA() ->  | BZ90: =NA() ->  | CA90: =NA() ->  | CB90: =NA() ->  | CC90: =NA() ->  | CD90: =NA() ->  | CE90: 4877968 | CF90: =NA() ->  | CG90: =NA() ->  | CH90: 7185200 | CI90: 39904388 | CJ90: =NA() ->  | CK90: =NA() ->  | CL90: 9355265 | CM90: 25854253 | CN90: 58694082 | CO90: =NA() ->  | CP90: 50356501 | CQ90: =NA() ->  | CR90: =NA() ->  | CS90: =NA() ->  | CT90: 635991 | CU90: =NA() ->  | CV90: =NA() ->  | CW90: 10274300 | CX90: 12993096 | CY90: =NA() ->  | CZ90: 4767823 | DA90: =NA() ->  | DB90: =NA() ->  | DC90: =NA() ->  | DD90: 2526000 | DE90: 3091495 | DF90: 44567000 | DG90: =NA() ->  | DH90: =NA() ->  | DI90: =NA() ->  | DJ90: =NA() ->  | DK90: =NA() ->  | DL90: =NA() ->  | DM90: =NA() ->  | DN90: =NA() -> 
C91: 56 | D91: 1994M08 | E91: =NA() ->  | F91: =NA() ->  | G91: 2338301 | H91: =NA() ->  | I91: =NA() ->  | J91: 1819100 | K91: 34575547 | L91: =NA() ->  | M91: =NA() ->  | N91: 2469239 | O91: 13815521 | P91: 45440281 | Q91: =NA() ->  | R91: 48655470 | S91: =NA() ->  | T91: =NA() ->  | U91: =NA() ->  | V91: 30114 | W91: =NA() ->  | X91: =NA() ->  | Y91: 8067300 | Z91: 3615151 | AA91: =NA() ->  | AB91: 3556610 | AC91: =NA() ->  | AD91: =NA() ->  | AE91: =NA() ->  | AF91: 988000 | AG91: 1784541 | AH91: 30061000 | AI91: =NA() ->  | AJ91: =NA() ->  | AK91: =NA() ->  | AL91: =NA() ->  | AM91: =NA() ->  | AN91: =NA() ->  | AO91: =NA() ->  | AP91: =NA() ->  | AQ91: =NA() ->  | AR91: =NA() ->  | AS91: 1763007 | AT91: =NA() ->  | AU91: =NA() ->  | AV91: 2617800 | AW91: 4898461 | AX91: =NA() ->  | AY91: =NA() ->  | AZ91: 8296565 | BA91: 15754229 | BB91: 21896713 | BC91: =NA() ->  | BD91: 16075816 | BE91: 1994010 | BF91: =NA() ->  | BG91: =NA() ->  | BH91: 501745 | BI91: =NA() ->  | BJ91: 1139701 | BK91: 2765100 | BL91: 10355577 | BM91: =NA() ->  | BN91: 2956458 | BO91: =NA() ->  | BP91: =NA() ->  | BQ91: =NA() ->  | BR91: 565000 | BS91: 660392 | BT91: 24475000 | BU91: =NA() ->  | BV91: =NA() ->  | BW91: =NA() ->  | BX91: =NA() ->  | BY91: =NA() ->  | BZ91: =NA() ->  | CA91: =NA() ->  | CB91: =NA() ->  | CC91: =NA() ->  | CD91: =NA() ->  | CE91: 4101308 | CF91: =NA() ->  | CG91: =NA() ->  | CH91: 4436900 | CI91: 39474008 | CJ91: =NA() ->  | CK91: =NA() ->  | CL91: 10765804 | CM91: 29569750 | CN91: 67336994 | CO91: =NA() ->  | CP91: 64731286 | CQ91: =NA() ->  | CR91: =NA() ->  | CS91: =NA() ->  | CT91: 531859 | CU91: =NA() ->  | CV91: =NA() ->  | CW91: 10832400 | CX91: 13970728 | CY91: =NA() ->  | CZ91: 6513068 | DA91: =NA() ->  | DB91: =NA() ->  | DC91: =NA() ->  | DD91: 1553000 | DE91: 2444933 | DF91: 54536000 | DG91: =NA() ->  | DH91: =NA() ->  | DI91: =NA() ->  | DJ91: =NA() ->  | DK91: =NA() ->  | DL91: =NA() ->  | DM91: =NA() ->  | DN91: =NA() -> 
C92: 57 | D92: 1994M09 | E92: =NA() ->  | F92: =NA() ->  | G92: 648585 | H92: =NA() ->  | I92: =NA() ->  | J92: 1062000 | K92: 29093392 | L92: =NA() ->  | M92: =NA() ->  | N92: 1179719 | O92: 7595599 | P92: 11987262 | Q92: =NA() ->  | R92: 16312194 | S92: =NA() ->  | T92: =NA() ->  | U92: =NA() ->  | V92: 22777 | W92: =NA() ->  | X92: =NA() ->  | Y92: 2985700 | Z92: 2189617 | AA92: =NA() ->  | AB92: 1447899 | AC92: =NA() ->  | AD92: =NA() ->  | AE92: =NA() ->  | AF92: 739000 | AG92: 1406143 | AH92: 14239000 | AI92: =NA() ->  | AJ92: =NA() ->  | AK92: =NA() ->  | AL92: =NA() ->  | AM92: =NA() ->  | AN92: =NA() ->  | AO92: =NA() ->  | AP92: =NA() ->  | AQ92: =NA() ->  | AR92: =NA() ->  | AS92: 1161673 | AT92: =NA() ->  | AU92: =NA() ->  | AV92: 660800 | AW92: 3635444 | AX92: =NA() ->  | AY92: =NA() ->  | AZ92: 6554940 | BA92: 12807720 | BB92: 8751470 | BC92: =NA() ->  | BD92: 13406580 | BE92: 1751198 | BF92: =NA() ->  | BG92: =NA() ->  | BH92: 156250 | BI92: =NA() ->  | BJ92: 940617 | BK92: 1600000 | BL92: 5995663 | BM92: =NA() ->  | BN92: 2284849 | BO92: =NA() ->  | BP92: =NA() ->  | BQ92: =NA() ->  | BR92: 223000 | BS92: 336053 | BT92: 19153000 | BU92: =NA() ->  | BV92: =NA() ->  | BW92: =NA() ->  | BX92: =NA() ->  | BY92: =NA() ->  | BZ92: =NA() ->  | CA92: =NA() ->  | CB92: =NA() ->  | CC92: =NA() ->  | CD92: =NA() ->  | CE92: 1810258 | CF92: =NA() ->  | CG92: =NA() ->  | CH92: 1722800 | CI92: 32728836 | CJ92: =NA() ->  | CK92: =NA() ->  | CL92: 7734659 | CM92: 20403319 | CN92: 20738732 | CO92: =NA() ->  | CP92: 29718774 | CQ92: =NA() ->  | CR92: =NA() ->  | CS92: =NA() ->  | CT92: 179027 | CU92: =NA() ->  | CV92: =NA() ->  | CW92: 4585700 | CX92: 8185280 | CY92: =NA() ->  | CZ92: 3732748 | DA92: =NA() ->  | DB92: =NA() ->  | DC92: =NA() ->  | DD92: 962000 | DE92: 1742196 | DF92: 33392000 | DG92: =NA() ->  | DH92: =NA() ->  | DI92: =NA() ->  | DJ92: =NA() ->  | DK92: =NA() ->  | DL92: =NA() ->  | DM92: =NA() ->  | DN92: =NA() -> 
C93: 58 | D93: 1994M10 | E93: =NA() ->  | F93: =NA() ->  | G93: 851931 | H93: =NA() ->  | I93: =NA() ->  | J93: 797200 | K93: 25295624 | L93: =NA() ->  | M93: =NA() ->  | N93: 759573 | O93: 4758958 | P93: =NA() ->  | Q93: =NA() ->  | R93: 7361637 | S93: =NA() ->  | T93: =NA() ->  | U93: =NA() ->  | V93: 17422 | W93: =NA() ->  | X93: =NA() ->  | Y93: 2497600 | Z93: 1437347 | AA93: =NA() ->  | AB93: 704800 | AC93: =NA() ->  | AD93: =NA() ->  | AE93: =NA() ->  | AF93: 673000 | AG93: 1299947 | AH93: 11075000 | AI93: =NA() ->  | AJ93: =NA() ->  | AK93: =NA() ->  | AL93: =NA() ->  | AM93: =NA() ->  | AN93: =NA() ->  | AO93: =NA() ->  | AP93: =NA() ->  | AQ93: =NA() ->  | AR93: =NA() ->  | AS93: 1151701 | AT93: =NA() ->  | AU93: =NA() ->  | AV93: 439100 | AW93: 2971628 | AX93: =NA() ->  | AY93: =NA() ->  | AZ93: 3940424 | BA93: 9256999 | BB93: =NA() ->  | BC93: =NA() ->  | BD93: 7446674 | BE93: 1623473 | BF93: =NA() ->  | BG93: =NA() ->  | BH93: 132715 | BI93: =NA() ->  | BJ93: 946572 | BK93: 1385600 | BL93: 2984372 | BM93: =NA() ->  | BN93: 1656792 | BO93: =NA() ->  | BP93: =NA() ->  | BQ93: =NA() ->  | BR93: 164000 | BS93: 254995 | BT93: 16738000 | BU93: =NA() ->  | BV93: =NA() ->  | BW93: =NA() ->  | BX93: =NA() ->  | BY93: =NA() ->  | BZ93: =NA() ->  | CA93: =NA() ->  | CB93: =NA() ->  | CC93: =NA() ->  | CD93: =NA() ->  | CE93: 2003632 | CF93: =NA() ->  | CG93: =NA() ->  | CH93: 1236300 | CI93: 28267252 | CJ93: =NA() ->  | CK93: =NA() ->  | CL93: 4699997 | CM93: 14015957 | CN93: =NA() ->  | CO93: =NA() ->  | CP93: 14808311 | CQ93: =NA() ->  | CR93: =NA() ->  | CS93: =NA() ->  | CT93: 150137 | CU93: =NA() ->  | CV93: =NA() ->  | CW93: 3883200 | CX93: 4421719 | CY93: =NA() ->  | CZ93: 2361592 | DA93: =NA() ->  | DB93: =NA() ->  | DC93: =NA() ->  | DD93: 837000 | DE93: 1554942 | DF93: 27813000 | DG93: =NA() ->  | DH93: =NA() ->  | DI93: =NA() ->  | DJ93: =NA() ->  | DK93: =NA() ->  | DL93: =NA() ->  | DM93: =NA() ->  | DN93: =NA() -> 
C94: 59 | D94: 1994M11 | E94: =NA() ->  | F94: =NA() ->  | G94: 742036 | H94: =NA() ->  | I94: =NA() ->  | J94: 531100 | K94: 15597818 | L94: =NA() ->  | M94: =NA() ->  | N94: 687326 | O94: 3629939 | P94: =NA() ->  | Q94: =NA() ->  | R94: 5282977 | S94: =NA() ->  | T94: =NA() ->  | U94: =NA() ->  | V94: 15335 | W94: =NA() ->  | X94: =NA() ->  | Y94: 1561700 | Z94: 1020834 | AA94: =NA() ->  | AB94: 524890 | AC94: =NA() ->  | AD94: =NA() ->  | AE94: =NA() ->  | AF94: 649000 | AG94: 1316310 | AH94: 6328000 | AI94: =NA() ->  | AJ94: =NA() ->  | AK94: =NA() ->  | AL94: =NA() ->  | AM94: =NA() ->  | AN94: =NA() ->  | AO94: =NA() ->  | AP94: =NA() ->  | AQ94: =NA() ->  | AR94: =NA() ->  | AS94: 778806 | AT94: =NA() ->  | AU94: =NA() ->  | AV94: 265200 | AW94: 2017411 | AX94: =NA() ->  | AY94: =NA() ->  | AZ94: 423977 | BA94: 4151862 | BB94: =NA() ->  | BC94: =NA() ->  | BD94: 2808091 | BE94: 834167 | BF94: =NA() ->  | BG94: =NA() ->  | BH94: 85266 | BI94: =NA() ->  | BJ94: 526668 | BK94: 747700 | BL94: 1179736 | BM94: =NA() ->  | BN94: 1071135 | BO94: =NA() ->  | BP94: =NA() ->  | BQ94: =NA() ->  | BR94: 162000 | BS94: 213128 | BT94: 14228000 | BU94: =NA() ->  | BV94: =NA() ->  | BW94: =NA() ->  | BX94: =NA() ->  | BY94: =NA() ->  | BZ94: =NA() ->  | CA94: =NA() ->  | CB94: =NA() ->  | CC94: =NA() ->  | CD94: =NA() ->  | CE94: 1520842 | CF94: =NA() ->  | CG94: =NA() ->  | CH94: 796300 | CI94: 17615229 | CJ94: =NA() ->  | CK94: =NA() ->  | CL94: 1111303 | CM94: 7781801 | CN94: =NA() ->  | CO94: =NA() ->  | CP94: 8091068 | CQ94: =NA() ->  | CR94: =NA() ->  | CS94: =NA() ->  | CT94: 100601 | CU94: =NA() ->  | CV94: =NA() ->  | CW94: 2309400 | CX94: 2200570 | CY94: =NA() ->  | CZ94: 1596025 | DA94: =NA() ->  | DB94: =NA() ->  | DC94: =NA() ->  | DD94: 811000 | DE94: 1529438 | DF94: 20556000 | DG94: =NA() ->  | DH94: =NA() ->  | DI94: =NA() ->  | DJ94: =NA() ->  | DK94: =NA() ->  | DL94: =NA() ->  | DM94: =NA() ->  | DN94: =NA() -> 
C95: 60 | D95: 1994M12 | E95: =NA() ->  | F95: =NA() ->  | G95: 554226 | H95: =NA() ->  | I95: =NA() ->  | J95: 312600 | K95: 14530441 | L95: =NA() ->  | M95: =NA() ->  | N95: 695979 | O95: 3617670 | P95: =NA() ->  | Q95: =NA() ->  | R95: 6428841 | S95: =NA() ->  | T95: =NA() ->  | U95: =NA() ->  | V95: 12156 | W95: =NA() ->  | X95: =NA() ->  | Y95: 1355800 | Z95: 1061145 | AA95: =NA() ->  | AB95: 546867 | AC95: =NA() ->  | AD95: =NA() ->  | AE95: =NA() ->  | AF95: 532000 | AG95: 1036274 | AH95: 14239000 | AI95: =NA() ->  | AJ95: =NA() ->  | AK95: =NA() ->  | AL95: =NA() ->  | AM95: =NA() ->  | AN95: =NA() ->  | AO95: =NA() ->  | AP95: =NA() ->  | AQ95: =NA() ->  | AR95: =NA() ->  | AS95: 682008 | AT95: =NA() ->  | AU95: =NA() ->  | AV95: 233300 | AW95: 1748831 | AX95: =NA() ->  | AY95: =NA() ->  | AZ95: 275184 | BA95: 3795818 | BB95: =NA() ->  | BC95: =NA() ->  | BD95: 2412178 | BE95: 457408 | BF95: =NA() ->  | BG95: =NA() ->  | BH95: 61576 | BI95: =NA() ->  | BJ95: 354278 | BK95: 640100 | BL95: 4053578 | BM95: =NA() ->  | BN95: 823444 | BO95: =NA() ->  | BP95: =NA() ->  | BQ95: =NA() ->  | BR95: 181000 | BS95: 171889 | BT95: 13573000 | BU95: =NA() ->  | BV95: =NA() ->  | BW95: =NA() ->  | BX95: =NA() ->  | BY95: =NA() ->  | BZ95: =NA() ->  | CA95: =NA() ->  | CB95: =NA() ->  | CC95: =NA() ->  | CD95: =NA() ->  | CE95: 1236234 | CF95: =NA() ->  | CG95: =NA() ->  | CH95: 545900 | CI95: 16279272 | CJ95: =NA() ->  | CK95: =NA() ->  | CL95: 971163 | CM95: 7413488 | CN95: =NA() ->  | CO95: =NA() ->  | CP95: 8841019 | CQ95: =NA() ->  | CR95: =NA() ->  | CS95: =NA() ->  | CT95: 73732 | CU95: =NA() ->  | CV95: =NA() ->  | CW95: 1995900 | CX95: 5114723 | CY95: =NA() ->  | CZ95: 1370311 | DA95: =NA() ->  | DB95: =NA() ->  | DC95: =NA() ->  | DD95: 713000 | DE95: 1208163 | DF95: 27812000 | DG95: =NA() ->  | DH95: =NA() ->  | DI95: =NA() ->  | DJ95: =NA() ->  | DK95: =NA() ->  | DL95: =NA() ->  | DM95: =NA() ->  | DN95: =NA() -> 
A96: 1995 | B96: 01 | C96: 61 | D96: 1995M01 | E96: =NA() ->  | F96: =NA() ->  | G96: 429011 | H96: =NA() ->  | I96: =NA() ->  | J96: 344800 | K96: 11040326 | L96: =NA() ->  | M96: =NA() ->  | N96: 663894 | O96: 3108004 | P96: =NA() ->  | Q96: =NA() ->  | R96: 7786630 | S96: =NA() ->  | T96: =NA() ->  | U96: =NA() ->  | V96: 20000 | W96: =NA() ->  | X96: =NA() ->  | Y96: 1244000 | Z96: 1857992 | AA96: =NA() ->  | AB96: 458180 | AC96: =NA() ->  | AD96: =NA() ->  | AE96: =NA() ->  | AF96: 550485 | AG96: 1185130 | AH96: 4971000 | AI96: =NA() ->  | AJ96: 753 | AK96: =NA() ->  | AL96: 1078015 | AM96: =NA() ->  | AN96: =NA() ->  | AO96: =NA() ->  | AP96: =NA() ->  | AQ96: =NA() ->  | AR96: =NA() ->  | AS96: 647971 | AT96: =NA() ->  | AU96: =NA() ->  | AV96: 193500 | AW96: 1811264 | AX96: =NA() ->  | AY96: =NA() ->  | AZ96: 266315 | BA96: 4342491 | BB96: =NA() ->  | BC96: =NA() ->  | BD96: 3317769 | BE96: 375846 | BF96: =NA() ->  | BG96: =NA() ->  | BH96: 56000 | BI96: =NA() ->  | BJ96: 374650 | BK96: 738000 | BL96: 6966464 | BM96: =NA() ->  | BN96: 891886 | BO96: =NA() ->  | BP96: =NA() ->  | BQ96: =NA() ->  | BR96: 161283 | BS96: 213649 | BT96: 3633845 | BU96: =NA() ->  | BV96: 13539 | BW96: =NA() ->  | BX96: 1530852 | BY96: =NA() ->  | BZ96: =NA() ->  | CA96: =NA() ->  | CB96: =NA() ->  | CC96: =NA() ->  | CD96: =NA() ->  | CE96: 1076982 | CF96: =NA() ->  | CG96: =NA() ->  | CH96: 538300 | CI96: 12851590 | CJ96: =NA() ->  | CK96: =NA() ->  | CL96: 930209 | CM96: 7450495 | CN96: =NA() ->  | CO96: =NA() ->  | CP96: 11104399 | CQ96: =NA() ->  | CR96: =NA() ->  | CS96: =NA() ->  | CT96: 76000 | CU96: =NA() ->  | CV96: =NA() ->  | CW96: 1982000 | CX96: 8824456 | CY96: =NA() ->  | CZ96: 1350066 | DA96: =NA() ->  | DB96: =NA() ->  | DC96: =NA() ->  | DD96: 711768 | DE96: 1398779 | DF96: 8604845 | DG96: =NA() ->  | DH96: 14292 | DI96: =NA() ->  | DJ96: 2608867 | DK96: =NA() ->  | DL96: =NA() ->  | DM96: =NA() ->  | DN96: =NA() -> 
C97: 62 | D97: 1995M02 | E97: =NA() ->  | F97: =NA() ->  | G97: 583721 | H97: =NA() ->  | I97: =NA() ->  | J97: 455600 | K97: 12116329 | L97: =NA() ->  | M97: =NA() ->  | N97: =NA() ->  | O97: 3454864 | P97: =NA() ->  | Q97: =NA() ->  | R97: 7248721 | S97: =NA() ->  | T97: =NA() ->  | U97: =NA() ->  | V97: 13000 | W97: =NA() ->  | X97: =NA() ->  | Y97: 1424000 | Z97: 2400755 | AA97: =NA() ->  | AB97: 549909 | AC97: =NA() ->  | AD97: =NA() ->  | AE97: =NA() ->  | AF97: 744468 | AG97: 1465776 | AH97: 5717000 | AI97: =NA() ->  | AJ97: 743 | AK97: =NA() ->  | AL97: 1316416 | AM97: =NA() ->  | AN97: =NA() ->  | AO97: =NA() ->  | AP97: =NA() ->  | AQ97: =NA() ->  | AR97: =NA() ->  | AS97: 709957 | AT97: =NA() ->  | AU97: =NA() ->  | AV97: 199400 | AW97: 2084079 | AX97: =NA() ->  | AY97: =NA() ->  | AZ97: 316706 | BA97: 4670517 | BB97: =NA() ->  | BC97: =NA() ->  | BD97: 3974290 | BE97: 447771 | BF97: =NA() ->  | BG97: =NA() ->  | BH97: 62000 | BI97: =NA() ->  | BJ97: 432620 | BK97: 706000 | BL97: 7169037 | BM97: =NA() ->  | BN97: 1047327 | BO97: =NA() ->  | BP97: =NA() ->  | BQ97: =NA() ->  | BR97: 160949 | BS97: 289945 | BT97: 3034996 | BU97: =NA() ->  | BV97: 15837 | BW97: =NA() ->  | BX97: 1611245 | BY97: =NA() ->  | BZ97: =NA() ->  | CA97: =NA() ->  | CB97: =NA() ->  | CC97: =NA() ->  | CD97: =NA() ->  | CE97: 1293678 | CF97: =NA() ->  | CG97: =NA() ->  | CH97: 655000 | CI97: 14200408 | CJ97: =NA() ->  | CK97: =NA() ->  | CL97: =NA() ->  | CM97: 8125381 | CN97: =NA() ->  | CO97: =NA() ->  | CP97: 11223011 | CQ97: =NA() ->  | CR97: =NA() ->  | CS97: =NA() ->  | CT97: 75000 | CU97: =NA() ->  | CV97: =NA() ->  | CW97: 2130000 | CX97: 9569792 | CY97: =NA() ->  | CZ97: 1597236 | DA97: =NA() ->  | DB97: =NA() ->  | DC97: =NA() ->  | DD97: 905417 | DE97: 1755721 | DF97: 8751996 | DG97: =NA() ->  | DH97: 16580 | DI97: =NA() ->  | DJ97: 2927661 | DK97: =NA() ->  | DL97: =NA() ->  | DM97: =NA() ->  | DN97: =NA() -> 
C98: 63 | D98: 1995M03 | E98: =NA() ->  | F98: =NA() ->  | G98: 720971 | H98: =NA() ->  | I98: =NA() ->  | J98: 639000 | K98: 13635226 | L98: =NA() ->  | M98: =NA() ->  | N98: 694364 | O98: 4894400 | P98: =NA() ->  | Q98: =NA() ->  | R98: 7841336 | S98: =NA() ->  | T98: =NA() ->  | U98: =NA() ->  | V98: 15000 | W98: =NA() ->  | X98: =NA() ->  | Y98: 1750000 | Z98: 2040407 | AA98: =NA() ->  | AB98: 627975 | AC98: =NA() ->  | AD98: =NA() ->  | AE98: =NA() ->  | AF98: 864420 | AG98: 1829766 | AH98: 10082000 | AI98: =NA() ->  | AJ98: 850 | AK98: =NA() ->  | AL98: 1257571 | AM98: =NA() ->  | AN98: =NA() ->  | AO98: =NA() ->  | AP98: =NA() ->  | AQ98: =NA() ->  | AR98: =NA() ->  | AS98: 861082 | AT98: =NA() ->  | AU98: =NA() ->  | AV98: 325300 | AW98: 2374505 | AX98: =NA() ->  | AY98: =NA() ->  | AZ98: 503124 | BA98: 5640595 | BB98: =NA() ->  | BC98: =NA() ->  | BD98: 4977571 | BE98: 742553 | BF98: =NA() ->  | BG98: =NA() ->  | BH98: 77000 | BI98: =NA() ->  | BJ98: 566692 | BK98: 944000 | BL98: 5401698 | BM98: =NA() ->  | BN98: 1467365 | BO98: =NA() ->  | BP98: =NA() ->  | BQ98: =NA() ->  | BR98: 198692 | BS98: 261988 | BT98: 4400073 | BU98: =NA() ->  | BV98: 15097 | BW98: =NA() ->  | BX98: 1726326 | BY98: =NA() ->  | BZ98: =NA() ->  | CA98: =NA() ->  | CB98: =NA() ->  | CC98: =NA() ->  | CD98: =NA() ->  | CE98: 1582053 | CF98: =NA() ->  | CG98: =NA() ->  | CH98: 964300 | CI98: 16009731 | CJ98: =NA() ->  | CK98: =NA() ->  | CL98: 1197488 | CM98: 10534995 | CN98: =NA() ->  | CO98: =NA() ->  | CP98: 12818907 | CQ98: =NA() ->  | CR98: =NA() ->  | CS98: =NA() ->  | CT98: 92000 | CU98: =NA() ->  | CV98: =NA() ->  | CW98: 2694000 | CX98: 7442105 | CY98: =NA() ->  | CZ98: 2095340 | DA98: =NA() ->  | DB98: =NA() ->  | DC98: =NA() ->  | DD98: 1063112 | DE98: 2091754 | DF98: 14482073 | DG98: =NA() ->  | DH98: 15947 | DI98: =NA() ->  | DJ98: 2983897 | DK98: =NA() ->  | DL98: =NA() ->  | DM98: =NA() ->  | DN98: =NA() -> 
C99: 64 | D99: 1995M04 | E99: =NA() ->  | F99: =NA() ->  | G99: 1240128 | H99: =NA() ->  | I99: =NA() ->  | J99: 997100 | K99: 17788691 | L99: =NA() ->  | M99: =NA() ->  | N99: 1098476 | O99: 6691234 | P99: =NA() ->  | Q99: =NA() ->  | R99: 8717937 | S99: =NA() ->  | T99: =NA() ->  | U99: =NA() ->  | V99: 25000 | W99: =NA() ->  | X99: =NA() ->  | Y99: 2210000 | Z99: 1507393 | AA99: =NA() ->  | AB99: 984357 | AC99: =NA() ->  | AD99: =NA() ->  | AE99: =NA() ->  | AF99: 807696 | AG99: 1603520 | AH99: 7991000 | AI99: =NA() ->  | AJ99: 510 | AK99: =NA() ->  | AL99: 934796 | AM99: =NA() ->  | AN99: =NA() ->  | AO99: =NA() ->  | AP99: =NA() ->  | AQ99: =NA() ->  | AR99: =NA() ->  | AS99: 1152877 | AT99: =NA() ->  | AU99: =NA() ->  | AV99: 601400 | AW99: 2447279 | AX99: =NA() ->  | AY99: =NA() ->  | AZ99: 2163268 | BA99: 7075739 | BB99: =NA() ->  | BC99: =NA() ->  | BD99: 8544804 | BE99: 1213036 | BF99: =NA() ->  | BG99: =NA() ->  | BH99: 144000 | BI99: =NA() ->  | BJ99: 731470 | BK99: 2262000 | BL99: 3509179 | BM99: =NA() ->  | BN99: 1907558 | BO99: =NA() ->  | BP99: =NA() ->  | BQ99: =NA() ->  | BR99: 148503 | BS99: 256296 | BT99: 4658798 | BU99: =NA() ->  | BV99: 12369 | BW99: =NA() ->  | BX99: 1355457 | BY99: =NA() ->  | BZ99: =NA() ->  | CA99: =NA() ->  | CB99: =NA() ->  | CC99: =NA() ->  | CD99: =NA() ->  | CE99: 2393005 | CF99: =NA() ->  | CG99: =NA() ->  | CH99: 1598500 | CI99: 20235970 | CJ99: =NA() ->  | CK99: =NA() ->  | CL99: 3261744 | CM99: 13766973 | CN99: =NA() ->  | CO99: =NA() ->  | CP99: 17262741 | CQ99: =NA() ->  | CR99: =NA() ->  | CS99: =NA() ->  | CT99: 169000 | CU99: =NA() ->  | CV99: =NA() ->  | CW99: 4472000 | CX99: 5016572 | CY99: =NA() ->  | CZ99: 2891915 | DA99: =NA() ->  | DB99: =NA() ->  | DC99: =NA() ->  | DD99: 956199 | DE99: 1859816 | DF99: 12649798 | DG99: =NA() ->  | DH99: 12879 | DI99: =NA() ->  | DJ99: 2290253 | DK99: =NA() ->  | DL99: =NA() ->  | DM99: =NA() ->  | DN99: =NA() -> 
C100: 65 | D100: 1995M05 | E100: =NA() ->  | F100: =NA() ->  | G100: 1027811 | H100: =NA() ->  | I100: =NA() ->  | J100: 1447800 | K100: 22749086 | L100: =NA() ->  | M100: =NA() ->  | N100: 805761 | O100: 5133804 | P100: 9906401 | Q100: =NA() ->  | R100: 8468800 | S100: =NA() ->  | T100: =NA() ->  | U100: =NA() ->  | V100: 37000 | W100: =NA() ->  | X100: =NA() ->  | Y100: 4335000 | Z100: 1836207 | AA100: =NA() ->  | AB100: 842581 | AC100: =NA() ->  | AD100: =NA() ->  | AE100: =NA() ->  | AF100: 699782 | AG100: 1620721 | AH100: 16808000 | AI100: =NA() ->  | AJ100: 433 | AK100: =NA() ->  | AL100: 881437 | AM100: =NA() ->  | AN100: =NA() ->  | AO100: =NA() ->  | AP100: =NA() ->  | AQ100: =NA() ->  | AR100: =NA() ->  | AS100: 1282720 | AT100: =NA() ->  | AU100: =NA() ->  | AV100: 823100 | AW100: 3235956 | AX100: =NA() ->  | AY100: =NA() ->  | AZ100: 4927804 | BA100: 11400669 | BB100: 6796212 | BC100: =NA() ->  | BD100: 10144433 | BE100: 1560697 | BF100: =NA() ->  | BG100: =NA() ->  | BH100: 228000 | BI100: =NA() ->  | BJ100: 698968 | BK100: 1793000 | BL100: 3167307 | BM100: =NA() ->  | BN100: 2226333 | BO100: =NA() ->  | BP100: =NA() ->  | BQ100: =NA() ->  | BR100: 217665 | BS100: 346034 | BT100: 6287459 | BU100: =NA() ->  | BV100: 13215 | BW100: =NA() ->  | BX100: 1355635 | BY100: =NA() ->  | BZ100: =NA() ->  | CA100: =NA() ->  | CB100: =NA() ->  | CC100: =NA() ->  | CD100: =NA() ->  | CE100: 2310531 | CF100: =NA() ->  | CG100: =NA() ->  | CH100: 2270900 | CI100: 25985042 | CJ100: =NA() ->  | CK100: =NA() ->  | CL100: 5733565 | CM100: 16534473 | CN100: 16702613 | CO100: =NA() ->  | CP100: 18613233 | CQ100: =NA() ->  | CR100: =NA() ->  | CS100: =NA() ->  | CT100: 265000 | CU100: =NA() ->  | CV100: =NA() ->  | CW100: 6128000 | CX100: 5003514 | CY100: =NA() ->  | CZ100: 3068914 | DA100: =NA() ->  | DB100: =NA() ->  | DC100: =NA() ->  | DD100: 917447 | DE100: 1966755 | DF100: 23095459 | DG100: =NA() ->  | DH100: 13648 | DI100: =NA() ->  | DJ100: 2237072 | DK100: =NA() ->  | DL100: =NA() ->  | DM100: =NA() ->  | DN100: =NA() -> 
A101: =IF(B101="01",LEFT(D101,4),"") ->  | B101: =IF(OR(RIGHT(D101,2)="01",RIGHT(D101,2)="07"),RIGHT(D101,2),"") ->  | C101: 66 | D101: 1995M06 | E101: =NA() ->  | F101: =NA() ->  | G101: 1173198 | H101: =NA() ->  | I101: =NA() ->  | J101: 1855500 | K101: 25397755 | L101: =NA() ->  | M101: =NA() ->  | N101: 914018 | O101: 6102577 | P101: 12026086 | Q101: =NA() ->  | R101: 16626049 | S101: =NA() ->  | T101: =NA() ->  | U101: =NA() ->  | V101: 38000 | W101: =NA() ->  | X101: =NA() ->  | Y101: 4805000 | Z101: 2277725 | AA101: =NA() ->  | AB101: 1137504 | AC101: =NA() ->  | AD101: =NA() ->  | AE101: =NA() ->  | AF101: 1346929 | AG101: 1632872 | AH101: 17730000 | AI101: =NA() ->  | AJ101: 521 | AK101: =NA() ->  | AL101: 1048715 | AM101: =NA() ->  | AN101: =NA() ->  | AO101: =NA() ->  | AP101: =NA() ->  | AQ101: =NA() ->  | AR101: =NA() ->  | AS101: 1424701 | AT101: =NA() ->  | AU101: =NA() ->  | AV101: 1289000 | AW101: 3239897 | AX101: =NA() ->  | AY101: =NA() ->  | AZ101: 6066813 | BA101: 12925184 | BB101: 10078331 | BC101: =NA() ->  | BD101: 15398777 | BE101: 1622794 | BF101: =NA() ->  | BG101: =NA() ->  | BH101: 237000 | BI101: =NA() ->  | BJ101: 765037 | BK101: 2166000 | BL101: 5321776 | BM101: =NA() ->  | BN101: 2302092 | BO101: =NA() ->  | BP101: =NA() ->  | BQ101: =NA() ->  | BR101: 487189 | BS101: 582454 | BT101: 6427248 | BU101: =NA() ->  | BV101: 16569 | BW101: =NA() ->  | BX101: 1810582 | BY101: =NA() ->  | BZ101: =NA() ->  | CA101: =NA() ->  | CB101: =NA() ->  | CC101: =NA() ->  | CD101: =NA() ->  | CE101: 2597899 | CF101: =NA() ->  | CG101: =NA() ->  | CH101: 3144500 | CI101: 28637652 | CJ101: =NA() ->  | CK101: =NA() ->  | CL101: 6980831 | CM101: 19027761 | CN101: 22104417 | CO101: =NA() ->  | CP101: 32024826 | CQ101: =NA() ->  | CR101: =NA() ->  | CS101: =NA() ->  | CT101: 275000 | CU101: =NA() ->  | CV101: =NA() ->  | CW101: 6971000 | CX101: 7599501 | CY101: =NA() ->  | CZ101: 3439596 | DA101: =NA() ->  | DB101: =NA() ->  | DC101: =NA() ->  | DD101: 1834118 | DE101: 2215326 | DF101: 24157248 | DG101: =NA() ->  | DH101: 17090 | DI101: =NA() ->  | DJ101: 2859297 | DK101: =NA() ->  | DL101: =NA() ->  | DM101: =NA() ->  | DN101: =NA() -> 
B102: 07 | C102: 67 | D102: 1995M07 | E102: =NA() ->  | F102: =NA() ->  | G102: 3325958 | H102: =NA() ->  | I102: =NA() ->  | J102: 4316900 | K102: 31842829 | L102: =NA() ->  | M102: =NA() ->  | N102: 1767627 | O102: 9597699 | P102: 34936963 | Q102: =NA() ->  | R102: 32904551 | S102: =NA() ->  | T102: =NA() ->  | U102: =NA() ->  | V102: 40000 | W102: =NA() ->  | X102: =NA() ->  | Y102: 8071000 | Z102: 3257366 | AA102: =NA() ->  | AB102: 2196727 | AC102: =NA() ->  | AD102: =NA() ->  | AE102: =NA() ->  | AF102: 1824027 | AG102: 2391277 | AH102: 27061000 | AI102: =NA() ->  | AJ102: 1486 | AK102: =NA() ->  | AL102: 1479719 | AM102: =NA() ->  | AN102: =NA() ->  | AO102: =NA() ->  | AP102: =NA() ->  | AQ102: =NA() ->  | AR102: =NA() ->  | AS102: 2181629 | AT102: =NA() ->  | AU102: =NA() ->  | AV102: 3333800 | AW102: 4873713 | AX102: =NA() ->  | AY102: =NA() ->  | AZ102: 7206398 | BA102: 15918715 | BB102: 21121690 | BC102: =NA() ->  | BD102: 19312180 | BE102: 1816429 | BF102: =NA() ->  | BG102: =NA() ->  | BH102: 632000 | BI102: =NA() ->  | BJ102: 858943 | BK102: 3062000 | BL102: 8984622 | BM102: =NA() ->  | BN102: 2846445 | BO102: =NA() ->  | BP102: =NA() ->  | BQ102: =NA() ->  | BR102: 657905 | BS102: 942012 | BT102: 9798136 | BU102: =NA() ->  | BV102: 18528 | BW102: =NA() ->  | BX102: 2148497 | BY102: =NA() ->  | BZ102: =NA() ->  | CA102: =NA() ->  | CB102: =NA() ->  | CC102: =NA() ->  | CD102: =NA() ->  | CE102: 5507587 | CF102: =NA() ->  | CG102: =NA() ->  | CH102: 7650700 | CI102: 36716542 | CJ102: =NA() ->  | CK102: =NA() ->  | CL102: 8974025 | CM102: 25516414 | CN102: 56058653 | CO102: =NA() ->  | CP102: 52216731 | CQ102: =NA() ->  | CR102: =NA() ->  | CS102: =NA() ->  | CT102: 672000 | CU102: =NA() ->  | CV102: =NA() ->  | CW102: 11133000 | CX102: 12241988 | CY102: =NA() ->  | CZ102: 5043172 | DA102: =NA() ->  | DB102: =NA() ->  | DC102: =NA() ->  | DD102: 2481932 | DE102: 3333289 | DF102: 36859136 | DG102: =NA() ->  | DH102: 20014 | DI102: =NA() ->  | DJ102: 3628216 | DK102: =NA() ->  | DL102: =NA() ->  | DM102: =NA() ->  | DN102: =NA() -> 
C103: 68 | D103: 1995M08 | E103: =NA() ->  | F103: =NA() ->  | G103: 2528923 | H103: =NA() ->  | I103: =NA() ->  | J103: 1991600 | K103: 30472945 | L103: =NA() ->  | M103: =NA() ->  | N103: 2463075 | O103: 13787271 | P103: 43183444 | Q103: =NA() ->  | R103: 48471536 | S103: =NA() ->  | T103: =NA() ->  | U103: =NA() ->  | V103: 30000 | W103: =NA() ->  | X103: =NA() ->  | Y103: 8905000 | Z103: 3558375 | AA103: =NA() ->  | AB103: 3664485 | AC103: =NA() ->  | AD103: =NA() ->  | AE103: =NA() ->  | AF103: 1051725 | AG103: 1848311 | AH103: 37547000 | AI103: =NA() ->  | AJ103: 1552 | AK103: =NA() ->  | AL103: 1436065 | AM103: =NA() ->  | AN103: =NA() ->  | AO103: =NA() ->  | AP103: =NA() ->  | AQ103: =NA() ->  | AR103: =NA() ->  | AS103: 1665210 | AT103: =NA() ->  | AU103: =NA() ->  | AV103: 2318200 | AW103: 4696635 | AX103: =NA() ->  | AY103: =NA() ->  | AZ103: 7532746 | BA103: 15411518 | BB103: 19241081 | BC103: =NA() ->  | BD103: 18073522 | BE103: 1930995 | BF103: =NA() ->  | BG103: =NA() ->  | BH103: 463000 | BI103: =NA() ->  | BJ103: 1082074 | BK103: 3316000 | BL103: 9533784 | BM103: =NA() ->  | BN103: 3224637 | BO103: =NA() ->  | BP103: =NA() ->  | BQ103: =NA() ->  | BR103: 499814 | BS103: 711067 | BT103: 11469292 | BU103: =NA() ->  | BV103: 19729 | BW103: =NA() ->  | BX103: 2412485 | BY103: =NA() ->  | BZ103: =NA() ->  | CA103: =NA() ->  | CB103: =NA() ->  | CC103: =NA() ->  | CD103: =NA() ->  | CE103: 4194133 | CF103: =NA() ->  | CG103: =NA() ->  | CH103: 4309800 | CI103: 35169580 | CJ103: =NA() ->  | CK103: =NA() ->  | CL103: 9995821 | CM103: 29198789 | CN103: 62424525 | CO103: =NA() ->  | CP103: 66545058 | CQ103: =NA() ->  | CR103: =NA() ->  | CS103: =NA() ->  | CT103: 493000 | CU103: =NA() ->  | CV103: =NA() ->  | CW103: 12221000 | CX103: 13092159 | CY103: =NA() ->  | CZ103: 6889122 | DA103: =NA() ->  | DB103: =NA() ->  | DC103: =NA() ->  | DD103: 1551539 | DE103: 2559378 | DF103: 49016292 | DG103: =NA() ->  | DH103: 21281 | DI103: =NA() ->  | DJ103: 3848550 | DK103: =NA() ->  | DL103: =NA() ->  | DM103: =NA() ->  | DN103: =NA() -> 
C104: 69 | D104: 1995M09 | E104: =NA() ->  | F104: =NA() ->  | G104: 1001914 | H104: =NA() ->  | I104: =NA() ->  | J104: 1074100 | K104: 25508376 | L104: =NA() ->  | M104: =NA() ->  | N104: 1193609 | O104: 7457978 | P104: 11378568 | Q104: =NA() ->  | R104: 15751291 | S104: =NA() ->  | T104: =NA() ->  | U104: =NA() ->  | V104: 21000 | W104: =NA() ->  | X104: =NA() ->  | Y104: 3353000 | Z104: 2099348 | AA104: =NA() ->  | AB104: 1527889 | AC104: =NA() ->  | AD104: =NA() ->  | AE104: =NA() ->  | AF104: 805316 | AG104: 1479210 | AH104: 17961000 | AI104: =NA() ->  | AJ104: 569 | AK104: =NA() ->  | AL104: 1311465 | AM104: =NA() ->  | AN104: =NA() ->  | AO104: =NA() ->  | AP104: =NA() ->  | AQ104: =NA() ->  | AR104: =NA() ->  | AS104: 1183178 | AT104: =NA() ->  | AU104: =NA() ->  | AV104: 672800 | AW104: 3487479 | AX104: =NA() ->  | AY104: =NA() ->  | AZ104: 6380801 | BA104: 12876054 | BB104: 8040422 | BC104: =NA() ->  | BD104: 14792112 | BE104: 1707517 | BF104: =NA() ->  | BG104: =NA() ->  | BH104: 154000 | BI104: =NA() ->  | BJ104: 899436 | BK104: 1653000 | BL104: 5597970 | BM104: =NA() ->  | BN104: 2434972 | BO104: =NA() ->  | BP104: =NA() ->  | BQ104: =NA() ->  | BR104: 224456 | BS104: 365333 | BT104: 8188578 | BU104: =NA() ->  | BV104: 16478 | BW104: =NA() ->  | BX104: 1813738 | BY104: =NA() ->  | BZ104: =NA() ->  | CA104: =NA() ->  | CB104: =NA() ->  | CC104: =NA() ->  | CD104: =NA() ->  | CE104: 2185092 | CF104: =NA() ->  | CG104: =NA() ->  | CH104: 1746900 | CI104: 28995855 | CJ104: =NA() ->  | CK104: =NA() ->  | CL104: 7574410 | CM104: 20334032 | CN104: 19418990 | CO104: =NA() ->  | CP104: 30543403 | CQ104: =NA() ->  | CR104: =NA() ->  | CS104: =NA() ->  | CT104: 175000 | CU104: =NA() ->  | CV104: =NA() ->  | CW104: 5006000 | CX104: 7697318 | CY104: =NA() ->  | CZ104: 3962861 | DA104: =NA() ->  | DB104: =NA() ->  | DC104: =NA() ->  | DD104: 1029772 | DE104: 1844543 | DF104: 26149578 | DG104: =NA() ->  | DH104: 17047 | DI104: =NA() ->  | DJ104: 3125203 | DK104: =NA() ->  | DL104: =NA() ->  | DM104: =NA() ->  | DN104: =NA() -> 
C105: 70 | D105: 1995M10 | E105: =NA() ->  | F105: =NA() ->  | G105: 925569 | H105: =NA() ->  | I105: =NA() ->  | J105: 771800 | K105: 21509634 | L105: =NA() ->  | M105: =NA() ->  | N105: 806304 | O105: 5067726 | P105: =NA() ->  | Q105: =NA() ->  | R105: 7222820 | S105: =NA() ->  | T105: =NA() ->  | U105: =NA() ->  | V105: 18000 | W105: =NA() ->  | X105: =NA() ->  | Y105: 2815000 | Z105: 1471252 | AA105: =NA() ->  | AB105: 783278 | AC105: =NA() ->  | AD105: =NA() ->  | AE105: =NA() ->  | AF105: 704728 | AG105: 1319221 | AH105: 11828000 | AI105: =NA() ->  | AJ105: 503 | AK105: =NA() ->  | AL105: 1219644 | AM105: =NA() ->  | AN105: =NA() ->  | AO105: =NA() ->  | AP105: =NA() ->  | AQ105: =NA() ->  | AR105: =NA() ->  | AS105: 1196449 | AT105: =NA() ->  | AU105: =NA() ->  | AV105: 519100 | AW105: 3083114 | AX105: =NA() ->  | AY105: =NA() ->  | AZ105: 3502509 | BA105: 9085378 | BB105: =NA() ->  | BC105: =NA() ->  | BD105: 8582173 | BE105: 1640379 | BF105: =NA() ->  | BG105: =NA() ->  | BH105: 147000 | BI105: =NA() ->  | BJ105: 822079 | BK105: 1436000 | BL105: 2914737 | BM105: =NA() ->  | BN105: 1864972 | BO105: =NA() ->  | BP105: =NA() ->  | BQ105: =NA() ->  | BR105: 172820 | BS105: 292818 | BT105: 8132901 | BU105: =NA() ->  | BV105: 10443 | BW105: =NA() ->  | BX105: 1261366 | BY105: =NA() ->  | BZ105: =NA() ->  | CA105: =NA() ->  | CB105: =NA() ->  | CC105: =NA() ->  | CD105: =NA() ->  | CE105: 2122018 | CF105: =NA() ->  | CG105: =NA() ->  | CH105: 1290900 | CI105: 24592748 | CJ105: =NA() ->  | CK105: =NA() ->  | CL105: 4308813 | CM105: 14153104 | CN105: =NA() ->  | CO105: =NA() ->  | CP105: 15804993 | CQ105: =NA() ->  | CR105: =NA() ->  | CS105: =NA() ->  | CT105: 165000 | CU105: =NA() ->  | CV105: =NA() ->  | CW105: 4251000 | CX105: 4385989 | CY105: =NA() ->  | CZ105: 2648250 | DA105: =NA() ->  | DB105: =NA() ->  | DC105: =NA() ->  | DD105: 877548 | DE105: 1612039 | DF105: 19960901 | DG105: =NA() ->  | DH105: 10946 | DI105: =NA() ->  | DJ105: 2481010 | DK105: =NA() ->  | DL105: =NA() ->  | DM105: =NA() ->  | DN105: =NA() -> 
C106: 71 | D106: 1995M11 | E106: =NA() ->  | F106: =NA() ->  | G106: 584313 | H106: =NA() ->  | I106: =NA() ->  | J106: 548400 | K106: 11723859 | L106: =NA() ->  | M106: =NA() ->  | N106: 674585 | O106: 3797223 | P106: =NA() ->  | Q106: =NA() ->  | R106: 5480211 | S106: =NA() ->  | T106: =NA() ->  | U106: =NA() ->  | V106: 14000 | W106: =NA() ->  | X106: =NA() ->  | Y106: 1649000 | Z106: 1029119 | AA106: =NA() ->  | AB106: 591578 | AC106: =NA() ->  | AD106: =NA() ->  | AE106: =NA() ->  | AF106: 682096 | AG106: 1339612 | AH106: 6737000 | AI106: =NA() ->  | AJ106: 246 | AK106: =NA() ->  | AL106: 645689 | AM106: =NA() ->  | AN106: =NA() ->  | AO106: =NA() ->  | AP106: =NA() ->  | AQ106: =NA() ->  | AR106: =NA() ->  | AS106: 829035 | AT106: =NA() ->  | AU106: =NA() ->  | AV106: 260600 | AW106: 2098028 | AX106: =NA() ->  | AY106: =NA() ->  | AZ106: 406072 | BA106: 4372565 | BB106: =NA() ->  | BC106: =NA() ->  | BD106: 3110865 | BE106: 723904 | BF106: =NA() ->  | BG106: =NA() ->  | BH106: 86000 | BI106: =NA() ->  | BJ106: 456093 | BK106: 945000 | BL106: 1120850 | BM106: =NA() ->  | BN106: 1151080 | BO106: =NA() ->  | BP106: =NA() ->  | BQ106: =NA() ->  | BR106: 173990 | BS106: 247710 | BT106: 4343654 | BU106: =NA() ->  | BV106: 6695 | BW106: =NA() ->  | BX106: 675765 | BY106: =NA() ->  | BZ106: =NA() ->  | CA106: =NA() ->  | CB106: =NA() ->  | CC106: =NA() ->  | CD106: =NA() ->  | CE106: 1413348 | CF106: =NA() ->  | CG106: =NA() ->  | CH106: 809000 | CI106: 13821887 | CJ106: =NA() ->  | CK106: =NA() ->  | CL106: 1080657 | CM106: 8169788 | CN106: =NA() ->  | CO106: =NA() ->  | CP106: 8591076 | CQ106: =NA() ->  | CR106: =NA() ->  | CS106: =NA() ->  | CT106: 100000 | CU106: =NA() ->  | CV106: =NA() ->  | CW106: 2594000 | CX106: 2149969 | CY106: =NA() ->  | CZ106: 1742658 | DA106: =NA() ->  | DB106: =NA() ->  | DC106: =NA() ->  | DD106: 856086 | DE106: 1587322 | DF106: 11080654 | DG106: =NA() ->  | DH106: 6941 | DI106: =NA() ->  | DJ106: 1321454 | DK106: =NA() ->  | DL106: =NA() ->  | DM106: =NA() ->  | DN106: =NA() -> 
C107: 72 | D107: 1995M12 | E107: =NA() ->  | F107: =NA() ->  | G107: 591124 | H107: =NA() ->  | I107: =NA() ->  | J107: 318800 | K107: 11408952 | L107: =NA() ->  | M107: =NA() ->  | N107: 692086 | O107: 3443460 | P107: =NA() ->  | Q107: =NA() ->  | R107: 6974339 | S107: =NA() ->  | T107: =NA() ->  | U107: =NA() ->  | V107: 12000 | W107: =NA() ->  | X107: =NA() ->  | Y107: 1622000 | Z107: 1116278 | AA107: =NA() ->  | AB107: 600919 | AC107: =NA() ->  | AD107: =NA() ->  | AE107: =NA() ->  | AF107: 539634 | AG107: 1002976 | AH107: 8166000 | AI107: =NA() ->  | AJ107: 473 | AK107: =NA() ->  | AL107: 723774 | AM107: =NA() ->  | AN107: =NA() ->  | AO107: =NA() ->  | AP107: =NA() ->  | AQ107: =NA() ->  | AR107: =NA() ->  | AS107: 747218 | AT107: =NA() ->  | AU107: =NA() ->  | AV107: 231200 | AW107: 1835278 | AX107: =NA() ->  | AY107: =NA() ->  | AZ107: 290900 | BA107: 4067244 | BB107: =NA() ->  | BC107: =NA() ->  | BD107: 2772075 | BE107: 419513 | BF107: =NA() ->  | BG107: =NA() ->  | BH107: 68000 | BI107: =NA() ->  | BJ107: 338788 | BK107: 717000 | BL107: 4152395 | BM107: =NA() ->  | BN107: 876025 | BO107: =NA() ->  | BP107: =NA() ->  | BQ107: =NA() ->  | BR107: 189218 | BS107: 198444 | BT107: 6432294 | BU107: =NA() ->  | BV107: 8132 | BW107: =NA() ->  | BX107: 1042217 | BY107: =NA() ->  | BZ107: =NA() ->  | CA107: =NA() ->  | CB107: =NA() ->  | CC107: =NA() ->  | CD107: =NA() ->  | CE107: 1338342 | CF107: =NA() ->  | CG107: =NA() ->  | CH107: 550000 | CI107: 13244230 | CJ107: =NA() ->  | CK107: =NA() ->  | CL107: 982986 | CM107: 7510704 | CN107: =NA() ->  | CO107: =NA() ->  | CP107: 9746414 | CQ107: =NA() ->  | CR107: =NA() ->  | CS107: =NA() ->  | CT107: 80000 | CU107: =NA() ->  | CV107: =NA() ->  | CW107: 2339000 | CX107: 5268673 | CY107: =NA() ->  | CZ107: 1476944 | DA107: =NA() ->  | DB107: =NA() ->  | DC107: =NA() ->  | DD107: 728852 | DE107: 1201420 | DF107: 14598294 | DG107: =NA() ->  | DH107: 8605 | DI107: =NA() ->  | DJ107: 1765991 | DK107: =NA() ->  | DL107: =NA() ->  | DM107: =NA() ->  | DN107: =NA() -> 
A108: 1996 | B108: 01 | C108: 73 | D108: 1996M01 | E108: =NA() ->  | F108: =NA() ->  | G108: 432257 | H108: =NA() ->  | I108: =NA() ->  | J108: 372663 | K108: 10677789 | L108: =NA() ->  | M108: =NA() ->  | N108: 627560 | O108: 3042316 | P108: =NA() ->  | Q108: =NA() ->  | R108: 7666627 | S108: =NA() ->  | T108: =NA() ->  | U108: =NA() ->  | V108: 9663 | W108: =NA() ->  | X108: =NA() ->  | Y108: 1313000 | Z108: 1750594 | AA108: =NA() ->  | AB108: 456724 | AC108: =NA() ->  | AD108: =NA() ->  | AE108: =NA() ->  | AF108: 560349 | AG108: 1181888 | AH108: 4603000 | AI108: =NA() ->  | AJ108: 1079 | AK108: =NA() ->  | AL108: 1027849 | AM108: =NA() ->  | AN108: =NA() ->  | AO108: =NA() ->  | AP108: =NA() ->  | AQ108: =NA() ->  | AR108: =NA() ->  | AS108: 620398 | AT108: =NA() ->  | AU108: =NA() ->  | AV108: 187999 | AW108: 1787821 | AX108: =NA() ->  | AY108: 469000 | AZ108: 226169 | BA108: 4397879 | BB108: =NA() ->  | BC108: =NA() ->  | BD108: 3700632 | BE108: 337946 | BF108: =NA() ->  | BG108: =NA() ->  | BH108: 53931 | BI108: =NA() ->  | BJ108: 343311 | BK108: 654000 | BL108: 6426515 | BM108: =NA() ->  | BN108: 941021 | BO108: =NA() ->  | BP108: =NA() ->  | BQ108: =NA() ->  | BR108: 173511 | BS108: 259518 | BT108: 3901963 | BU108: =NA() ->  | BV108: 12026 | BW108: =NA() ->  | BX108: 1302774 | BY108: =NA() ->  | BZ108: =NA() ->  | CA108: =NA() ->  | CB108: =NA() ->  | CC108: =NA() ->  | CD108: =NA() ->  | CE108: 1052655 | CF108: =NA() ->  | CG108: =NA() ->  | CH108: 560662 | CI108: 12465610 | CJ108: =NA() ->  | CK108: =NA() ->  | CL108: 853729 | CM108: 7440195 | CN108: =NA() ->  | CO108: =NA() ->  | CP108: 11367259 | CQ108: =NA() ->  | CR108: =NA() ->  | CS108: =NA() ->  | CT108: 63594 | CU108: =NA() ->  | CV108: =NA() ->  | CW108: 1967000 | CX108: 8177109 | CY108: =NA() ->  | CZ108: 1397745 | DA108: =NA() ->  | DB108: =NA() ->  | DC108: =NA() ->  | DD108: 733860 | DE108: 1441406 | DF108: 8504963 | DG108: =NA() ->  | DH108: 13105 | DI108: =NA() ->  | DJ108: 2330623 | DK108: =NA() ->  | DL108: =NA() ->  | DM108: =NA() ->  | DN108: =NA() -> 
C109: 74 | D109: 1996M02 | E109: =NA() ->  | F109: =NA() ->  | G109: 620688 | H109: =NA() ->  | I109: =NA() ->  | J109: 462206 | K109: 12249400 | L109: =NA() ->  | M109: =NA() ->  | N109: 668012 | O109: 3460898 | P109: =NA() ->  | Q109: =NA() ->  | R109: 7664251 | S109: =NA() ->  | T109: =NA() ->  | U109: =NA() ->  | V109: 9082 | W109: =NA() ->  | X109: =NA() ->  | Y109: 1495000 | Z109: 2366056 | AA109: =NA() ->  | AB109: 582495 | AC109: =NA() ->  | AD109: =NA() ->  | AE109: =NA() ->  | AF109: 787009 | AG109: 1595705 | AH109: 5762000 | AI109: =NA() ->  | AJ109: 1353 | AK109: =NA() ->  | AL109: 1321032 | AM109: =NA() ->  | AN109: =NA() ->  | AO109: =NA() ->  | AP109: =NA() ->  | AQ109: =NA() ->  | AR109: =NA() ->  | AS109: 749361 | AT109: =NA() ->  | AU109: =NA() ->  | AV109: 213440 | AW109: 2174441 | AX109: =NA() ->  | AY109: 381000 | AZ109: 265622 | BA109: 4809436 | BB109: =NA() ->  | BC109: =NA() ->  | BD109: 4708042 | BE109: 439795 | BF109: =NA() ->  | BG109: =NA() ->  | BH109: 61703 | BI109: =NA() ->  | BJ109: 455592 | BK109: 758000 | BL109: 7104057 | BM109: =NA() ->  | BN109: 1158067 | BO109: =NA() ->  | BP109: =NA() ->  | BQ109: =NA() ->  | BR109: 170498 | BS109: 297331 | BT109: 3000997 | BU109: =NA() ->  | BV109: 15271 | BW109: =NA() ->  | BX109: 1516978 | BY109: =NA() ->  | BZ109: =NA() ->  | CA109: =NA() ->  | CB109: =NA() ->  | CC109: =NA() ->  | CD109: =NA() ->  | CE109: 1370049 | CF109: =NA() ->  | CG109: =NA() ->  | CH109: 675646 | CI109: 14423841 | CJ109: =NA() ->  | CK109: =NA() ->  | CL109: 933634 | CM109: 8270334 | CN109: =NA() ->  | CO109: =NA() ->  | CP109: 12372293 | CQ109: =NA() ->  | CR109: =NA() ->  | CS109: =NA() ->  | CT109: 70785 | CU109: =NA() ->  | CV109: =NA() ->  | CW109: 2253000 | CX109: 9470113 | CY109: =NA() ->  | CZ109: 1740562 | DA109: =NA() ->  | DB109: =NA() ->  | DC109: =NA() ->  | DD109: 957507 | DE109: 1893036 | DF109: 8762997 | DG109: =NA() ->  | DH109: 16624 | DI109: =NA() ->  | DJ109: 2838010 | DK109: =NA() ->  | DL109: =NA() ->  | DM109: =NA() ->  | DN109: =NA() -> 
C110: 75 | D110: 1996M03 | E110: =NA() ->  | F110: =NA() ->  | G110: 819852 | H110: =NA() ->  | I110: =NA() ->  | J110: 678143 | K110: 13884932 | L110: =NA() ->  | M110: =NA() ->  | N110: 761825 | O110: 4599175 | P110: =NA() ->  | Q110: =NA() ->  | R110: 8171234 | S110: =NA() ->  | T110: =NA() ->  | U110: =NA() ->  | V110: 10739 | W110: =NA() ->  | X110: =NA() ->  | Y110: 1876000 | Z110: 1989912 | AA110: =NA() ->  | AB110: 670388 | AC110: =NA() ->  | AD110: =NA() ->  | AE110: =NA() ->  | AF110: 918796 | AG110: 1800161 | AH110: 11373000 | AI110: =NA() ->  | AJ110: 1383 | AK110: =NA() ->  | AL110: 1201448 | AM110: =NA() ->  | AN110: =NA() ->  | AO110: =NA() ->  | AP110: =NA() ->  | AQ110: =NA() ->  | AR110: =NA() ->  | AS110: 1067180 | AT110: =NA() ->  | AU110: =NA() ->  | AV110: 329458 | AW110: 2357122 | AX110: =NA() ->  | AY110: 600000 | AZ110: 540540 | BA110: 5979719 | BB110: =NA() ->  | BC110: =NA() ->  | BD110: 6426411 | BE110: 713646 | BF110: =NA() ->  | BG110: =NA() ->  | BH110: 77479 | BI110: =NA() ->  | BJ110: 573902 | BK110: 1079000 | BL110: 6053625 | BM110: =NA() ->  | BN110: 1570878 | BO110: =NA() ->  | BP110: =NA() ->  | BQ110: =NA() ->  | BR110: 210630 | BS110: 293272 | BT110: 4976436 | BU110: =NA() ->  | BV110: 16296 | BW110: =NA() ->  | BX110: 1715563 | BY110: =NA() ->  | BZ110: =NA() ->  | CA110: =NA() ->  | CB110: =NA() ->  | CC110: =NA() ->  | CD110: =NA() ->  | CE110: 1887032 | CF110: =NA() ->  | CG110: =NA() ->  | CH110: 1007601 | CI110: 16242054 | CJ110: =NA() ->  | CK110: =NA() ->  | CL110: 1302365 | CM110: 10578894 | CN110: =NA() ->  | CO110: =NA() ->  | CP110: 14597645 | CQ110: =NA() ->  | CR110: =NA() ->  | CS110: =NA() ->  | CT110: 88218 | CU110: =NA() ->  | CV110: =NA() ->  | CW110: 2955000 | CX110: 8043537 | CY110: =NA() ->  | CZ110: 2241266 | DA110: =NA() ->  | DB110: =NA() ->  | DC110: =NA() ->  | DD110: 1129426 | DE110: 2093433 | DF110: 16349436 | DG110: =NA() ->  | DH110: 17679 | DI110: =NA() ->  | DJ110: 2917011 | DK110: =NA() ->  | DL110: =NA() ->  | DM110: =NA() ->  | DN110: =NA() -> 
C111: 76 | D111: 1996M04 | E111: =NA() ->  | F111: =NA() ->  | G111: 1273869 | H111: =NA() ->  | I111: =NA() ->  | J111: 1005793 | K111: 17133821 | L111: =NA() ->  | M111: =NA() ->  | N111: 976822 | O111: 6263024 | P111: =NA() ->  | Q111: =NA() ->  | R111: 8742405 | S111: =NA() ->  | T111: =NA() ->  | U111: =NA() ->  | V111: 17764 | W111: =NA() ->  | X111: =NA() ->  | Y111: 2501000 | Z111: 1408173 | AA111: =NA() ->  | AB111: 1003978 | AC111: =NA() ->  | AD111: =NA() ->  | AE111: =NA() ->  | AF111: 820942 | AG111: 1534500 | AH111: 9468000 | AI111: 19627 | AJ111: 477 | AK111: =NA() ->  | AL111: 905779 | AM111: =NA() ->  | AN111: =NA() ->  | AO111: =NA() ->  | AP111: =NA() ->  | AQ111: =NA() ->  | AR111: =NA() ->  | AS111: 1174150 | AT111: =NA() ->  | AU111: =NA() ->  | AV111: 574534 | AW111: 2438380 | AX111: =NA() ->  | AY111: 1108000 | AZ111: 1821952 | BA111: 6943054 | BB111: =NA() ->  | BC111: =NA() ->  | BD111: 8565856 | BE111: 1016615 | BF111: =NA() ->  | BG111: =NA() ->  | BH111: 141421 | BI111: =NA() ->  | BJ111: 656888 | BK111: 2054000 | BL111: 3089008 | BM111: =NA() ->  | BN111: 1819993 | BO111: =NA() ->  | BP111: =NA() ->  | BQ111: =NA() ->  | BR111: 157112 | BS111: 253157 | BT111: 5277989 | BU111: 31762 | BV111: 10872 | BW111: =NA() ->  | BX111: 1212779 | BY111: =NA() ->  | BZ111: =NA() ->  | CA111: =NA() ->  | CB111: =NA() ->  | CC111: =NA() ->  | CD111: =NA() ->  | CE111: 2448019 | CF111: =NA() ->  | CG111: =NA() ->  | CH111: 1580327 | CI111: 19572201 | CJ111: =NA() ->  | CK111: =NA() ->  | CL111: 2798774 | CM111: 13206078 | CN111: =NA() ->  | CO111: =NA() ->  | CP111: 17308261 | CQ111: =NA() ->  | CR111: =NA() ->  | CS111: =NA() ->  | CT111: 159185 | CU111: =NA() ->  | CV111: =NA() ->  | CW111: 4555000 | CX111: 4497181 | CY111: =NA() ->  | CZ111: 2823971 | DA111: =NA() ->  | DB111: =NA() ->  | DC111: =NA() ->  | DD111: 978054 | DE111: 1787657 | DF111: 14745989 | DG111: 51389 | DH111: 11349 | DI111: =NA() ->  | DJ111: 2118558 | DK111: =NA() ->  | DL111: =NA() ->  | DM111: =NA() ->  | DN111: =NA() -> 
C112: 77 | D112: 1996M05 | E112: =NA() ->  | F112: =NA() ->  | G112: 1175508 | H112: =NA() ->  | I112: =NA() ->  | J112: 1505170 | K112: 23241322 | L112: =NA() ->  | M112: =NA() ->  | N112: 820952 | O112: 5198935 | P112: 9508548 | Q112: =NA() ->  | R112: 8938202 | S112: =NA() ->  | T112: =NA() ->  | U112: =NA() ->  | V112: 28755 | W112: =NA() ->  | X112: =NA() ->  | Y112: 4753000 | Z112: 1758712 | AA112: =NA() ->  | AB112: 900815 | AC112: =NA() ->  | AD112: =NA() ->  | AE112: =NA() ->  | AF112: 712033 | AG112: 1541650 | AH112: 18095000 | AI112: 24547 | AJ112: 366 | AK112: =NA() ->  | AL112: 848807 | AM112: =NA() ->  | AN112: =NA() ->  | AO112: =NA() ->  | AP112: =NA() ->  | AQ112: =NA() ->  | AR112: =NA() ->  | AS112: 1375295 | AT112: =NA() ->  | AU112: =NA() ->  | AV112: 904907 | AW112: 3064098 | AX112: =NA() ->  | AY112: 1863000 | AZ112: 4382268 | BA112: 11038444 | BB112: 6688479 | BC112: =NA() ->  | BD112: 11986240 | BE112: 1330095 | BF112: =NA() ->  | BG112: =NA() ->  | BH112: 217678 | BI112: =NA() ->  | BJ112: 675947 | BK112: 1973000 | BL112: 3309099 | BM112: =NA() ->  | BN112: 2099757 | BO112: =NA() ->  | BP112: =NA() ->  | BQ112: =NA() ->  | BR112: 228714 | BS112: 345934 | BT112: 6654888 | BU112: 46409 | BV112: 12353 | BW112: =NA() ->  | BX112: 1234245 | BY112: =NA() ->  | BZ112: =NA() ->  | CA112: =NA() ->  | CB112: =NA() ->  | CC112: =NA() ->  | CD112: =NA() ->  | CE112: 2550803 | CF112: =NA() ->  | CG112: =NA() ->  | CH112: 2410077 | CI112: 26305420 | CJ112: =NA() ->  | CK112: =NA() ->  | CL112: 5203220 | CM112: 16237379 | CN112: 16197027 | CO112: =NA() ->  | CP112: 20924442 | CQ112: =NA() ->  | CR112: =NA() ->  | CS112: =NA() ->  | CT112: 246433 | CU112: =NA() ->  | CV112: =NA() ->  | CW112: 6726000 | CX112: 5067811 | CY112: =NA() ->  | CZ112: 3000572 | DA112: =NA() ->  | DB112: =NA() ->  | DC112: =NA() ->  | DD112: 940747 | DE112: 1887584 | DF112: 24749888 | DG112: 70956 | DH112: 12719 | DI112: =NA() ->  | DJ112: 2083052 | DK112: =NA() ->  | DL112: =NA() ->  | DM112: =NA() ->  | DN112: =NA() -> 
C113: 78 | D113: 1996M06 | E113: =NA() ->  | F113: =NA() ->  | G113: 1217461 | H113: =NA() ->  | I113: =NA() ->  | J113: 1779363 | K113: 24757393 | L113: =NA() ->  | M113: =NA() ->  | N113: 1040216 | O113: 6226168 | P113: 12550552 | Q113: =NA() ->  | R113: 17839768 | S113: =NA() ->  | T113: =NA() ->  | U113: =NA() ->  | V113: 27609 | W113: =NA() ->  | X113: =NA() ->  | Y113: 4176000 | Z113: 2237629 | AA113: =NA() ->  | AB113: 1319896 | AC113: =NA() ->  | AD113: =NA() ->  | AE113: =NA() ->  | AF113: 1310030 | AG113: 1617048 | AH113: 18655000 | AI113: 59540 | AJ113: 556 | AK113: =NA() ->  | AL113: 1052245 | AM113: =NA() ->  | AN113: =NA() ->  | AO113: =NA() ->  | AP113: =NA() ->  | AQ113: =NA() ->  | AR113: =NA() ->  | AS113: 1438380 | AT113: =NA() ->  | AU113: =NA() ->  | AV113: 1272458 | AW113: 3293937 | AX113: =NA() ->  | AY113: 2200000 | AZ113: 5354059 | BA113: 11948879 | BB113: 8849335 | BC113: =NA() ->  | BD113: 14322016 | BE113: 1360448 | BF113: =NA() ->  | BG113: =NA() ->  | BH113: 212181 | BI113: =NA() ->  | BJ113: 682075 | BK113: 1913000 | BL113: 4823909 | BM113: =NA() ->  | BN113: 2127592 | BO113: =NA() ->  | BP113: =NA() ->  | BQ113: =NA() ->  | BR113: 430471 | BS113: 591636 | BT113: 7281550 | BU113: 109256 | BV113: 13910 | BW113: =NA() ->  | BX113: 1664242 | BY113: =NA() ->  | BZ113: =NA() ->  | CA113: =NA() ->  | CB113: =NA() ->  | CC113: =NA() ->  | CD113: =NA() ->  | CE113: 2655841 | CF113: =NA() ->  | CG113: =NA() ->  | CH113: 3051821 | CI113: 28051330 | CJ113: =NA() ->  | CK113: =NA() ->  | CL113: 6394275 | CM113: 18175047 | CN113: 21399887 | CO113: =NA() ->  | CP113: 32161784 | CQ113: =NA() ->  | CR113: =NA() ->  | CS113: =NA() ->  | CT113: 239790 | CU113: =NA() ->  | CV113: =NA() ->  | CW113: 6089000 | CX113: 7061538 | CY113: =NA() ->  | CZ113: 3447488 | DA113: =NA() ->  | DB113: =NA() ->  | DC113: =NA() ->  | DD113: 1740501 | DE113: 2208684 | DF113: 25936550 | DG113: 168796 | DH113: 14466 | DI113: =NA() ->  | DJ113: 2716487 | DK113: =NA() ->  | DL113: =NA() ->  | DM113: =NA() ->  | DN113: =NA() -> 
B114: 07 | C114: 79 | D114: 1996M07 | E114: =NA() ->  | F114: =NA() ->  | G114: 3039896 | H114: =NA() ->  | I114: =NA() ->  | J114: 4135294 | K114: 31414892 | L114: =NA() ->  | M114: =NA() ->  | N114: 1971066 | O114: 9794347 | P114: 32481410 | Q114: =NA() ->  | R114: 32325235 | S114: =NA() ->  | T114: =NA() ->  | U114: =NA() ->  | V114: 31161 | W114: =NA() ->  | X114: =NA() ->  | Y114: 7994000 | Z114: 3160428 | AA114: =NA() ->  | AB114: 2315199 | AC114: =NA() ->  | AD114: =NA() ->  | AE114: =NA() ->  | AF114: 1677140 | AG114: 2280137 | AH114: 28262000 | AI114: 140124 | AJ114: 1531 | AK114: =NA() ->  | AL114: 1423323 | AM114: =NA() ->  | AN114: =NA() ->  | AO114: =NA() ->  | AP114: =NA() ->  | AQ114: =NA() ->  | AR114: =NA() ->  | AS114: 2229610 | AT114: =NA() ->  | AU114: =NA() ->  | AV114: 3394493 | AW114: 4896029 | AX114: =NA() ->  | AY114: 3169000 | AZ114: 6405119 | BA114: 15602161 | BB114: 19515917 | BC114: =NA() ->  | BD114: 20386558 | BE114: 1668355 | BF114: =NA() ->  | BG114: =NA() ->  | BH114: 557169 | BI114: =NA() ->  | BJ114: 860351 | BK114: 2863000 | BL114: 8711466 | BM114: =NA() ->  | BN114: 2684986 | BO114: =NA() ->  | BP114: =NA() ->  | BQ114: =NA() ->  | BR114: 597150 | BS114: 951266 | BT114: 9962427 | BU114: 248464 | BV114: 16467 | BW114: =NA() ->  | BX114: 2083495 | BY114: =NA() ->  | BZ114: =NA() ->  | CA114: =NA() ->  | CB114: =NA() ->  | CC114: =NA() ->  | CD114: =NA() ->  | CE114: 5269506 | CF114: =NA() ->  | CG114: =NA() ->  | CH114: 7529787 | CI114: 36310921 | CJ114: =NA() ->  | CK114: =NA() ->  | CL114: 8376185 | CM114: 25396508 | CN114: 51997327 | CO114: =NA() ->  | CP114: 52711793 | CQ114: =NA() ->  | CR114: =NA() ->  | CS114: =NA() ->  | CT114: 588330 | CU114: =NA() ->  | CV114: =NA() ->  | CW114: 10857000 | CX114: 11871894 | CY114: =NA() ->  | CZ114: 5000185 | DA114: =NA() ->  | DB114: =NA() ->  | DC114: =NA() ->  | DD114: 2274290 | DE114: 3231403 | DF114: 38224427 | DG114: 388588 | DH114: 17998 | DI114: =NA() ->  | DJ114: 3506818 | DK114: =NA() ->  | DL114: =NA() ->  | DM114: =NA() ->  | DN114: =NA() -> 
C115: 80 | D115: 1996M08 | E115: =NA() ->  | F115: =NA() ->  | G115: 2038175 | H115: =NA() ->  | I115: =NA() ->  | J115: 2044035 | K115: 29890400 | L115: =NA() ->  | M115: =NA() ->  | N115: 2683830 | O115: 13728118 | P115: 40758101 | Q115: =NA() ->  | R115: 46994550 | S115: =NA() ->  | T115: =NA() ->  | U115: =NA() ->  | V115: 26116 | W115: =NA() ->  | X115: =NA() ->  | Y115: 9016000 | Z115: 3303026 | AA115: =NA() ->  | AB115: 3802056 | AC115: =NA() ->  | AD115: =NA() ->  | AE115: =NA() ->  | AF115: 1101402 | AG115: 1863262 | AH115: 39359000 | AI115: 93417 | AJ115: 1460 | AK115: =NA() ->  | AL115: 1375964 | AM115: =NA() ->  | AN115: =NA() ->  | AO115: =NA() ->  | AP115: =NA() ->  | AQ115: =NA() ->  | AR115: =NA() ->  | AS115: 1709238 | AT115: =NA() ->  | AU115: =NA() ->  | AV115: 2189214 | AW115: 4651712 | AX115: =NA() ->  | AY115: 2652000 | AZ115: 7340912 | BA115: 15469289 | BB115: 17753424 | BC115: =NA() ->  | BD115: 18523785 | BE115: 1848083 | BF115: =NA() ->  | BG115: =NA() ->  | BH115: 412208 | BI115: =NA() ->  | BJ115: 1181426 | BK115: 2883000 | BL115: 8935725 | BM115: =NA() ->  | BN115: 3054631 | BO115: =NA() ->  | BP115: =NA() ->  | BQ115: =NA() ->  | BR115: 485315 | BS115: 669843 | BT115: 11663347 | BU115: 214963 | BV115: 19612 | BW115: =NA() ->  | BX115: 2274260 | BY115: =NA() ->  | BZ115: =NA() ->  | CA115: =NA() ->  | CB115: =NA() ->  | CC115: =NA() ->  | CD115: =NA() ->  | CE115: 3747413 | CF115: =NA() ->  | CG115: =NA() ->  | CH115: 4233249 | CI115: 34542112 | CJ115: =NA() ->  | CK115: =NA() ->  | CL115: 10024742 | CM115: 29197407 | CN115: 58511525 | CO115: =NA() ->  | CP115: 65518335 | CQ115: =NA() ->  | CR115: =NA() ->  | CS115: =NA() ->  | CT115: 438324 | CU115: =NA() ->  | CV115: =NA() ->  | CW115: 11899000 | CX115: 12238751 | CY115: =NA() ->  | CZ115: 6856687 | DA115: =NA() ->  | DB115: =NA() ->  | DC115: =NA() ->  | DD115: 1586717 | DE115: 2533105 | DF115: 51022347 | DG115: 308380 | DH115: 21072 | DI115: =NA() ->  | DJ115: 3650224 | DK115: =NA() ->  | DL115: =NA() ->  | DM115: =NA() ->  | DN115: =NA() -> 
C116: 81 | D116: 1996M09 | E116: =NA() ->  | F116: =NA() ->  | G116: 919680 | H116: =NA() ->  | I116: =NA() ->  | J116: 1121358 | K116: 24934399 | L116: =NA() ->  | M116: =NA() ->  | N116: 1128784 | O116: 7176144 | P116: 10889761 | Q116: =NA() ->  | R116: 15249093 | S116: =NA() ->  | T116: =NA() ->  | U116: =NA() ->  | V116: 17179 | W116: =NA() ->  | X116: =NA() ->  | Y116: 3052000 | Z116: 1943176 | AA116: =NA() ->  | AB116: 1517203 | AC116: =NA() ->  | AD116: =NA() ->  | AE116: =NA() ->  | AF116: 823147 | AG116: 1518094 | AH116: 18042000 | AI116: =NA() ->  | AJ116: 553 | AK116: =NA() ->  | AL116: 1256175 | AM116: =NA() ->  | AN116: =NA() ->  | AO116: =NA() ->  | AP116: =NA() ->  | AQ116: =NA() ->  | AR116: =NA() ->  | AS116: 1190043 | AT116: =NA() ->  | AU116: =NA() ->  | AV116: 680052 | AW116: 3565918 | AX116: =NA() ->  | AY116: 1867000 | AZ116: 5942984 | BA116: 12746522 | BB116: 7643196 | BC116: =NA() ->  | BD116: 14915214 | BE116: 1541256 | BF116: =NA() ->  | BG116: =NA() ->  | BH116: 143164 | BI116: =NA() ->  | BJ116: 961073 | BK116: 1679000 | BL116: 5276261 | BM116: =NA() ->  | BN116: 2424769 | BO116: =NA() ->  | BP116: =NA() ->  | BQ116: =NA() ->  | BR116: 250729 | BS116: 404824 | BT116: 7825709 | BU116: =NA() ->  | BV116: 14041 | BW116: =NA() ->  | BX116: 1701406 | BY116: =NA() ->  | BZ116: =NA() ->  | CA116: =NA() ->  | CB116: =NA() ->  | CC116: =NA() ->  | CD116: =NA() ->  | CE116: 2109723 | CF116: =NA() ->  | CG116: =NA() ->  | CH116: 1801410 | CI116: 28500317 | CJ116: =NA() ->  | CK116: =NA() ->  | CL116: 7071768 | CM116: 19922666 | CN116: 18532957 | CO116: =NA() ->  | CP116: 30164307 | CQ116: =NA() ->  | CR116: =NA() ->  | CS116: =NA() ->  | CT116: 160343 | CU116: =NA() ->  | CV116: =NA() ->  | CW116: 4731000 | CX116: 7219437 | CY116: =NA() ->  | CZ116: 3941972 | DA116: =NA() ->  | DB116: =NA() ->  | DC116: =NA() ->  | DD116: 1073876 | DE116: 1922918 | DF116: 25867709 | DG116: =NA() ->  | DH116: 14594 | DI116: =NA() ->  | DJ116: 2957581 | DK116: =NA() ->  | DL116: =NA() ->  | DM116: =NA() ->  | DN116: =NA() -> 
C117: 82 | D117: 1996M10 | E117: =NA() ->  | F117: =NA() ->  | G117: 911664 | H117: =NA() ->  | I117: =NA() ->  | J117: 882479 | K117: 21954237 | L117: =NA() ->  | M117: =NA() ->  | N117: 874630 | O117: 4926375 | P117: =NA() ->  | Q117: =NA() ->  | R117: 7338422 | S117: =NA() ->  | T117: =NA() ->  | U117: =NA() ->  | V117: 15328 | W117: =NA() ->  | X117: =NA() ->  | Y117: 2784000 | Z117: 1381727 | AA117: =NA() ->  | AB117: 766107 | AC117: =NA() ->  | AD117: =NA() ->  | AE117: =NA() ->  | AF117: 750173 | AG117: 1391301 | AH117: 13369000 | AI117: =NA() ->  | AJ117: 430 | AK117: =NA() ->  | AL117: 1113641 | AM117: =NA() ->  | AN117: =NA() ->  | AO117: =NA() ->  | AP117: =NA() ->  | AQ117: =NA() ->  | AR117: =NA() ->  | AS117: 1231481 | AT117: =NA() ->  | AU117: =NA() ->  | AV117: 530446 | AW117: 3109746 | AX117: =NA() ->  | AY117: 1051000 | AZ117: 3272220 | BA117: 9202638 | BB117: =NA() ->  | BC117: =NA() ->  | BD117: 8540336 | BE117: 1422917 | BF117: =NA() ->  | BG117: =NA() ->  | BH117: 130180 | BI117: =NA() ->  | BJ117: 761337 | BK117: 1494000 | BL117: 3033387 | BM117: =NA() ->  | BN117: 1906537 | BO117: =NA() ->  | BP117: =NA() ->  | BQ117: =NA() ->  | BR117: 193908 | BS117: 305469 | BT117: 7455968 | BU117: =NA() ->  | BV117: 11067 | BW117: =NA() ->  | BX117: 1196418 | BY117: =NA() ->  | BZ117: =NA() ->  | CA117: =NA() ->  | CB117: =NA() ->  | CC117: =NA() ->  | CD117: =NA() ->  | CE117: 2143145 | CF117: =NA() ->  | CG117: =NA() ->  | CH117: 1412925 | CI117: 25063983 | CJ117: =NA() ->  | CK117: =NA() ->  | CL117: 4146850 | CM117: 14129013 | CN117: =NA() ->  | CO117: =NA() ->  | CP117: 15878758 | CQ117: =NA() ->  | CR117: =NA() ->  | CS117: =NA() ->  | CT117: 145508 | CU117: =NA() ->  | CV117: =NA() ->  | CW117: 4278000 | CX117: 4415114 | CY117: =NA() ->  | CZ117: 2672644 | DA117: =NA() ->  | DB117: =NA() ->  | DC117: =NA() ->  | DD117: 944081 | DE117: 1696770 | DF117: 20824968 | DG117: =NA() ->  | DH117: 11497 | DI117: =NA() ->  | DJ117: 2310059 | DK117: =NA() ->  | DL117: =NA() ->  | DM117: =NA() ->  | DN117: =NA() -> 
C118: 83 | D118: 1996M11 | E118: =NA() ->  | F118: =NA() ->  | G118: 685298 | H118: =NA() ->  | I118: =NA() ->  | J118: 579603 | K118: 12196492 | L118: =NA() ->  | M118: =NA() ->  | N118: 704292 | O118: 3890359 | P118: =NA() ->  | Q118: =NA() ->  | R118: 5847522 | S118: =NA() ->  | T118: =NA() ->  | U118: =NA() ->  | V118: 12102 | W118: =NA() ->  | X118: =NA() ->  | Y118: 1733000 | Z118: 1027258 | AA118: =NA() ->  | AB118: 638694 | AC118: =NA() ->  | AD118: =NA() ->  | AE118: =NA() ->  | AF118: 727755 | AG118: 1370825 | AH118: 7072000 | AI118: =NA() ->  | AJ118: 178 | AK118: =NA() ->  | AL118: 629636 | AM118: =NA() ->  | AN118: =NA() ->  | AO118: =NA() ->  | AP118: =NA() ->  | AQ118: =NA() ->  | AR118: =NA() ->  | AS118: 896715 | AT118: =NA() ->  | AU118: =NA() ->  | AV118: 303602 | AW118: 2150607 | AX118: =NA() ->  | AY118: 629000 | AZ118: 371024 | BA118: 4480779 | BB118: =NA() ->  | BC118: =NA() ->  | BD118: 3142136 | BE118: 610874 | BF118: =NA() ->  | BG118: =NA() ->  | BH118: 83397 | BI118: =NA() ->  | BJ118: 476565 | BK118: 991000 | BL118: 1206717 | BM118: =NA() ->  | BN118: 1054890 | BO118: =NA() ->  | BP118: =NA() ->  | BQ118: =NA() ->  | BR118: 187000 | BS118: 251343 | BT118: 4390508 | BU118: =NA() ->  | BV118: 6055 | BW118: =NA() ->  | BX118: 644242 | BY118: =NA() ->  | BZ118: =NA() ->  | CA118: =NA() ->  | CB118: =NA() ->  | CC118: =NA() ->  | CD118: =NA() ->  | CE118: 1582013 | CF118: =NA() ->  | CG118: =NA() ->  | CH118: 883205 | CI118: 14347099 | CJ118: =NA() ->  | CK118: =NA() ->  | CL118: 1075316 | CM118: 8371138 | CN118: =NA() ->  | CO118: =NA() ->  | CP118: 8989658 | CQ118: =NA() ->  | CR118: =NA() ->  | CS118: =NA() ->  | CT118: 95499 | CU118: =NA() ->  | CV118: =NA() ->  | CW118: 2724000 | CX118: 2233975 | CY118: =NA() ->  | CZ118: 1693584 | DA118: =NA() ->  | DB118: =NA() ->  | DC118: =NA() ->  | DD118: 914755 | DE118: 1622168 | DF118: 11462508 | DG118: =NA() ->  | DH118: 6233 | DI118: =NA() ->  | DJ118: 1273878 | DK118: =NA() ->  | DL118: =NA() ->  | DM118: =NA() ->  | DN118: =NA() -> 
C119: 84 | D119: 1996M12 | E119: =NA() ->  | F119: =NA() ->  | G119: 654129 | H119: =NA() ->  | I119: =NA() ->  | J119: 311899 | K119: 11645838 | L119: =NA() ->  | M119: =NA() ->  | N119: 411037 | O119: 3455940 | P119: =NA() ->  | Q119: =NA() ->  | R119: 6569350 | S119: =NA() ->  | T119: =NA() ->  | U119: =NA() ->  | V119: 11172 | W119: =NA() ->  | X119: =NA() ->  | Y119: 1644000 | Z119: 1090563 | AA119: =NA() ->  | AB119: 554836 | AC119: =NA() ->  | AD119: =NA() ->  | AE119: =NA() ->  | AF119: 540093 | AG119: 1040005 | AH119: 7441000 | AI119: 26891 | AJ119: 825 | AK119: =NA() ->  | AL119: 733003 | AM119: =NA() ->  | AN119: =NA() ->  | AO119: =NA() ->  | AP119: =NA() ->  | AQ119: =NA() ->  | AR119: =NA() ->  | AS119: 759092 | AT119: =NA() ->  | AU119: =NA() ->  | AV119: 229584 | AW119: 1842091 | AX119: =NA() ->  | AY119: 451000 | AZ119: 70484 | BA119: 4038801 | BB119: =NA() ->  | BC119: =NA() ->  | BD119: 2806421 | BE119: 414654 | BF119: =NA() ->  | BG119: =NA() ->  | BH119: 62343 | BI119: =NA() ->  | BJ119: 354083 | BK119: 698000 | BL119: 4441040 | BM119: =NA() ->  | BN119: 864756 | BO119: =NA() ->  | BP119: =NA() ->  | BQ119: =NA() ->  | BR119: 199606 | BS119: 206163 | BT119: 5990480 | BU119: 21390 | BV119: 7888 | BW119: =NA() ->  | BX119: 1068749 | BY119: =NA() ->  | BZ119: =NA() ->  | CA119: =NA() ->  | CB119: =NA() ->  | CC119: =NA() ->  | CD119: =NA() ->  | CE119: 1413221 | CF119: =NA() ->  | CG119: =NA() ->  | CH119: 541483 | CI119: 13487929 | CJ119: =NA() ->  | CK119: =NA() ->  | CL119: 481521 | CM119: 7494741 | CN119: =NA() ->  | CO119: =NA() ->  | CP119: 9375771 | CQ119: =NA() ->  | CR119: =NA() ->  | CS119: =NA() ->  | CT119: 73515 | CU119: =NA() ->  | CV119: =NA() ->  | CW119: 2342000 | CX119: 5531603 | CY119: =NA() ->  | CZ119: 1419592 | DA119: =NA() ->  | DB119: =NA() ->  | DC119: =NA() ->  | DD119: 739699 | DE119: 1246168 | DF119: 13431480 | DG119: 48281 | DH119: 8713 | DI119: =NA() ->  | DJ119: 1801752 | DK119: =NA() ->  | DL119: =NA() ->  | DM119: =NA() ->  | DN119: =NA() -> 
A120: 1997 | B120: 01 | C120: 85 | D120: 1997M01 | E120: =NA() ->  | F120: =NA() ->  | G120: 440933 | H120: =NA() ->  | I120: =NA() ->  | J120: 365810 | K120: 10781021 | L120: =NA() ->  | M120: =NA() ->  | N120: 720630 | O120: 2898480 | P120: =NA() ->  | Q120: =NA() ->  | R120: 7523703 | S120: =NA() ->  | T120: =NA() ->  | U120: =NA() ->  | V120: 10665 | W120: =NA() ->  | X120: =NA() ->  | Y120: 1434000 | Z120: 1690599 | AA120: =NA() ->  | AB120: 477577 | AC120: =NA() ->  | AD120: =NA() ->  | AE120: =NA() ->  | AF120: 581707 | AG120: 1150914 | AH120: 4130000 | AI120: 12707 | AJ120: 1207 | AK120: =NA() ->  | AL120: 2835613 | AM120: =NA() ->  | AN120: =NA() ->  | AO120: =NA() ->  | AP120: =NA() ->  | AQ120: =NA() ->  | AR120: =NA() ->  | AS120: 677587 | AT120: =NA() ->  | AU120: =NA() ->  | AV120: 192443 | AW120: 1869208 | AX120: =NA() ->  | AY120: 486000 | AZ120: 271037 | BA120: 4583652 | BB120: =NA() ->  | BC120: =NA() ->  | BD120: 3756044 | BE120: 355711 | BF120: =NA() ->  | BG120: =NA() ->  | BH120: 53736 | BI120: =NA() ->  | BJ120: 325838 | BK120: 705000 | BL120: 6172316 | BM120: =NA() ->  | BN120: 859595 | BO120: =NA() ->  | BP120: =NA() ->  | BQ120: =NA() ->  | BR120: 204316 | BS120: 239635 | BT120: 3937739 | BU120: 14501 | BV120: 11469 | BW120: =NA() ->  | BX120: 2579831 | BY120: =NA() ->  | BZ120: =NA() ->  | CA120: =NA() ->  | CB120: =NA() ->  | CC120: =NA() ->  | CD120: =NA() ->  | CE120: 1118520 | CF120: =NA() ->  | CG120: =NA() ->  | CH120: 558253 | CI120: 12650229 | CJ120: =NA() ->  | CK120: =NA() ->  | CL120: 991667 | CM120: 7482132 | CN120: =NA() ->  | CO120: =NA() ->  | CP120: 11279747 | CQ120: =NA() ->  | CR120: =NA() ->  | CS120: =NA() ->  | CT120: 64401 | CU120: =NA() ->  | CV120: =NA() ->  | CW120: 2139000 | CX120: 7862915 | CY120: =NA() ->  | CZ120: 1337172 | DA120: =NA() ->  | DB120: =NA() ->  | DC120: =NA() ->  | DD120: 786023 | DE120: 1390549 | DF120: 8067739 | DG120: 27208 | DH120: 12676 | DI120: =NA() ->  | DJ120: 5415444 | DK120: =NA() ->  | DL120: =NA() ->  | DM120: =NA() ->  | DN120: =NA() -> 
C121: 86 | D121: 1997M02 | E121: =NA() ->  | F121: =NA() ->  | G121: 637240 | H121: =NA() ->  | I121: =NA() ->  | J121: 471725 | K121: 11724231 | L121: =NA() ->  | M121: =NA() ->  | N121: 651301 | O121: 3399058 | P121: =NA() ->  | Q121: =NA() ->  | R121: 7682364 | S121: =NA() ->  | T121: =NA() ->  | U121: =NA() ->  | V121: 10938 | W121: =NA() ->  | X121: =NA() ->  | Y121: 1500000 | Z121: 2176430 | AA121: =NA() ->  | AB121: 535332 | AC121: =NA() ->  | AD121: =NA() ->  | AE121: =NA() ->  | AF121: 793941 | AG121: 1466952 | AH121: 5690000 | AI121: 17580 | AJ121: 1373 | AK121: =NA() ->  | AL121: 4090365 | AM121: =NA() ->  | AN121: =NA() ->  | AO121: =NA() ->  | AP121: =NA() ->  | AQ121: =NA() ->  | AR121: =NA() ->  | AS121: 841415 | AT121: =NA() ->  | AU121: =NA() ->  | AV121: 213072 | AW121: 2191291 | AX121: =NA() ->  | AY121: 387000 | AZ121: 290177 | BA121: 4856510 | BB121: =NA() ->  | BC121: =NA() ->  | BD121: 4824285 | BE121: 422963 | BF121: =NA() ->  | BG121: =NA() ->  | BH121: 64574 | BI121: =NA() ->  | BJ121: 426458 | BK121: 771000 | BL121: 6659249 | BM121: =NA() ->  | BN121: 1073314 | BO121: =NA() ->  | BP121: =NA() ->  | BQ121: =NA() ->  | BR121: 169974 | BS121: 303582 | BT121: 3169058 | BU121: 21925 | BV121: 14791 | BW121: =NA() ->  | BX121: 2634489 | BY121: =NA() ->  | BZ121: =NA() ->  | CA121: =NA() ->  | CB121: =NA() ->  | CC121: =NA() ->  | CD121: =NA() ->  | CE121: 1478655 | CF121: =NA() ->  | CG121: =NA() ->  | CH121: 684797 | CI121: 13915522 | CJ121: =NA() ->  | CK121: =NA() ->  | CL121: 941478 | CM121: 8255568 | CN121: =NA() ->  | CO121: =NA() ->  | CP121: 12506649 | CQ121: =NA() ->  | CR121: =NA() ->  | CS121: =NA() ->  | CT121: 75512 | CU121: =NA() ->  | CV121: =NA() ->  | CW121: 2271000 | CX121: 8835679 | CY121: =NA() ->  | CZ121: 1608646 | DA121: =NA() ->  | DB121: =NA() ->  | DC121: =NA() ->  | DD121: 963915 | DE121: 1770534 | DF121: 8859058 | DG121: 39505 | DH121: 16164 | DI121: =NA() ->  | DJ121: 6724854 | DK121: =NA() ->  | DL121: =NA() ->  | DM121: =NA() ->  | DN121: =NA() -> 
C122: 87 | D122: 1997M03 | E122: =NA() ->  | F122: =NA() ->  | G122: 920179 | H122: =NA() ->  | I122: =NA() ->  | J122: 719166 | K122: 14524382 | L122: =NA() ->  | M122: =NA() ->  | N122: 771837 | O122: 5318677 | P122: =NA() ->  | Q122: =NA() ->  | R122: 9020343 | S122: =NA() ->  | T122: =NA() ->  | U122: =NA() ->  | V122: 13516 | W122: =NA() ->  | X122: =NA() ->  | Y122: 1928000 | Z122: 1979055 | AA122: =NA() ->  | AB122: 850065 | AC122: =NA() ->  | AD122: =NA() ->  | AE122: =NA() ->  | AF122: 921407 | AG122: 1692818 | AH122: 12450000 | AI122: 24101 | AJ122: 1147 | AK122: =NA() ->  | AL122: 3060098 | AM122: =NA() ->  | AN122: =NA() ->  | AO122: =NA() ->  | AP122: =NA() ->  | AQ122: =NA() ->  | AR122: =NA() ->  | AS122: 1079929 | AT122: =NA() ->  | AU122: =NA() ->  | AV122: 406543 | AW122: 2427807 | AX122: =NA() ->  | AY122: 645000 | AZ122: 603425 | BA122: 5752828 | BB122: =NA() ->  | BC122: =NA() ->  | BD122: 7350118 | BE122: 663026 | BF122: =NA() ->  | BG122: =NA() ->  | BH122: 96091 | BI122: =NA() ->  | BJ122: 510098 | BK122: 1192000 | BL122: 6339081 | BM122: =NA() ->  | BN122: 1710765 | BO122: =NA() ->  | BP122: =NA() ->  | BQ122: =NA() ->  | BR122: 213855 | BS122: 303495 | BT122: 4979412 | BU122: 30543 | BV122: 14962 | BW122: =NA() ->  | BX122: 3288740 | BY122: =NA() ->  | BZ122: =NA() ->  | CA122: =NA() ->  | CB122: =NA() ->  | CC122: =NA() ->  | CD122: =NA() ->  | CE122: 2000108 | CF122: =NA() ->  | CG122: =NA() ->  | CH122: 1125709 | CI122: 16952189 | CJ122: =NA() ->  | CK122: =NA() ->  | CL122: 1375262 | CM122: 11071505 | CN122: =NA() ->  | CO122: =NA() ->  | CP122: 16370461 | CQ122: =NA() ->  | CR122: =NA() ->  | CS122: =NA() ->  | CT122: 109607 | CU122: =NA() ->  | CV122: =NA() ->  | CW122: 3120000 | CX122: 8318136 | CY122: =NA() ->  | CZ122: 2560830 | DA122: =NA() ->  | DB122: =NA() ->  | DC122: =NA() ->  | DD122: 1135262 | DE122: 1996313 | DF122: 17429412 | DG122: 54644 | DH122: 16109 | DI122: =NA() ->  | DJ122: 6348838 | DK122: =NA() ->  | DL122: =NA() ->  | DM122: =NA() ->  | DN122: =NA() -> 
C123: 88 | D123: 1997M04 | E123: =NA() ->  | F123: =NA() ->  | G123: 962814 | H123: =NA() ->  | I123: =NA() ->  | J123: 921272 | K123: 15988229 | L123: =NA() ->  | M123: =NA() ->  | N123: 1127118 | O123: 5113152 | P123: =NA() ->  | Q123: =NA() ->  | R123: 8149080 | S123: =NA() ->  | T123: =NA() ->  | U123: =NA() ->  | V123: 21478 | W123: =NA() ->  | X123: =NA() ->  | Y123: 2298000 | Z123: 1328930 | AA123: =NA() ->  | AB123: 902243 | AC123: =NA() ->  | AD123: =NA() ->  | AE123: =NA() ->  | AF123: 856316 | AG123: 1619996 | AH123: 10680000 | AI123: 26830 | AJ123: 554 | AK123: =NA() ->  | AL123: 2169555 | AM123: =NA() ->  | AN123: =NA() ->  | AO123: =NA() ->  | AP123: =NA() ->  | AQ123: =NA() ->  | AR123: =NA() ->  | AS123: 1122421 | AT123: =NA() ->  | AU123: =NA() ->  | AV123: 479928 | AW123: 2472029 | AX123: =NA() ->  | AY123: 1209000 | AZ123: 1716715 | BA123: 7115411 | BB123: =NA() ->  | BC123: =NA() ->  | BD123: 7308485 | BE123: 885143 | BF123: =NA() ->  | BG123: =NA() ->  | BH123: 132756 | BI123: =NA() ->  | BJ123: 690242 | BK123: 1822000 | BL123: 2363728 | BM123: =NA() ->  | BN123: 1816752 | BO123: =NA() ->  | BP123: =NA() ->  | BQ123: =NA() ->  | BR123: 191779 | BS123: 273318 | BT123: 5226111 | BU123: 34165 | BV123: 10017 | BW123: =NA() ->  | BX123: 2239582 | BY123: =NA() ->  | BZ123: =NA() ->  | CA123: =NA() ->  | CB123: =NA() ->  | CC123: =NA() ->  | CD123: =NA() ->  | CE123: 2085235 | CF123: =NA() ->  | CG123: =NA() ->  | CH123: 1401200 | CI123: 18460258 | CJ123: =NA() ->  | CK123: =NA() ->  | CL123: 2843833 | CM123: 12228563 | CN123: =NA() ->  | CO123: =NA() ->  | CP123: 15457565 | CQ123: =NA() ->  | CR123: =NA() ->  | CS123: =NA() ->  | CT123: 154234 | CU123: =NA() ->  | CV123: =NA() ->  | CW123: 4120000 | CX123: 3692658 | CY123: =NA() ->  | CZ123: 2718995 | DA123: =NA() ->  | DB123: =NA() ->  | DC123: =NA() ->  | DD123: 1048095 | DE123: 1893314 | DF123: 15906111 | DG123: 60995 | DH123: 10571 | DI123: =NA() ->  | DJ123: 4409137 | DK123: =NA() ->  | DL123: =NA() ->  | DM123: =NA() ->  | DN123: =NA() -> 
C124: 89 | D124: 1997M05 | E124: =NA() ->  | F124: =NA() ->  | G124: 1179694 | H124: =NA() ->  | I124: =NA() ->  | J124: 1502303 | K124: 23956592 | L124: =NA() ->  | M124: =NA() ->  | N124: 994565 | O124: 5523625 | P124: 10334877 | Q124: =NA() ->  | R124: 9423061 | S124: =NA() ->  | T124: =NA() ->  | U124: =NA() ->  | V124: 29068 | W124: =NA() ->  | X124: =NA() ->  | Y124: 5138000 | Z124: 1818139 | AA124: =NA() ->  | AB124: 969056 | AC124: =NA() ->  | AD124: =NA() ->  | AE124: =NA() ->  | AF124: 782660 | AG124: 1481057 | AH124: 18870000 | AI124: 29822 | AJ124: 649 | AK124: =NA() ->  | AL124: 2260516 | AM124: =NA() ->  | AN124: =NA() ->  | AO124: =NA() ->  | AP124: =NA() ->  | AQ124: =NA() ->  | AR124: =NA() ->  | AS124: 1472118 | AT124: =NA() ->  | AU124: =NA() ->  | AV124: 898357 | AW124: 3067102 | AX124: =NA() ->  | AY124: 1715000 | AZ124: 4957680 | BA124: 11551989 | BB124: 8057786 | BC124: =NA() ->  | BD124: 13113708 | BE124: 1293688 | BF124: =NA() ->  | BG124: =NA() ->  | BH124: 248990 | BI124: =NA() ->  | BJ124: 756063 | BK124: 1963000 | BL124: 3484147 | BM124: =NA() ->  | BN124: 2263884 | BO124: =NA() ->  | BP124: =NA() ->  | BQ124: =NA() ->  | BR124: 281442 | BS124: 362819 | BT124: 6791569 | BU124: 54505 | BV124: 13005 | BW124: =NA() ->  | BX124: 2017522 | BY124: =NA() ->  | BZ124: =NA() ->  | CA124: =NA() ->  | CB124: =NA() ->  | CC124: =NA() ->  | CD124: =NA() ->  | CE124: 2651812 | CF124: =NA() ->  | CG124: =NA() ->  | CH124: 2400660 | CI124: 27023694 | CJ124: =NA() ->  | CK124: =NA() ->  | CL124: 5952245 | CM124: 17075614 | CN124: 18392663 | CO124: =NA() ->  | CP124: 22536769 | CQ124: =NA() ->  | CR124: =NA() ->  | CS124: =NA() ->  | CT124: 278058 | CU124: =NA() ->  | CV124: =NA() ->  | CW124: 7101000 | CX124: 5302286 | CY124: =NA() ->  | CZ124: 3232940 | DA124: =NA() ->  | DB124: =NA() ->  | DC124: =NA() ->  | DD124: 1064102 | DE124: 1843876 | DF124: 25661569 | DG124: 84327 | DH124: 13654 | DI124: =NA() ->  | DJ124: 4278038 | DK124: =NA() ->  | DL124: =NA() ->  | DM124: =NA() ->  | DN124: =NA() -> 
C125: 90 | D125: 1997M06 | E125: =NA() ->  | F125: =NA() ->  | G125: 1113705 | H125: =NA() ->  | I125: =NA() ->  | J125: 1777962 | K125: 23742242 | L125: =NA() ->  | M125: =NA() ->  | N125: 1122485 | O125: 6175524 | P125: 12330706 | Q125: =NA() ->  | R125: 17453142 | S125: =NA() ->  | T125: =NA() ->  | U125: =NA() ->  | V125: 30991 | W125: =NA() ->  | X125: =NA() ->  | Y125: 3855000 | Z125: 2232786 | AA125: =NA() ->  | AB125: 1114796 | AC125: =NA() ->  | AD125: =NA() ->  | AE125: =NA() ->  | AF125: 1346483 | AG125: 1593001 | AH125: 19040000 | AI125: 61149 | AJ125: 757 | AK125: =NA() ->  | AL125: 2626407 | AM125: =NA() ->  | AN125: =NA() ->  | AO125: =NA() ->  | AP125: =NA() ->  | AQ125: =NA() ->  | AR125: =NA() ->  | AS125: 1408481 | AT125: =NA() ->  | AU125: =NA() ->  | AV125: 1210219 | AW125: 3501189 | AX125: =NA() ->  | AY125: 2083000 | AZ125: 6138588 | BA125: 12703480 | BB125: 9562981 | BC125: =NA() ->  | BD125: 13081612 | BE125: 1397610 | BF125: =NA() ->  | BG125: =NA() ->  | BH125: 198728 | BI125: =NA() ->  | BJ125: 616494 | BK125: 1838000 | BL125: 4284642 | BM125: =NA() ->  | BN125: 2207367 | BO125: =NA() ->  | BP125: =NA() ->  | BQ125: =NA() ->  | BR125: 437506 | BS125: 603863 | BT125: 7311201 | BU125: 125722 | BV125: 14531 | BW125: =NA() ->  | BX125: 2455721 | BY125: =NA() ->  | BZ125: =NA() ->  | CA125: =NA() ->  | CB125: =NA() ->  | CC125: =NA() ->  | CD125: =NA() ->  | CE125: 2522186 | CF125: =NA() ->  | CG125: =NA() ->  | CH125: 2988181 | CI125: 27243431 | CJ125: =NA() ->  | CK125: =NA() ->  | CL125: 7261073 | CM125: 18879004 | CN125: 21893687 | CO125: =NA() ->  | CP125: 30534754 | CQ125: =NA() ->  | CR125: =NA() ->  | CS125: =NA() ->  | CT125: 229719 | CU125: =NA() ->  | CV125: =NA() ->  | CW125: 5693000 | CX125: 6517428 | CY125: =NA() ->  | CZ125: 3322163 | DA125: =NA() ->  | DB125: =NA() ->  | DC125: =NA() ->  | DD125: 1783989 | DE125: 2196864 | DF125: 26351201 | DG125: 186871 | DH125: 15288 | DI125: =NA() ->  | DJ125: 5082128 | DK125: =NA() ->  | DL125: =NA() ->  | DM125: =NA() ->  | DN125: =NA() -> 
